Workbook

Sheet Contents
C3: Contents | F3: Colour Codes | K3: File Name: | M3: =IFERROR(File_name(),"") -> https://d.docs.live.net/f82d64a42721f930/Documents/Exercise for Class 06.09.2025.xlsm
G4: Colour of Input Cells | I4: 1234567890
C5: Summary | K5: Last Save Date | M5: =IFERROR(lastsaved(),"") -> 9/22/2025 6:29:23 PM
G6: Section Titles | I6: TITLE ROW
C7: Input C | G7: Column Letter of Title | I7: B | K7: Last Save By | M7: =IFERROR(last_save_by(),"") -> Edward Bodmer
D8: Timeline
D9: Operations | G9: Colour for Sum Column | I9: 1000000000
D10: Cost & Revenue | G10: Column Letter for Sum | I10: A
D11: Tax and Depreciation
D12: Financing | G12: True or 1 Colour | I12: TRUE
D13: Constants | G13: False or 0 Colour | I13: FALSE
C15: Input S | G15: Links from Other Sheets | I15: 999999999
D16: S-Curve | G16: Start Column for Link Colour | I16: E
D17: Inflation
D18: Seasonal Variation from Technical Analysis
C20: Financial Model
D21: Timeline
D22: Electricity Generation
D23: Operating Cashflow
D24: Depreciation and Operating Taxes
D25: Debt Sizing
D26: Financing
D27: Solver
D28: Valuation and Project sale
D29: Cash Flow Statements
D30: Financial Statements
D31: Graphs
C33: Sensitivity Analysis
C35: Value Chart
C37: Audit
C39: BESS-Augm
D40: Inputs
D41: Model
C43: LCOE
D44: Size of Project
D45: Returns and Adustment
D46: Adjustments
D47: Real LCOE
D48: Nominal LCOE
C50: UDF Example
C52: UDF Implement
D53: UDF Inputs
C55: UDF Output
D56: =UDF_1('UDF Implement'!A6:PO17)
C58: UDF 2 Output
D59: =UDF_2('UDF Implement'!A6:PO17)

Sheet Summary
C3: Capacity | D3: MW | E3: ='Financial Model'!F14 -> 130 | H3: Pre-tax Project IRR | I3: % | J3: ='Financial Model'!F55 -> 0.09925586285 | N3: Uses of Funds
C4: Capacity Factor | D4: % | E4: =E5/8760 -> 0.2670091324 | H4: Target Project IRR | I4: % | J4: ='Financial Model'!F56 -> 0.11 | O4: Capital Expenditures | P4: ='Financial Model'!H33 -> 26000
C5: Annual Yield | D5: MWH/MWp | E5: ='Input C'!F18 -> 2339 | H5: Income Tax Rate | I5: % | J5: ='Input C'!F58 -> 0.25 | O5: IDC | P5: ='Financial Model'!H215 -> 0
H6: After-tax Project IRR | I6: % | J6: ='Financial Model'!F88 -> 0.08132788241 | O6: Fees | P6: ='Financial Model'!H216+'Financial Model'!H217 -> 156
C7: Capex / KW | D7: Rs. In Lakhs/MW | E7: ='Financial Model'!F28 -> 400 | H7: Debt IRR | I7: % | J7: ='Financial Model'!F206 -> 0.08086893857 | O7: Total | P7: =SUM(P4:P6) -> 26156
C8: O&M / kW | D8: Rs. in Lakhs/Mwy | E8: ='Input C'!F32 -> 4 | H8: Equity IRR | I8: % | J8: ='Financial Model'!F267 -> 0.1194887102
N9: Sources of Funds
C10: PPA Price | D10: Rs. In Lakhs/MWh | E10: ='Input C'!F43 -> 0.01052968012 | H10: Minimum DSCR | I10: x | J10: ='Financial Model'!F211 -> 1.207963368 | O10: Debt | P10: ='Financial Model'!H183 -> 19500 | Q10: =P10/$P$7 -> 0.745526839
C11: Inflate PPA Price | D11: Flag | E11: ='Input C'!F46 -> TRUE | H11: Maximum Debt to Capital | I11: % | J11: ='Financial Model'!F112 -> 0.75 | O11: Equity | P11: ='Financial Model'!H184 -> 6500 | Q11: =P11/$P$7 -> 0.2485089463
O12: Total | P12: =SUM(P10:P11) -> 26000 | Q12: =SUM(Q10:Q11) -> 0.9940357853
C13: Capex / KW | D13: USD/kW | E13: ='Input C'!F30 -> 465.1162791
C14: O&M / kWy | D14: USD/kWy | E14: ='Input C'!F34 -> 4.651162791 | O14: ='Financial Model'!F131 -> Debt to Capital Constraint
C16: Inflation Rate | D16: % p.a. | E16: ='Input S'!E30 -> 0.05 | O16: =Audit!J12 -> S-Curve Check
C17: Degradation | D17: % p.a. | E17: ='Input C'!F24 -> 0.005
C18: Availability | D18: % | E18: ='Input C'!F23 -> 0.95
C20: LCOE - Nominal | D20: Rs. In Lakhs/MWh | E20: =LCOE!E4 -> 0.03146725634
C21: LCOE - Real | D21: Rs. In Lakhs/MWh | E21: =LCOE!E47 -> 0.02038191065
C23: PPA Inflate | D23: Flag

Sheet Input C
D1: Scenerio Number | E1: 1 | H1: 1 | I1: 2 | J1: 3 | K1: 4 | L1: 5 | M1: 6 | N1: 7 | O1: 8 | P1: 9 | Q1: 10 | R1: 11 | S1: 12
F2: =INDEX(H2:AS2,E1) -> Base Case Annual | H2: Base Case Annual | I2: Longer Life | J2: Improved Perfromance Ratio | K2: Improved Availability/ Degradation | L2: Reduced O&M | M2: Higher Cost | N2: Higher O&M | O2: Worse Availability | P2: Shorter Life | Q2: P90 | R2: P99 | S2: Monthly
B3: Timeline
C5: Project Start | E5: Date | F5: =INDEX(H5:BY5,$E$1) -> 2026-01-01 | H5: 2026-01-01 | I5: 2026-01-01 | J5: 2026-01-01 | K5: 2026-01-01 | L5: 2026-01-01 | M5: 2026-01-01 | N5: 2026-01-01 | O5: 2026-01-01 | P5: 2026-01-01 | Q5: 2026-01-01 | R5: 2026-01-01 | S5: 2026-01-01
C6: Construction Period | E6: Months | F6: =INDEX(H6:BY6,$E$1) -> 12 | H6: 12 | I6: 12 | J6: 12 | K6: 12 | L6: 12 | M6: 12 | N6: 12 | O6: 12 | P6: 12 | Q6: 12 | R6: 12 | S6: 12
C7: Commercial Operation Date | E7: Date | F7: =INDEX(H7:BY7,$E$1) -> 2027-01-01 | H7: =EDATE(H5,H6) -> 2027-01-01 | I7: =EDATE(I5,I6) -> 2027-01-01 | J7: =EDATE(J5,J6) -> 2027-01-01 | K7: 2027-01-01 | L7: 2027-01-01 | M7: =EDATE(M5,M6) -> 2027-01-01 | N7: =EDATE(N5,N6) -> 2027-01-01 | O7: =EDATE(O5,O6) -> 2027-01-01 | P7: =EDATE(P5,P6) -> 2027-01-01 | Q7: 2027-01-01 | R7: 2027-01-01 | S7: =EDATE(S5,S6) -> 2027-01-01
C8: Operating Period | E8: Years | F8: =INDEX(H8:BY8,$E$1) -> 25 | H8: 25 | I8: 35 | J8: 35 | K8: 35 | L8: 35 | M8: 35 | N8: 35 | O8: 25 | P8: 25 | Q8: 25 | R8: 25 | S8: 35
C9: End of the Life | E9: Date | F9: =INDEX(H9:BY9,$E$1) -> 2052-01-01 | H9: =EDATE(H7,H8*12) -> 2052-01-01 | I9: =EDATE(I7,I8*12) -> 2062-01-01 | J9: =EDATE(J7,J8*12) -> 2062-01-01 | K9: 2062-01-01 | L9: 2062-01-01 | M9: =EDATE(M7,M8*12) -> 2062-01-01 | N9: =EDATE(N7,N8*12) -> 2062-01-01 | O9: =EDATE(O7,O8*12) -> 2052-01-01 | P9: =EDATE(P7,P8*12) -> 2052-01-01 | Q9: 2052-01-01 | R9: 2052-01-01 | S9: =EDATE(S7,S8*12) -> 2062-01-01
C10: Months in Column - Pre COD | E10: Months | F10: =INDEX(H10:BY10,$E$1) -> 12 | H10: 12 | I10: 12 | J10: 12 | K10: 12 | L10: 12 | M10: 12 | N10: 12 | O10: 12 | P10: 12 | Q10: 12 | R10: 12 | S10: 12
C11: Months in Column - Post COD | E11: Months | F11: =INDEX(H11:BY11,$E$1) -> 12 | H11: 12 | I11: 12 | J11: 12 | K11: 12 | L11: 12 | M11: 12 | N11: 12 | O11: 12 | P11: 12 | Q11: 12 | R11: 12 | S11: 12
B13: Operations
C15: Capacity | E15: MWp | F15: =INDEX(H15:BY15,$E$1) -> 130 | H15: =H17*H16 -> 130 | I15: =I17*I16 -> 130 | J15: =J17*J16 -> 130 | K15: 130 | L15: 130 | M15: 130 | N15: 130 | O15: 130 | P15: =P17*P16 -> 130 | Q15: =Q17*Q16 -> 130 | R15: =R17*R16 -> 130 | S15: 130
C16: AC:DC Ratio | E16: Factor | F16: =INDEX(H16:BY16,$E$1) -> 1.3 | H16: 1.3 | I16: 1.3 | J16: 1.3 | K16: 1.3 | L16: 1.3 | M16: 1.3 | N16: 1.3 | O16: 1.3 | P16: 1.3 | Q16: 1.3 | R16: 1.3 | S16: 1.3
C17: Capacity | E17: Mwac | F17: =INDEX(H17:BY17,$E$1) -> 100 | H17: 100 | I17: 100 | J17: 100 | K17: 100 | L17: 100 | M17: 100 | N17: 100 | O17: 100 | P17: 100 | Q17: 100 | R17: 100 | S17: 100
C18: In Plain Radiation Annual | E18: MWh/MWp | F18: =INDEX(H18:BY18,$E$1) -> 2339 | H18: 2339 | I18: 2339 | J18: 2339 | K18: 2339 | L18: 2339 | M18: 2339 | N18: 2339 | O18: 2339 | P18: 2339 | Q18: 2100 | R18: 2000 | S18: 2000
C19: Performance Ratio | E19: % | F19: =INDEX(H19:BY19,$E$1) -> 0.8 | H19: 0.8 | I19: 0.8 | J19: 0.82 | K19: 0.82 | L19: 0.82 | M19: 0.8 | N19: 0.8 | O19: 0.8 | P19: 0.8 | Q19: 0.76 | R19: 0.7 | S19: 0.7
C20: Actutal Radiation | E20: MWh/MWp | F20: =INDEX(H20:BY20,$E$1) -> 1871.2 | H20: =H18*H19 -> 1871.2 | I20: =I18*I19 -> 1871.2 | J20: =J18*J19 -> 1917.98 | K20: 1917.98 | L20: 1917.98 | M20: 1871.2 | N20: 1871.2 | O20: 1871.2 | P20: =P18*P19 -> 1871.2 | Q20: =Q18*Q19 -> 1596 | R20: =R18*R19 -> 1400 | S20: 1400
C21: Capacity Factor DC | E21: % | F21: =INDEX(H21:BY21,$E$1) -> 0.2136073059 | H21: =H20/8760 -> 0.2136073059 | I21: =I20/8760 -> 0.2136073059 | J21: =J20/8760 -> 0.2189474886 | K21: 0.2189474886 | L21: 0.2189474886 | M21: 0.2136073059 | N21: 0.2136073059 | O21: 0.2136073059 | P21: =P20/8760 -> 0.2136073059 | Q21: =Q20/8760 -> 0.1821917808 | R21: =R20/8760 -> 0.1598173516 | S21: 0.1598173516
C22: Capacity Factor AC | E22: % | F22: =INDEX(H22:BY22,$E$1) -> 0.2776894977 | H22: =H21*H16 -> 0.2776894977 | I22: =I21*I16 -> 0.2776894977 | J22: =J21*J16 -> 0.2846317352 | K22: 0.2846317352 | L22: 0.2846317352 | M22: 0.2776894977 | N22: 0.2776894977 | O22: 0.2776894977 | P22: =P21*P16 -> 0.2776894977 | Q22: =Q21*Q16 -> 0.2368493151 | R22: =R21*R16 -> 0.2077625571 | S22: 0.2077625571
C23: Availability | E23: % | F23: =INDEX(H23:BY23,$E$1) -> 0.95 | H23: 0.95 | I23: 0.95 | J23: 0.95 | K23: 0.97 | L23: 0.95 | M23: 0.97 | N23: 0.97 | O23: 0.95 | P23: 0.97 | Q23: 0.97 | R23: 0.97 | S23: 0.97
C24: Degradation | E24: % | F24: =INDEX(H24:BY24,$E$1) -> 0.005 | H24: 0.005 | I24: 0.005 | J24: 0.005 | K24: 0.004 | L24: 0.005 | M24: 0.005 | N24: 0.005 | O24: 0.005 | P24: 0.005 | Q24: 0.005 | R24: 0.005 | S24: 0.005
B26: Cost & Revenue
C28: Capex per MW | E28: Rs. In Lakhs/MW | F28: =INDEX(H28:BY28,$E$1) -> 400 | H28: 400 | I28: 400 | J28: 400 | K28: 400 | L28: 400 | M28: 400 | N28: 400 | O28: 400 | P28: 400 | Q28: 400 | R28: 400 | S28: 400
C29: Exchange rate | E29: USD/INR | F29: =INDEX(H29:BY29,$E$1) -> 86 | H29: 86 | I29: 86 | J29: 86 | K29: 86 | L29: 86 | M29: 86 | N29: 86 | O29: 86 | P29: 86 | Q29: 86 | R29: 86 | S29: 86
C30: Capex per MW | E30: USD/KW | F30: =INDEX(H30:BY30,$E$1) -> 465.1162791 | H30: =H28/H29/10*1000 -> 465.1162791 | I30: =I28/I29/10*1000 -> 465.1162791 | J30: =J28/J29/10*1000 -> 465.1162791 | K30: 465.1162791 | L30: 465.1162791 | M30: =M28/M29/10*1000 -> 465.1162791 | N30: 465.1162791 | O30: 465.1162791 | P30: 465.1162791 | Q30: 465.1162791 | R30: 465.1162791 | S30: 465.1162791
C32: Annual O&M | E32: Rs. in Lakhs/Mwy | F32: =INDEX(H32:BY32,$E$1) -> 4 | H32: 4 | I32: 4 | J32: 4 | K32: 4 | L32: 3.5 | M32: 3 | N32: 4 | O32: 4 | P32: 4 | Q32: 4 | R32: 4 | S32: 3
C33: Exchange Rate | E33: USD/INR | F33: =INDEX(H33:BY33,$E$1) -> 86 | H33: =H29 -> 86 | I33: =I29 -> 86 | J33: =J29 -> 86 | K33: 86 | L33: 86 | M33: =M29 -> 86 | N33: 86 | O33: 86 | P33: 86 | Q33: 86 | R33: 86 | S33: 86
C34: O&M | E34: USD/KW | F34: =INDEX(H34:BY34,$E$1) -> 4.651162791 | H34: =H32/H33/10*1000 -> 4.651162791 | I34: =I32/I33/10*1000 -> 4.651162791 | J34: =J32/J33/10*1000 -> 4.651162791 | K34: 4.651162791 | L34: 4.069767442 | M34: =M32/M33/10*1000 -> 3.488372093 | N34: 4.651162791 | O34: 4.651162791 | P34: 4.651162791 | Q34: 4.651162791 | R34: 4.651162791 | S34: 3.488372093
C36: S-Curve Code | E36: Code | F36: =INDEX(H36:BY36,$E$1) -> 6 | H36: 6 | I36: 6 | J36: 6 | K36: 6 | L36: 6 | M36: 5 | N36: 5 | O36: 5 | P36: 5 | Q36: 5 | R36: 5 | S36: 5
C37: S-Curve Description | E37: Description | F37: =INDEX(H37:BY37,$E$1) -> Two Yr Annual | H37: =INDEX('Input S'!$C$7:$C$12,'Input C'!H36) -> Two Yr Annual | I37: =INDEX('Input S'!$C$7:$C$12,'Input C'!I36) -> Two Yr Annual | J37: =INDEX('Input S'!$C$7:$C$12,'Input C'!J36) -> Two Yr Annual | K37: =INDEX('Input S'!$C$7:$C$12,'Input C'!K36) -> Two Yr Annual | L37: =INDEX('Input S'!$C$7:$C$12,'Input C'!L36) -> Two Yr Annual | M37: =INDEX('Input S'!$C$7:$C$12,'Input C'!M36) -> Annual | N37: =INDEX('Input S'!$C$7:$C$12,'Input C'!N36) -> Annual | O37: =INDEX('Input S'!$C$7:$C$12,'Input C'!O36) -> Annual | P37: =INDEX('Input S'!$C$7:$C$12,'Input C'!P36) -> Annual | Q37: =INDEX('Input S'!$C$7:$C$12,'Input C'!Q36) -> Annual | R37: =INDEX('Input S'!$C$7:$C$12,'Input C'!R36) -> Annual | S37: =INDEX('Input S'!$C$7:$C$12,'Input C'!S36) -> Annual
C39: Inflation Rate Code | E39: Code | F39: =INDEX(H39:BY39,$E$1) -> 3 | H39: 3 | I39: 3 | J39: 3 | K39: 3 | L39: 3 | M39: 3 | N39: 3 | O39: 3 | P39: 3 | Q39: 3 | R39: 3 | S39: 3
C40: Inflation Rate Description | E40: Description | F40: =INDEX(H40:BY40,$E$1) -> Flat Inflation | H40: =INDEX('Input S'!$C$22:$C$25,'Input C'!H39) -> Flat Inflation | I40: =INDEX('Input S'!$C$22:$C$25,'Input C'!I39) -> Flat Inflation | J40: =INDEX('Input S'!$C$22:$C$25,'Input C'!J39) -> Flat Inflation | K40: =INDEX('Input S'!$C$22:$C$25,'Input C'!K39) -> Flat Inflation | L40: =INDEX('Input S'!$C$22:$C$25,'Input C'!L39) -> Flat Inflation | M40: =INDEX('Input S'!$C$22:$C$25,'Input C'!M39) -> Flat Inflation | N40: =INDEX('Input S'!$C$22:$C$25,'Input C'!N39) -> Flat Inflation | O40: =INDEX('Input S'!$C$22:$C$25,'Input C'!O39) -> Flat Inflation | P40: =INDEX('Input S'!$C$22:$C$25,'Input C'!P39) -> Flat Inflation | Q40: =INDEX('Input S'!$C$22:$C$25,'Input C'!Q39) -> Flat Inflation | R40: =INDEX('Input S'!$C$22:$C$25,'Input C'!R39) -> Flat Inflation | S40: =INDEX('Input S'!$C$22:$C$25,'Input C'!S39) -> Flat Inflation
C42: Base PPA Price | E42: Rs. In Lakhs/MWh
C43: PPA Price | E43: Rs. In Lakhs/MWh | F43: =INDEX(H43:BY43,$E$1) -> 0.01052968012 | H43: 0.01052968012 | I43: =Price2 -> 0.01052968012 | J43: 0.01052968012 | K43: 0.01052968012 | L43: 0.01052968012 | M43: 0.01052968012 | N43: 0.01052968012 | O43: 0.01052968012 | P43: 0.01052968012 | Q43: 0.01052968012 | R43: 0.01052968012 | S43: 0.01052968012
C44: Exchange Rate | E44: USD/INR | F44: =INDEX(H44:BY44,$E$1) -> 86 | H44: =H33 -> 86 | I44: =I33 -> 86 | J44: =J33 -> 86 | K44: 86 | L44: 86 | M44: =M33 -> 86 | N44: 86 | O44: 86 | P44: 86 | Q44: 86 | R44: 86 | S44: 86
C45: PPA Price | E45: USD/MWH | F45: =INDEX(H45:BY45,$E$1) -> 0.03 | H45: 0.03 | I45: 0.03 | J45: 0.03 | K45: 0.03 | L45: 0.03 | M45: 0.03 | N45: 0.03 | O45: 0.03 | P45: 0.03 | Q45: 0.03 | R45: 0.03 | S45: 0.03
C46: Inflate PPA | E46: Flag | F46: =INDEX(H46:BY46,$E$1) -> TRUE | H46: TRUE | I46: TRUE | J46: TRUE | K46: TRUE | L46: TRUE | M46: =H46 -> TRUE | N46: =M46 -> TRUE | O46: TRUE | P46: TRUE | Q46: TRUE | R46: TRUE | S46: TRUE
C47: Flag for Goal Seek | E47: Flag | F47: =INDEX(H47:BY47,$E$1) -> TRUE | H47: TRUE | I47: =H47 -> TRUE | J47: TRUE | K47: TRUE | L47: TRUE | M47: TRUE | N47: TRUE | O47: TRUE | P47: TRUE | Q47: TRUE | R47: TRUE | S47: TRUE
C49: Target Pre-tax IRR for PPA | E49: % p.a. | F49: =INDEX(H49:XFD49,$E$1) -> 0.11 | H49: 0.11 | I49: 0.11 | J49: 0.11 | K49: 0.11 | L49: 0.11 | M49: 0.11 | N49: 0.11 | O49: 0.11 | P49: 0.11 | Q49: 0.11 | R49: 0.11 | S49: 0.11
C50: Target Equity IRR for PPA | E50: % p.a. | F50: =INDEX(H50:XFD50,$E$1) -> 0.11 | H50: 0.11 | I50: 0.11 | J50: 0.11 | K50: 0.11 | L50: 0.11 | M50: 0.11 | N50: 0.11 | O50: 0.11 | P50: 0.11 | Q50: 0.11 | R50: 0.11 | S50: 0.11
C51: Target Equity IRR for Holding Period | E51: % p.a. | F51: =INDEX(H51:XFD51,$E$1) -> 0.14 | H51: 0.14 | I51: 0.14 | J51: 0.14 | K51: 0.14 | L51: 0.14 | M51: 0.14 | N51: 0.14 | O51: 0.14 | P51: 0.14 | Q51: 0.14 | R51: 0.14 | S51: 0.14
C52: Apply Equity IRR | E52: Flag | F52: =INDEX(H52:XFD52,$E$1) -> TRUE | H52: TRUE | I52: TRUE | J52: TRUE | K52: TRUE | L52: TRUE | M52: TRUE | N52: TRUE | O52: TRUE | P52: TRUE | Q52: TRUE | R52: TRUE | S52: TRUE
B54: Tax and Depreciation
C56: Tax Life for Depreciation | E56: Years | F56: =INDEX(H56:BY56,$E$1) -> 25 | H56: 25 | I56: 25 | J56: 25 | K56: 25 | L56: 25 | M56: 25 | N56: 25 | O56: 25 | P56: 25 | Q56: 25 | R56: 25 | S56: 25
C58: Income Tax Rate | E58: % | F58: =INDEX(H58:BY58,$E$1) -> 0.25 | H58: 0.25 | I58: 0.25 | J58: 0.25 | K58: 0.25 | L58: 0.25 | M58: 0.25 | N58: 0.25 | O58: 0.25 | P58: 0.25 | Q58: 0.25 | R58: 0.25 | S58: 0.25
C59: Maximum Carry Forward Year | E59: Years | F59: =INDEX(H59:BY59,$E$1) -> 8 | H59: 8 | I59: 8 | J59: 8 | K59: 8 | L59: 8 | M59: 8 | N59: 8 | O59: 8 | P59: 8 | Q59: 8 | R59: 8 | S59: 8
B61: Financing
C63: Maximum Debt to Capital | E63: % | F63: =INDEX(H63:BY63,$E$1) -> 0.75 | H63: 0.75 | I63: 0.75 | J63: 0.75 | K63: 0.75 | L63: 0.75 | M63: 0.75 | N63: 0.75 | O63: 0.75 | P63: 0.75 | Q63: 0.75 | R63: 0.75 | S63: 0.75
C64: Minimum DSCR | E64: x | F64: =INDEX(H64:BY64,$E$1) -> 1.2 | H64: 1.2 | I64: 1.2 | J64: 1.2 | K64: 1.2 | L64: 1.2 | M64: 1.2 | N64: 1.2 | O64: 1.2 | P64: 1.2 | Q64: 1.2 | R64: 1.2 | S64: 1.2
C65: P90 Standard Deviation | E65: % of P50 | F65: =INDEX(H65:BY65,$E$1) -> 0.08 | H65: 0.08 | I65: 0.08 | J65: 0.08 | K65: 0.08 | L65: 0.08 | M65: 0.08 | N65: 0.08 | O65: 0.08 | P65: 0.08 | Q65: 0.08 | R65: 0.08 | S65: 0.08
C66: P90 Factor | E66: % | F66: =INDEX(H66:BY66,$E$1) -> 0.1 | H66: 0.1 | I66: 0.1 | J66: 0.1 | K66: 0.1 | L66: 0.1 | M66: 0.1 | N66: 0.1 | O66: 0.1 | P66: 0.1 | Q66: 0.1 | R66: 0.1 | S66: 0.1
C68: Debt Tenure | E68: Years | F68: =INDEX(H68:BY68,$E$1) -> 20 | H68: 20 | I68: 20 | J68: 20 | K68: 20 | L68: 20 | M68: 20 | N68: 20 | O68: 20 | P68: 20 | Q68: 20 | R68: 20 | S68: 20
C70: Interest Rate | E70: % p.a. | F70: =INDEX(H70:BY70,$E$1) -> 0.08 | H70: =H71+H72 -> 0.08 | I70: =I71+I72 -> 0.08 | J70: =J71+J72 -> 0.08 | K70: 0.08 | L70: 0.08 | M70: =M71+M72 -> 0.08 | N70: 0.08 | O70: 0.08 | P70: 0.08 | Q70: 0.08 | R70: 0.08 | S70: 0.08
C71: REPO Interest | E71: % p.a. | F71: =INDEX(H71:BY71,$E$1) -> 0.055 | H71: 0.055 | I71: 0.055 | J71: 0.055 | K71: 0.055 | L71: 0.055 | M71: 0.055 | N71: 0.055 | O71: 0.055 | P71: 0.055 | Q71: 0.055 | R71: 0.055 | S71: 0.055
C72: Margin | E72: % p.a. | F72: =INDEX(H72:BY72,$E$1) -> 0.025 | H72: 0.025 | I72: 0.025 | J72: 0.025 | K72: 0.025 | L72: 0.025 | M72: 0.025 | N72: 0.025 | O72: 0.025 | P72: 0.025 | Q72: 0.025 | R72: 0.025 | S72: 0.025
C74: Pro-Forma Funding | E74: Flag | F74: =INDEX(H74:BY74,$E$1) -> TRUE | H74: TRUE | I74: TRUE | J74: TRUE | K74: TRUE | L74: TRUE | M74: TRUE | N74: TRUE | O74: TRUE | P74: TRUE | Q74: TRUE | R74: TRUE | S74: TRUE
C75: Equity Up-Front | E75: Flag | F75: =INDEX(H75:BY75,$E$1) -> FALSE | H75: =NOT(H74) -> FALSE | I75: =NOT(I74) -> FALSE | J75: =NOT(J74) -> FALSE | K75: FALSE | L75: FALSE | M75: =NOT(M74) -> FALSE | N75: FALSE | O75: FALSE | P75: FALSE | Q75: FALSE | R75: FALSE | S75: FALSE
C77: Up-front Fee | E77: % | F77: =INDEX(H77:BY77,$E$1) -> 0.005 | H77: 0.005 | I77: 0.005 | J77: 0.005 | K77: 0.005 | L77: 0.005 | M77: 0.005 | N77: 0.005 | O77: 0.005 | P77: 0.005 | Q77: 0.005 | R77: 0.005 | S77: 0.005
C78: Commitment Fee | E78: % p.a. | F78: =INDEX(H78:BY78,$E$1) -> 0.003 | H78: 0.003 | I78: 0.003 | J78: 0.003 | K78: 0.003 | L78: 0.003 | M78: 0.003 | N78: 0.003 | O78: 0.003 | P78: 0.003 | Q78: 0.003 | R78: 0.003 | S78: 0.003
C80: Flag for Applying UDF | E80: Flag | F80: =INDEX(H80:BY80,$E$1) -> TRUE | H80: TRUE | I80: TRUE | J80: TRUE | K80: TRUE | L80: TRUE | M80: TRUE | N80: TRUE | O80: TRUE | P80: TRUE | Q80: TRUE | R80: TRUE | S80: TRUE
B82: Valuation and Re-Financing
C84: Holding period from COD | E84: Years | F84: =INDEX(H84:BY84,$E$1) -> 4 | H84: 4 | I84: 3 | J84: 3 | K84: 3 | L84: 3 | M84: 3 | N84: 3 | O84: 3 | P84: 3 | Q84: 3 | R84: 3 | S84: 3
C85: Transaction Date | E85: Date | F85: =INDEX(H85:BY85,$E$1) -> 2030-12-31 | H85: =EDATE(H7,H84*Months)-1 -> 2030-12-31 | I85: 2029-12-31 | J85: 2029-12-31 | K85: 2029-12-31 | L85: 2029-12-31 | M85: 2029-12-31 | N85: 2029-12-31 | O85: 2029-12-31 | P85: 2029-12-31 | Q85: 2029-12-31 | R85: 2029-12-31 | S85: 2029-12-31
C87: Buyer's Target Pre-tax Project IRR | E87: % | F87: =INDEX(H87:BY87,$E$1) -> 0.1 | H87: 0.1 | I87: 0.1 | J87: 0.1 | K87: 0.1 | L87: 0.1 | M87: 0.1 | N87: 0.1 | O87: 0.1 | P87: 0.1 | Q87: 0.1 | R87: 0.1 | S87: 0.1
C88: Buyer's Target After-tax Project IRR | E88: % | F88: =INDEX(H88:BY88,$E$1) -> 0.08 | H88: 0.08 | I88: 0.08 | J88: 0.08 | K88: 0.08 | L88: 0.08 | M88: 0.08 | N88: 0.08 | O88: 0.08 | P88: 0.08 | Q88: 0.08 | R88: 0.08 | S88: 0.08
C89: Buyer's Target Equity IRR | E89: % | F89: =INDEX(H89:BY89,$E$1) -> 0.11 | H89: 0.11 | I89: 0.11 | J89: 0.11 | K89: 0.11 | L89: 0.11 | M89: 0.11 | N89: 0.11 | O89: 0.11 | P89: 0.11 | Q89: 0.11 | R89: 0.11 | S89: 0.11
C91: Flag for Valuation with Project IRR | E91: Flag | F91: =INDEX(H91:BY91,$E$1) -> TRUE | H91: TRUE | I91: TRUE | J91: TRUE | K91: TRUE | L91: TRUE | M91: TRUE | N91: TRUE | O91: TRUE | P91: TRUE | Q91: TRUE | R91: TRUE | S91: TRUE
C92: Flag for Taxable Transaction | E92: Flag | F92: =INDEX(H92:BY92,$E$1) -> FALSE | H92: FALSE | I92: FALSE | J92: FALSE | K92: FALSE | L92: FALSE | M92: FALSE | N92: FALSE | O92: FALSE | P92: FALSE | Q92: FALSE | R92: FALSE | S92: FALSE
C94: Flag for Re-finance Existing Debt | E94: Flag | F94: =INDEX(H94:BY94,$E$1) -> TRUE | H94: TRUE | I94: TRUE | J94: TRUE | K94: TRUE | L94: TRUE | M94: TRUE | N94: TRUE | O94: TRUE | P94: TRUE | Q94: TRUE | R94: TRUE | S94: TRUE
C95: Flag for New Debt Financing | E95: Flag | F95: =INDEX(H95:BY95,$E$1) -> FALSE | H95: FALSE | I95: FALSE | J95: FALSE | K95: FALSE | L95: FALSE | M95: FALSE | N95: FALSE | O95: FALSE | P95: FALSE | Q95: FALSE | R95: FALSE | S95: FALSE
C97: Target Company Fees as % of EV | E97: % | F97: =INDEX(H97:BY97,$E$1) -> 0 | H97: 0 | I97: 0.0075 | J97: 0.0075 | K97: 0.0075 | L97: 0.0075 | M97: 0.0075 | N97: 0.0075 | O97: 0.0075 | P97: 0.0075 | Q97: 0.0075 | R97: 0.0075 | S97: 0.0075
C99: Target DSCR on New Debt | E99: x | F99: =INDEX(H99:BY99,$E$1) -> 1.2 | H99: 1.2 | I99: 1.2 | J99: 1.2 | K99: 1.2 | L99: 1.2 | M99: 1.2 | N99: 1.2 | O99: 1.2 | P99: 1.2 | Q99: 1.2 | R99: 1.2 | S99: 1.2
C100: Remaining Life on Project | E100: Years | F100: =INDEX(H100:BY100,$E$1) -> 21 | H100: =H8-H84 -> 21 | I100: =I8-I84 -> 32 | J100: 32 | K100: 32 | L100: 32 | M100: 32 | N100: 32 | O100: 22 | P100: 22 | Q100: 22 | R100: 22 | S100: 32
C101: Tail on Debt for Re-financing | E101: Years | F101: =INDEX(H101:BY101,$E$1) -> 3 | H101: 3 | I101: 7 | J101: 7 | K101: 7 | L101: 7 | M101: 3 | N101: 3 | O101: 3 | P101: 3 | Q101: 3 | R101: 3 | S101: 3
C102: Remaining Life on New Debt | E102: Years | F102: =INDEX(H102:BY102,$E$1) -> 18 | H102: =H100-H101 -> 18 | I102: =I100-I101 -> 25 | J102: 25 | K102: 25 | L102: 25 | M102: 29 | N102: 29 | O102: 19 | P102: 19 | Q102: 19 | R102: 19 | S102: 29
C103: Interest Rate on New Debt | E103: % p.a. | F103: =INDEX(H103:BY103,$E$1) -> 0.0725 | H103: 0.0725 | I103: 0.0725 | J103: 0.0725 | K103: 0.0725 | L103: 0.0725 | M103: 0.0725 | N103: 0.0725 | O103: 0.0725 | P103: 0.0725 | Q103: 0.0725 | R103: 0.0725 | S103: 0.0725
B105: Constants
C106: Months in a Year | F106: 12 | G106: Months
C107: Hours in a Day | F107: 24 | G107: Hours
C108: one | F108: 1 | G108: one
G151: =TRANSPOSE(H2:S2) -> Base Case Annual
G152: Longer Life
G153: Improved Perfromance Ratio
G154: Improved Availability/ Degradation
G155: Reduced O&M
G156: Higher Cost
G157: Higher O&M
G158: Worse Availability
G159: Shorter Life
G160: P90
G161: P99
G162: Monthly

Sheet Input S
B2: S-Curve
C3: Code Number | E3: ='Input C'!F36 -> 6
C5: Month | F5: 1 | G5: 2 | H5: 3 | I5: 4 | J5: 5 | K5: 6 | L5: 7 | M5: 8 | N5: 9 | O5: 10 | P5: 11 | Q5: 12 | R5: 13 | S5: 14 | T5: 15 | U5: 16 | V5: 17 | W5: 18 | X5: 19 | Y5: 20
C7: Flat case | E7: 1 | F7: =1/12 -> 0.08333333333 | G7: =1/12 -> 0.08333333333 | H7: 0.08333333333 | I7: 0.08333333333 | J7: 0.08333333333 | K7: 0.08333333333 | L7: 0.08333333333 | M7: 0.08333333333 | N7: 0.08333333333 | O7: 0.08333333333 | P7: 0.08333333333 | Q7: 0.08333333333
C8: Beginning | E8: 2 | F8: 0.3 | G8: 0.2 | H8: 0.1 | I8: 0.05 | J8: 0.35 | K8: 0 | Q8: 0
C9: Ending | E9: 3 | F9: 0.3 | L9: 0.2 | Q9: 0.5
C10: Two Year | E10: 4 | F10: =1/24 -> 0.04166666667 | G10: =1/24 -> 0.04166666667 | H10: 0.04166666667 | I10: 0.04166666667 | J10: 0.04166666667 | K10: 0.04166666667 | L10: 0.04166666667 | M10: 0.04166666667 | N10: 0.04166666667 | O10: 0.04166666667 | P10: 0.04166666667 | Q10: 0.04166666667
C11: Annual | E11: 5 | F11: 1
C12: Two Yr Annual | E12: 6 | F12: 0.5 | G12: 0.5
C14: =INDEX(C7:C11,$E$3) ->  | F14: =INDEX(F7:F13,$E$3) -> 0.5 | G14: =INDEX(G7:G13,$E$3) -> 0.5 | H14: =INDEX(H7:H13,$E$3) -> 0 | I14: =INDEX(I7:I13,$E$3) -> 0 | J14: =INDEX(J7:J13,$E$3) -> 0 | K14: =INDEX(K7:K13,$E$3) -> 0 | L14: =INDEX(L7:L13,$E$3) -> 0 | M14: =INDEX(M7:M13,$E$3) -> 0 | N14: =INDEX(N7:N13,$E$3) -> 0 | O14: =INDEX(O7:O13,$E$3) -> 0 | P14: =INDEX(P7:P13,$E$3) -> 0 | Q14: =INDEX(Q7:Q13,$E$3) -> 0
B17: Inflation
C18: Code Number | E18: ='Input C'!H39 -> 3
C20: Year | F20: 2025 | G20: 2026 | H20: 2027 | I20: 2028 | J20: 2029 | K20: 2030 | L20: 2031 | M20: 2032 | N20: 2033 | O20: 2034 | P20: 2035
C22: Base Case | F22: 0.05 | G22: 0.045 | H22: 0.04 | I22: 0.04 | J22: 0.04 | K22: 0.04 | L22: 0.04 | M22: 0.04 | N22: 0.04 | O22: 0.04 | P22: 0.04
C23: High Inflation | F23: 0.05 | G23: 0.055 | H23: 0.06 | I23: 0.06 | J23: 0.06 | K23: 0.06 | L23: 0.06 | M23: 0.06 | N23: 0.06 | O23: 0.06 | P23: 0.06
C24: Flat Inflation | F24: 0.05 | G24: 0.05 | H24: 0.05 | I24: 0.05 | J24: 0.05 | K24: 0.05 | L24: 0.05 | M24: 0.05 | N24: 0.05 | O24: 0.05 | P24: 0.05
C25: Zero Inflation | F25: 0 | G25: 0 | H25: 0 | I25: 0 | J25: 0 | K25: 0 | L25: 0 | M25: 0 | N25: 0 | O25: 0 | P25: 0
C27: =INDEX(C22:C26,$E$18) -> Flat Inflation | F27: =INDEX(F22:F26,$E$18) -> 0.05 | G27: =INDEX(G22:G26,$E$18) -> 0.05 | H27: =INDEX(H22:H26,$E$18) -> 0.05 | I27: =INDEX(I22:I26,$E$18) -> 0.05 | J27: =INDEX(J22:J26,$E$18) -> 0.05 | K27: =INDEX(K22:K26,$E$18) -> 0.05 | L27: =INDEX(L22:L26,$E$18) -> 0.05 | M27: =INDEX(M22:M26,$E$18) -> 0.05 | N27: =INDEX(N22:N26,$E$18) -> 0.05 | O27: =INDEX(O22:O26,$E$18) -> 0.05 | P27: =INDEX(P22:P26,$E$18) -> 0.05
C29: Inflation Index | E29: 1 | F29: =E29*(1+F27) -> 1.05 | G29: =F29*(1+G27) -> 1.1025 | H29: 1.157625 | I29: 1.21550625 | J29: 1.276281563 | K29: 1.340095641 | L29: 1.407100423 | M29: 1.477455444 | N29: 1.551328216 | O29: 1.628894627 | P29: 1.710339358
C30: Annual Growth | E30: =(P29/E29)^(1/11)-1 -> 0.05
B32: Seasonal Variation from Technical Analysis
J34: ='Financial Model'!K4 -> 1 | K34: 2 | L34: 3 | M34: 4 | N34: 5 | O34: 6 | P34: 7 | Q34: 8 | R34: 9 | S34: 10 | T34: 11 | U34: 12 | V34: 13 | W34: 14 | X34: 15 | Y34: 16 | Z34: 17 | AA34: 18 | AB34: 19 | AC34: 20 | AD34: 21 | AE34: 22 | AF34: 23 | AG34: 24 | AH34: 25 | AI34: 26 | AJ34: 27 | AK34: 28 | AL34: 29 | AM34: 30 | AN34: 31 | AO34: 32 | AP34: 33 | AQ34: 34 | AR34: 35 | AS34: 36 | AT34: 37 | AU34: 38 | AV34: 39 | AW34: 40 | AX34: 41 | AY34: 42 | AZ34: 43 | BA34: 44 | BB34: 45 | BC34: 46 | BD34: 47 | BE34: 48 | BF34: 49 | BG34: 50 | BH34: 51 | BI34: 52 | BJ34: 53 | BK34: 54 | BL34: 55 | BM34: 56 | BN34: 57 | BO34: 58 | BP34: 59 | BQ34: 60 | BR34: 61 | BS34: 62 | BT34: 63 | BU34: 64 | BV34: 65 | BW34: 66 | BX34: 67 | BY34: 68 | BZ34: 69 | CA34: 70 | CB34: 71 | CC34: 72 | CD34: 73 | CE34: 74 | CF34: 75 | CG34: 76 | CH34: 77 | CI34: 78 | CJ34: 79 | CK34: 80 | CL34: 81 | CM34: 82 | CN34: 83 | CO34: 84 | CP34: 85 | CQ34: 86 | CR34: 87 | CS34: 88 | CT34: 89 | CU34: 90 | CV34: 91 | CW34: 92 | CX34: 93 | CY34: 94 | CZ34: 95 | DA34: 96 | DB34: 97 | DC34: 98 | DD34: 99 | DE34: 100 | DF34: 101 | DG34: 102 | DH34: 103 | DI34: 104 | DJ34: 105 | DK34: 106 | DL34: 107 | DM34: 108 | DN34: 109 | DO34: 110 | DP34: 111 | DQ34: 112 | DR34: 113 | DS34: 114 | DT34: 115 | DU34: 116 | DV34: 117 | DW34: 118 | DX34: 119 | DY34: 120 | DZ34: 121 | EA34: 122 | EB34: 123 | EC34: 124 | ED34: 125 | EE34: 126 | EF34: 127 | EG34: 128 | EH34: 129 | EI34: 130 | EJ34: 131 | EK34: 132 | EL34: 133 | EM34: 134 | EN34: 135 | EO34: 136 | EP34: 137 | EQ34: 138 | ER34: 139 | ES34: 140 | ET34: 141 | EU34: 142 | EV34: 143 | EW34: 144 | EX34: 145 | EY34: 146 | EZ34: 147 | FA34: 148 | FB34: 149 | FC34: 150 | FD34: 151 | FE34: 152 | FF34: 153 | FG34: 154 | FH34: 155 | FI34: 156 | FJ34: 157 | FK34: 158 | FL34: 159 | FM34: 160 | FN34: 161 | FO34: 162 | FP34: 163 | FQ34: 164 | FR34: 165 | FS34: 166 | FT34: 167 | FU34: 168 | FV34: 169 | FW34: 170 | FX34: 171 | FY34: 172 | FZ34: 173 | GA34: 174 | GB34: 175 | GC34: 176 | GD34: 177 | GE34: 178 | GF34: 179 | GG34: 180 | GH34: 181 | GI34: 182 | GJ34: 183 | GK34: 184 | GL34: 185 | GM34: 186 | GN34: 187 | GO34: 188 | GP34: 189 | GQ34: 190 | GR34: 191 | GS34: 192 | GT34: 193 | GU34: 194 | GV34: 195 | GW34: 196 | GX34: 197 | GY34: 198 | GZ34: 199 | HA34: 200 | HB34: 201 | HC34: 202 | HD34: 203 | HE34: 204 | HF34: 205 | HG34: 206 | HH34: 207 | HI34: 208 | HJ34: 209 | HK34: 210 | HL34: 211 | HM34: 212 | HN34: 213 | HO34: 214 | HP34: 215 | HQ34: 216 | HR34: 217 | HS34: 218 | HT34: 219 | HU34: 220 | HV34: 221 | HW34: 222 | HX34: 223 | HY34: 224 | HZ34: 225 | IA34: 226 | IB34: 227 | IC34: 228 | ID34: 229 | IE34: 230 | IF34: 231 | IG34: 232 | IH34: 233 | II34: 234 | IJ34: 235 | IK34: 236 | IL34: 237 | IM34: 238 | IN34: 239 | IO34: 240 | IP34: 241 | IQ34: 242 | IR34: 243 | IS34: 244 | IT34: 245 | IU34: 246 | IV34: 247 | IW34: 248 | IX34: 249 | IY34: 250 | IZ34: 251 | JA34: 252 | JB34: 253 | JC34: 254 | JD34: 255 | JE34: 256 | JF34: 257 | JG34: 258 | JH34: 259 | JI34: 260 | JJ34: 261 | JK34: 262 | JL34: 263 | JM34: 264 | JN34: 265 | JO34: 266 | JP34: 267 | JQ34: 268 | JR34: 269 | JS34: 270 | JT34: 271 | JU34: 272 | JV34: 273 | JW34: 274 | JX34: 275 | JY34: 276 | JZ34: 277 | KA34: 278 | KB34: 279 | KC34: 280 | KD34: 281 | KE34: 282 | KF34: 283 | KG34: 284 | KH34: 285 | KI34: 286 | KJ34: 287 | KK34: 288 | KL34: 289 | KM34: 290 | KN34: 291 | KO34: 292 | KP34: 293 | KQ34: 294 | KR34: 295 | KS34: 296 | KT34: 297 | KU34: 298 | KV34: 299 | KW34: 300 | KX34: 301 | KY34: 302 | KZ34: 303 | LA34: 304 | LB34: 305 | LC34: 306 | LD34: 307 | LE34: 308 | LF34: 309 | LG34: 310 | LH34: 311 | LI34: 312 | LJ34: 313 | LK34: 314 | LL34: 315 | LM34: 316 | LN34: 317 | LO34: 318 | LP34: 319 | LQ34: 320 | LR34: 321 | LS34: 322 | LT34: 323 | LU34: 324 | LV34: 325 | LW34: 326 | LX34: 327 | LY34: 328 | LZ34: 329 | MA34: 330 | MB34: 331 | MC34: 332 | MD34: 333 | ME34: 334 | MF34: 335 | MG34: 336 | MH34: 337 | MI34: 338 | MJ34: 339 | MK34: 340 | ML34: 341 | MM34: 342 | MN34: 343 | MO34: 344 | MP34: 345 | MQ34: 346 | MR34: 347 | MS34: 348 | MT34: 349 | MU34: 350 | MV34: 351 | MW34: 352 | MX34: 353 | MY34: 354 | MZ34: 355 | NA34: 356 | NB34: 357 | NC34: 358 | ND34: 359 | NE34: 360 | NF34: 361 | NG34: 362 | NH34: 363 | NI34: 364 | NJ34: 365 | NK34: 366 | NL34: 367 | NM34: 368 | NN34: 369 | NO34: 370 | NP34: 371 | NQ34: 372 | NR34: 373 | NS34: 374 | NT34: 375 | NU34: 376 | NV34: 377 | NW34: 378 | NX34: 379 | NY34: 380 | NZ34: 381 | OA34: 382 | OB34: 383 | OC34: 384 | OD34: 385 | OE34: 386 | OF34: 387 | OG34: 388 | OH34: 389 | OI34: 390 | OJ34: 391 | OK34: 392 | OL34: 393 | OM34: 394 | ON34: 395 | OO34: 396 | OP34: 397 | OQ34: 398 | OR34: 399 | OS34: 400 | OT34: 401 | OU34: 402 | OV34: 403 | OW34: 404 | OX34: 405 | OY34: 406 | OZ34: 407 | PA34: 408 | PB34: 409 | PC34: 410 | PD34: 411 | PE34: 412 | PF34: 413 | PG34: 414 | PH34: 415 | PI34: 416 | PJ34: 417 | PK34: 418 | PL34: 419 | PM34: 420 | PN34: 421 | PO34: 422 | PP34: 423 | PQ34: 423 | PR34: 423 | PS34: 423 | PT34: 423 | PU34: 423 | PV34: 423 | PW34: 423 | PX34: 423 | PY34: 423 | PZ34: 423 | QA34: 423 | QB34: 423 | QC34: 423 | QD34: 423 | QE34: 423 | QF34: 423 | QG34: 423 | QH34: 423 | QI34: 423 | QJ34: 423 | QK34: 423 | QL34: 423 | QM34: 423 | QN34: 423 | QO34: 423 | QP34: 423 | QQ34: 423 | QR34: 423 | QS34: 423 | QT34: 423 | QU34: 423 | QV34: 423 | QW34: 423 | QX34: 423 | QY34: 423 | QZ34: 423 | RA34: 423 | RB34: 423 | RC34: 423 | RD34: 423 | RE34: 423 | RF34: 423 | RG34: 423 | RH34: 423 | RI34: 423 | RJ34: 423 | RK34: 423 | RL34: 423 | RM34: 423 | RN34: 423 | RO34: 423 | RP34: 423 | RQ34: 423 | RR34: 423 | RS34: 423 | RT34: 423 | RU34: 423 | RV34: 423 | RW34: 423 | RX34: 423 | RY34: 423 | RZ34: 423 | SA34: 423 | SB34: 423 | SC34: 423 | SD34: 423 | SE34: 423 | SF34: 423 | SG34: 423 | SH34: 423 | SI34: 423 | SJ34: 423 | SK34: 423 | SL34: 423 | SM34: 423 | SN34: 423 | SO34: 423 | SP34: 423 | SQ34: 423 | SR34: 423 | SS34: 423 | ST34: 423 | SU34: 423 | SV34: 423 | SW34: 423 | SX34: 423 | SY34: 423 | SZ34: 423 | TA34: 423 | TB34: 423 | TC34: 423 | TD34: 423 | TE34: 423 | TF34: 423 | TG34: 423 | TH34: 423 | TI34: 423 | TJ34: 423 | TK34: 423 | TL34: 423 | TM34: 423 | TN34: 423 | TO34: 423 | TP34: 423 | TQ34: 423 | TR34: 423 | TS34: 423 | TT34: 423 | TU34: 423 | TV34: 423 | TW34: 423 | TX34: 423 | TY34: 423
J35: ='Financial Model'!K8 -> 2026-01-01 | K35: ='Financial Model'!L8 -> 2027-01-01 | L35: ='Financial Model'!M8 -> 2028-01-01 | M35: ='Financial Model'!N8 -> 2029-01-01 | N35: ='Financial Model'!O8 -> 2030-01-01 | O35: ='Financial Model'!P8 -> 2031-01-01 | P35: ='Financial Model'!Q8 -> 2032-01-01 | Q35: ='Financial Model'!R8 -> 2033-01-01 | R35: ='Financial Model'!S8 -> 2034-01-01 | S35: ='Financial Model'!T8 -> 2035-01-01 | T35: ='Financial Model'!U8 -> 2036-01-01 | U35: ='Financial Model'!V8 -> 2037-01-01 | V35: ='Financial Model'!W8 -> 2038-01-01 | W35: ='Financial Model'!X8 -> 2039-01-01 | X35: ='Financial Model'!Y8 -> 2040-01-01 | Y35: ='Financial Model'!Z8 -> 2041-01-01 | Z35: ='Financial Model'!AA8 -> 2042-01-01 | AA35: ='Financial Model'!AB8 -> 2043-01-01 | AB35: ='Financial Model'!AC8 -> 2044-01-01 | AC35: ='Financial Model'!AD8 -> 2045-01-01 | AD35: ='Financial Model'!AE8 -> 2046-01-01 | AE35: ='Financial Model'!AF8 -> 2047-01-01 | AF35: ='Financial Model'!AG8 -> 2048-01-01 | AG35: ='Financial Model'!AH8 -> 2049-01-01 | AH35: ='Financial Model'!AI8 -> 2050-01-01 | AI35: ='Financial Model'!AJ8 -> 2051-01-01 | AJ35: ='Financial Model'!AK8 -> 2052-01-01 | AK35: ='Financial Model'!AL8 -> 2053-01-01 | AL35: ='Financial Model'!AM8 -> 2054-01-01 | AM35: ='Financial Model'!AN8 -> 2055-01-01 | AN35: ='Financial Model'!AO8 -> 2056-01-01 | AO35: ='Financial Model'!AP8 -> 2057-01-01 | AP35: ='Financial Model'!AQ8 -> 2058-01-01 | AQ35: ='Financial Model'!AR8 -> 2059-01-01 | AR35: ='Financial Model'!AS8 -> 2060-01-01 | AS35: ='Financial Model'!AT8 -> 2061-01-01 | AT35: ='Financial Model'!AU8 -> 2062-01-01 | AU35: ='Financial Model'!AV8 -> 2063-01-01 | AV35: ='Financial Model'!AW8 -> 2064-01-01 | AW35: ='Financial Model'!AX8 -> 2065-01-01 | AX35: ='Financial Model'!AY8 -> 2066-01-01 | AY35: ='Financial Model'!AZ8 -> 2067-01-01 | AZ35: ='Financial Model'!BA8 -> 2068-01-01 | BA35: ='Financial Model'!BB8 -> 2069-01-01 | BB35: ='Financial Model'!BC8 -> 2070-01-01 | BC35: ='Financial Model'!BD8 -> 2071-01-01 | BD35: ='Financial Model'!BE8 -> 2072-01-01 | BE35: ='Financial Model'!BF8 -> 2073-01-01 | BF35: ='Financial Model'!BG8 -> 2074-01-01 | BG35: ='Financial Model'!BH8 -> 2075-01-01 | BH35: ='Financial Model'!BI8 -> 2076-01-01 | BI35: ='Financial Model'!BJ8 -> 2077-01-01 | BJ35: ='Financial Model'!BK8 -> 2078-01-01 | BK35: ='Financial Model'!BL8 -> 2079-01-01 | BL35: ='Financial Model'!BM8 -> 2080-01-01 | BM35: ='Financial Model'!BN8 -> 2081-01-01 | BN35: ='Financial Model'!BO8 -> 2082-01-01 | BO35: ='Financial Model'!BP8 -> 2083-01-01 | BP35: ='Financial Model'!BQ8 -> 2084-01-01 | BQ35: ='Financial Model'!BR8 -> 2085-01-01 | BR35: ='Financial Model'!BS8 -> 2086-01-01 | BS35: ='Financial Model'!BT8 -> 2087-01-01 | BT35: ='Financial Model'!BU8 -> 2088-01-01 | BU35: ='Financial Model'!BV8 -> 2089-01-01 | BV35: ='Financial Model'!BW8 -> 2090-01-01 | BW35: ='Financial Model'!BX8 -> 2091-01-01 | BX35: ='Financial Model'!BY8 -> 2092-01-01 | BY35: ='Financial Model'!BZ8 -> 2093-01-01 | BZ35: ='Financial Model'!CA8 -> 2094-01-01 | CA35: ='Financial Model'!CB8 -> 2095-01-01 | CB35: ='Financial Model'!CC8 -> 2096-01-01 | CC35: ='Financial Model'!CD8 -> 2097-01-01 | CD35: ='Financial Model'!CE8 -> 2098-01-01 | CE35: ='Financial Model'!CF8 -> 2099-01-01 | CF35: ='Financial Model'!CG8 -> 2100-01-01 | CG35: ='Financial Model'!CH8 -> 2101-01-01 | CH35: ='Financial Model'!CI8 -> 2102-01-01 | CI35: ='Financial Model'!CJ8 -> 2103-01-01 | CJ35: ='Financial Model'!CK8 -> 2104-01-01 | CK35: ='Financial Model'!CL8 -> 2105-01-01 | CL35: ='Financial Model'!CM8 -> 2106-01-01 | CM35: ='Financial Model'!CN8 -> 2107-01-01 | CN35: ='Financial Model'!CO8 -> 2108-01-01 | CO35: ='Financial Model'!CP8 -> 2109-01-01 | CP35: ='Financial Model'!CQ8 -> 2110-01-01 | CQ35: ='Financial Model'!CR8 -> 2111-01-01 | CR35: ='Financial Model'!CS8 -> 2112-01-01 | CS35: ='Financial Model'!CT8 -> 2113-01-01 | CT35: ='Financial Model'!CU8 -> 2114-01-01 | CU35: ='Financial Model'!CV8 -> 2115-01-01 | CV35: ='Financial Model'!CW8 -> 2116-01-01 | CW35: ='Financial Model'!CX8 -> 2117-01-01 | CX35: ='Financial Model'!CY8 -> 2118-01-01 | CY35: ='Financial Model'!CZ8 -> 2119-01-01 | CZ35: ='Financial Model'!DA8 -> 2120-01-01 | DA35: ='Financial Model'!DB8 -> 2121-01-01 | DB35: ='Financial Model'!DC8 -> 2122-01-01 | DC35: ='Financial Model'!DD8 -> 2123-01-01 | DD35: ='Financial Model'!DE8 -> 2124-01-01 | DE35: ='Financial Model'!DF8 -> 2125-01-01 | DF35: ='Financial Model'!DG8 -> 2126-01-01 | DG35: ='Financial Model'!DH8 -> 2127-01-01 | DH35: ='Financial Model'!DI8 -> 2128-01-01 | DI35: ='Financial Model'!DJ8 -> 2129-01-01 | DJ35: ='Financial Model'!DK8 -> 2130-01-01 | DK35: ='Financial Model'!DL8 -> 2131-01-01 | DL35: ='Financial Model'!DM8 -> 2132-01-01 | DM35: ='Financial Model'!DN8 -> 2133-01-01 | DN35: ='Financial Model'!DO8 -> 2134-01-01 | DO35: ='Financial Model'!DP8 -> 2135-01-01 | DP35: ='Financial Model'!DQ8 -> 2136-01-01 | DQ35: ='Financial Model'!DR8 -> 2137-01-01 | DR35: ='Financial Model'!DS8 -> 2138-01-01 | DS35: ='Financial Model'!DT8 -> 2139-01-01 | DT35: ='Financial Model'!DU8 -> 2140-01-01 | DU35: ='Financial Model'!DV8 -> 2141-01-01 | DV35: ='Financial Model'!DW8 -> 2142-01-01 | DW35: ='Financial Model'!DX8 -> 2143-01-01 | DX35: ='Financial Model'!DY8 -> 2144-01-01 | DY35: ='Financial Model'!DZ8 -> 2145-01-01 | DZ35: ='Financial Model'!EA8 -> 2146-01-01 | EA35: ='Financial Model'!EB8 -> 2147-01-01 | EB35: ='Financial Model'!EC8 -> 2148-01-01 | EC35: ='Financial Model'!ED8 -> 2149-01-01 | ED35: ='Financial Model'!EE8 -> 2150-01-01 | EE35: ='Financial Model'!EF8 -> 2151-01-01 | EF35: ='Financial Model'!EG8 -> 2152-01-01 | EG35: ='Financial Model'!EH8 -> 2153-01-01 | EH35: ='Financial Model'!EI8 -> 2154-01-01 | EI35: ='Financial Model'!EJ8 -> 2155-01-01 | EJ35: ='Financial Model'!EK8 -> 2156-01-01 | EK35: ='Financial Model'!EL8 -> 2157-01-01 | EL35: ='Financial Model'!EM8 -> 2158-01-01 | EM35: ='Financial Model'!EN8 -> 2159-01-01 | EN35: ='Financial Model'!EO8 -> 2160-01-01 | EO35: ='Financial Model'!EP8 -> 2161-01-01 | EP35: ='Financial Model'!EQ8 -> 2162-01-01 | EQ35: ='Financial Model'!ER8 -> 2163-01-01 | ER35: ='Financial Model'!ES8 -> 2164-01-01 | ES35: ='Financial Model'!ET8 -> 2165-01-01 | ET35: ='Financial Model'!EU8 -> 2166-01-01 | EU35: ='Financial Model'!EV8 -> 2167-01-01 | EV35: ='Financial Model'!EW8 -> 2168-01-01 | EW35: ='Financial Model'!EX8 -> 2169-01-01 | EX35: ='Financial Model'!EY8 -> 2170-01-01 | EY35: ='Financial Model'!EZ8 -> 2171-01-01 | EZ35: ='Financial Model'!FA8 -> 2172-01-01 | FA35: ='Financial Model'!FB8 -> 2173-01-01 | FB35: ='Financial Model'!FC8 -> 2174-01-01 | FC35: ='Financial Model'!FD8 -> 2175-01-01 | FD35: ='Financial Model'!FE8 -> 2176-01-01 | FE35: ='Financial Model'!FF8 -> 2177-01-01 | FF35: ='Financial Model'!FG8 -> 2178-01-01 | FG35: ='Financial Model'!FH8 -> 2179-01-01 | FH35: ='Financial Model'!FI8 -> 2180-01-01 | FI35: ='Financial Model'!FJ8 -> 2181-01-01 | FJ35: ='Financial Model'!FK8 -> 2182-01-01 | FK35: ='Financial Model'!FL8 -> 2183-01-01 | FL35: ='Financial Model'!FM8 -> 2184-01-01 | FM35: ='Financial Model'!FN8 -> 2185-01-01 | FN35: ='Financial Model'!FO8 -> 2186-01-01 | FO35: ='Financial Model'!FP8 -> 2187-01-01 | FP35: ='Financial Model'!FQ8 -> 2188-01-01 | FQ35: ='Financial Model'!FR8 -> 2189-01-01 | FR35: ='Financial Model'!FS8 -> 2190-01-01 | FS35: ='Financial Model'!FT8 -> 2191-01-01 | FT35: ='Financial Model'!FU8 -> 2192-01-01 | FU35: ='Financial Model'!FV8 -> 2193-01-01 | FV35: ='Financial Model'!FW8 -> 2194-01-01 | FW35: ='Financial Model'!FX8 -> 2195-01-01 | FX35: ='Financial Model'!FY8 -> 2196-01-01 | FY35: ='Financial Model'!FZ8 -> 2197-01-01 | FZ35: ='Financial Model'!GA8 -> 2198-01-01 | GA35: ='Financial Model'!GB8 -> 2199-01-01 | GB35: ='Financial Model'!GC8 -> 2200-01-01 | GC35: ='Financial Model'!GD8 -> 2201-01-01 | GD35: ='Financial Model'!GE8 -> 2202-01-01 | GE35: ='Financial Model'!GF8 -> 2203-01-01 | GF35: ='Financial Model'!GG8 -> 2204-01-01 | GG35: ='Financial Model'!GH8 -> 2205-01-01 | GH35: ='Financial Model'!GI8 -> 2206-01-01 | GI35: ='Financial Model'!GJ8 -> 2207-01-01 | GJ35: ='Financial Model'!GK8 -> 2208-01-01 | GK35: ='Financial Model'!GL8 -> 2209-01-01 | GL35: ='Financial Model'!GM8 -> 2210-01-01 | GM35: ='Financial Model'!GN8 -> 2211-01-01 | GN35: ='Financial Model'!GO8 -> 2212-01-01 | GO35: ='Financial Model'!GP8 -> 2213-01-01 | GP35: ='Financial Model'!GQ8 -> 2214-01-01 | GQ35: ='Financial Model'!GR8 -> 2215-01-01 | GR35: ='Financial Model'!GS8 -> 2216-01-01 | GS35: ='Financial Model'!GT8 -> 2217-01-01 | GT35: ='Financial Model'!GU8 -> 2218-01-01 | GU35: ='Financial Model'!GV8 -> 2219-01-01 | GV35: ='Financial Model'!GW8 -> 2220-01-01 | GW35: ='Financial Model'!GX8 -> 2221-01-01 | GX35: ='Financial Model'!GY8 -> 2222-01-01 | GY35: ='Financial Model'!GZ8 -> 2223-01-01 | GZ35: ='Financial Model'!HA8 -> 2224-01-01 | HA35: ='Financial Model'!HB8 -> 2225-01-01 | HB35: ='Financial Model'!HC8 -> 2226-01-01 | HC35: ='Financial Model'!HD8 -> 2227-01-01 | HD35: ='Financial Model'!HE8 -> 2228-01-01 | HE35: ='Financial Model'!HF8 -> 2229-01-01 | HF35: ='Financial Model'!HG8 -> 2230-01-01 | HG35: ='Financial Model'!HH8 -> 2231-01-01 | HH35: ='Financial Model'!HI8 -> 2232-01-01 | HI35: ='Financial Model'!HJ8 -> 2233-01-01 | HJ35: ='Financial Model'!HK8 -> 2234-01-01 | HK35: ='Financial Model'!HL8 -> 2235-01-01 | HL35: ='Financial Model'!HM8 -> 2236-01-01 | HM35: ='Financial Model'!HN8 -> 2237-01-01 | HN35: ='Financial Model'!HO8 -> 2238-01-01 | HO35: ='Financial Model'!HP8 -> 2239-01-01 | HP35: ='Financial Model'!HQ8 -> 2240-01-01 | HQ35: ='Financial Model'!HR8 -> 2241-01-01 | HR35: ='Financial Model'!HS8 -> 2242-01-01 | HS35: ='Financial Model'!HT8 -> 2243-01-01 | HT35: ='Financial Model'!HU8 -> 2244-01-01 | HU35: ='Financial Model'!HV8 -> 2245-01-01 | HV35: ='Financial Model'!HW8 -> 2246-01-01 | HW35: ='Financial Model'!HX8 -> 2247-01-01 | HX35: ='Financial Model'!HY8 -> 2248-01-01 | HY35: ='Financial Model'!HZ8 -> 2249-01-01 | HZ35: ='Financial Model'!IA8 -> 2250-01-01 | IA35: ='Financial Model'!IB8 -> 2251-01-01 | IB35: ='Financial Model'!IC8 -> 2252-01-01 | IC35: ='Financial Model'!ID8 -> 2253-01-01 | ID35: ='Financial Model'!IE8 -> 2254-01-01 | IE35: ='Financial Model'!IF8 -> 2255-01-01 | IF35: ='Financial Model'!IG8 -> 2256-01-01 | IG35: ='Financial Model'!IH8 -> 2257-01-01 | IH35: ='Financial Model'!II8 -> 2258-01-01 | II35: ='Financial Model'!IJ8 -> 2259-01-01 | IJ35: ='Financial Model'!IK8 -> 2260-01-01 | IK35: ='Financial Model'!IL8 -> 2261-01-01 | IL35: ='Financial Model'!IM8 -> 2262-01-01 | IM35: ='Financial Model'!IN8 -> 2263-01-01 | IN35: ='Financial Model'!IO8 -> 2264-01-01 | IO35: ='Financial Model'!IP8 -> 2265-01-01 | IP35: ='Financial Model'!IQ8 -> 2266-01-01 | IQ35: ='Financial Model'!IR8 -> 2267-01-01 | IR35: ='Financial Model'!IS8 -> 2268-01-01 | IS35: ='Financial Model'!IT8 -> 2269-01-01 | IT35: ='Financial Model'!IU8 -> 2270-01-01 | IU35: ='Financial Model'!IV8 -> 2271-01-01 | IV35: ='Financial Model'!IW8 -> 2272-01-01 | IW35: ='Financial Model'!IX8 -> 2273-01-01 | IX35: ='Financial Model'!IY8 -> 2274-01-01 | IY35: ='Financial Model'!IZ8 -> 2275-01-01 | IZ35: ='Financial Model'!JA8 -> 2276-01-01 | JA35: ='Financial Model'!JB8 -> 2277-01-01 | JB35: ='Financial Model'!JC8 -> 2278-01-01 | JC35: ='Financial Model'!JD8 -> 2279-01-01 | JD35: ='Financial Model'!JE8 -> 2280-01-01 | JE35: ='Financial Model'!JF8 -> 2281-01-01 | JF35: ='Financial Model'!JG8 -> 2282-01-01 | JG35: ='Financial Model'!JH8 -> 2283-01-01 | JH35: ='Financial Model'!JI8 -> 2284-01-01 | JI35: ='Financial Model'!JJ8 -> 2285-01-01 | JJ35: ='Financial Model'!JK8 -> 2286-01-01 | JK35: ='Financial Model'!JL8 -> 2287-01-01 | JL35: ='Financial Model'!JM8 -> 2288-01-01 | JM35: ='Financial Model'!JN8 -> 2289-01-01 | JN35: ='Financial Model'!JO8 -> 2290-01-01 | JO35: ='Financial Model'!JP8 -> 2291-01-01 | JP35: ='Financial Model'!JQ8 -> 2292-01-01 | JQ35: ='Financial Model'!JR8 -> 2293-01-01 | JR35: ='Financial Model'!JS8 -> 2294-01-01 | JS35: ='Financial Model'!JT8 -> 2295-01-01 | JT35: ='Financial Model'!JU8 -> 2296-01-01 | JU35: ='Financial Model'!JV8 -> 2297-01-01 | JV35: ='Financial Model'!JW8 -> 2298-01-01 | JW35: ='Financial Model'!JX8 -> 2299-01-01 | JX35: ='Financial Model'!JY8 -> 2300-01-01 | JY35: ='Financial Model'!JZ8 -> 2301-01-01 | JZ35: ='Financial Model'!KA8 -> 2302-01-01 | KA35: ='Financial Model'!KB8 -> 2303-01-01 | KB35: ='Financial Model'!KC8 -> 2304-01-01 | KC35: ='Financial Model'!KD8 -> 2305-01-01 | KD35: ='Financial Model'!KE8 -> 2306-01-01 | KE35: ='Financial Model'!KF8 -> 2307-01-01 | KF35: ='Financial Model'!KG8 -> 2308-01-01 | KG35: ='Financial Model'!KH8 -> 2309-01-01 | KH35: ='Financial Model'!KI8 -> 2310-01-01 | KI35: ='Financial Model'!KJ8 -> 2311-01-01 | KJ35: ='Financial Model'!KK8 -> 2312-01-01 | KK35: ='Financial Model'!KL8 -> 2313-01-01 | KL35: ='Financial Model'!KM8 -> 2314-01-01 | KM35: ='Financial Model'!KN8 -> 2315-01-01 | KN35: ='Financial Model'!KO8 -> 2316-01-01 | KO35: ='Financial Model'!KP8 -> 2317-01-01 | KP35: ='Financial Model'!KQ8 -> 2318-01-01 | KQ35: ='Financial Model'!KR8 -> 2319-01-01 | KR35: ='Financial Model'!KS8 -> 2320-01-01 | KS35: ='Financial Model'!KT8 -> 2321-01-01 | KT35: ='Financial Model'!KU8 -> 2322-01-01 | KU35: ='Financial Model'!KV8 -> 2323-01-01 | KV35: ='Financial Model'!KW8 -> 2324-01-01 | KW35: ='Financial Model'!KX8 -> 2325-01-01 | KX35: ='Financial Model'!KY8 -> 2326-01-01 | KY35: ='Financial Model'!KZ8 -> 2327-01-01 | KZ35: ='Financial Model'!LA8 -> 2328-01-01 | LA35: ='Financial Model'!LB8 -> 2329-01-01 | LB35: ='Financial Model'!LC8 -> 2330-01-01 | LC35: ='Financial Model'!LD8 -> 2331-01-01 | LD35: ='Financial Model'!LE8 -> 2332-01-01 | LE35: ='Financial Model'!LF8 -> 2333-01-01 | LF35: ='Financial Model'!LG8 -> 2334-01-01 | LG35: ='Financial Model'!LH8 -> 2335-01-01 | LH35: ='Financial Model'!LI8 -> 2336-01-01 | LI35: ='Financial Model'!LJ8 -> 2337-01-01 | LJ35: ='Financial Model'!LK8 -> 2338-01-01 | LK35: ='Financial Model'!LL8 -> 2339-01-01 | LL35: ='Financial Model'!LM8 -> 2340-01-01 | LM35: ='Financial Model'!LN8 -> 2341-01-01 | LN35: ='Financial Model'!LO8 -> 2342-01-01 | LO35: ='Financial Model'!LP8 -> 2343-01-01 | LP35: ='Financial Model'!LQ8 -> 2344-01-01 | LQ35: ='Financial Model'!LR8 -> 2345-01-01 | LR35: ='Financial Model'!LS8 -> 2346-01-01 | LS35: ='Financial Model'!LT8 -> 2347-01-01 | LT35: ='Financial Model'!LU8 -> 2348-01-01 | LU35: ='Financial Model'!LV8 -> 2349-01-01 | LV35: ='Financial Model'!LW8 -> 2350-01-01 | LW35: ='Financial Model'!LX8 -> 2351-01-01 | LX35: ='Financial Model'!LY8 -> 2352-01-01 | LY35: ='Financial Model'!LZ8 -> 2353-01-01 | LZ35: ='Financial Model'!MA8 -> 2354-01-01 | MA35: ='Financial Model'!MB8 -> 2355-01-01 | MB35: ='Financial Model'!MC8 -> 2356-01-01 | MC35: ='Financial Model'!MD8 -> 2357-01-01 | MD35: ='Financial Model'!ME8 -> 2358-01-01 | ME35: ='Financial Model'!MF8 -> 2359-01-01 | MF35: ='Financial Model'!MG8 -> 2360-01-01 | MG35: ='Financial Model'!MH8 -> 2361-01-01 | MH35: ='Financial Model'!MI8 -> 2362-01-01 | MI35: ='Financial Model'!MJ8 -> 2363-01-01 | MJ35: ='Financial Model'!MK8 -> 2364-01-01 | MK35: ='Financial Model'!ML8 -> 2365-01-01 | ML35: ='Financial Model'!MM8 -> 2366-01-01 | MM35: ='Financial Model'!MN8 -> 2367-01-01 | MN35: ='Financial Model'!MO8 -> 2368-01-01 | MO35: ='Financial Model'!MP8 -> 2369-01-01 | MP35: ='Financial Model'!MQ8 -> 2370-01-01 | MQ35: ='Financial Model'!MR8 -> 2371-01-01 | MR35: ='Financial Model'!MS8 -> 2372-01-01 | MS35: ='Financial Model'!MT8 -> 2373-01-01 | MT35: ='Financial Model'!MU8 -> 2374-01-01 | MU35: ='Financial Model'!MV8 -> 2375-01-01 | MV35: ='Financial Model'!MW8 -> 2376-01-01 | MW35: ='Financial Model'!MX8 -> 2377-01-01 | MX35: ='Financial Model'!MY8 -> 2378-01-01 | MY35: ='Financial Model'!MZ8 -> 2379-01-01 | MZ35: ='Financial Model'!NA8 -> 2380-01-01 | NA35: ='Financial Model'!NB8 -> 2381-01-01 | NB35: ='Financial Model'!NC8 -> 2382-01-01 | NC35: ='Financial Model'!ND8 -> 2383-01-01 | ND35: ='Financial Model'!NE8 -> 2384-01-01 | NE35: ='Financial Model'!NF8 -> 2385-01-01 | NF35: ='Financial Model'!NG8 -> 2386-01-01 | NG35: ='Financial Model'!NH8 -> 2387-01-01 | NH35: ='Financial Model'!NI8 -> 2388-01-01 | NI35: ='Financial Model'!NJ8 -> 2389-01-01 | NJ35: ='Financial Model'!NK8 -> 2390-01-01 | NK35: ='Financial Model'!NL8 -> 2391-01-01 | NL35: ='Financial Model'!NM8 -> 2392-01-01 | NM35: ='Financial Model'!NN8 -> 2393-01-01 | NN35: ='Financial Model'!NO8 -> 2394-01-01 | NO35: ='Financial Model'!NP8 -> 2395-01-01 | NP35: ='Financial Model'!NQ8 -> 2396-01-01 | NQ35: ='Financial Model'!NR8 -> 2397-01-01 | NR35: ='Financial Model'!NS8 -> 2398-01-01 | NS35: ='Financial Model'!NT8 -> 2399-01-01 | NT35: ='Financial Model'!NU8 -> 2400-01-01 | NU35: ='Financial Model'!NV8 -> 2401-01-01 | NV35: ='Financial Model'!NW8 -> 2402-01-01 | NW35: ='Financial Model'!NX8 -> 2403-01-01 | NX35: ='Financial Model'!NY8 -> 2404-01-01 | NY35: ='Financial Model'!NZ8 -> 2405-01-01 | NZ35: ='Financial Model'!OA8 -> 2406-01-01 | OA35: ='Financial Model'!OB8 -> 2407-01-01 | OB35: ='Financial Model'!OC8 -> 2408-01-01 | OC35: ='Financial Model'!OD8 -> 2409-01-01 | OD35: ='Financial Model'!OE8 -> 2410-01-01 | OE35: ='Financial Model'!OF8 -> 2411-01-01 | OF35: ='Financial Model'!OG8 -> 2412-01-01 | OG35: ='Financial Model'!OH8 -> 2413-01-01 | OH35: ='Financial Model'!OI8 -> 2414-01-01 | OI35: ='Financial Model'!OJ8 -> 2415-01-01 | OJ35: ='Financial Model'!OK8 -> 2416-01-01 | OK35: ='Financial Model'!OL8 -> 2417-01-01 | OL35: ='Financial Model'!OM8 -> 2418-01-01 | OM35: ='Financial Model'!ON8 -> 2419-01-01 | ON35: ='Financial Model'!OO8 -> 2420-01-01 | OO35: ='Financial Model'!OP8 -> 2421-01-01 | OP35: ='Financial Model'!OQ8 -> 2422-01-01 | OQ35: ='Financial Model'!OR8 -> 2423-01-01 | OR35: ='Financial Model'!OS8 -> 2424-01-01 | OS35: ='Financial Model'!OT8 -> 2425-01-01 | OT35: ='Financial Model'!OU8 -> 2426-01-01 | OU35: ='Financial Model'!OV8 -> 2427-01-01 | OV35: ='Financial Model'!OW8 -> 2428-01-01 | OW35: ='Financial Model'!OX8 -> 2429-01-01 | OX35: ='Financial Model'!OY8 -> 2430-01-01 | OY35: ='Financial Model'!OZ8 -> 2431-01-01 | OZ35: ='Financial Model'!PA8 -> 2432-01-01 | PA35: ='Financial Model'!PB8 -> 2433-01-01 | PB35: ='Financial Model'!PC8 -> 2434-01-01 | PC35: ='Financial Model'!PD8 -> 2435-01-01 | PD35: ='Financial Model'!PE8 -> 2436-01-01 | PE35: ='Financial Model'!PF8 -> 2437-01-01 | PF35: ='Financial Model'!PG8 -> 2438-01-01 | PG35: ='Financial Model'!PH8 -> 2439-01-01 | PH35: ='Financial Model'!PI8 -> 2440-01-01 | PI35: ='Financial Model'!PJ8 -> 2441-01-01 | PJ35: ='Financial Model'!PK8 -> 2442-01-01 | PK35: ='Financial Model'!PL8 -> 2443-01-01 | PL35: ='Financial Model'!PM8 -> 2444-01-01 | PM35: ='Financial Model'!PN8 -> 2445-01-01 | PN35: ='Financial Model'!PO8 -> 2446-01-01 | PO35: ='Financial Model'!PP8 -> 2447-01-01 | PP35: ='Financial Model'!PQ8 -> 2448-01-01 | PQ35: ='Financial Model'!PR8 -> 2449-01-01 | PR35: ='Financial Model'!PS8 -> 2450-01-01 | PS35: ='Financial Model'!PT8 -> 2451-01-01 | PT35: ='Financial Model'!PU8 -> 2452-01-01 | PU35: ='Financial Model'!PV8 -> 2453-01-01 | PV35: ='Financial Model'!PW8 -> 2454-01-01 | PW35: ='Financial Model'!PX8 -> 2455-01-01 | PX35: ='Financial Model'!PY8 -> 2456-01-01 | PY35: ='Financial Model'!PZ8 -> 2457-01-01 | PZ35: ='Financial Model'!QA8 -> 2458-01-01 | QA35: ='Financial Model'!QB8 -> 2459-01-01 | QB35: ='Financial Model'!QC8 -> 2460-01-01 | QC35: ='Financial Model'!QD8 -> 2461-01-01 | QD35: ='Financial Model'!QE8 -> 2462-01-01 | QE35: ='Financial Model'!QF8 -> 2463-01-01 | QF35: ='Financial Model'!QG8 -> 2464-01-01 | QG35: ='Financial Model'!QH8 -> 2465-01-01 | QH35: ='Financial Model'!QI8 -> 2466-01-01 | QI35: ='Financial Model'!QJ8 -> 2467-01-01 | QJ35: ='Financial Model'!QK8 -> 2468-01-01 | QK35: ='Financial Model'!QL8 -> 2469-01-01 | QL35: ='Financial Model'!QM8 -> 2470-01-01 | QM35: ='Financial Model'!QN8 -> 2471-01-01 | QN35: ='Financial Model'!QO8 -> 2472-01-01 | QO35: ='Financial Model'!QP8 -> 2473-01-01 | QP35: ='Financial Model'!QQ8 -> 2474-01-01 | QQ35: ='Financial Model'!QR8 -> 2475-01-01 | QR35: ='Financial Model'!QS8 -> 2476-01-01 | QS35: ='Financial Model'!QT8 -> 2477-01-01 | QT35: ='Financial Model'!QU8 -> 2478-01-01 | QU35: ='Financial Model'!QV8 -> 2479-01-01 | QV35: ='Financial Model'!QW8 -> 2480-01-01 | QW35: ='Financial Model'!QX8 -> 2481-01-01 | QX35: ='Financial Model'!QY8 -> 2482-01-01 | QY35: ='Financial Model'!QZ8 -> 2483-01-01 | QZ35: ='Financial Model'!RA8 -> 2484-01-01 | RA35: ='Financial Model'!RB8 -> 2485-01-01 | RB35: ='Financial Model'!RC8 -> 2486-01-01 | RC35: ='Financial Model'!RD8 -> 2487-01-01 | RD35: ='Financial Model'!RE8 -> 2488-01-01 | RE35: ='Financial Model'!RF8 -> 2489-01-01 | RF35: ='Financial Model'!RG8 -> 2490-01-01 | RG35: ='Financial Model'!RH8 -> 2491-01-01 | RH35: ='Financial Model'!RI8 -> 2492-01-01 | RI35: ='Financial Model'!RJ8 -> 2493-01-01 | RJ35: ='Financial Model'!RK8 -> 2494-01-01 | RK35: ='Financial Model'!RL8 -> 2495-01-01 | RL35: ='Financial Model'!RM8 -> 2496-01-01 | RM35: ='Financial Model'!RN8 -> 2497-01-01 | RN35: ='Financial Model'!RO8 -> 2498-01-01 | RO35: ='Financial Model'!RP8 -> 2499-01-01 | RP35: ='Financial Model'!RQ8 -> 2500-01-01 | RQ35: ='Financial Model'!RR8 -> 2501-01-01 | RR35: ='Financial Model'!RS8 -> 2502-01-01 | RS35: ='Financial Model'!RT8 -> 2503-01-01 | RT35: ='Financial Model'!RU8 -> 2504-01-01 | RU35: ='Financial Model'!RV8 -> 2505-01-01 | RV35: ='Financial Model'!RW8 -> 2506-01-01 | RW35: ='Financial Model'!RX8 -> 2507-01-01 | RX35: ='Financial Model'!RY8 -> 2508-01-01 | RY35: ='Financial Model'!RZ8 -> 2509-01-01 | RZ35: ='Financial Model'!SA8 -> 2510-01-01 | SA35: ='Financial Model'!SB8 -> 2511-01-01 | SB35: ='Financial Model'!SC8 -> 2512-01-01 | SC35: ='Financial Model'!SD8 -> 00:00:00 | SD35: ='Financial Model'!SE8 -> 00:00:00 | SE35: ='Financial Model'!SF8 -> 00:00:00 | SF35: ='Financial Model'!SG8 -> 00:00:00 | SG35: ='Financial Model'!SH8 -> 00:00:00 | SH35: ='Financial Model'!SI8 -> 00:00:00 | SI35: ='Financial Model'!SJ8 -> 00:00:00 | SJ35: ='Financial Model'!SK8 -> 00:00:00 | SK35: ='Financial Model'!SL8 -> 00:00:00 | SL35: ='Financial Model'!SM8 -> 00:00:00 | SM35: ='Financial Model'!SN8 -> 00:00:00 | SN35: ='Financial Model'!SO8 -> 00:00:00 | SO35: ='Financial Model'!SP8 -> 00:00:00 | SP35: ='Financial Model'!SQ8 -> 00:00:00 | SQ35: ='Financial Model'!SR8 -> 00:00:00 | SR35: ='Financial Model'!SS8 -> 00:00:00 | SS35: ='Financial Model'!ST8 -> 00:00:00 | ST35: ='Financial Model'!SU8 -> 00:00:00 | SU35: ='Financial Model'!SV8 -> 00:00:00 | SV35: ='Financial Model'!SW8 -> 00:00:00 | SW35: ='Financial Model'!SX8 -> 00:00:00 | SX35: ='Financial Model'!SY8 -> 00:00:00 | SY35: ='Financial Model'!SZ8 -> 00:00:00 | SZ35: ='Financial Model'!TA8 -> 00:00:00 | TA35: ='Financial Model'!TB8 -> 00:00:00 | TB35: ='Financial Model'!TC8 -> 00:00:00 | TC35: ='Financial Model'!TD8 -> 00:00:00 | TD35: ='Financial Model'!TE8 -> 00:00:00 | TE35: ='Financial Model'!TF8 -> 00:00:00 | TF35: ='Financial Model'!TG8 -> 00:00:00 | TG35: ='Financial Model'!TH8 -> 00:00:00 | TH35: ='Financial Model'!TI8 -> 00:00:00 | TI35: ='Financial Model'!TJ8 -> 00:00:00 | TJ35: ='Financial Model'!TK8 -> 00:00:00 | TK35: ='Financial Model'!TL8 -> 00:00:00 | TL35: ='Financial Model'!TM8 -> 00:00:00 | TM35: ='Financial Model'!TN8 -> 00:00:00 | TN35: ='Financial Model'!TO8 -> 00:00:00 | TO35: ='Financial Model'!TP8 -> 00:00:00 | TP35: ='Financial Model'!TQ8 -> 00:00:00 | TQ35: ='Financial Model'!TR8 -> 00:00:00 | TR35: ='Financial Model'!TS8 -> 00:00:00 | TS35: ='Financial Model'!TT8 -> 00:00:00 | TT35: ='Financial Model'!TU8 -> 00:00:00 | TU35: ='Financial Model'!TV8 -> 00:00:00 | TV35: ='Financial Model'!TW8 -> 00:00:00 | TW35: ='Financial Model'!TX8 -> 00:00:00 | TX35: ='Financial Model'!TY8 -> 00:00:00 | TY35: ='Financial Model'!TZ8 -> 00:00:00
J36: ='Financial Model'!K9 -> 2026-12-31 | K36: ='Financial Model'!L9 -> 2027-12-31 | L36: ='Financial Model'!M9 -> 2028-12-31 | M36: ='Financial Model'!N9 -> 2029-12-31 | N36: ='Financial Model'!O9 -> 2030-12-31 | O36: ='Financial Model'!P9 -> 2031-12-31 | P36: ='Financial Model'!Q9 -> 2032-12-31 | Q36: ='Financial Model'!R9 -> 2033-12-31 | R36: ='Financial Model'!S9 -> 2034-12-31 | S36: ='Financial Model'!T9 -> 2035-12-31 | T36: ='Financial Model'!U9 -> 2036-12-31 | U36: ='Financial Model'!V9 -> 2037-12-31 | V36: ='Financial Model'!W9 -> 2038-12-31 | W36: ='Financial Model'!X9 -> 2039-12-31 | X36: ='Financial Model'!Y9 -> 2040-12-31 | Y36: ='Financial Model'!Z9 -> 2041-12-31 | Z36: ='Financial Model'!AA9 -> 2042-12-31 | AA36: ='Financial Model'!AB9 -> 2043-12-31 | AB36: ='Financial Model'!AC9 -> 2044-12-31 | AC36: ='Financial Model'!AD9 -> 2045-12-31 | AD36: ='Financial Model'!AE9 -> 2046-12-31 | AE36: ='Financial Model'!AF9 -> 2047-12-31 | AF36: ='Financial Model'!AG9 -> 2048-12-31 | AG36: ='Financial Model'!AH9 -> 2049-12-31 | AH36: ='Financial Model'!AI9 -> 2050-12-31 | AI36: ='Financial Model'!AJ9 -> 2051-12-31 | AJ36: ='Financial Model'!AK9 -> 2052-12-31 | AK36: ='Financial Model'!AL9 -> 2053-12-31 | AL36: ='Financial Model'!AM9 -> 2054-12-31 | AM36: ='Financial Model'!AN9 -> 2055-12-31 | AN36: ='Financial Model'!AO9 -> 2056-12-31 | AO36: ='Financial Model'!AP9 -> 2057-12-31 | AP36: ='Financial Model'!AQ9 -> 2058-12-31 | AQ36: ='Financial Model'!AR9 -> 2059-12-31 | AR36: ='Financial Model'!AS9 -> 2060-12-31 | AS36: ='Financial Model'!AT9 -> 2061-12-31 | AT36: ='Financial Model'!AU9 -> 2062-12-31 | AU36: ='Financial Model'!AV9 -> 2063-12-31 | AV36: ='Financial Model'!AW9 -> 2064-12-31 | AW36: ='Financial Model'!AX9 -> 2065-12-31 | AX36: ='Financial Model'!AY9 -> 2066-12-31 | AY36: ='Financial Model'!AZ9 -> 2067-12-31 | AZ36: ='Financial Model'!BA9 -> 2068-12-31 | BA36: ='Financial Model'!BB9 -> 2069-12-31 | BB36: ='Financial Model'!BC9 -> 2070-12-31 | BC36: ='Financial Model'!BD9 -> 2071-12-31 | BD36: ='Financial Model'!BE9 -> 2072-12-31 | BE36: ='Financial Model'!BF9 -> 2073-12-31 | BF36: ='Financial Model'!BG9 -> 2074-12-31 | BG36: ='Financial Model'!BH9 -> 2075-12-31 | BH36: ='Financial Model'!BI9 -> 2076-12-31 | BI36: ='Financial Model'!BJ9 -> 2077-12-31 | BJ36: ='Financial Model'!BK9 -> 2078-12-31 | BK36: ='Financial Model'!BL9 -> 2079-12-31 | BL36: ='Financial Model'!BM9 -> 2080-12-31 | BM36: ='Financial Model'!BN9 -> 2081-12-31 | BN36: ='Financial Model'!BO9 -> 2082-12-31 | BO36: ='Financial Model'!BP9 -> 2083-12-31 | BP36: ='Financial Model'!BQ9 -> 2084-12-31 | BQ36: ='Financial Model'!BR9 -> 2085-12-31 | BR36: ='Financial Model'!BS9 -> 2086-12-31 | BS36: ='Financial Model'!BT9 -> 2087-12-31 | BT36: ='Financial Model'!BU9 -> 2088-12-31 | BU36: ='Financial Model'!BV9 -> 2089-12-31 | BV36: ='Financial Model'!BW9 -> 2090-12-31 | BW36: ='Financial Model'!BX9 -> 2091-12-31 | BX36: ='Financial Model'!BY9 -> 2092-12-31 | BY36: ='Financial Model'!BZ9 -> 2093-12-31 | BZ36: ='Financial Model'!CA9 -> 2094-12-31 | CA36: ='Financial Model'!CB9 -> 2095-12-31 | CB36: ='Financial Model'!CC9 -> 2096-12-31 | CC36: ='Financial Model'!CD9 -> 2097-12-31 | CD36: ='Financial Model'!CE9 -> 2098-12-31 | CE36: ='Financial Model'!CF9 -> 2099-12-31 | CF36: ='Financial Model'!CG9 -> 2100-12-31 | CG36: ='Financial Model'!CH9 -> 2101-12-31 | CH36: ='Financial Model'!CI9 -> 2102-12-31 | CI36: ='Financial Model'!CJ9 -> 2103-12-31 | CJ36: ='Financial Model'!CK9 -> 2104-12-31 | CK36: ='Financial Model'!CL9 -> 2105-12-31 | CL36: ='Financial Model'!CM9 -> 2106-12-31 | CM36: ='Financial Model'!CN9 -> 2107-12-31 | CN36: ='Financial Model'!CO9 -> 2108-12-31 | CO36: ='Financial Model'!CP9 -> 2109-12-31 | CP36: ='Financial Model'!CQ9 -> 2110-12-31 | CQ36: ='Financial Model'!CR9 -> 2111-12-31 | CR36: ='Financial Model'!CS9 -> 2112-12-31 | CS36: ='Financial Model'!CT9 -> 2113-12-31 | CT36: ='Financial Model'!CU9 -> 2114-12-31 | CU36: ='Financial Model'!CV9 -> 2115-12-31 | CV36: ='Financial Model'!CW9 -> 2116-12-31 | CW36: ='Financial Model'!CX9 -> 2117-12-31 | CX36: ='Financial Model'!CY9 -> 2118-12-31 | CY36: ='Financial Model'!CZ9 -> 2119-12-31 | CZ36: ='Financial Model'!DA9 -> 2120-12-31 | DA36: ='Financial Model'!DB9 -> 2121-12-31 | DB36: ='Financial Model'!DC9 -> 2122-12-31 | DC36: ='Financial Model'!DD9 -> 2123-12-31 | DD36: ='Financial Model'!DE9 -> 2124-12-31 | DE36: ='Financial Model'!DF9 -> 2125-12-31 | DF36: ='Financial Model'!DG9 -> 2126-12-31 | DG36: ='Financial Model'!DH9 -> 2127-12-31 | DH36: ='Financial Model'!DI9 -> 2128-12-31 | DI36: ='Financial Model'!DJ9 -> 2129-12-31 | DJ36: ='Financial Model'!DK9 -> 2130-12-31 | DK36: ='Financial Model'!DL9 -> 2131-12-31 | DL36: ='Financial Model'!DM9 -> 2132-12-31 | DM36: ='Financial Model'!DN9 -> 2133-12-31 | DN36: ='Financial Model'!DO9 -> 2134-12-31 | DO36: ='Financial Model'!DP9 -> 2135-12-31 | DP36: ='Financial Model'!DQ9 -> 2136-12-31 | DQ36: ='Financial Model'!DR9 -> 2137-12-31 | DR36: ='Financial Model'!DS9 -> 2138-12-31 | DS36: ='Financial Model'!DT9 -> 2139-12-31 | DT36: ='Financial Model'!DU9 -> 2140-12-31 | DU36: ='Financial Model'!DV9 -> 2141-12-31 | DV36: ='Financial Model'!DW9 -> 2142-12-31 | DW36: ='Financial Model'!DX9 -> 2143-12-31 | DX36: ='Financial Model'!DY9 -> 2144-12-31 | DY36: ='Financial Model'!DZ9 -> 2145-12-31 | DZ36: ='Financial Model'!EA9 -> 2146-12-31 | EA36: ='Financial Model'!EB9 -> 2147-12-31 | EB36: ='Financial Model'!EC9 -> 2148-12-31 | EC36: ='Financial Model'!ED9 -> 2149-12-31 | ED36: ='Financial Model'!EE9 -> 2150-12-31 | EE36: ='Financial Model'!EF9 -> 2151-12-31 | EF36: ='Financial Model'!EG9 -> 2152-12-31 | EG36: ='Financial Model'!EH9 -> 2153-12-31 | EH36: ='Financial Model'!EI9 -> 2154-12-31 | EI36: ='Financial Model'!EJ9 -> 2155-12-31 | EJ36: ='Financial Model'!EK9 -> 2156-12-31 | EK36: ='Financial Model'!EL9 -> 2157-12-31 | EL36: ='Financial Model'!EM9 -> 2158-12-31 | EM36: ='Financial Model'!EN9 -> 2159-12-31 | EN36: ='Financial Model'!EO9 -> 2160-12-31 | EO36: ='Financial Model'!EP9 -> 2161-12-31 | EP36: ='Financial Model'!EQ9 -> 2162-12-31 | EQ36: ='Financial Model'!ER9 -> 2163-12-31 | ER36: ='Financial Model'!ES9 -> 2164-12-31 | ES36: ='Financial Model'!ET9 -> 2165-12-31 | ET36: ='Financial Model'!EU9 -> 2166-12-31 | EU36: ='Financial Model'!EV9 -> 2167-12-31 | EV36: ='Financial Model'!EW9 -> 2168-12-31 | EW36: ='Financial Model'!EX9 -> 2169-12-31 | EX36: ='Financial Model'!EY9 -> 2170-12-31 | EY36: ='Financial Model'!EZ9 -> 2171-12-31 | EZ36: ='Financial Model'!FA9 -> 2172-12-31 | FA36: ='Financial Model'!FB9 -> 2173-12-31 | FB36: ='Financial Model'!FC9 -> 2174-12-31 | FC36: ='Financial Model'!FD9 -> 2175-12-31 | FD36: ='Financial Model'!FE9 -> 2176-12-31 | FE36: ='Financial Model'!FF9 -> 2177-12-31 | FF36: ='Financial Model'!FG9 -> 2178-12-31 | FG36: ='Financial Model'!FH9 -> 2179-12-31 | FH36: ='Financial Model'!FI9 -> 2180-12-31 | FI36: ='Financial Model'!FJ9 -> 2181-12-31 | FJ36: ='Financial Model'!FK9 -> 2182-12-31 | FK36: ='Financial Model'!FL9 -> 2183-12-31 | FL36: ='Financial Model'!FM9 -> 2184-12-31 | FM36: ='Financial Model'!FN9 -> 2185-12-31 | FN36: ='Financial Model'!FO9 -> 2186-12-31 | FO36: ='Financial Model'!FP9 -> 2187-12-31 | FP36: ='Financial Model'!FQ9 -> 2188-12-31 | FQ36: ='Financial Model'!FR9 -> 2189-12-31 | FR36: ='Financial Model'!FS9 -> 2190-12-31 | FS36: ='Financial Model'!FT9 -> 2191-12-31 | FT36: ='Financial Model'!FU9 -> 2192-12-31 | FU36: ='Financial Model'!FV9 -> 2193-12-31 | FV36: ='Financial Model'!FW9 -> 2194-12-31 | FW36: ='Financial Model'!FX9 -> 2195-12-31 | FX36: ='Financial Model'!FY9 -> 2196-12-31 | FY36: ='Financial Model'!FZ9 -> 2197-12-31 | FZ36: ='Financial Model'!GA9 -> 2198-12-31 | GA36: ='Financial Model'!GB9 -> 2199-12-31 | GB36: ='Financial Model'!GC9 -> 2200-12-31 | GC36: ='Financial Model'!GD9 -> 2201-12-31 | GD36: ='Financial Model'!GE9 -> 2202-12-31 | GE36: ='Financial Model'!GF9 -> 2203-12-31 | GF36: ='Financial Model'!GG9 -> 2204-12-31 | GG36: ='Financial Model'!GH9 -> 2205-12-31 | GH36: ='Financial Model'!GI9 -> 2206-12-31 | GI36: ='Financial Model'!GJ9 -> 2207-12-31 | GJ36: ='Financial Model'!GK9 -> 2208-12-31 | GK36: ='Financial Model'!GL9 -> 2209-12-31 | GL36: ='Financial Model'!GM9 -> 2210-12-31 | GM36: ='Financial Model'!GN9 -> 2211-12-31 | GN36: ='Financial Model'!GO9 -> 2212-12-31 | GO36: ='Financial Model'!GP9 -> 2213-12-31 | GP36: ='Financial Model'!GQ9 -> 2214-12-31 | GQ36: ='Financial Model'!GR9 -> 2215-12-31 | GR36: ='Financial Model'!GS9 -> 2216-12-31 | GS36: ='Financial Model'!GT9 -> 2217-12-31 | GT36: ='Financial Model'!GU9 -> 2218-12-31 | GU36: ='Financial Model'!GV9 -> 2219-12-31 | GV36: ='Financial Model'!GW9 -> 2220-12-31 | GW36: ='Financial Model'!GX9 -> 2221-12-31 | GX36: ='Financial Model'!GY9 -> 2222-12-31 | GY36: ='Financial Model'!GZ9 -> 2223-12-31 | GZ36: ='Financial Model'!HA9 -> 2224-12-31 | HA36: ='Financial Model'!HB9 -> 2225-12-31 | HB36: ='Financial Model'!HC9 -> 2226-12-31 | HC36: ='Financial Model'!HD9 -> 2227-12-31 | HD36: ='Financial Model'!HE9 -> 2228-12-31 | HE36: ='Financial Model'!HF9 -> 2229-12-31 | HF36: ='Financial Model'!HG9 -> 2230-12-31 | HG36: ='Financial Model'!HH9 -> 2231-12-31 | HH36: ='Financial Model'!HI9 -> 2232-12-31 | HI36: ='Financial Model'!HJ9 -> 2233-12-31 | HJ36: ='Financial Model'!HK9 -> 2234-12-31 | HK36: ='Financial Model'!HL9 -> 2235-12-31 | HL36: ='Financial Model'!HM9 -> 2236-12-31 | HM36: ='Financial Model'!HN9 -> 2237-12-31 | HN36: ='Financial Model'!HO9 -> 2238-12-31 | HO36: ='Financial Model'!HP9 -> 2239-12-31 | HP36: ='Financial Model'!HQ9 -> 2240-12-31 | HQ36: ='Financial Model'!HR9 -> 2241-12-31 | HR36: ='Financial Model'!HS9 -> 2242-12-31 | HS36: ='Financial Model'!HT9 -> 2243-12-31 | HT36: ='Financial Model'!HU9 -> 2244-12-31 | HU36: ='Financial Model'!HV9 -> 2245-12-31 | HV36: ='Financial Model'!HW9 -> 2246-12-31 | HW36: ='Financial Model'!HX9 -> 2247-12-31 | HX36: ='Financial Model'!HY9 -> 2248-12-31 | HY36: ='Financial Model'!HZ9 -> 2249-12-31 | HZ36: ='Financial Model'!IA9 -> 2250-12-31 | IA36: ='Financial Model'!IB9 -> 2251-12-31 | IB36: ='Financial Model'!IC9 -> 2252-12-31 | IC36: ='Financial Model'!ID9 -> 2253-12-31 | ID36: ='Financial Model'!IE9 -> 2254-12-31 | IE36: ='Financial Model'!IF9 -> 2255-12-31 | IF36: ='Financial Model'!IG9 -> 2256-12-31 | IG36: ='Financial Model'!IH9 -> 2257-12-31 | IH36: ='Financial Model'!II9 -> 2258-12-31 | II36: ='Financial Model'!IJ9 -> 2259-12-31 | IJ36: ='Financial Model'!IK9 -> 2260-12-31 | IK36: ='Financial Model'!IL9 -> 2261-12-31 | IL36: ='Financial Model'!IM9 -> 2262-12-31 | IM36: ='Financial Model'!IN9 -> 2263-12-31 | IN36: ='Financial Model'!IO9 -> 2264-12-31 | IO36: ='Financial Model'!IP9 -> 2265-12-31 | IP36: ='Financial Model'!IQ9 -> 2266-12-31 | IQ36: ='Financial Model'!IR9 -> 2267-12-31 | IR36: ='Financial Model'!IS9 -> 2268-12-31 | IS36: ='Financial Model'!IT9 -> 2269-12-31 | IT36: ='Financial Model'!IU9 -> 2270-12-31 | IU36: ='Financial Model'!IV9 -> 2271-12-31 | IV36: ='Financial Model'!IW9 -> 2272-12-31 | IW36: ='Financial Model'!IX9 -> 2273-12-31 | IX36: ='Financial Model'!IY9 -> 2274-12-31 | IY36: ='Financial Model'!IZ9 -> 2275-12-31 | IZ36: ='Financial Model'!JA9 -> 2276-12-31 | JA36: ='Financial Model'!JB9 -> 2277-12-31 | JB36: ='Financial Model'!JC9 -> 2278-12-31 | JC36: ='Financial Model'!JD9 -> 2279-12-31 | JD36: ='Financial Model'!JE9 -> 2280-12-31 | JE36: ='Financial Model'!JF9 -> 2281-12-31 | JF36: ='Financial Model'!JG9 -> 2282-12-31 | JG36: ='Financial Model'!JH9 -> 2283-12-31 | JH36: ='Financial Model'!JI9 -> 2284-12-31 | JI36: ='Financial Model'!JJ9 -> 2285-12-31 | JJ36: ='Financial Model'!JK9 -> 2286-12-31 | JK36: ='Financial Model'!JL9 -> 2287-12-31 | JL36: ='Financial Model'!JM9 -> 2288-12-31 | JM36: ='Financial Model'!JN9 -> 2289-12-31 | JN36: ='Financial Model'!JO9 -> 2290-12-31 | JO36: ='Financial Model'!JP9 -> 2291-12-31 | JP36: ='Financial Model'!JQ9 -> 2292-12-31 | JQ36: ='Financial Model'!JR9 -> 2293-12-31 | JR36: ='Financial Model'!JS9 -> 2294-12-31 | JS36: ='Financial Model'!JT9 -> 2295-12-31 | JT36: ='Financial Model'!JU9 -> 2296-12-31 | JU36: ='Financial Model'!JV9 -> 2297-12-31 | JV36: ='Financial Model'!JW9 -> 2298-12-31 | JW36: ='Financial Model'!JX9 -> 2299-12-31 | JX36: ='Financial Model'!JY9 -> 2300-12-31 | JY36: ='Financial Model'!JZ9 -> 2301-12-31 | JZ36: ='Financial Model'!KA9 -> 2302-12-31 | KA36: ='Financial Model'!KB9 -> 2303-12-31 | KB36: ='Financial Model'!KC9 -> 2304-12-31 | KC36: ='Financial Model'!KD9 -> 2305-12-31 | KD36: ='Financial Model'!KE9 -> 2306-12-31 | KE36: ='Financial Model'!KF9 -> 2307-12-31 | KF36: ='Financial Model'!KG9 -> 2308-12-31 | KG36: ='Financial Model'!KH9 -> 2309-12-31 | KH36: ='Financial Model'!KI9 -> 2310-12-31 | KI36: ='Financial Model'!KJ9 -> 2311-12-31 | KJ36: ='Financial Model'!KK9 -> 2312-12-31 | KK36: ='Financial Model'!KL9 -> 2313-12-31 | KL36: ='Financial Model'!KM9 -> 2314-12-31 | KM36: ='Financial Model'!KN9 -> 2315-12-31 | KN36: ='Financial Model'!KO9 -> 2316-12-31 | KO36: ='Financial Model'!KP9 -> 2317-12-31 | KP36: ='Financial Model'!KQ9 -> 2318-12-31 | KQ36: ='Financial Model'!KR9 -> 2319-12-31 | KR36: ='Financial Model'!KS9 -> 2320-12-31 | KS36: ='Financial Model'!KT9 -> 2321-12-31 | KT36: ='Financial Model'!KU9 -> 2322-12-31 | KU36: ='Financial Model'!KV9 -> 2323-12-31 | KV36: ='Financial Model'!KW9 -> 2324-12-31 | KW36: ='Financial Model'!KX9 -> 2325-12-31 | KX36: ='Financial Model'!KY9 -> 2326-12-31 | KY36: ='Financial Model'!KZ9 -> 2327-12-31 | KZ36: ='Financial Model'!LA9 -> 2328-12-31 | LA36: ='Financial Model'!LB9 -> 2329-12-31 | LB36: ='Financial Model'!LC9 -> 2330-12-31 | LC36: ='Financial Model'!LD9 -> 2331-12-31 | LD36: ='Financial Model'!LE9 -> 2332-12-31 | LE36: ='Financial Model'!LF9 -> 2333-12-31 | LF36: ='Financial Model'!LG9 -> 2334-12-31 | LG36: ='Financial Model'!LH9 -> 2335-12-31 | LH36: ='Financial Model'!LI9 -> 2336-12-31 | LI36: ='Financial Model'!LJ9 -> 2337-12-31 | LJ36: ='Financial Model'!LK9 -> 2338-12-31 | LK36: ='Financial Model'!LL9 -> 2339-12-31 | LL36: ='Financial Model'!LM9 -> 2340-12-31 | LM36: ='Financial Model'!LN9 -> 2341-12-31 | LN36: ='Financial Model'!LO9 -> 2342-12-31 | LO36: ='Financial Model'!LP9 -> 2343-12-31 | LP36: ='Financial Model'!LQ9 -> 2344-12-31 | LQ36: ='Financial Model'!LR9 -> 2345-12-31 | LR36: ='Financial Model'!LS9 -> 2346-12-31 | LS36: ='Financial Model'!LT9 -> 2347-12-31 | LT36: ='Financial Model'!LU9 -> 2348-12-31 | LU36: ='Financial Model'!LV9 -> 2349-12-31 | LV36: ='Financial Model'!LW9 -> 2350-12-31 | LW36: ='Financial Model'!LX9 -> 2351-12-31 | LX36: ='Financial Model'!LY9 -> 2352-12-31 | LY36: ='Financial Model'!LZ9 -> 2353-12-31 | LZ36: ='Financial Model'!MA9 -> 2354-12-31 | MA36: ='Financial Model'!MB9 -> 2355-12-31 | MB36: ='Financial Model'!MC9 -> 2356-12-31 | MC36: ='Financial Model'!MD9 -> 2357-12-31 | MD36: ='Financial Model'!ME9 -> 2358-12-31 | ME36: ='Financial Model'!MF9 -> 2359-12-31 | MF36: ='Financial Model'!MG9 -> 2360-12-31 | MG36: ='Financial Model'!MH9 -> 2361-12-31 | MH36: ='Financial Model'!MI9 -> 2362-12-31 | MI36: ='Financial Model'!MJ9 -> 2363-12-31 | MJ36: ='Financial Model'!MK9 -> 2364-12-31 | MK36: ='Financial Model'!ML9 -> 2365-12-31 | ML36: ='Financial Model'!MM9 -> 2366-12-31 | MM36: ='Financial Model'!MN9 -> 2367-12-31 | MN36: ='Financial Model'!MO9 -> 2368-12-31 | MO36: ='Financial Model'!MP9 -> 2369-12-31 | MP36: ='Financial Model'!MQ9 -> 2370-12-31 | MQ36: ='Financial Model'!MR9 -> 2371-12-31 | MR36: ='Financial Model'!MS9 -> 2372-12-31 | MS36: ='Financial Model'!MT9 -> 2373-12-31 | MT36: ='Financial Model'!MU9 -> 2374-12-31 | MU36: ='Financial Model'!MV9 -> 2375-12-31 | MV36: ='Financial Model'!MW9 -> 2376-12-31 | MW36: ='Financial Model'!MX9 -> 2377-12-31 | MX36: ='Financial Model'!MY9 -> 2378-12-31 | MY36: ='Financial Model'!MZ9 -> 2379-12-31 | MZ36: ='Financial Model'!NA9 -> 2380-12-31 | NA36: ='Financial Model'!NB9 -> 2381-12-31 | NB36: ='Financial Model'!NC9 -> 2382-12-31 | NC36: ='Financial Model'!ND9 -> 2383-12-31 | ND36: ='Financial Model'!NE9 -> 2384-12-31 | NE36: ='Financial Model'!NF9 -> 2385-12-31 | NF36: ='Financial Model'!NG9 -> 2386-12-31 | NG36: ='Financial Model'!NH9 -> 2387-12-31 | NH36: ='Financial Model'!NI9 -> 2388-12-31 | NI36: ='Financial Model'!NJ9 -> 2389-12-31 | NJ36: ='Financial Model'!NK9 -> 2390-12-31 | NK36: ='Financial Model'!NL9 -> 2391-12-31 | NL36: ='Financial Model'!NM9 -> 2392-12-31 | NM36: ='Financial Model'!NN9 -> 2393-12-31 | NN36: ='Financial Model'!NO9 -> 2394-12-31 | NO36: ='Financial Model'!NP9 -> 2395-12-31 | NP36: ='Financial Model'!NQ9 -> 2396-12-31 | NQ36: ='Financial Model'!NR9 -> 2397-12-31 | NR36: ='Financial Model'!NS9 -> 2398-12-31 | NS36: ='Financial Model'!NT9 -> 2399-12-31 | NT36: ='Financial Model'!NU9 -> 2400-12-31 | NU36: ='Financial Model'!NV9 -> 2401-12-31 | NV36: ='Financial Model'!NW9 -> 2402-12-31 | NW36: ='Financial Model'!NX9 -> 2403-12-31 | NX36: ='Financial Model'!NY9 -> 2404-12-31 | NY36: ='Financial Model'!NZ9 -> 2405-12-31 | NZ36: ='Financial Model'!OA9 -> 2406-12-31 | OA36: ='Financial Model'!OB9 -> 2407-12-31 | OB36: ='Financial Model'!OC9 -> 2408-12-31 | OC36: ='Financial Model'!OD9 -> 2409-12-31 | OD36: ='Financial Model'!OE9 -> 2410-12-31 | OE36: ='Financial Model'!OF9 -> 2411-12-31 | OF36: ='Financial Model'!OG9 -> 2412-12-31 | OG36: ='Financial Model'!OH9 -> 2413-12-31 | OH36: ='Financial Model'!OI9 -> 2414-12-31 | OI36: ='Financial Model'!OJ9 -> 2415-12-31 | OJ36: ='Financial Model'!OK9 -> 2416-12-31 | OK36: ='Financial Model'!OL9 -> 2417-12-31 | OL36: ='Financial Model'!OM9 -> 2418-12-31 | OM36: ='Financial Model'!ON9 -> 2419-12-31 | ON36: ='Financial Model'!OO9 -> 2420-12-31 | OO36: ='Financial Model'!OP9 -> 2421-12-31 | OP36: ='Financial Model'!OQ9 -> 2422-12-31 | OQ36: ='Financial Model'!OR9 -> 2423-12-31 | OR36: ='Financial Model'!OS9 -> 2424-12-31 | OS36: ='Financial Model'!OT9 -> 2425-12-31 | OT36: ='Financial Model'!OU9 -> 2426-12-31 | OU36: ='Financial Model'!OV9 -> 2427-12-31 | OV36: ='Financial Model'!OW9 -> 2428-12-31 | OW36: ='Financial Model'!OX9 -> 2429-12-31 | OX36: ='Financial Model'!OY9 -> 2430-12-31 | OY36: ='Financial Model'!OZ9 -> 2431-12-31 | OZ36: ='Financial Model'!PA9 -> 2432-12-31 | PA36: ='Financial Model'!PB9 -> 2433-12-31 | PB36: ='Financial Model'!PC9 -> 2434-12-31 | PC36: ='Financial Model'!PD9 -> 2435-12-31 | PD36: ='Financial Model'!PE9 -> 2436-12-31 | PE36: ='Financial Model'!PF9 -> 2437-12-31 | PF36: ='Financial Model'!PG9 -> 2438-12-31 | PG36: ='Financial Model'!PH9 -> 2439-12-31 | PH36: ='Financial Model'!PI9 -> 2440-12-31 | PI36: ='Financial Model'!PJ9 -> 2441-12-31 | PJ36: ='Financial Model'!PK9 -> 2442-12-31 | PK36: ='Financial Model'!PL9 -> 2443-12-31 | PL36: ='Financial Model'!PM9 -> 2444-12-31 | PM36: ='Financial Model'!PN9 -> 2445-12-31 | PN36: ='Financial Model'!PO9 -> 2446-12-31 | PO36: ='Financial Model'!PP9 -> 2447-12-31 | PP36: ='Financial Model'!PQ9 -> 2448-12-31 | PQ36: ='Financial Model'!PR9 -> 2449-12-31 | PR36: ='Financial Model'!PS9 -> 2450-12-31 | PS36: ='Financial Model'!PT9 -> 2451-12-31 | PT36: ='Financial Model'!PU9 -> 2452-12-31 | PU36: ='Financial Model'!PV9 -> 2453-12-31 | PV36: ='Financial Model'!PW9 -> 2454-12-31 | PW36: ='Financial Model'!PX9 -> 2455-12-31 | PX36: ='Financial Model'!PY9 -> 2456-12-31 | PY36: ='Financial Model'!PZ9 -> 2457-12-31 | PZ36: ='Financial Model'!QA9 -> 2458-12-31 | QA36: ='Financial Model'!QB9 -> 2459-12-31 | QB36: ='Financial Model'!QC9 -> 2460-12-31 | QC36: ='Financial Model'!QD9 -> 2461-12-31 | QD36: ='Financial Model'!QE9 -> 2462-12-31 | QE36: ='Financial Model'!QF9 -> 2463-12-31 | QF36: ='Financial Model'!QG9 -> 2464-12-31 | QG36: ='Financial Model'!QH9 -> 2465-12-31 | QH36: ='Financial Model'!QI9 -> 2466-12-31 | QI36: ='Financial Model'!QJ9 -> 2467-12-31 | QJ36: ='Financial Model'!QK9 -> 2468-12-31 | QK36: ='Financial Model'!QL9 -> 2469-12-31 | QL36: ='Financial Model'!QM9 -> 2470-12-31 | QM36: ='Financial Model'!QN9 -> 2471-12-31 | QN36: ='Financial Model'!QO9 -> 2472-12-31 | QO36: ='Financial Model'!QP9 -> 2473-12-31 | QP36: ='Financial Model'!QQ9 -> 2474-12-31 | QQ36: ='Financial Model'!QR9 -> 2475-12-31 | QR36: ='Financial Model'!QS9 -> 2476-12-31 | QS36: ='Financial Model'!QT9 -> 2477-12-31 | QT36: ='Financial Model'!QU9 -> 2478-12-31 | QU36: ='Financial Model'!QV9 -> 2479-12-31 | QV36: ='Financial Model'!QW9 -> 2480-12-31 | QW36: ='Financial Model'!QX9 -> 2481-12-31 | QX36: ='Financial Model'!QY9 -> 2482-12-31 | QY36: ='Financial Model'!QZ9 -> 2483-12-31 | QZ36: ='Financial Model'!RA9 -> 2484-12-31 | RA36: ='Financial Model'!RB9 -> 2485-12-31 | RB36: ='Financial Model'!RC9 -> 2486-12-31 | RC36: ='Financial Model'!RD9 -> 2487-12-31 | RD36: ='Financial Model'!RE9 -> 2488-12-31 | RE36: ='Financial Model'!RF9 -> 2489-12-31 | RF36: ='Financial Model'!RG9 -> 2490-12-31 | RG36: ='Financial Model'!RH9 -> 2491-12-31 | RH36: ='Financial Model'!RI9 -> 2492-12-31 | RI36: ='Financial Model'!RJ9 -> 2493-12-31 | RJ36: ='Financial Model'!RK9 -> 2494-12-31 | RK36: ='Financial Model'!RL9 -> 2495-12-31 | RL36: ='Financial Model'!RM9 -> 2496-12-31 | RM36: ='Financial Model'!RN9 -> 2497-12-31 | RN36: ='Financial Model'!RO9 -> 2498-12-31 | RO36: ='Financial Model'!RP9 -> 2499-12-31 | RP36: ='Financial Model'!RQ9 -> 2500-12-31 | RQ36: ='Financial Model'!RR9 -> 2501-12-31 | RR36: ='Financial Model'!RS9 -> 2502-12-31 | RS36: ='Financial Model'!RT9 -> 2503-12-31 | RT36: ='Financial Model'!RU9 -> 2504-12-31 | RU36: ='Financial Model'!RV9 -> 2505-12-31 | RV36: ='Financial Model'!RW9 -> 2506-12-31 | RW36: ='Financial Model'!RX9 -> 2507-12-31 | RX36: ='Financial Model'!RY9 -> 2508-12-31 | RY36: ='Financial Model'!RZ9 -> 2509-12-31 | RZ36: ='Financial Model'!SA9 -> 2510-12-31 | SA36: ='Financial Model'!SB9 -> 2511-12-31 | SB36: ='Financial Model'!SC9 -> 2512-12-31 | SC36: ='Financial Model'!SD9 -> 00:00:00 | SD36: ='Financial Model'!SE9 -> 00:00:00 | SE36: ='Financial Model'!SF9 -> 00:00:00 | SF36: ='Financial Model'!SG9 -> 00:00:00 | SG36: ='Financial Model'!SH9 -> 00:00:00 | SH36: ='Financial Model'!SI9 -> 00:00:00 | SI36: ='Financial Model'!SJ9 -> 00:00:00 | SJ36: ='Financial Model'!SK9 -> 00:00:00 | SK36: ='Financial Model'!SL9 -> 00:00:00 | SL36: ='Financial Model'!SM9 -> 00:00:00 | SM36: ='Financial Model'!SN9 -> 00:00:00 | SN36: ='Financial Model'!SO9 -> 00:00:00 | SO36: ='Financial Model'!SP9 -> 00:00:00 | SP36: ='Financial Model'!SQ9 -> 00:00:00 | SQ36: ='Financial Model'!SR9 -> 00:00:00 | SR36: ='Financial Model'!SS9 -> 00:00:00 | SS36: ='Financial Model'!ST9 -> 00:00:00 | ST36: ='Financial Model'!SU9 -> 00:00:00 | SU36: ='Financial Model'!SV9 -> 00:00:00 | SV36: ='Financial Model'!SW9 -> 00:00:00 | SW36: ='Financial Model'!SX9 -> 00:00:00 | SX36: ='Financial Model'!SY9 -> 00:00:00 | SY36: ='Financial Model'!SZ9 -> 00:00:00 | SZ36: ='Financial Model'!TA9 -> 00:00:00 | TA36: ='Financial Model'!TB9 -> 00:00:00 | TB36: ='Financial Model'!TC9 -> 00:00:00 | TC36: ='Financial Model'!TD9 -> 00:00:00 | TD36: ='Financial Model'!TE9 -> 00:00:00 | TE36: ='Financial Model'!TF9 -> 00:00:00 | TF36: ='Financial Model'!TG9 -> 00:00:00 | TG36: ='Financial Model'!TH9 -> 00:00:00 | TH36: ='Financial Model'!TI9 -> 00:00:00 | TI36: ='Financial Model'!TJ9 -> 00:00:00 | TJ36: ='Financial Model'!TK9 -> 00:00:00 | TK36: ='Financial Model'!TL9 -> 00:00:00 | TL36: ='Financial Model'!TM9 -> 00:00:00 | TM36: ='Financial Model'!TN9 -> 00:00:00 | TN36: ='Financial Model'!TO9 -> 00:00:00 | TO36: ='Financial Model'!TP9 -> 00:00:00 | TP36: ='Financial Model'!TQ9 -> 00:00:00 | TQ36: ='Financial Model'!TR9 -> 00:00:00 | TR36: ='Financial Model'!TS9 -> 00:00:00 | TS36: ='Financial Model'!TT9 -> 00:00:00 | TT36: ='Financial Model'!TU9 -> 00:00:00 | TU36: ='Financial Model'!TV9 -> 00:00:00 | TV36: ='Financial Model'!TW9 -> 00:00:00 | TW36: ='Financial Model'!TX9 -> 00:00:00 | TX36: ='Financial Model'!TY9 -> 00:00:00 | TY36: ='Financial Model'!TZ9 -> 00:00:00
F38: Month | G38: Average | H38: Pct of Yr
F39: 1 | G39: 269.8373797 | H39: 0.08418573867 | J39: =Find_Month(J$35,J$36,$F39) -> TRUE | K39: =Find_Month(K$35,K$36,$F39) -> TRUE | L39: =Find_Month(L$35,L$36,$F39) -> TRUE | M39: =Find_Month(M$35,M$36,$F39) -> TRUE | N39: =Find_Month(N$35,N$36,$F39) -> TRUE | O39: =Find_Month(O$35,O$36,$F39) -> TRUE | P39: =Find_Month(P$35,P$36,$F39) -> TRUE | Q39: =Find_Month(Q$35,Q$36,$F39) -> TRUE | R39: =Find_Month(R$35,R$36,$F39) -> TRUE | S39: =Find_Month(S$35,S$36,$F39) -> TRUE | T39: =Find_Month(T$35,T$36,$F39) -> TRUE | U39: =Find_Month(U$35,U$36,$F39) -> TRUE | V39: =Find_Month(V$35,V$36,$F39) -> TRUE | W39: =Find_Month(W$35,W$36,$F39) -> TRUE | X39: =Find_Month(X$35,X$36,$F39) -> TRUE | Y39: =Find_Month(Y$35,Y$36,$F39) -> TRUE | Z39: =Find_Month(Z$35,Z$36,$F39) -> TRUE | AA39: =Find_Month(AA$35,AA$36,$F39) -> TRUE | AB39: =Find_Month(AB$35,AB$36,$F39) -> TRUE | AC39: =Find_Month(AC$35,AC$36,$F39) -> TRUE | AD39: =Find_Month(AD$35,AD$36,$F39) -> TRUE | AE39: =Find_Month(AE$35,AE$36,$F39) -> TRUE | AF39: =Find_Month(AF$35,AF$36,$F39) -> TRUE | AG39: =Find_Month(AG$35,AG$36,$F39) -> TRUE | AH39: =Find_Month(AH$35,AH$36,$F39) -> TRUE | AI39: =Find_Month(AI$35,AI$36,$F39) -> TRUE | AJ39: =Find_Month(AJ$35,AJ$36,$F39) -> TRUE | AK39: =Find_Month(AK$35,AK$36,$F39) -> TRUE | AL39: =Find_Month(AL$35,AL$36,$F39) -> TRUE | AM39: =Find_Month(AM$35,AM$36,$F39) -> TRUE | AN39: =Find_Month(AN$35,AN$36,$F39) -> TRUE | AO39: =Find_Month(AO$35,AO$36,$F39) -> TRUE | AP39: =Find_Month(AP$35,AP$36,$F39) -> TRUE | AQ39: =Find_Month(AQ$35,AQ$36,$F39) -> TRUE | AR39: =Find_Month(AR$35,AR$36,$F39) -> TRUE | AS39: =Find_Month(AS$35,AS$36,$F39) -> TRUE | AT39: =Find_Month(AT$35,AT$36,$F39) -> TRUE | AU39: =Find_Month(AU$35,AU$36,$F39) -> TRUE | AV39: =Find_Month(AV$35,AV$36,$F39) -> TRUE | AW39: =Find_Month(AW$35,AW$36,$F39) -> TRUE | AX39: =Find_Month(AX$35,AX$36,$F39) -> TRUE | AY39: =Find_Month(AY$35,AY$36,$F39) -> TRUE | AZ39: =Find_Month(AZ$35,AZ$36,$F39) -> TRUE | BA39: =Find_Month(BA$35,BA$36,$F39) -> TRUE | BB39: =Find_Month(BB$35,BB$36,$F39) -> TRUE | BC39: =Find_Month(BC$35,BC$36,$F39) -> TRUE | BD39: =Find_Month(BD$35,BD$36,$F39) -> TRUE | BE39: =Find_Month(BE$35,BE$36,$F39) -> TRUE | BF39: =Find_Month(BF$35,BF$36,$F39) -> TRUE | BG39: =Find_Month(BG$35,BG$36,$F39) -> TRUE | BH39: =Find_Month(BH$35,BH$36,$F39) -> TRUE | BI39: =Find_Month(BI$35,BI$36,$F39) -> TRUE | BJ39: =Find_Month(BJ$35,BJ$36,$F39) -> TRUE | BK39: =Find_Month(BK$35,BK$36,$F39) -> TRUE | BL39: =Find_Month(BL$35,BL$36,$F39) -> TRUE | BM39: =Find_Month(BM$35,BM$36,$F39) -> TRUE | BN39: =Find_Month(BN$35,BN$36,$F39) -> TRUE | BO39: =Find_Month(BO$35,BO$36,$F39) -> TRUE | BP39: =Find_Month(BP$35,BP$36,$F39) -> TRUE | BQ39: =Find_Month(BQ$35,BQ$36,$F39) -> TRUE | BR39: =Find_Month(BR$35,BR$36,$F39) -> TRUE | BS39: =Find_Month(BS$35,BS$36,$F39) -> TRUE | BT39: =Find_Month(BT$35,BT$36,$F39) -> TRUE | BU39: =Find_Month(BU$35,BU$36,$F39) -> TRUE | BV39: =Find_Month(BV$35,BV$36,$F39) -> TRUE | BW39: =Find_Month(BW$35,BW$36,$F39) -> TRUE | BX39: =Find_Month(BX$35,BX$36,$F39) -> TRUE | BY39: =Find_Month(BY$35,BY$36,$F39) -> TRUE | BZ39: =Find_Month(BZ$35,BZ$36,$F39) -> TRUE | CA39: =Find_Month(CA$35,CA$36,$F39) -> TRUE | CB39: =Find_Month(CB$35,CB$36,$F39) -> TRUE | CC39: =Find_Month(CC$35,CC$36,$F39) -> TRUE | CD39: =Find_Month(CD$35,CD$36,$F39) -> TRUE | CE39: =Find_Month(CE$35,CE$36,$F39) -> TRUE | CF39: =Find_Month(CF$35,CF$36,$F39) -> TRUE | CG39: =Find_Month(CG$35,CG$36,$F39) -> TRUE | CH39: =Find_Month(CH$35,CH$36,$F39) -> TRUE | CI39: =Find_Month(CI$35,CI$36,$F39) -> TRUE | CJ39: =Find_Month(CJ$35,CJ$36,$F39) -> TRUE | CK39: =Find_Month(CK$35,CK$36,$F39) -> TRUE | CL39: =Find_Month(CL$35,CL$36,$F39) -> TRUE | CM39: =Find_Month(CM$35,CM$36,$F39) -> TRUE | CN39: =Find_Month(CN$35,CN$36,$F39) -> TRUE | CO39: =Find_Month(CO$35,CO$36,$F39) -> TRUE | CP39: =Find_Month(CP$35,CP$36,$F39) -> TRUE | CQ39: =Find_Month(CQ$35,CQ$36,$F39) -> TRUE | CR39: =Find_Month(CR$35,CR$36,$F39) -> TRUE | CS39: =Find_Month(CS$35,CS$36,$F39) -> TRUE | CT39: =Find_Month(CT$35,CT$36,$F39) -> TRUE | CU39: =Find_Month(CU$35,CU$36,$F39) -> TRUE | CV39: =Find_Month(CV$35,CV$36,$F39) -> TRUE | CW39: =Find_Month(CW$35,CW$36,$F39) -> TRUE | CX39: =Find_Month(CX$35,CX$36,$F39) -> TRUE | CY39: =Find_Month(CY$35,CY$36,$F39) -> TRUE | CZ39: =Find_Month(CZ$35,CZ$36,$F39) -> TRUE | DA39: =Find_Month(DA$35,DA$36,$F39) -> TRUE | DB39: =Find_Month(DB$35,DB$36,$F39) -> TRUE | DC39: =Find_Month(DC$35,DC$36,$F39) -> TRUE | DD39: =Find_Month(DD$35,DD$36,$F39) -> TRUE | DE39: =Find_Month(DE$35,DE$36,$F39) -> TRUE | DF39: =Find_Month(DF$35,DF$36,$F39) -> TRUE | DG39: =Find_Month(DG$35,DG$36,$F39) -> TRUE | DH39: =Find_Month(DH$35,DH$36,$F39) -> TRUE | DI39: =Find_Month(DI$35,DI$36,$F39) -> TRUE | DJ39: =Find_Month(DJ$35,DJ$36,$F39) -> TRUE | DK39: =Find_Month(DK$35,DK$36,$F39) -> TRUE | DL39: =Find_Month(DL$35,DL$36,$F39) -> TRUE | DM39: =Find_Month(DM$35,DM$36,$F39) -> TRUE | DN39: =Find_Month(DN$35,DN$36,$F39) -> TRUE | DO39: =Find_Month(DO$35,DO$36,$F39) -> TRUE | DP39: =Find_Month(DP$35,DP$36,$F39) -> TRUE | DQ39: =Find_Month(DQ$35,DQ$36,$F39) -> TRUE | DR39: =Find_Month(DR$35,DR$36,$F39) -> TRUE | DS39: =Find_Month(DS$35,DS$36,$F39) -> TRUE | DT39: =Find_Month(DT$35,DT$36,$F39) -> TRUE | DU39: =Find_Month(DU$35,DU$36,$F39) -> TRUE | DV39: =Find_Month(DV$35,DV$36,$F39) -> TRUE | DW39: =Find_Month(DW$35,DW$36,$F39) -> TRUE | DX39: =Find_Month(DX$35,DX$36,$F39) -> TRUE | DY39: =Find_Month(DY$35,DY$36,$F39) -> TRUE | DZ39: =Find_Month(DZ$35,DZ$36,$F39) -> TRUE | EA39: =Find_Month(EA$35,EA$36,$F39) -> TRUE | EB39: =Find_Month(EB$35,EB$36,$F39) -> TRUE | EC39: =Find_Month(EC$35,EC$36,$F39) -> TRUE | ED39: =Find_Month(ED$35,ED$36,$F39) -> TRUE | EE39: =Find_Month(EE$35,EE$36,$F39) -> TRUE | EF39: =Find_Month(EF$35,EF$36,$F39) -> TRUE | EG39: =Find_Month(EG$35,EG$36,$F39) -> TRUE | EH39: =Find_Month(EH$35,EH$36,$F39) -> TRUE | EI39: =Find_Month(EI$35,EI$36,$F39) -> TRUE | EJ39: =Find_Month(EJ$35,EJ$36,$F39) -> TRUE | EK39: =Find_Month(EK$35,EK$36,$F39) -> TRUE | EL39: =Find_Month(EL$35,EL$36,$F39) -> TRUE | EM39: =Find_Month(EM$35,EM$36,$F39) -> TRUE | EN39: =Find_Month(EN$35,EN$36,$F39) -> TRUE | EO39: =Find_Month(EO$35,EO$36,$F39) -> TRUE | EP39: =Find_Month(EP$35,EP$36,$F39) -> TRUE | EQ39: =Find_Month(EQ$35,EQ$36,$F39) -> TRUE | ER39: =Find_Month(ER$35,ER$36,$F39) -> TRUE | ES39: =Find_Month(ES$35,ES$36,$F39) -> TRUE | ET39: =Find_Month(ET$35,ET$36,$F39) -> TRUE | EU39: =Find_Month(EU$35,EU$36,$F39) -> TRUE | EV39: =Find_Month(EV$35,EV$36,$F39) -> TRUE | EW39: =Find_Month(EW$35,EW$36,$F39) -> TRUE | EX39: =Find_Month(EX$35,EX$36,$F39) -> TRUE | EY39: =Find_Month(EY$35,EY$36,$F39) -> TRUE | EZ39: =Find_Month(EZ$35,EZ$36,$F39) -> TRUE | FA39: =Find_Month(FA$35,FA$36,$F39) -> TRUE | FB39: =Find_Month(FB$35,FB$36,$F39) -> TRUE | FC39: =Find_Month(FC$35,FC$36,$F39) -> TRUE | FD39: =Find_Month(FD$35,FD$36,$F39) -> TRUE | FE39: =Find_Month(FE$35,FE$36,$F39) -> TRUE | FF39: =Find_Month(FF$35,FF$36,$F39) -> TRUE | FG39: =Find_Month(FG$35,FG$36,$F39) -> TRUE | FH39: =Find_Month(FH$35,FH$36,$F39) -> TRUE | FI39: =Find_Month(FI$35,FI$36,$F39) -> TRUE | FJ39: =Find_Month(FJ$35,FJ$36,$F39) -> TRUE | FK39: =Find_Month(FK$35,FK$36,$F39) -> TRUE | FL39: =Find_Month(FL$35,FL$36,$F39) -> TRUE | FM39: =Find_Month(FM$35,FM$36,$F39) -> TRUE | FN39: =Find_Month(FN$35,FN$36,$F39) -> TRUE | FO39: =Find_Month(FO$35,FO$36,$F39) -> TRUE | FP39: =Find_Month(FP$35,FP$36,$F39) -> TRUE | FQ39: =Find_Month(FQ$35,FQ$36,$F39) -> TRUE | FR39: =Find_Month(FR$35,FR$36,$F39) -> TRUE | FS39: =Find_Month(FS$35,FS$36,$F39) -> TRUE | FT39: =Find_Month(FT$35,FT$36,$F39) -> TRUE | FU39: =Find_Month(FU$35,FU$36,$F39) -> TRUE | FV39: =Find_Month(FV$35,FV$36,$F39) -> TRUE | FW39: =Find_Month(FW$35,FW$36,$F39) -> TRUE | FX39: =Find_Month(FX$35,FX$36,$F39) -> TRUE | FY39: =Find_Month(FY$35,FY$36,$F39) -> TRUE | FZ39: =Find_Month(FZ$35,FZ$36,$F39) -> TRUE | GA39: =Find_Month(GA$35,GA$36,$F39) -> TRUE | GB39: =Find_Month(GB$35,GB$36,$F39) -> TRUE | GC39: =Find_Month(GC$35,GC$36,$F39) -> TRUE | GD39: =Find_Month(GD$35,GD$36,$F39) -> TRUE | GE39: =Find_Month(GE$35,GE$36,$F39) -> TRUE | GF39: =Find_Month(GF$35,GF$36,$F39) -> TRUE | GG39: =Find_Month(GG$35,GG$36,$F39) -> TRUE | GH39: =Find_Month(GH$35,GH$36,$F39) -> TRUE | GI39: =Find_Month(GI$35,GI$36,$F39) -> TRUE | GJ39: =Find_Month(GJ$35,GJ$36,$F39) -> TRUE | GK39: =Find_Month(GK$35,GK$36,$F39) -> TRUE | GL39: =Find_Month(GL$35,GL$36,$F39) -> TRUE | GM39: =Find_Month(GM$35,GM$36,$F39) -> TRUE | GN39: =Find_Month(GN$35,GN$36,$F39) -> TRUE | GO39: =Find_Month(GO$35,GO$36,$F39) -> TRUE | GP39: =Find_Month(GP$35,GP$36,$F39) -> TRUE | GQ39: =Find_Month(GQ$35,GQ$36,$F39) -> TRUE | GR39: =Find_Month(GR$35,GR$36,$F39) -> TRUE | GS39: =Find_Month(GS$35,GS$36,$F39) -> TRUE | GT39: =Find_Month(GT$35,GT$36,$F39) -> TRUE | GU39: =Find_Month(GU$35,GU$36,$F39) -> TRUE | GV39: =Find_Month(GV$35,GV$36,$F39) -> TRUE | GW39: =Find_Month(GW$35,GW$36,$F39) -> TRUE | GX39: =Find_Month(GX$35,GX$36,$F39) -> TRUE | GY39: =Find_Month(GY$35,GY$36,$F39) -> TRUE | GZ39: =Find_Month(GZ$35,GZ$36,$F39) -> TRUE | HA39: =Find_Month(HA$35,HA$36,$F39) -> TRUE | HB39: =Find_Month(HB$35,HB$36,$F39) -> TRUE | HC39: =Find_Month(HC$35,HC$36,$F39) -> TRUE | HD39: =Find_Month(HD$35,HD$36,$F39) -> TRUE | HE39: =Find_Month(HE$35,HE$36,$F39) -> TRUE | HF39: =Find_Month(HF$35,HF$36,$F39) -> TRUE | HG39: =Find_Month(HG$35,HG$36,$F39) -> TRUE | HH39: =Find_Month(HH$35,HH$36,$F39) -> TRUE | HI39: =Find_Month(HI$35,HI$36,$F39) -> TRUE | HJ39: =Find_Month(HJ$35,HJ$36,$F39) -> TRUE | HK39: =Find_Month(HK$35,HK$36,$F39) -> TRUE | HL39: =Find_Month(HL$35,HL$36,$F39) -> TRUE | HM39: =Find_Month(HM$35,HM$36,$F39) -> TRUE | HN39: =Find_Month(HN$35,HN$36,$F39) -> TRUE | HO39: =Find_Month(HO$35,HO$36,$F39) -> TRUE | HP39: =Find_Month(HP$35,HP$36,$F39) -> TRUE | HQ39: =Find_Month(HQ$35,HQ$36,$F39) -> TRUE | HR39: =Find_Month(HR$35,HR$36,$F39) -> TRUE | HS39: =Find_Month(HS$35,HS$36,$F39) -> TRUE | HT39: =Find_Month(HT$35,HT$36,$F39) -> TRUE | HU39: =Find_Month(HU$35,HU$36,$F39) -> TRUE | HV39: =Find_Month(HV$35,HV$36,$F39) -> TRUE | HW39: =Find_Month(HW$35,HW$36,$F39) -> TRUE | HX39: =Find_Month(HX$35,HX$36,$F39) -> TRUE | HY39: =Find_Month(HY$35,HY$36,$F39) -> TRUE | HZ39: =Find_Month(HZ$35,HZ$36,$F39) -> TRUE | IA39: =Find_Month(IA$35,IA$36,$F39) -> TRUE | IB39: =Find_Month(IB$35,IB$36,$F39) -> TRUE | IC39: =Find_Month(IC$35,IC$36,$F39) -> TRUE | ID39: =Find_Month(ID$35,ID$36,$F39) -> TRUE | IE39: =Find_Month(IE$35,IE$36,$F39) -> TRUE | IF39: =Find_Month(IF$35,IF$36,$F39) -> TRUE | IG39: =Find_Month(IG$35,IG$36,$F39) -> TRUE | IH39: =Find_Month(IH$35,IH$36,$F39) -> TRUE | II39: =Find_Month(II$35,II$36,$F39) -> TRUE | IJ39: =Find_Month(IJ$35,IJ$36,$F39) -> TRUE | IK39: =Find_Month(IK$35,IK$36,$F39) -> TRUE | IL39: =Find_Month(IL$35,IL$36,$F39) -> TRUE | IM39: =Find_Month(IM$35,IM$36,$F39) -> TRUE | IN39: =Find_Month(IN$35,IN$36,$F39) -> TRUE | IO39: =Find_Month(IO$35,IO$36,$F39) -> TRUE | IP39: =Find_Month(IP$35,IP$36,$F39) -> TRUE | IQ39: =Find_Month(IQ$35,IQ$36,$F39) -> TRUE | IR39: =Find_Month(IR$35,IR$36,$F39) -> TRUE | IS39: =Find_Month(IS$35,IS$36,$F39) -> TRUE | IT39: =Find_Month(IT$35,IT$36,$F39) -> TRUE | IU39: =Find_Month(IU$35,IU$36,$F39) -> TRUE | IV39: =Find_Month(IV$35,IV$36,$F39) -> TRUE | IW39: =Find_Month(IW$35,IW$36,$F39) -> TRUE | IX39: =Find_Month(IX$35,IX$36,$F39) -> TRUE | IY39: =Find_Month(IY$35,IY$36,$F39) -> TRUE | IZ39: =Find_Month(IZ$35,IZ$36,$F39) -> TRUE | JA39: =Find_Month(JA$35,JA$36,$F39) -> TRUE | JB39: =Find_Month(JB$35,JB$36,$F39) -> TRUE | JC39: =Find_Month(JC$35,JC$36,$F39) -> TRUE | JD39: =Find_Month(JD$35,JD$36,$F39) -> TRUE | JE39: =Find_Month(JE$35,JE$36,$F39) -> TRUE | JF39: =Find_Month(JF$35,JF$36,$F39) -> TRUE | JG39: =Find_Month(JG$35,JG$36,$F39) -> TRUE | JH39: =Find_Month(JH$35,JH$36,$F39) -> TRUE | JI39: =Find_Month(JI$35,JI$36,$F39) -> TRUE | JJ39: =Find_Month(JJ$35,JJ$36,$F39) -> TRUE | JK39: =Find_Month(JK$35,JK$36,$F39) -> TRUE | JL39: =Find_Month(JL$35,JL$36,$F39) -> TRUE | JM39: =Find_Month(JM$35,JM$36,$F39) -> TRUE | JN39: =Find_Month(JN$35,JN$36,$F39) -> TRUE | JO39: =Find_Month(JO$35,JO$36,$F39) -> TRUE | JP39: =Find_Month(JP$35,JP$36,$F39) -> TRUE | JQ39: =Find_Month(JQ$35,JQ$36,$F39) -> TRUE | JR39: =Find_Month(JR$35,JR$36,$F39) -> TRUE | JS39: =Find_Month(JS$35,JS$36,$F39) -> TRUE | JT39: =Find_Month(JT$35,JT$36,$F39) -> TRUE | JU39: =Find_Month(JU$35,JU$36,$F39) -> TRUE | JV39: =Find_Month(JV$35,JV$36,$F39) -> TRUE | JW39: =Find_Month(JW$35,JW$36,$F39) -> TRUE | JX39: =Find_Month(JX$35,JX$36,$F39) -> TRUE | JY39: =Find_Month(JY$35,JY$36,$F39) -> TRUE | JZ39: =Find_Month(JZ$35,JZ$36,$F39) -> TRUE | KA39: =Find_Month(KA$35,KA$36,$F39) -> TRUE | KB39: =Find_Month(KB$35,KB$36,$F39) -> TRUE | KC39: =Find_Month(KC$35,KC$36,$F39) -> TRUE | KD39: =Find_Month(KD$35,KD$36,$F39) -> TRUE | KE39: =Find_Month(KE$35,KE$36,$F39) -> TRUE | KF39: =Find_Month(KF$35,KF$36,$F39) -> TRUE | KG39: =Find_Month(KG$35,KG$36,$F39) -> TRUE | KH39: =Find_Month(KH$35,KH$36,$F39) -> TRUE | KI39: =Find_Month(KI$35,KI$36,$F39) -> TRUE | KJ39: =Find_Month(KJ$35,KJ$36,$F39) -> TRUE | KK39: =Find_Month(KK$35,KK$36,$F39) -> TRUE | KL39: =Find_Month(KL$35,KL$36,$F39) -> TRUE | KM39: =Find_Month(KM$35,KM$36,$F39) -> TRUE | KN39: =Find_Month(KN$35,KN$36,$F39) -> TRUE | KO39: =Find_Month(KO$35,KO$36,$F39) -> TRUE | KP39: =Find_Month(KP$35,KP$36,$F39) -> TRUE | KQ39: =Find_Month(KQ$35,KQ$36,$F39) -> TRUE | KR39: =Find_Month(KR$35,KR$36,$F39) -> TRUE | KS39: =Find_Month(KS$35,KS$36,$F39) -> TRUE | KT39: =Find_Month(KT$35,KT$36,$F39) -> TRUE | KU39: =Find_Month(KU$35,KU$36,$F39) -> TRUE | KV39: =Find_Month(KV$35,KV$36,$F39) -> TRUE | KW39: =Find_Month(KW$35,KW$36,$F39) -> TRUE | KX39: =Find_Month(KX$35,KX$36,$F39) -> TRUE | KY39: =Find_Month(KY$35,KY$36,$F39) -> TRUE | KZ39: =Find_Month(KZ$35,KZ$36,$F39) -> TRUE | LA39: =Find_Month(LA$35,LA$36,$F39) -> TRUE | LB39: =Find_Month(LB$35,LB$36,$F39) -> TRUE | LC39: =Find_Month(LC$35,LC$36,$F39) -> TRUE | LD39: =Find_Month(LD$35,LD$36,$F39) -> TRUE | LE39: =Find_Month(LE$35,LE$36,$F39) -> TRUE | LF39: =Find_Month(LF$35,LF$36,$F39) -> TRUE | LG39: =Find_Month(LG$35,LG$36,$F39) -> TRUE | LH39: =Find_Month(LH$35,LH$36,$F39) -> TRUE | LI39: =Find_Month(LI$35,LI$36,$F39) -> TRUE | LJ39: =Find_Month(LJ$35,LJ$36,$F39) -> TRUE | LK39: =Find_Month(LK$35,LK$36,$F39) -> TRUE | LL39: =Find_Month(LL$35,LL$36,$F39) -> TRUE | LM39: =Find_Month(LM$35,LM$36,$F39) -> TRUE | LN39: =Find_Month(LN$35,LN$36,$F39) -> TRUE | LO39: =Find_Month(LO$35,LO$36,$F39) -> TRUE | LP39: =Find_Month(LP$35,LP$36,$F39) -> TRUE | LQ39: =Find_Month(LQ$35,LQ$36,$F39) -> TRUE | LR39: =Find_Month(LR$35,LR$36,$F39) -> TRUE | LS39: =Find_Month(LS$35,LS$36,$F39) -> TRUE | LT39: =Find_Month(LT$35,LT$36,$F39) -> TRUE | LU39: =Find_Month(LU$35,LU$36,$F39) -> TRUE | LV39: =Find_Month(LV$35,LV$36,$F39) -> TRUE | LW39: =Find_Month(LW$35,LW$36,$F39) -> TRUE | LX39: =Find_Month(LX$35,LX$36,$F39) -> TRUE | LY39: =Find_Month(LY$35,LY$36,$F39) -> TRUE | LZ39: =Find_Month(LZ$35,LZ$36,$F39) -> TRUE | MA39: =Find_Month(MA$35,MA$36,$F39) -> TRUE | MB39: =Find_Month(MB$35,MB$36,$F39) -> TRUE | MC39: =Find_Month(MC$35,MC$36,$F39) -> TRUE | MD39: =Find_Month(MD$35,MD$36,$F39) -> TRUE | ME39: =Find_Month(ME$35,ME$36,$F39) -> TRUE | MF39: =Find_Month(MF$35,MF$36,$F39) -> TRUE | MG39: =Find_Month(MG$35,MG$36,$F39) -> TRUE | MH39: =Find_Month(MH$35,MH$36,$F39) -> TRUE | MI39: =Find_Month(MI$35,MI$36,$F39) -> TRUE | MJ39: =Find_Month(MJ$35,MJ$36,$F39) -> TRUE | MK39: =Find_Month(MK$35,MK$36,$F39) -> TRUE | ML39: =Find_Month(ML$35,ML$36,$F39) -> TRUE | MM39: =Find_Month(MM$35,MM$36,$F39) -> TRUE | MN39: =Find_Month(MN$35,MN$36,$F39) -> TRUE | MO39: =Find_Month(MO$35,MO$36,$F39) -> TRUE | MP39: =Find_Month(MP$35,MP$36,$F39) -> TRUE | MQ39: =Find_Month(MQ$35,MQ$36,$F39) -> TRUE | MR39: =Find_Month(MR$35,MR$36,$F39) -> TRUE | MS39: =Find_Month(MS$35,MS$36,$F39) -> TRUE | MT39: =Find_Month(MT$35,MT$36,$F39) -> TRUE | MU39: =Find_Month(MU$35,MU$36,$F39) -> TRUE | MV39: =Find_Month(MV$35,MV$36,$F39) -> TRUE | MW39: =Find_Month(MW$35,MW$36,$F39) -> TRUE | MX39: =Find_Month(MX$35,MX$36,$F39) -> TRUE | MY39: =Find_Month(MY$35,MY$36,$F39) -> TRUE | MZ39: =Find_Month(MZ$35,MZ$36,$F39) -> TRUE | NA39: =Find_Month(NA$35,NA$36,$F39) -> TRUE | NB39: =Find_Month(NB$35,NB$36,$F39) -> TRUE | NC39: =Find_Month(NC$35,NC$36,$F39) -> TRUE | ND39: =Find_Month(ND$35,ND$36,$F39) -> TRUE | NE39: =Find_Month(NE$35,NE$36,$F39) -> TRUE | NF39: =Find_Month(NF$35,NF$36,$F39) -> TRUE | NG39: =Find_Month(NG$35,NG$36,$F39) -> TRUE | NH39: =Find_Month(NH$35,NH$36,$F39) -> TRUE | NI39: =Find_Month(NI$35,NI$36,$F39) -> TRUE | NJ39: =Find_Month(NJ$35,NJ$36,$F39) -> TRUE | NK39: =Find_Month(NK$35,NK$36,$F39) -> TRUE | NL39: =Find_Month(NL$35,NL$36,$F39) -> TRUE | NM39: =Find_Month(NM$35,NM$36,$F39) -> TRUE | NN39: =Find_Month(NN$35,NN$36,$F39) -> TRUE | NO39: =Find_Month(NO$35,NO$36,$F39) -> TRUE | NP39: =Find_Month(NP$35,NP$36,$F39) -> TRUE | NQ39: =Find_Month(NQ$35,NQ$36,$F39) -> TRUE | NR39: =Find_Month(NR$35,NR$36,$F39) -> TRUE | NS39: =Find_Month(NS$35,NS$36,$F39) -> TRUE | NT39: =Find_Month(NT$35,NT$36,$F39) -> TRUE | NU39: =Find_Month(NU$35,NU$36,$F39) -> TRUE | NV39: =Find_Month(NV$35,NV$36,$F39) -> TRUE | NW39: =Find_Month(NW$35,NW$36,$F39) -> TRUE | NX39: =Find_Month(NX$35,NX$36,$F39) -> TRUE | NY39: =Find_Month(NY$35,NY$36,$F39) -> TRUE | NZ39: =Find_Month(NZ$35,NZ$36,$F39) -> TRUE | OA39: =Find_Month(OA$35,OA$36,$F39) -> TRUE | OB39: =Find_Month(OB$35,OB$36,$F39) -> TRUE | OC39: =Find_Month(OC$35,OC$36,$F39) -> TRUE | OD39: =Find_Month(OD$35,OD$36,$F39) -> TRUE | OE39: =Find_Month(OE$35,OE$36,$F39) -> TRUE | OF39: =Find_Month(OF$35,OF$36,$F39) -> TRUE | OG39: =Find_Month(OG$35,OG$36,$F39) -> TRUE | OH39: =Find_Month(OH$35,OH$36,$F39) -> TRUE | OI39: =Find_Month(OI$35,OI$36,$F39) -> TRUE | OJ39: =Find_Month(OJ$35,OJ$36,$F39) -> TRUE | OK39: =Find_Month(OK$35,OK$36,$F39) -> TRUE | OL39: =Find_Month(OL$35,OL$36,$F39) -> TRUE | OM39: =Find_Month(OM$35,OM$36,$F39) -> TRUE | ON39: =Find_Month(ON$35,ON$36,$F39) -> TRUE | OO39: =Find_Month(OO$35,OO$36,$F39) -> TRUE | OP39: =Find_Month(OP$35,OP$36,$F39) -> TRUE | OQ39: =Find_Month(OQ$35,OQ$36,$F39) -> TRUE | OR39: =Find_Month(OR$35,OR$36,$F39) -> TRUE | OS39: =Find_Month(OS$35,OS$36,$F39) -> TRUE | OT39: =Find_Month(OT$35,OT$36,$F39) -> TRUE | OU39: =Find_Month(OU$35,OU$36,$F39) -> TRUE | OV39: =Find_Month(OV$35,OV$36,$F39) -> TRUE | OW39: =Find_Month(OW$35,OW$36,$F39) -> TRUE | OX39: =Find_Month(OX$35,OX$36,$F39) -> TRUE | OY39: =Find_Month(OY$35,OY$36,$F39) -> TRUE | OZ39: =Find_Month(OZ$35,OZ$36,$F39) -> TRUE | PA39: =Find_Month(PA$35,PA$36,$F39) -> TRUE | PB39: =Find_Month(PB$35,PB$36,$F39) -> TRUE | PC39: =Find_Month(PC$35,PC$36,$F39) -> TRUE | PD39: =Find_Month(PD$35,PD$36,$F39) -> TRUE | PE39: =Find_Month(PE$35,PE$36,$F39) -> TRUE | PF39: =Find_Month(PF$35,PF$36,$F39) -> TRUE | PG39: =Find_Month(PG$35,PG$36,$F39) -> TRUE | PH39: =Find_Month(PH$35,PH$36,$F39) -> TRUE | PI39: =Find_Month(PI$35,PI$36,$F39) -> TRUE | PJ39: =Find_Month(PJ$35,PJ$36,$F39) -> TRUE | PK39: =Find_Month(PK$35,PK$36,$F39) -> TRUE | PL39: =Find_Month(PL$35,PL$36,$F39) -> TRUE | PM39: =Find_Month(PM$35,PM$36,$F39) -> TRUE | PN39: =Find_Month(PN$35,PN$36,$F39) -> TRUE | PO39: =Find_Month(PO$35,PO$36,$F39) -> TRUE | PP39: =Find_Month(PP$35,PP$36,$F39) -> TRUE | PQ39: =Find_Month(PQ$35,PQ$36,$F39) -> TRUE | PR39: =Find_Month(PR$35,PR$36,$F39) -> TRUE | PS39: =Find_Month(PS$35,PS$36,$F39) -> TRUE | PT39: =Find_Month(PT$35,PT$36,$F39) -> TRUE | PU39: =Find_Month(PU$35,PU$36,$F39) -> TRUE | PV39: =Find_Month(PV$35,PV$36,$F39) -> TRUE | PW39: =Find_Month(PW$35,PW$36,$F39) -> TRUE | PX39: =Find_Month(PX$35,PX$36,$F39) -> TRUE | PY39: =Find_Month(PY$35,PY$36,$F39) -> TRUE | PZ39: =Find_Month(PZ$35,PZ$36,$F39) -> TRUE | QA39: =Find_Month(QA$35,QA$36,$F39) -> TRUE | QB39: =Find_Month(QB$35,QB$36,$F39) -> TRUE | QC39: =Find_Month(QC$35,QC$36,$F39) -> TRUE | QD39: =Find_Month(QD$35,QD$36,$F39) -> TRUE | QE39: =Find_Month(QE$35,QE$36,$F39) -> TRUE | QF39: =Find_Month(QF$35,QF$36,$F39) -> TRUE | QG39: =Find_Month(QG$35,QG$36,$F39) -> TRUE | QH39: =Find_Month(QH$35,QH$36,$F39) -> TRUE | QI39: =Find_Month(QI$35,QI$36,$F39) -> TRUE | QJ39: =Find_Month(QJ$35,QJ$36,$F39) -> TRUE | QK39: =Find_Month(QK$35,QK$36,$F39) -> TRUE | QL39: =Find_Month(QL$35,QL$36,$F39) -> TRUE | QM39: =Find_Month(QM$35,QM$36,$F39) -> TRUE | QN39: =Find_Month(QN$35,QN$36,$F39) -> TRUE | QO39: =Find_Month(QO$35,QO$36,$F39) -> TRUE | QP39: =Find_Month(QP$35,QP$36,$F39) -> TRUE | QQ39: =Find_Month(QQ$35,QQ$36,$F39) -> TRUE | QR39: =Find_Month(QR$35,QR$36,$F39) -> TRUE | QS39: =Find_Month(QS$35,QS$36,$F39) -> TRUE | QT39: =Find_Month(QT$35,QT$36,$F39) -> TRUE | QU39: =Find_Month(QU$35,QU$36,$F39) -> TRUE | QV39: =Find_Month(QV$35,QV$36,$F39) -> TRUE | QW39: =Find_Month(QW$35,QW$36,$F39) -> TRUE | QX39: =Find_Month(QX$35,QX$36,$F39) -> TRUE | QY39: =Find_Month(QY$35,QY$36,$F39) -> TRUE | QZ39: =Find_Month(QZ$35,QZ$36,$F39) -> TRUE | RA39: =Find_Month(RA$35,RA$36,$F39) -> TRUE | RB39: =Find_Month(RB$35,RB$36,$F39) -> TRUE | RC39: =Find_Month(RC$35,RC$36,$F39) -> TRUE | RD39: =Find_Month(RD$35,RD$36,$F39) -> TRUE | RE39: =Find_Month(RE$35,RE$36,$F39) -> TRUE | RF39: =Find_Month(RF$35,RF$36,$F39) -> TRUE | RG39: =Find_Month(RG$35,RG$36,$F39) -> TRUE | RH39: =Find_Month(RH$35,RH$36,$F39) -> TRUE | RI39: =Find_Month(RI$35,RI$36,$F39) -> TRUE | RJ39: =Find_Month(RJ$35,RJ$36,$F39) -> TRUE | RK39: =Find_Month(RK$35,RK$36,$F39) -> TRUE | RL39: =Find_Month(RL$35,RL$36,$F39) -> TRUE | RM39: =Find_Month(RM$35,RM$36,$F39) -> TRUE | RN39: =Find_Month(RN$35,RN$36,$F39) -> TRUE | RO39: =Find_Month(RO$35,RO$36,$F39) -> TRUE | RP39: =Find_Month(RP$35,RP$36,$F39) -> TRUE | RQ39: =Find_Month(RQ$35,RQ$36,$F39) -> TRUE | RR39: =Find_Month(RR$35,RR$36,$F39) -> TRUE | RS39: =Find_Month(RS$35,RS$36,$F39) -> TRUE | RT39: =Find_Month(RT$35,RT$36,$F39) -> TRUE | RU39: =Find_Month(RU$35,RU$36,$F39) -> TRUE | RV39: =Find_Month(RV$35,RV$36,$F39) -> TRUE | RW39: =Find_Month(RW$35,RW$36,$F39) -> TRUE | RX39: =Find_Month(RX$35,RX$36,$F39) -> TRUE | RY39: =Find_Month(RY$35,RY$36,$F39) -> TRUE | RZ39: =Find_Month(RZ$35,RZ$36,$F39) -> TRUE | SA39: =Find_Month(SA$35,SA$36,$F39) -> TRUE | SB39: =Find_Month(SB$35,SB$36,$F39) -> TRUE | SC39: =Find_Month(SC$35,SC$36,$F39) -> FALSE | SD39: =Find_Month(SD$35,SD$36,$F39) -> FALSE | SE39: =Find_Month(SE$35,SE$36,$F39) -> FALSE | SF39: =Find_Month(SF$35,SF$36,$F39) -> FALSE | SG39: =Find_Month(SG$35,SG$36,$F39) -> FALSE | SH39: =Find_Month(SH$35,SH$36,$F39) -> FALSE | SI39: =Find_Month(SI$35,SI$36,$F39) -> FALSE | SJ39: =Find_Month(SJ$35,SJ$36,$F39) -> FALSE | SK39: =Find_Month(SK$35,SK$36,$F39) -> FALSE | SL39: =Find_Month(SL$35,SL$36,$F39) -> FALSE | SM39: =Find_Month(SM$35,SM$36,$F39) -> FALSE | SN39: =Find_Month(SN$35,SN$36,$F39) -> FALSE | SO39: =Find_Month(SO$35,SO$36,$F39) -> FALSE | SP39: =Find_Month(SP$35,SP$36,$F39) -> FALSE | SQ39: =Find_Month(SQ$35,SQ$36,$F39) -> FALSE | SR39: =Find_Month(SR$35,SR$36,$F39) -> FALSE | SS39: =Find_Month(SS$35,SS$36,$F39) -> FALSE | ST39: =Find_Month(ST$35,ST$36,$F39) -> FALSE | SU39: =Find_Month(SU$35,SU$36,$F39) -> FALSE | SV39: =Find_Month(SV$35,SV$36,$F39) -> FALSE | SW39: =Find_Month(SW$35,SW$36,$F39) -> FALSE | SX39: =Find_Month(SX$35,SX$36,$F39) -> FALSE | SY39: =Find_Month(SY$35,SY$36,$F39) -> FALSE | SZ39: =Find_Month(SZ$35,SZ$36,$F39) -> FALSE | TA39: =Find_Month(TA$35,TA$36,$F39) -> FALSE | TB39: =Find_Month(TB$35,TB$36,$F39) -> FALSE | TC39: =Find_Month(TC$35,TC$36,$F39) -> FALSE | TD39: =Find_Month(TD$35,TD$36,$F39) -> FALSE | TE39: =Find_Month(TE$35,TE$36,$F39) -> FALSE | TF39: =Find_Month(TF$35,TF$36,$F39) -> FALSE | TG39: =Find_Month(TG$35,TG$36,$F39) -> FALSE | TH39: =Find_Month(TH$35,TH$36,$F39) -> FALSE | TI39: =Find_Month(TI$35,TI$36,$F39) -> FALSE | TJ39: =Find_Month(TJ$35,TJ$36,$F39) -> FALSE | TK39: =Find_Month(TK$35,TK$36,$F39) -> FALSE | TL39: =Find_Month(TL$35,TL$36,$F39) -> FALSE | TM39: =Find_Month(TM$35,TM$36,$F39) -> FALSE | TN39: =Find_Month(TN$35,TN$36,$F39) -> FALSE | TO39: =Find_Month(TO$35,TO$36,$F39) -> FALSE | TP39: =Find_Month(TP$35,TP$36,$F39) -> FALSE | TQ39: =Find_Month(TQ$35,TQ$36,$F39) -> FALSE | TR39: =Find_Month(TR$35,TR$36,$F39) -> FALSE | TS39: =Find_Month(TS$35,TS$36,$F39) -> FALSE | TT39: =Find_Month(TT$35,TT$36,$F39) -> FALSE | TU39: =Find_Month(TU$35,TU$36,$F39) -> FALSE | TV39: =Find_Month(TV$35,TV$36,$F39) -> FALSE | TW39: =Find_Month(TW$35,TW$36,$F39) -> FALSE | TX39: =Find_Month(TX$35,TX$36,$F39) -> FALSE | TY39: =Find_Month(TY$35,TY$36,$F39) -> FALSE
F40: 2 | G40: 289.8354011 | H40: 0.09042486019 | J40: =Find_Month(J$35,J$36,$F40) -> TRUE | K40: =Find_Month(K$35,K$36,$F40) -> TRUE | L40: =Find_Month(L$35,L$36,$F40) -> TRUE | M40: =Find_Month(M$35,M$36,$F40) -> TRUE | N40: =Find_Month(N$35,N$36,$F40) -> TRUE | O40: =Find_Month(O$35,O$36,$F40) -> TRUE | P40: =Find_Month(P$35,P$36,$F40) -> TRUE | Q40: =Find_Month(Q$35,Q$36,$F40) -> TRUE | R40: =Find_Month(R$35,R$36,$F40) -> TRUE | S40: =Find_Month(S$35,S$36,$F40) -> TRUE | T40: =Find_Month(T$35,T$36,$F40) -> TRUE | U40: =Find_Month(U$35,U$36,$F40) -> TRUE | V40: =Find_Month(V$35,V$36,$F40) -> TRUE | W40: =Find_Month(W$35,W$36,$F40) -> TRUE | X40: =Find_Month(X$35,X$36,$F40) -> TRUE | Y40: =Find_Month(Y$35,Y$36,$F40) -> TRUE | Z40: =Find_Month(Z$35,Z$36,$F40) -> TRUE | AA40: =Find_Month(AA$35,AA$36,$F40) -> TRUE | AB40: =Find_Month(AB$35,AB$36,$F40) -> TRUE | AC40: =Find_Month(AC$35,AC$36,$F40) -> TRUE | AD40: =Find_Month(AD$35,AD$36,$F40) -> TRUE | AE40: =Find_Month(AE$35,AE$36,$F40) -> TRUE | AF40: =Find_Month(AF$35,AF$36,$F40) -> TRUE | AG40: =Find_Month(AG$35,AG$36,$F40) -> TRUE | AH40: =Find_Month(AH$35,AH$36,$F40) -> TRUE | AI40: =Find_Month(AI$35,AI$36,$F40) -> TRUE | AJ40: =Find_Month(AJ$35,AJ$36,$F40) -> TRUE | AK40: =Find_Month(AK$35,AK$36,$F40) -> TRUE | AL40: =Find_Month(AL$35,AL$36,$F40) -> TRUE | AM40: =Find_Month(AM$35,AM$36,$F40) -> TRUE | AN40: =Find_Month(AN$35,AN$36,$F40) -> TRUE | AO40: =Find_Month(AO$35,AO$36,$F40) -> TRUE | AP40: =Find_Month(AP$35,AP$36,$F40) -> TRUE | AQ40: =Find_Month(AQ$35,AQ$36,$F40) -> TRUE | AR40: =Find_Month(AR$35,AR$36,$F40) -> TRUE | AS40: =Find_Month(AS$35,AS$36,$F40) -> TRUE | AT40: =Find_Month(AT$35,AT$36,$F40) -> TRUE | AU40: =Find_Month(AU$35,AU$36,$F40) -> TRUE | AV40: =Find_Month(AV$35,AV$36,$F40) -> TRUE | AW40: =Find_Month(AW$35,AW$36,$F40) -> TRUE | AX40: =Find_Month(AX$35,AX$36,$F40) -> TRUE | AY40: =Find_Month(AY$35,AY$36,$F40) -> TRUE | AZ40: =Find_Month(AZ$35,AZ$36,$F40) -> TRUE | BA40: =Find_Month(BA$35,BA$36,$F40) -> TRUE | BB40: =Find_Month(BB$35,BB$36,$F40) -> TRUE | BC40: =Find_Month(BC$35,BC$36,$F40) -> TRUE | BD40: =Find_Month(BD$35,BD$36,$F40) -> TRUE | BE40: =Find_Month(BE$35,BE$36,$F40) -> TRUE | BF40: =Find_Month(BF$35,BF$36,$F40) -> TRUE | BG40: =Find_Month(BG$35,BG$36,$F40) -> TRUE | BH40: =Find_Month(BH$35,BH$36,$F40) -> TRUE | BI40: =Find_Month(BI$35,BI$36,$F40) -> TRUE | BJ40: =Find_Month(BJ$35,BJ$36,$F40) -> TRUE | BK40: =Find_Month(BK$35,BK$36,$F40) -> TRUE | BL40: =Find_Month(BL$35,BL$36,$F40) -> TRUE | BM40: =Find_Month(BM$35,BM$36,$F40) -> TRUE | BN40: =Find_Month(BN$35,BN$36,$F40) -> TRUE | BO40: =Find_Month(BO$35,BO$36,$F40) -> TRUE | BP40: =Find_Month(BP$35,BP$36,$F40) -> TRUE | BQ40: =Find_Month(BQ$35,BQ$36,$F40) -> TRUE | BR40: =Find_Month(BR$35,BR$36,$F40) -> TRUE | BS40: =Find_Month(BS$35,BS$36,$F40) -> TRUE | BT40: =Find_Month(BT$35,BT$36,$F40) -> TRUE | BU40: =Find_Month(BU$35,BU$36,$F40) -> TRUE | BV40: =Find_Month(BV$35,BV$36,$F40) -> TRUE | BW40: =Find_Month(BW$35,BW$36,$F40) -> TRUE | BX40: =Find_Month(BX$35,BX$36,$F40) -> TRUE | BY40: =Find_Month(BY$35,BY$36,$F40) -> TRUE | BZ40: =Find_Month(BZ$35,BZ$36,$F40) -> TRUE | CA40: =Find_Month(CA$35,CA$36,$F40) -> TRUE | CB40: =Find_Month(CB$35,CB$36,$F40) -> TRUE | CC40: =Find_Month(CC$35,CC$36,$F40) -> TRUE | CD40: =Find_Month(CD$35,CD$36,$F40) -> TRUE | CE40: =Find_Month(CE$35,CE$36,$F40) -> TRUE | CF40: =Find_Month(CF$35,CF$36,$F40) -> TRUE | CG40: =Find_Month(CG$35,CG$36,$F40) -> TRUE | CH40: =Find_Month(CH$35,CH$36,$F40) -> TRUE | CI40: =Find_Month(CI$35,CI$36,$F40) -> TRUE | CJ40: =Find_Month(CJ$35,CJ$36,$F40) -> TRUE | CK40: =Find_Month(CK$35,CK$36,$F40) -> TRUE | CL40: =Find_Month(CL$35,CL$36,$F40) -> TRUE | CM40: =Find_Month(CM$35,CM$36,$F40) -> TRUE | CN40: =Find_Month(CN$35,CN$36,$F40) -> TRUE | CO40: =Find_Month(CO$35,CO$36,$F40) -> TRUE | CP40: =Find_Month(CP$35,CP$36,$F40) -> TRUE | CQ40: =Find_Month(CQ$35,CQ$36,$F40) -> TRUE | CR40: =Find_Month(CR$35,CR$36,$F40) -> TRUE | CS40: =Find_Month(CS$35,CS$36,$F40) -> TRUE | CT40: =Find_Month(CT$35,CT$36,$F40) -> TRUE | CU40: =Find_Month(CU$35,CU$36,$F40) -> TRUE | CV40: =Find_Month(CV$35,CV$36,$F40) -> TRUE | CW40: =Find_Month(CW$35,CW$36,$F40) -> TRUE | CX40: =Find_Month(CX$35,CX$36,$F40) -> TRUE | CY40: =Find_Month(CY$35,CY$36,$F40) -> TRUE | CZ40: =Find_Month(CZ$35,CZ$36,$F40) -> TRUE | DA40: =Find_Month(DA$35,DA$36,$F40) -> TRUE | DB40: =Find_Month(DB$35,DB$36,$F40) -> TRUE | DC40: =Find_Month(DC$35,DC$36,$F40) -> TRUE | DD40: =Find_Month(DD$35,DD$36,$F40) -> TRUE | DE40: =Find_Month(DE$35,DE$36,$F40) -> TRUE | DF40: =Find_Month(DF$35,DF$36,$F40) -> TRUE | DG40: =Find_Month(DG$35,DG$36,$F40) -> TRUE | DH40: =Find_Month(DH$35,DH$36,$F40) -> TRUE | DI40: =Find_Month(DI$35,DI$36,$F40) -> TRUE | DJ40: =Find_Month(DJ$35,DJ$36,$F40) -> TRUE | DK40: =Find_Month(DK$35,DK$36,$F40) -> TRUE | DL40: =Find_Month(DL$35,DL$36,$F40) -> TRUE | DM40: =Find_Month(DM$35,DM$36,$F40) -> TRUE | DN40: =Find_Month(DN$35,DN$36,$F40) -> TRUE | DO40: =Find_Month(DO$35,DO$36,$F40) -> TRUE | DP40: =Find_Month(DP$35,DP$36,$F40) -> TRUE | DQ40: =Find_Month(DQ$35,DQ$36,$F40) -> TRUE | DR40: =Find_Month(DR$35,DR$36,$F40) -> TRUE | DS40: =Find_Month(DS$35,DS$36,$F40) -> TRUE | DT40: =Find_Month(DT$35,DT$36,$F40) -> TRUE | DU40: =Find_Month(DU$35,DU$36,$F40) -> TRUE | DV40: =Find_Month(DV$35,DV$36,$F40) -> TRUE | DW40: =Find_Month(DW$35,DW$36,$F40) -> TRUE | DX40: =Find_Month(DX$35,DX$36,$F40) -> TRUE | DY40: =Find_Month(DY$35,DY$36,$F40) -> TRUE | DZ40: =Find_Month(DZ$35,DZ$36,$F40) -> TRUE | EA40: =Find_Month(EA$35,EA$36,$F40) -> TRUE | EB40: =Find_Month(EB$35,EB$36,$F40) -> TRUE | EC40: =Find_Month(EC$35,EC$36,$F40) -> TRUE | ED40: =Find_Month(ED$35,ED$36,$F40) -> TRUE | EE40: =Find_Month(EE$35,EE$36,$F40) -> TRUE | EF40: =Find_Month(EF$35,EF$36,$F40) -> TRUE | EG40: =Find_Month(EG$35,EG$36,$F40) -> TRUE | EH40: =Find_Month(EH$35,EH$36,$F40) -> TRUE | EI40: =Find_Month(EI$35,EI$36,$F40) -> TRUE | EJ40: =Find_Month(EJ$35,EJ$36,$F40) -> TRUE | EK40: =Find_Month(EK$35,EK$36,$F40) -> TRUE | EL40: =Find_Month(EL$35,EL$36,$F40) -> TRUE | EM40: =Find_Month(EM$35,EM$36,$F40) -> TRUE | EN40: =Find_Month(EN$35,EN$36,$F40) -> TRUE | EO40: =Find_Month(EO$35,EO$36,$F40) -> TRUE | EP40: =Find_Month(EP$35,EP$36,$F40) -> TRUE | EQ40: =Find_Month(EQ$35,EQ$36,$F40) -> TRUE | ER40: =Find_Month(ER$35,ER$36,$F40) -> TRUE | ES40: =Find_Month(ES$35,ES$36,$F40) -> TRUE | ET40: =Find_Month(ET$35,ET$36,$F40) -> TRUE | EU40: =Find_Month(EU$35,EU$36,$F40) -> TRUE | EV40: =Find_Month(EV$35,EV$36,$F40) -> TRUE | EW40: =Find_Month(EW$35,EW$36,$F40) -> TRUE | EX40: =Find_Month(EX$35,EX$36,$F40) -> TRUE | EY40: =Find_Month(EY$35,EY$36,$F40) -> TRUE | EZ40: =Find_Month(EZ$35,EZ$36,$F40) -> TRUE | FA40: =Find_Month(FA$35,FA$36,$F40) -> TRUE | FB40: =Find_Month(FB$35,FB$36,$F40) -> TRUE | FC40: =Find_Month(FC$35,FC$36,$F40) -> TRUE | FD40: =Find_Month(FD$35,FD$36,$F40) -> TRUE | FE40: =Find_Month(FE$35,FE$36,$F40) -> TRUE | FF40: =Find_Month(FF$35,FF$36,$F40) -> TRUE | FG40: =Find_Month(FG$35,FG$36,$F40) -> TRUE | FH40: =Find_Month(FH$35,FH$36,$F40) -> TRUE | FI40: =Find_Month(FI$35,FI$36,$F40) -> TRUE | FJ40: =Find_Month(FJ$35,FJ$36,$F40) -> TRUE | FK40: =Find_Month(FK$35,FK$36,$F40) -> TRUE | FL40: =Find_Month(FL$35,FL$36,$F40) -> TRUE | FM40: =Find_Month(FM$35,FM$36,$F40) -> TRUE | FN40: =Find_Month(FN$35,FN$36,$F40) -> TRUE | FO40: =Find_Month(FO$35,FO$36,$F40) -> TRUE | FP40: =Find_Month(FP$35,FP$36,$F40) -> TRUE | FQ40: =Find_Month(FQ$35,FQ$36,$F40) -> TRUE | FR40: =Find_Month(FR$35,FR$36,$F40) -> TRUE | FS40: =Find_Month(FS$35,FS$36,$F40) -> TRUE | FT40: =Find_Month(FT$35,FT$36,$F40) -> TRUE | FU40: =Find_Month(FU$35,FU$36,$F40) -> TRUE | FV40: =Find_Month(FV$35,FV$36,$F40) -> TRUE | FW40: =Find_Month(FW$35,FW$36,$F40) -> TRUE | FX40: =Find_Month(FX$35,FX$36,$F40) -> TRUE | FY40: =Find_Month(FY$35,FY$36,$F40) -> TRUE | FZ40: =Find_Month(FZ$35,FZ$36,$F40) -> TRUE | GA40: =Find_Month(GA$35,GA$36,$F40) -> TRUE | GB40: =Find_Month(GB$35,GB$36,$F40) -> TRUE | GC40: =Find_Month(GC$35,GC$36,$F40) -> TRUE | GD40: =Find_Month(GD$35,GD$36,$F40) -> TRUE | GE40: =Find_Month(GE$35,GE$36,$F40) -> TRUE | GF40: =Find_Month(GF$35,GF$36,$F40) -> TRUE | GG40: =Find_Month(GG$35,GG$36,$F40) -> TRUE | GH40: =Find_Month(GH$35,GH$36,$F40) -> TRUE | GI40: =Find_Month(GI$35,GI$36,$F40) -> TRUE | GJ40: =Find_Month(GJ$35,GJ$36,$F40) -> TRUE | GK40: =Find_Month(GK$35,GK$36,$F40) -> TRUE | GL40: =Find_Month(GL$35,GL$36,$F40) -> TRUE | GM40: =Find_Month(GM$35,GM$36,$F40) -> TRUE | GN40: =Find_Month(GN$35,GN$36,$F40) -> TRUE | GO40: =Find_Month(GO$35,GO$36,$F40) -> TRUE | GP40: =Find_Month(GP$35,GP$36,$F40) -> TRUE | GQ40: =Find_Month(GQ$35,GQ$36,$F40) -> TRUE | GR40: =Find_Month(GR$35,GR$36,$F40) -> TRUE | GS40: =Find_Month(GS$35,GS$36,$F40) -> TRUE | GT40: =Find_Month(GT$35,GT$36,$F40) -> TRUE | GU40: =Find_Month(GU$35,GU$36,$F40) -> TRUE | GV40: =Find_Month(GV$35,GV$36,$F40) -> TRUE | GW40: =Find_Month(GW$35,GW$36,$F40) -> TRUE | GX40: =Find_Month(GX$35,GX$36,$F40) -> TRUE | GY40: =Find_Month(GY$35,GY$36,$F40) -> TRUE | GZ40: =Find_Month(GZ$35,GZ$36,$F40) -> TRUE | HA40: =Find_Month(HA$35,HA$36,$F40) -> TRUE | HB40: =Find_Month(HB$35,HB$36,$F40) -> TRUE | HC40: =Find_Month(HC$35,HC$36,$F40) -> TRUE | HD40: =Find_Month(HD$35,HD$36,$F40) -> TRUE | HE40: =Find_Month(HE$35,HE$36,$F40) -> TRUE | HF40: =Find_Month(HF$35,HF$36,$F40) -> TRUE | HG40: =Find_Month(HG$35,HG$36,$F40) -> TRUE | HH40: =Find_Month(HH$35,HH$36,$F40) -> TRUE | HI40: =Find_Month(HI$35,HI$36,$F40) -> TRUE | HJ40: =Find_Month(HJ$35,HJ$36,$F40) -> TRUE | HK40: =Find_Month(HK$35,HK$36,$F40) -> TRUE | HL40: =Find_Month(HL$35,HL$36,$F40) -> TRUE | HM40: =Find_Month(HM$35,HM$36,$F40) -> TRUE | HN40: =Find_Month(HN$35,HN$36,$F40) -> TRUE | HO40: =Find_Month(HO$35,HO$36,$F40) -> TRUE | HP40: =Find_Month(HP$35,HP$36,$F40) -> TRUE | HQ40: =Find_Month(HQ$35,HQ$36,$F40) -> TRUE | HR40: =Find_Month(HR$35,HR$36,$F40) -> TRUE | HS40: =Find_Month(HS$35,HS$36,$F40) -> TRUE | HT40: =Find_Month(HT$35,HT$36,$F40) -> TRUE | HU40: =Find_Month(HU$35,HU$36,$F40) -> TRUE | HV40: =Find_Month(HV$35,HV$36,$F40) -> TRUE | HW40: =Find_Month(HW$35,HW$36,$F40) -> TRUE | HX40: =Find_Month(HX$35,HX$36,$F40) -> TRUE | HY40: =Find_Month(HY$35,HY$36,$F40) -> TRUE | HZ40: =Find_Month(HZ$35,HZ$36,$F40) -> TRUE | IA40: =Find_Month(IA$35,IA$36,$F40) -> TRUE | IB40: =Find_Month(IB$35,IB$36,$F40) -> TRUE | IC40: =Find_Month(IC$35,IC$36,$F40) -> TRUE | ID40: =Find_Month(ID$35,ID$36,$F40) -> TRUE | IE40: =Find_Month(IE$35,IE$36,$F40) -> TRUE | IF40: =Find_Month(IF$35,IF$36,$F40) -> TRUE | IG40: =Find_Month(IG$35,IG$36,$F40) -> TRUE | IH40: =Find_Month(IH$35,IH$36,$F40) -> TRUE | II40: =Find_Month(II$35,II$36,$F40) -> TRUE | IJ40: =Find_Month(IJ$35,IJ$36,$F40) -> TRUE | IK40: =Find_Month(IK$35,IK$36,$F40) -> TRUE | IL40: =Find_Month(IL$35,IL$36,$F40) -> TRUE | IM40: =Find_Month(IM$35,IM$36,$F40) -> TRUE | IN40: =Find_Month(IN$35,IN$36,$F40) -> TRUE | IO40: =Find_Month(IO$35,IO$36,$F40) -> TRUE | IP40: =Find_Month(IP$35,IP$36,$F40) -> TRUE | IQ40: =Find_Month(IQ$35,IQ$36,$F40) -> TRUE | IR40: =Find_Month(IR$35,IR$36,$F40) -> TRUE | IS40: =Find_Month(IS$35,IS$36,$F40) -> TRUE | IT40: =Find_Month(IT$35,IT$36,$F40) -> TRUE | IU40: =Find_Month(IU$35,IU$36,$F40) -> TRUE | IV40: =Find_Month(IV$35,IV$36,$F40) -> TRUE | IW40: =Find_Month(IW$35,IW$36,$F40) -> TRUE | IX40: =Find_Month(IX$35,IX$36,$F40) -> TRUE | IY40: =Find_Month(IY$35,IY$36,$F40) -> TRUE | IZ40: =Find_Month(IZ$35,IZ$36,$F40) -> TRUE | JA40: =Find_Month(JA$35,JA$36,$F40) -> TRUE | JB40: =Find_Month(JB$35,JB$36,$F40) -> TRUE | JC40: =Find_Month(JC$35,JC$36,$F40) -> TRUE | JD40: =Find_Month(JD$35,JD$36,$F40) -> TRUE | JE40: =Find_Month(JE$35,JE$36,$F40) -> TRUE | JF40: =Find_Month(JF$35,JF$36,$F40) -> TRUE | JG40: =Find_Month(JG$35,JG$36,$F40) -> TRUE | JH40: =Find_Month(JH$35,JH$36,$F40) -> TRUE | JI40: =Find_Month(JI$35,JI$36,$F40) -> TRUE | JJ40: =Find_Month(JJ$35,JJ$36,$F40) -> TRUE | JK40: =Find_Month(JK$35,JK$36,$F40) -> TRUE | JL40: =Find_Month(JL$35,JL$36,$F40) -> TRUE | JM40: =Find_Month(JM$35,JM$36,$F40) -> TRUE | JN40: =Find_Month(JN$35,JN$36,$F40) -> TRUE | JO40: =Find_Month(JO$35,JO$36,$F40) -> TRUE | JP40: =Find_Month(JP$35,JP$36,$F40) -> TRUE | JQ40: =Find_Month(JQ$35,JQ$36,$F40) -> TRUE | JR40: =Find_Month(JR$35,JR$36,$F40) -> TRUE | JS40: =Find_Month(JS$35,JS$36,$F40) -> TRUE | JT40: =Find_Month(JT$35,JT$36,$F40) -> TRUE | JU40: =Find_Month(JU$35,JU$36,$F40) -> TRUE | JV40: =Find_Month(JV$35,JV$36,$F40) -> TRUE | JW40: =Find_Month(JW$35,JW$36,$F40) -> TRUE | JX40: =Find_Month(JX$35,JX$36,$F40) -> TRUE | JY40: =Find_Month(JY$35,JY$36,$F40) -> TRUE | JZ40: =Find_Month(JZ$35,JZ$36,$F40) -> TRUE | KA40: =Find_Month(KA$35,KA$36,$F40) -> TRUE | KB40: =Find_Month(KB$35,KB$36,$F40) -> TRUE | KC40: =Find_Month(KC$35,KC$36,$F40) -> TRUE | KD40: =Find_Month(KD$35,KD$36,$F40) -> TRUE | KE40: =Find_Month(KE$35,KE$36,$F40) -> TRUE | KF40: =Find_Month(KF$35,KF$36,$F40) -> TRUE | KG40: =Find_Month(KG$35,KG$36,$F40) -> TRUE | KH40: =Find_Month(KH$35,KH$36,$F40) -> TRUE | KI40: =Find_Month(KI$35,KI$36,$F40) -> TRUE | KJ40: =Find_Month(KJ$35,KJ$36,$F40) -> TRUE | KK40: =Find_Month(KK$35,KK$36,$F40) -> TRUE | KL40: =Find_Month(KL$35,KL$36,$F40) -> TRUE | KM40: =Find_Month(KM$35,KM$36,$F40) -> TRUE | KN40: =Find_Month(KN$35,KN$36,$F40) -> TRUE | KO40: =Find_Month(KO$35,KO$36,$F40) -> TRUE | KP40: =Find_Month(KP$35,KP$36,$F40) -> TRUE | KQ40: =Find_Month(KQ$35,KQ$36,$F40) -> TRUE | KR40: =Find_Month(KR$35,KR$36,$F40) -> TRUE | KS40: =Find_Month(KS$35,KS$36,$F40) -> TRUE | KT40: =Find_Month(KT$35,KT$36,$F40) -> TRUE | KU40: =Find_Month(KU$35,KU$36,$F40) -> TRUE | KV40: =Find_Month(KV$35,KV$36,$F40) -> TRUE | KW40: =Find_Month(KW$35,KW$36,$F40) -> TRUE | KX40: =Find_Month(KX$35,KX$36,$F40) -> TRUE | KY40: =Find_Month(KY$35,KY$36,$F40) -> TRUE | KZ40: =Find_Month(KZ$35,KZ$36,$F40) -> TRUE | LA40: =Find_Month(LA$35,LA$36,$F40) -> TRUE | LB40: =Find_Month(LB$35,LB$36,$F40) -> TRUE | LC40: =Find_Month(LC$35,LC$36,$F40) -> TRUE | LD40: =Find_Month(LD$35,LD$36,$F40) -> TRUE | LE40: =Find_Month(LE$35,LE$36,$F40) -> TRUE | LF40: =Find_Month(LF$35,LF$36,$F40) -> TRUE | LG40: =Find_Month(LG$35,LG$36,$F40) -> TRUE | LH40: =Find_Month(LH$35,LH$36,$F40) -> TRUE | LI40: =Find_Month(LI$35,LI$36,$F40) -> TRUE | LJ40: =Find_Month(LJ$35,LJ$36,$F40) -> TRUE | LK40: =Find_Month(LK$35,LK$36,$F40) -> TRUE | LL40: =Find_Month(LL$35,LL$36,$F40) -> TRUE | LM40: =Find_Month(LM$35,LM$36,$F40) -> TRUE | LN40: =Find_Month(LN$35,LN$36,$F40) -> TRUE | LO40: =Find_Month(LO$35,LO$36,$F40) -> TRUE | LP40: =Find_Month(LP$35,LP$36,$F40) -> TRUE | LQ40: =Find_Month(LQ$35,LQ$36,$F40) -> TRUE | LR40: =Find_Month(LR$35,LR$36,$F40) -> TRUE | LS40: =Find_Month(LS$35,LS$36,$F40) -> TRUE | LT40: =Find_Month(LT$35,LT$36,$F40) -> TRUE | LU40: =Find_Month(LU$35,LU$36,$F40) -> TRUE | LV40: =Find_Month(LV$35,LV$36,$F40) -> TRUE | LW40: =Find_Month(LW$35,LW$36,$F40) -> TRUE | LX40: =Find_Month(LX$35,LX$36,$F40) -> TRUE | LY40: =Find_Month(LY$35,LY$36,$F40) -> TRUE | LZ40: =Find_Month(LZ$35,LZ$36,$F40) -> TRUE | MA40: =Find_Month(MA$35,MA$36,$F40) -> TRUE | MB40: =Find_Month(MB$35,MB$36,$F40) -> TRUE | MC40: =Find_Month(MC$35,MC$36,$F40) -> TRUE | MD40: =Find_Month(MD$35,MD$36,$F40) -> TRUE | ME40: =Find_Month(ME$35,ME$36,$F40) -> TRUE | MF40: =Find_Month(MF$35,MF$36,$F40) -> TRUE | MG40: =Find_Month(MG$35,MG$36,$F40) -> TRUE | MH40: =Find_Month(MH$35,MH$36,$F40) -> TRUE | MI40: =Find_Month(MI$35,MI$36,$F40) -> TRUE | MJ40: =Find_Month(MJ$35,MJ$36,$F40) -> TRUE | MK40: =Find_Month(MK$35,MK$36,$F40) -> TRUE | ML40: =Find_Month(ML$35,ML$36,$F40) -> TRUE | MM40: =Find_Month(MM$35,MM$36,$F40) -> TRUE | MN40: =Find_Month(MN$35,MN$36,$F40) -> TRUE | MO40: =Find_Month(MO$35,MO$36,$F40) -> TRUE | MP40: =Find_Month(MP$35,MP$36,$F40) -> TRUE | MQ40: =Find_Month(MQ$35,MQ$36,$F40) -> TRUE | MR40: =Find_Month(MR$35,MR$36,$F40) -> TRUE | MS40: =Find_Month(MS$35,MS$36,$F40) -> TRUE | MT40: =Find_Month(MT$35,MT$36,$F40) -> TRUE | MU40: =Find_Month(MU$35,MU$36,$F40) -> TRUE | MV40: =Find_Month(MV$35,MV$36,$F40) -> TRUE | MW40: =Find_Month(MW$35,MW$36,$F40) -> TRUE | MX40: =Find_Month(MX$35,MX$36,$F40) -> TRUE | MY40: =Find_Month(MY$35,MY$36,$F40) -> TRUE | MZ40: =Find_Month(MZ$35,MZ$36,$F40) -> TRUE | NA40: =Find_Month(NA$35,NA$36,$F40) -> TRUE | NB40: =Find_Month(NB$35,NB$36,$F40) -> TRUE | NC40: =Find_Month(NC$35,NC$36,$F40) -> TRUE | ND40: =Find_Month(ND$35,ND$36,$F40) -> TRUE | NE40: =Find_Month(NE$35,NE$36,$F40) -> TRUE | NF40: =Find_Month(NF$35,NF$36,$F40) -> TRUE | NG40: =Find_Month(NG$35,NG$36,$F40) -> TRUE | NH40: =Find_Month(NH$35,NH$36,$F40) -> TRUE | NI40: =Find_Month(NI$35,NI$36,$F40) -> TRUE | NJ40: =Find_Month(NJ$35,NJ$36,$F40) -> TRUE | NK40: =Find_Month(NK$35,NK$36,$F40) -> TRUE | NL40: =Find_Month(NL$35,NL$36,$F40) -> TRUE | NM40: =Find_Month(NM$35,NM$36,$F40) -> TRUE | NN40: =Find_Month(NN$35,NN$36,$F40) -> TRUE | NO40: =Find_Month(NO$35,NO$36,$F40) -> TRUE | NP40: =Find_Month(NP$35,NP$36,$F40) -> TRUE | NQ40: =Find_Month(NQ$35,NQ$36,$F40) -> TRUE | NR40: =Find_Month(NR$35,NR$36,$F40) -> TRUE | NS40: =Find_Month(NS$35,NS$36,$F40) -> TRUE | NT40: =Find_Month(NT$35,NT$36,$F40) -> TRUE | NU40: =Find_Month(NU$35,NU$36,$F40) -> TRUE | NV40: =Find_Month(NV$35,NV$36,$F40) -> TRUE | NW40: =Find_Month(NW$35,NW$36,$F40) -> TRUE | NX40: =Find_Month(NX$35,NX$36,$F40) -> TRUE | NY40: =Find_Month(NY$35,NY$36,$F40) -> TRUE | NZ40: =Find_Month(NZ$35,NZ$36,$F40) -> TRUE | OA40: =Find_Month(OA$35,OA$36,$F40) -> TRUE | OB40: =Find_Month(OB$35,OB$36,$F40) -> TRUE | OC40: =Find_Month(OC$35,OC$36,$F40) -> TRUE | OD40: =Find_Month(OD$35,OD$36,$F40) -> TRUE | OE40: =Find_Month(OE$35,OE$36,$F40) -> TRUE | OF40: =Find_Month(OF$35,OF$36,$F40) -> TRUE | OG40: =Find_Month(OG$35,OG$36,$F40) -> TRUE | OH40: =Find_Month(OH$35,OH$36,$F40) -> TRUE | OI40: =Find_Month(OI$35,OI$36,$F40) -> TRUE | OJ40: =Find_Month(OJ$35,OJ$36,$F40) -> TRUE | OK40: =Find_Month(OK$35,OK$36,$F40) -> TRUE | OL40: =Find_Month(OL$35,OL$36,$F40) -> TRUE | OM40: =Find_Month(OM$35,OM$36,$F40) -> TRUE | ON40: =Find_Month(ON$35,ON$36,$F40) -> TRUE | OO40: =Find_Month(OO$35,OO$36,$F40) -> TRUE | OP40: =Find_Month(OP$35,OP$36,$F40) -> TRUE | OQ40: =Find_Month(OQ$35,OQ$36,$F40) -> TRUE | OR40: =Find_Month(OR$35,OR$36,$F40) -> TRUE | OS40: =Find_Month(OS$35,OS$36,$F40) -> TRUE | OT40: =Find_Month(OT$35,OT$36,$F40) -> TRUE | OU40: =Find_Month(OU$35,OU$36,$F40) -> TRUE | OV40: =Find_Month(OV$35,OV$36,$F40) -> TRUE | OW40: =Find_Month(OW$35,OW$36,$F40) -> TRUE | OX40: =Find_Month(OX$35,OX$36,$F40) -> TRUE | OY40: =Find_Month(OY$35,OY$36,$F40) -> TRUE | OZ40: =Find_Month(OZ$35,OZ$36,$F40) -> TRUE | PA40: =Find_Month(PA$35,PA$36,$F40) -> TRUE | PB40: =Find_Month(PB$35,PB$36,$F40) -> TRUE | PC40: =Find_Month(PC$35,PC$36,$F40) -> TRUE | PD40: =Find_Month(PD$35,PD$36,$F40) -> TRUE | PE40: =Find_Month(PE$35,PE$36,$F40) -> TRUE | PF40: =Find_Month(PF$35,PF$36,$F40) -> TRUE | PG40: =Find_Month(PG$35,PG$36,$F40) -> TRUE | PH40: =Find_Month(PH$35,PH$36,$F40) -> TRUE | PI40: =Find_Month(PI$35,PI$36,$F40) -> TRUE | PJ40: =Find_Month(PJ$35,PJ$36,$F40) -> TRUE | PK40: =Find_Month(PK$35,PK$36,$F40) -> TRUE | PL40: =Find_Month(PL$35,PL$36,$F40) -> TRUE | PM40: =Find_Month(PM$35,PM$36,$F40) -> TRUE | PN40: =Find_Month(PN$35,PN$36,$F40) -> TRUE | PO40: =Find_Month(PO$35,PO$36,$F40) -> TRUE | PP40: =Find_Month(PP$35,PP$36,$F40) -> TRUE | PQ40: =Find_Month(PQ$35,PQ$36,$F40) -> TRUE | PR40: =Find_Month(PR$35,PR$36,$F40) -> TRUE | PS40: =Find_Month(PS$35,PS$36,$F40) -> TRUE | PT40: =Find_Month(PT$35,PT$36,$F40) -> TRUE | PU40: =Find_Month(PU$35,PU$36,$F40) -> TRUE | PV40: =Find_Month(PV$35,PV$36,$F40) -> TRUE | PW40: =Find_Month(PW$35,PW$36,$F40) -> TRUE | PX40: =Find_Month(PX$35,PX$36,$F40) -> TRUE | PY40: =Find_Month(PY$35,PY$36,$F40) -> TRUE | PZ40: =Find_Month(PZ$35,PZ$36,$F40) -> TRUE | QA40: =Find_Month(QA$35,QA$36,$F40) -> TRUE | QB40: =Find_Month(QB$35,QB$36,$F40) -> TRUE | QC40: =Find_Month(QC$35,QC$36,$F40) -> TRUE | QD40: =Find_Month(QD$35,QD$36,$F40) -> TRUE | QE40: =Find_Month(QE$35,QE$36,$F40) -> TRUE | QF40: =Find_Month(QF$35,QF$36,$F40) -> TRUE | QG40: =Find_Month(QG$35,QG$36,$F40) -> TRUE | QH40: =Find_Month(QH$35,QH$36,$F40) -> TRUE | QI40: =Find_Month(QI$35,QI$36,$F40) -> TRUE | QJ40: =Find_Month(QJ$35,QJ$36,$F40) -> TRUE | QK40: =Find_Month(QK$35,QK$36,$F40) -> TRUE | QL40: =Find_Month(QL$35,QL$36,$F40) -> TRUE | QM40: =Find_Month(QM$35,QM$36,$F40) -> TRUE | QN40: =Find_Month(QN$35,QN$36,$F40) -> TRUE | QO40: =Find_Month(QO$35,QO$36,$F40) -> TRUE | QP40: =Find_Month(QP$35,QP$36,$F40) -> TRUE | QQ40: =Find_Month(QQ$35,QQ$36,$F40) -> TRUE | QR40: =Find_Month(QR$35,QR$36,$F40) -> TRUE | QS40: =Find_Month(QS$35,QS$36,$F40) -> TRUE | QT40: =Find_Month(QT$35,QT$36,$F40) -> TRUE | QU40: =Find_Month(QU$35,QU$36,$F40) -> TRUE | QV40: =Find_Month(QV$35,QV$36,$F40) -> TRUE | QW40: =Find_Month(QW$35,QW$36,$F40) -> TRUE | QX40: =Find_Month(QX$35,QX$36,$F40) -> TRUE | QY40: =Find_Month(QY$35,QY$36,$F40) -> TRUE | QZ40: =Find_Month(QZ$35,QZ$36,$F40) -> TRUE | RA40: =Find_Month(RA$35,RA$36,$F40) -> TRUE | RB40: =Find_Month(RB$35,RB$36,$F40) -> TRUE | RC40: =Find_Month(RC$35,RC$36,$F40) -> TRUE | RD40: =Find_Month(RD$35,RD$36,$F40) -> TRUE | RE40: =Find_Month(RE$35,RE$36,$F40) -> TRUE | RF40: =Find_Month(RF$35,RF$36,$F40) -> TRUE | RG40: =Find_Month(RG$35,RG$36,$F40) -> TRUE | RH40: =Find_Month(RH$35,RH$36,$F40) -> TRUE | RI40: =Find_Month(RI$35,RI$36,$F40) -> TRUE | RJ40: =Find_Month(RJ$35,RJ$36,$F40) -> TRUE | RK40: =Find_Month(RK$35,RK$36,$F40) -> TRUE | RL40: =Find_Month(RL$35,RL$36,$F40) -> TRUE | RM40: =Find_Month(RM$35,RM$36,$F40) -> TRUE | RN40: =Find_Month(RN$35,RN$36,$F40) -> TRUE | RO40: =Find_Month(RO$35,RO$36,$F40) -> TRUE | RP40: =Find_Month(RP$35,RP$36,$F40) -> TRUE | RQ40: =Find_Month(RQ$35,RQ$36,$F40) -> TRUE | RR40: =Find_Month(RR$35,RR$36,$F40) -> TRUE | RS40: =Find_Month(RS$35,RS$36,$F40) -> TRUE | RT40: =Find_Month(RT$35,RT$36,$F40) -> TRUE | RU40: =Find_Month(RU$35,RU$36,$F40) -> TRUE | RV40: =Find_Month(RV$35,RV$36,$F40) -> TRUE | RW40: =Find_Month(RW$35,RW$36,$F40) -> TRUE | RX40: =Find_Month(RX$35,RX$36,$F40) -> TRUE | RY40: =Find_Month(RY$35,RY$36,$F40) -> TRUE | RZ40: =Find_Month(RZ$35,RZ$36,$F40) -> TRUE | SA40: =Find_Month(SA$35,SA$36,$F40) -> TRUE | SB40: =Find_Month(SB$35,SB$36,$F40) -> TRUE | SC40: =Find_Month(SC$35,SC$36,$F40) -> FALSE | SD40: =Find_Month(SD$35,SD$36,$F40) -> FALSE | SE40: =Find_Month(SE$35,SE$36,$F40) -> FALSE | SF40: =Find_Month(SF$35,SF$36,$F40) -> FALSE | SG40: =Find_Month(SG$35,SG$36,$F40) -> FALSE | SH40: =Find_Month(SH$35,SH$36,$F40) -> FALSE | SI40: =Find_Month(SI$35,SI$36,$F40) -> FALSE | SJ40: =Find_Month(SJ$35,SJ$36,$F40) -> FALSE | SK40: =Find_Month(SK$35,SK$36,$F40) -> FALSE | SL40: =Find_Month(SL$35,SL$36,$F40) -> FALSE | SM40: =Find_Month(SM$35,SM$36,$F40) -> FALSE | SN40: =Find_Month(SN$35,SN$36,$F40) -> FALSE | SO40: =Find_Month(SO$35,SO$36,$F40) -> FALSE | SP40: =Find_Month(SP$35,SP$36,$F40) -> FALSE | SQ40: =Find_Month(SQ$35,SQ$36,$F40) -> FALSE | SR40: =Find_Month(SR$35,SR$36,$F40) -> FALSE | SS40: =Find_Month(SS$35,SS$36,$F40) -> FALSE | ST40: =Find_Month(ST$35,ST$36,$F40) -> FALSE | SU40: =Find_Month(SU$35,SU$36,$F40) -> FALSE | SV40: =Find_Month(SV$35,SV$36,$F40) -> FALSE | SW40: =Find_Month(SW$35,SW$36,$F40) -> FALSE | SX40: =Find_Month(SX$35,SX$36,$F40) -> FALSE | SY40: =Find_Month(SY$35,SY$36,$F40) -> FALSE | SZ40: =Find_Month(SZ$35,SZ$36,$F40) -> FALSE | TA40: =Find_Month(TA$35,TA$36,$F40) -> FALSE | TB40: =Find_Month(TB$35,TB$36,$F40) -> FALSE | TC40: =Find_Month(TC$35,TC$36,$F40) -> FALSE | TD40: =Find_Month(TD$35,TD$36,$F40) -> FALSE | TE40: =Find_Month(TE$35,TE$36,$F40) -> FALSE | TF40: =Find_Month(TF$35,TF$36,$F40) -> FALSE | TG40: =Find_Month(TG$35,TG$36,$F40) -> FALSE | TH40: =Find_Month(TH$35,TH$36,$F40) -> FALSE | TI40: =Find_Month(TI$35,TI$36,$F40) -> FALSE | TJ40: =Find_Month(TJ$35,TJ$36,$F40) -> FALSE | TK40: =Find_Month(TK$35,TK$36,$F40) -> FALSE | TL40: =Find_Month(TL$35,TL$36,$F40) -> FALSE | TM40: =Find_Month(TM$35,TM$36,$F40) -> FALSE | TN40: =Find_Month(TN$35,TN$36,$F40) -> FALSE | TO40: =Find_Month(TO$35,TO$36,$F40) -> FALSE | TP40: =Find_Month(TP$35,TP$36,$F40) -> FALSE | TQ40: =Find_Month(TQ$35,TQ$36,$F40) -> FALSE | TR40: =Find_Month(TR$35,TR$36,$F40) -> FALSE | TS40: =Find_Month(TS$35,TS$36,$F40) -> FALSE | TT40: =Find_Month(TT$35,TT$36,$F40) -> FALSE | TU40: =Find_Month(TU$35,TU$36,$F40) -> FALSE | TV40: =Find_Month(TV$35,TV$36,$F40) -> FALSE | TW40: =Find_Month(TW$35,TW$36,$F40) -> FALSE | TX40: =Find_Month(TX$35,TX$36,$F40) -> FALSE | TY40: =Find_Month(TY$35,TY$36,$F40) -> FALSE
F41: 3 | G41: 299.4086771 | H41: 0.09341159729 | J41: =Find_Month(J$35,J$36,$F41) -> TRUE | K41: =Find_Month(K$35,K$36,$F41) -> TRUE | L41: =Find_Month(L$35,L$36,$F41) -> TRUE | M41: =Find_Month(M$35,M$36,$F41) -> TRUE | N41: =Find_Month(N$35,N$36,$F41) -> TRUE | O41: =Find_Month(O$35,O$36,$F41) -> TRUE | P41: =Find_Month(P$35,P$36,$F41) -> TRUE | Q41: =Find_Month(Q$35,Q$36,$F41) -> TRUE | R41: =Find_Month(R$35,R$36,$F41) -> TRUE | S41: =Find_Month(S$35,S$36,$F41) -> TRUE | T41: =Find_Month(T$35,T$36,$F41) -> TRUE | U41: =Find_Month(U$35,U$36,$F41) -> TRUE | V41: =Find_Month(V$35,V$36,$F41) -> TRUE | W41: =Find_Month(W$35,W$36,$F41) -> TRUE | X41: =Find_Month(X$35,X$36,$F41) -> TRUE | Y41: =Find_Month(Y$35,Y$36,$F41) -> TRUE | Z41: =Find_Month(Z$35,Z$36,$F41) -> TRUE | AA41: =Find_Month(AA$35,AA$36,$F41) -> TRUE | AB41: =Find_Month(AB$35,AB$36,$F41) -> TRUE | AC41: =Find_Month(AC$35,AC$36,$F41) -> TRUE | AD41: =Find_Month(AD$35,AD$36,$F41) -> TRUE | AE41: =Find_Month(AE$35,AE$36,$F41) -> TRUE | AF41: =Find_Month(AF$35,AF$36,$F41) -> TRUE | AG41: =Find_Month(AG$35,AG$36,$F41) -> TRUE | AH41: =Find_Month(AH$35,AH$36,$F41) -> TRUE | AI41: =Find_Month(AI$35,AI$36,$F41) -> TRUE | AJ41: =Find_Month(AJ$35,AJ$36,$F41) -> TRUE | AK41: =Find_Month(AK$35,AK$36,$F41) -> TRUE | AL41: =Find_Month(AL$35,AL$36,$F41) -> TRUE | AM41: =Find_Month(AM$35,AM$36,$F41) -> TRUE | AN41: =Find_Month(AN$35,AN$36,$F41) -> TRUE | AO41: =Find_Month(AO$35,AO$36,$F41) -> TRUE | AP41: =Find_Month(AP$35,AP$36,$F41) -> TRUE | AQ41: =Find_Month(AQ$35,AQ$36,$F41) -> TRUE | AR41: =Find_Month(AR$35,AR$36,$F41) -> TRUE | AS41: =Find_Month(AS$35,AS$36,$F41) -> TRUE | AT41: =Find_Month(AT$35,AT$36,$F41) -> TRUE | AU41: =Find_Month(AU$35,AU$36,$F41) -> TRUE | AV41: =Find_Month(AV$35,AV$36,$F41) -> TRUE | AW41: =Find_Month(AW$35,AW$36,$F41) -> TRUE | AX41: =Find_Month(AX$35,AX$36,$F41) -> TRUE | AY41: =Find_Month(AY$35,AY$36,$F41) -> TRUE | AZ41: =Find_Month(AZ$35,AZ$36,$F41) -> TRUE | BA41: =Find_Month(BA$35,BA$36,$F41) -> TRUE | BB41: =Find_Month(BB$35,BB$36,$F41) -> TRUE | BC41: =Find_Month(BC$35,BC$36,$F41) -> TRUE | BD41: =Find_Month(BD$35,BD$36,$F41) -> TRUE | BE41: =Find_Month(BE$35,BE$36,$F41) -> TRUE | BF41: =Find_Month(BF$35,BF$36,$F41) -> TRUE | BG41: =Find_Month(BG$35,BG$36,$F41) -> TRUE | BH41: =Find_Month(BH$35,BH$36,$F41) -> TRUE | BI41: =Find_Month(BI$35,BI$36,$F41) -> TRUE | BJ41: =Find_Month(BJ$35,BJ$36,$F41) -> TRUE | BK41: =Find_Month(BK$35,BK$36,$F41) -> TRUE | BL41: =Find_Month(BL$35,BL$36,$F41) -> TRUE | BM41: =Find_Month(BM$35,BM$36,$F41) -> TRUE | BN41: =Find_Month(BN$35,BN$36,$F41) -> TRUE | BO41: =Find_Month(BO$35,BO$36,$F41) -> TRUE | BP41: =Find_Month(BP$35,BP$36,$F41) -> TRUE | BQ41: =Find_Month(BQ$35,BQ$36,$F41) -> TRUE | BR41: =Find_Month(BR$35,BR$36,$F41) -> TRUE | BS41: =Find_Month(BS$35,BS$36,$F41) -> TRUE | BT41: =Find_Month(BT$35,BT$36,$F41) -> TRUE | BU41: =Find_Month(BU$35,BU$36,$F41) -> TRUE | BV41: =Find_Month(BV$35,BV$36,$F41) -> TRUE | BW41: =Find_Month(BW$35,BW$36,$F41) -> TRUE | BX41: =Find_Month(BX$35,BX$36,$F41) -> TRUE | BY41: =Find_Month(BY$35,BY$36,$F41) -> TRUE | BZ41: =Find_Month(BZ$35,BZ$36,$F41) -> TRUE | CA41: =Find_Month(CA$35,CA$36,$F41) -> TRUE | CB41: =Find_Month(CB$35,CB$36,$F41) -> TRUE | CC41: =Find_Month(CC$35,CC$36,$F41) -> TRUE | CD41: =Find_Month(CD$35,CD$36,$F41) -> TRUE | CE41: =Find_Month(CE$35,CE$36,$F41) -> TRUE | CF41: =Find_Month(CF$35,CF$36,$F41) -> TRUE | CG41: =Find_Month(CG$35,CG$36,$F41) -> TRUE | CH41: =Find_Month(CH$35,CH$36,$F41) -> TRUE | CI41: =Find_Month(CI$35,CI$36,$F41) -> TRUE | CJ41: =Find_Month(CJ$35,CJ$36,$F41) -> TRUE | CK41: =Find_Month(CK$35,CK$36,$F41) -> TRUE | CL41: =Find_Month(CL$35,CL$36,$F41) -> TRUE | CM41: =Find_Month(CM$35,CM$36,$F41) -> TRUE | CN41: =Find_Month(CN$35,CN$36,$F41) -> TRUE | CO41: =Find_Month(CO$35,CO$36,$F41) -> TRUE | CP41: =Find_Month(CP$35,CP$36,$F41) -> TRUE | CQ41: =Find_Month(CQ$35,CQ$36,$F41) -> TRUE | CR41: =Find_Month(CR$35,CR$36,$F41) -> TRUE | CS41: =Find_Month(CS$35,CS$36,$F41) -> TRUE | CT41: =Find_Month(CT$35,CT$36,$F41) -> TRUE | CU41: =Find_Month(CU$35,CU$36,$F41) -> TRUE | CV41: =Find_Month(CV$35,CV$36,$F41) -> TRUE | CW41: =Find_Month(CW$35,CW$36,$F41) -> TRUE | CX41: =Find_Month(CX$35,CX$36,$F41) -> TRUE | CY41: =Find_Month(CY$35,CY$36,$F41) -> TRUE | CZ41: =Find_Month(CZ$35,CZ$36,$F41) -> TRUE | DA41: =Find_Month(DA$35,DA$36,$F41) -> TRUE | DB41: =Find_Month(DB$35,DB$36,$F41) -> TRUE | DC41: =Find_Month(DC$35,DC$36,$F41) -> TRUE | DD41: =Find_Month(DD$35,DD$36,$F41) -> TRUE | DE41: =Find_Month(DE$35,DE$36,$F41) -> TRUE | DF41: =Find_Month(DF$35,DF$36,$F41) -> TRUE | DG41: =Find_Month(DG$35,DG$36,$F41) -> TRUE | DH41: =Find_Month(DH$35,DH$36,$F41) -> TRUE | DI41: =Find_Month(DI$35,DI$36,$F41) -> TRUE | DJ41: =Find_Month(DJ$35,DJ$36,$F41) -> TRUE | DK41: =Find_Month(DK$35,DK$36,$F41) -> TRUE | DL41: =Find_Month(DL$35,DL$36,$F41) -> TRUE | DM41: =Find_Month(DM$35,DM$36,$F41) -> TRUE | DN41: =Find_Month(DN$35,DN$36,$F41) -> TRUE | DO41: =Find_Month(DO$35,DO$36,$F41) -> TRUE | DP41: =Find_Month(DP$35,DP$36,$F41) -> TRUE | DQ41: =Find_Month(DQ$35,DQ$36,$F41) -> TRUE | DR41: =Find_Month(DR$35,DR$36,$F41) -> TRUE | DS41: =Find_Month(DS$35,DS$36,$F41) -> TRUE | DT41: =Find_Month(DT$35,DT$36,$F41) -> TRUE | DU41: =Find_Month(DU$35,DU$36,$F41) -> TRUE | DV41: =Find_Month(DV$35,DV$36,$F41) -> TRUE | DW41: =Find_Month(DW$35,DW$36,$F41) -> TRUE | DX41: =Find_Month(DX$35,DX$36,$F41) -> TRUE | DY41: =Find_Month(DY$35,DY$36,$F41) -> TRUE | DZ41: =Find_Month(DZ$35,DZ$36,$F41) -> TRUE | EA41: =Find_Month(EA$35,EA$36,$F41) -> TRUE | EB41: =Find_Month(EB$35,EB$36,$F41) -> TRUE | EC41: =Find_Month(EC$35,EC$36,$F41) -> TRUE | ED41: =Find_Month(ED$35,ED$36,$F41) -> TRUE | EE41: =Find_Month(EE$35,EE$36,$F41) -> TRUE | EF41: =Find_Month(EF$35,EF$36,$F41) -> TRUE | EG41: =Find_Month(EG$35,EG$36,$F41) -> TRUE | EH41: =Find_Month(EH$35,EH$36,$F41) -> TRUE | EI41: =Find_Month(EI$35,EI$36,$F41) -> TRUE | EJ41: =Find_Month(EJ$35,EJ$36,$F41) -> TRUE | EK41: =Find_Month(EK$35,EK$36,$F41) -> TRUE | EL41: =Find_Month(EL$35,EL$36,$F41) -> TRUE | EM41: =Find_Month(EM$35,EM$36,$F41) -> TRUE | EN41: =Find_Month(EN$35,EN$36,$F41) -> TRUE | EO41: =Find_Month(EO$35,EO$36,$F41) -> TRUE | EP41: =Find_Month(EP$35,EP$36,$F41) -> TRUE | EQ41: =Find_Month(EQ$35,EQ$36,$F41) -> TRUE | ER41: =Find_Month(ER$35,ER$36,$F41) -> TRUE | ES41: =Find_Month(ES$35,ES$36,$F41) -> TRUE | ET41: =Find_Month(ET$35,ET$36,$F41) -> TRUE | EU41: =Find_Month(EU$35,EU$36,$F41) -> TRUE | EV41: =Find_Month(EV$35,EV$36,$F41) -> TRUE | EW41: =Find_Month(EW$35,EW$36,$F41) -> TRUE | EX41: =Find_Month(EX$35,EX$36,$F41) -> TRUE | EY41: =Find_Month(EY$35,EY$36,$F41) -> TRUE | EZ41: =Find_Month(EZ$35,EZ$36,$F41) -> TRUE | FA41: =Find_Month(FA$35,FA$36,$F41) -> TRUE | FB41: =Find_Month(FB$35,FB$36,$F41) -> TRUE | FC41: =Find_Month(FC$35,FC$36,$F41) -> TRUE | FD41: =Find_Month(FD$35,FD$36,$F41) -> TRUE | FE41: =Find_Month(FE$35,FE$36,$F41) -> TRUE | FF41: =Find_Month(FF$35,FF$36,$F41) -> TRUE | FG41: =Find_Month(FG$35,FG$36,$F41) -> TRUE | FH41: =Find_Month(FH$35,FH$36,$F41) -> TRUE | FI41: =Find_Month(FI$35,FI$36,$F41) -> TRUE | FJ41: =Find_Month(FJ$35,FJ$36,$F41) -> TRUE | FK41: =Find_Month(FK$35,FK$36,$F41) -> TRUE | FL41: =Find_Month(FL$35,FL$36,$F41) -> TRUE | FM41: =Find_Month(FM$35,FM$36,$F41) -> TRUE | FN41: =Find_Month(FN$35,FN$36,$F41) -> TRUE | FO41: =Find_Month(FO$35,FO$36,$F41) -> TRUE | FP41: =Find_Month(FP$35,FP$36,$F41) -> TRUE | FQ41: =Find_Month(FQ$35,FQ$36,$F41) -> TRUE | FR41: =Find_Month(FR$35,FR$36,$F41) -> TRUE | FS41: =Find_Month(FS$35,FS$36,$F41) -> TRUE | FT41: =Find_Month(FT$35,FT$36,$F41) -> TRUE | FU41: =Find_Month(FU$35,FU$36,$F41) -> TRUE | FV41: =Find_Month(FV$35,FV$36,$F41) -> TRUE | FW41: =Find_Month(FW$35,FW$36,$F41) -> TRUE | FX41: =Find_Month(FX$35,FX$36,$F41) -> TRUE | FY41: =Find_Month(FY$35,FY$36,$F41) -> TRUE | FZ41: =Find_Month(FZ$35,FZ$36,$F41) -> TRUE | GA41: =Find_Month(GA$35,GA$36,$F41) -> TRUE | GB41: =Find_Month(GB$35,GB$36,$F41) -> TRUE | GC41: =Find_Month(GC$35,GC$36,$F41) -> TRUE | GD41: =Find_Month(GD$35,GD$36,$F41) -> TRUE | GE41: =Find_Month(GE$35,GE$36,$F41) -> TRUE | GF41: =Find_Month(GF$35,GF$36,$F41) -> TRUE | GG41: =Find_Month(GG$35,GG$36,$F41) -> TRUE | GH41: =Find_Month(GH$35,GH$36,$F41) -> TRUE | GI41: =Find_Month(GI$35,GI$36,$F41) -> TRUE | GJ41: =Find_Month(GJ$35,GJ$36,$F41) -> TRUE | GK41: =Find_Month(GK$35,GK$36,$F41) -> TRUE | GL41: =Find_Month(GL$35,GL$36,$F41) -> TRUE | GM41: =Find_Month(GM$35,GM$36,$F41) -> TRUE | GN41: =Find_Month(GN$35,GN$36,$F41) -> TRUE | GO41: =Find_Month(GO$35,GO$36,$F41) -> TRUE | GP41: =Find_Month(GP$35,GP$36,$F41) -> TRUE | GQ41: =Find_Month(GQ$35,GQ$36,$F41) -> TRUE | GR41: =Find_Month(GR$35,GR$36,$F41) -> TRUE | GS41: =Find_Month(GS$35,GS$36,$F41) -> TRUE | GT41: =Find_Month(GT$35,GT$36,$F41) -> TRUE | GU41: =Find_Month(GU$35,GU$36,$F41) -> TRUE | GV41: =Find_Month(GV$35,GV$36,$F41) -> TRUE | GW41: =Find_Month(GW$35,GW$36,$F41) -> TRUE | GX41: =Find_Month(GX$35,GX$36,$F41) -> TRUE | GY41: =Find_Month(GY$35,GY$36,$F41) -> TRUE | GZ41: =Find_Month(GZ$35,GZ$36,$F41) -> TRUE | HA41: =Find_Month(HA$35,HA$36,$F41) -> TRUE | HB41: =Find_Month(HB$35,HB$36,$F41) -> TRUE | HC41: =Find_Month(HC$35,HC$36,$F41) -> TRUE | HD41: =Find_Month(HD$35,HD$36,$F41) -> TRUE | HE41: =Find_Month(HE$35,HE$36,$F41) -> TRUE | HF41: =Find_Month(HF$35,HF$36,$F41) -> TRUE | HG41: =Find_Month(HG$35,HG$36,$F41) -> TRUE | HH41: =Find_Month(HH$35,HH$36,$F41) -> TRUE | HI41: =Find_Month(HI$35,HI$36,$F41) -> TRUE | HJ41: =Find_Month(HJ$35,HJ$36,$F41) -> TRUE | HK41: =Find_Month(HK$35,HK$36,$F41) -> TRUE | HL41: =Find_Month(HL$35,HL$36,$F41) -> TRUE | HM41: =Find_Month(HM$35,HM$36,$F41) -> TRUE | HN41: =Find_Month(HN$35,HN$36,$F41) -> TRUE | HO41: =Find_Month(HO$35,HO$36,$F41) -> TRUE | HP41: =Find_Month(HP$35,HP$36,$F41) -> TRUE | HQ41: =Find_Month(HQ$35,HQ$36,$F41) -> TRUE | HR41: =Find_Month(HR$35,HR$36,$F41) -> TRUE | HS41: =Find_Month(HS$35,HS$36,$F41) -> TRUE | HT41: =Find_Month(HT$35,HT$36,$F41) -> TRUE | HU41: =Find_Month(HU$35,HU$36,$F41) -> TRUE | HV41: =Find_Month(HV$35,HV$36,$F41) -> TRUE | HW41: =Find_Month(HW$35,HW$36,$F41) -> TRUE | HX41: =Find_Month(HX$35,HX$36,$F41) -> TRUE | HY41: =Find_Month(HY$35,HY$36,$F41) -> TRUE | HZ41: =Find_Month(HZ$35,HZ$36,$F41) -> TRUE | IA41: =Find_Month(IA$35,IA$36,$F41) -> TRUE | IB41: =Find_Month(IB$35,IB$36,$F41) -> TRUE | IC41: =Find_Month(IC$35,IC$36,$F41) -> TRUE | ID41: =Find_Month(ID$35,ID$36,$F41) -> TRUE | IE41: =Find_Month(IE$35,IE$36,$F41) -> TRUE | IF41: =Find_Month(IF$35,IF$36,$F41) -> TRUE | IG41: =Find_Month(IG$35,IG$36,$F41) -> TRUE | IH41: =Find_Month(IH$35,IH$36,$F41) -> TRUE | II41: =Find_Month(II$35,II$36,$F41) -> TRUE | IJ41: =Find_Month(IJ$35,IJ$36,$F41) -> TRUE | IK41: =Find_Month(IK$35,IK$36,$F41) -> TRUE | IL41: =Find_Month(IL$35,IL$36,$F41) -> TRUE | IM41: =Find_Month(IM$35,IM$36,$F41) -> TRUE | IN41: =Find_Month(IN$35,IN$36,$F41) -> TRUE | IO41: =Find_Month(IO$35,IO$36,$F41) -> TRUE | IP41: =Find_Month(IP$35,IP$36,$F41) -> TRUE | IQ41: =Find_Month(IQ$35,IQ$36,$F41) -> TRUE | IR41: =Find_Month(IR$35,IR$36,$F41) -> TRUE | IS41: =Find_Month(IS$35,IS$36,$F41) -> TRUE | IT41: =Find_Month(IT$35,IT$36,$F41) -> TRUE | IU41: =Find_Month(IU$35,IU$36,$F41) -> TRUE | IV41: =Find_Month(IV$35,IV$36,$F41) -> TRUE | IW41: =Find_Month(IW$35,IW$36,$F41) -> TRUE | IX41: =Find_Month(IX$35,IX$36,$F41) -> TRUE | IY41: =Find_Month(IY$35,IY$36,$F41) -> TRUE | IZ41: =Find_Month(IZ$35,IZ$36,$F41) -> TRUE | JA41: =Find_Month(JA$35,JA$36,$F41) -> TRUE | JB41: =Find_Month(JB$35,JB$36,$F41) -> TRUE | JC41: =Find_Month(JC$35,JC$36,$F41) -> TRUE | JD41: =Find_Month(JD$35,JD$36,$F41) -> TRUE | JE41: =Find_Month(JE$35,JE$36,$F41) -> TRUE | JF41: =Find_Month(JF$35,JF$36,$F41) -> TRUE | JG41: =Find_Month(JG$35,JG$36,$F41) -> TRUE | JH41: =Find_Month(JH$35,JH$36,$F41) -> TRUE | JI41: =Find_Month(JI$35,JI$36,$F41) -> TRUE | JJ41: =Find_Month(JJ$35,JJ$36,$F41) -> TRUE | JK41: =Find_Month(JK$35,JK$36,$F41) -> TRUE | JL41: =Find_Month(JL$35,JL$36,$F41) -> TRUE | JM41: =Find_Month(JM$35,JM$36,$F41) -> TRUE | JN41: =Find_Month(JN$35,JN$36,$F41) -> TRUE | JO41: =Find_Month(JO$35,JO$36,$F41) -> TRUE | JP41: =Find_Month(JP$35,JP$36,$F41) -> TRUE | JQ41: =Find_Month(JQ$35,JQ$36,$F41) -> TRUE | JR41: =Find_Month(JR$35,JR$36,$F41) -> TRUE | JS41: =Find_Month(JS$35,JS$36,$F41) -> TRUE | JT41: =Find_Month(JT$35,JT$36,$F41) -> TRUE | JU41: =Find_Month(JU$35,JU$36,$F41) -> TRUE | JV41: =Find_Month(JV$35,JV$36,$F41) -> TRUE | JW41: =Find_Month(JW$35,JW$36,$F41) -> TRUE | JX41: =Find_Month(JX$35,JX$36,$F41) -> TRUE | JY41: =Find_Month(JY$35,JY$36,$F41) -> TRUE | JZ41: =Find_Month(JZ$35,JZ$36,$F41) -> TRUE | KA41: =Find_Month(KA$35,KA$36,$F41) -> TRUE | KB41: =Find_Month(KB$35,KB$36,$F41) -> TRUE | KC41: =Find_Month(KC$35,KC$36,$F41) -> TRUE | KD41: =Find_Month(KD$35,KD$36,$F41) -> TRUE | KE41: =Find_Month(KE$35,KE$36,$F41) -> TRUE | KF41: =Find_Month(KF$35,KF$36,$F41) -> TRUE | KG41: =Find_Month(KG$35,KG$36,$F41) -> TRUE | KH41: =Find_Month(KH$35,KH$36,$F41) -> TRUE | KI41: =Find_Month(KI$35,KI$36,$F41) -> TRUE | KJ41: =Find_Month(KJ$35,KJ$36,$F41) -> TRUE | KK41: =Find_Month(KK$35,KK$36,$F41) -> TRUE | KL41: =Find_Month(KL$35,KL$36,$F41) -> TRUE | KM41: =Find_Month(KM$35,KM$36,$F41) -> TRUE | KN41: =Find_Month(KN$35,KN$36,$F41) -> TRUE | KO41: =Find_Month(KO$35,KO$36,$F41) -> TRUE | KP41: =Find_Month(KP$35,KP$36,$F41) -> TRUE | KQ41: =Find_Month(KQ$35,KQ$36,$F41) -> TRUE | KR41: =Find_Month(KR$35,KR$36,$F41) -> TRUE | KS41: =Find_Month(KS$35,KS$36,$F41) -> TRUE | KT41: =Find_Month(KT$35,KT$36,$F41) -> TRUE | KU41: =Find_Month(KU$35,KU$36,$F41) -> TRUE | KV41: =Find_Month(KV$35,KV$36,$F41) -> TRUE | KW41: =Find_Month(KW$35,KW$36,$F41) -> TRUE | KX41: =Find_Month(KX$35,KX$36,$F41) -> TRUE | KY41: =Find_Month(KY$35,KY$36,$F41) -> TRUE | KZ41: =Find_Month(KZ$35,KZ$36,$F41) -> TRUE | LA41: =Find_Month(LA$35,LA$36,$F41) -> TRUE | LB41: =Find_Month(LB$35,LB$36,$F41) -> TRUE | LC41: =Find_Month(LC$35,LC$36,$F41) -> TRUE | LD41: =Find_Month(LD$35,LD$36,$F41) -> TRUE | LE41: =Find_Month(LE$35,LE$36,$F41) -> TRUE | LF41: =Find_Month(LF$35,LF$36,$F41) -> TRUE | LG41: =Find_Month(LG$35,LG$36,$F41) -> TRUE | LH41: =Find_Month(LH$35,LH$36,$F41) -> TRUE | LI41: =Find_Month(LI$35,LI$36,$F41) -> TRUE | LJ41: =Find_Month(LJ$35,LJ$36,$F41) -> TRUE | LK41: =Find_Month(LK$35,LK$36,$F41) -> TRUE | LL41: =Find_Month(LL$35,LL$36,$F41) -> TRUE | LM41: =Find_Month(LM$35,LM$36,$F41) -> TRUE | LN41: =Find_Month(LN$35,LN$36,$F41) -> TRUE | LO41: =Find_Month(LO$35,LO$36,$F41) -> TRUE | LP41: =Find_Month(LP$35,LP$36,$F41) -> TRUE | LQ41: =Find_Month(LQ$35,LQ$36,$F41) -> TRUE | LR41: =Find_Month(LR$35,LR$36,$F41) -> TRUE | LS41: =Find_Month(LS$35,LS$36,$F41) -> TRUE | LT41: =Find_Month(LT$35,LT$36,$F41) -> TRUE | LU41: =Find_Month(LU$35,LU$36,$F41) -> TRUE | LV41: =Find_Month(LV$35,LV$36,$F41) -> TRUE | LW41: =Find_Month(LW$35,LW$36,$F41) -> TRUE | LX41: =Find_Month(LX$35,LX$36,$F41) -> TRUE | LY41: =Find_Month(LY$35,LY$36,$F41) -> TRUE | LZ41: =Find_Month(LZ$35,LZ$36,$F41) -> TRUE | MA41: =Find_Month(MA$35,MA$36,$F41) -> TRUE | MB41: =Find_Month(MB$35,MB$36,$F41) -> TRUE | MC41: =Find_Month(MC$35,MC$36,$F41) -> TRUE | MD41: =Find_Month(MD$35,MD$36,$F41) -> TRUE | ME41: =Find_Month(ME$35,ME$36,$F41) -> TRUE | MF41: =Find_Month(MF$35,MF$36,$F41) -> TRUE | MG41: =Find_Month(MG$35,MG$36,$F41) -> TRUE | MH41: =Find_Month(MH$35,MH$36,$F41) -> TRUE | MI41: =Find_Month(MI$35,MI$36,$F41) -> TRUE | MJ41: =Find_Month(MJ$35,MJ$36,$F41) -> TRUE | MK41: =Find_Month(MK$35,MK$36,$F41) -> TRUE | ML41: =Find_Month(ML$35,ML$36,$F41) -> TRUE | MM41: =Find_Month(MM$35,MM$36,$F41) -> TRUE | MN41: =Find_Month(MN$35,MN$36,$F41) -> TRUE | MO41: =Find_Month(MO$35,MO$36,$F41) -> TRUE | MP41: =Find_Month(MP$35,MP$36,$F41) -> TRUE | MQ41: =Find_Month(MQ$35,MQ$36,$F41) -> TRUE | MR41: =Find_Month(MR$35,MR$36,$F41) -> TRUE | MS41: =Find_Month(MS$35,MS$36,$F41) -> TRUE | MT41: =Find_Month(MT$35,MT$36,$F41) -> TRUE | MU41: =Find_Month(MU$35,MU$36,$F41) -> TRUE | MV41: =Find_Month(MV$35,MV$36,$F41) -> TRUE | MW41: =Find_Month(MW$35,MW$36,$F41) -> TRUE | MX41: =Find_Month(MX$35,MX$36,$F41) -> TRUE | MY41: =Find_Month(MY$35,MY$36,$F41) -> TRUE | MZ41: =Find_Month(MZ$35,MZ$36,$F41) -> TRUE | NA41: =Find_Month(NA$35,NA$36,$F41) -> TRUE | NB41: =Find_Month(NB$35,NB$36,$F41) -> TRUE | NC41: =Find_Month(NC$35,NC$36,$F41) -> TRUE | ND41: =Find_Month(ND$35,ND$36,$F41) -> TRUE | NE41: =Find_Month(NE$35,NE$36,$F41) -> TRUE | NF41: =Find_Month(NF$35,NF$36,$F41) -> TRUE | NG41: =Find_Month(NG$35,NG$36,$F41) -> TRUE | NH41: =Find_Month(NH$35,NH$36,$F41) -> TRUE | NI41: =Find_Month(NI$35,NI$36,$F41) -> TRUE | NJ41: =Find_Month(NJ$35,NJ$36,$F41) -> TRUE | NK41: =Find_Month(NK$35,NK$36,$F41) -> TRUE | NL41: =Find_Month(NL$35,NL$36,$F41) -> TRUE | NM41: =Find_Month(NM$35,NM$36,$F41) -> TRUE | NN41: =Find_Month(NN$35,NN$36,$F41) -> TRUE | NO41: =Find_Month(NO$35,NO$36,$F41) -> TRUE | NP41: =Find_Month(NP$35,NP$36,$F41) -> TRUE | NQ41: =Find_Month(NQ$35,NQ$36,$F41) -> TRUE | NR41: =Find_Month(NR$35,NR$36,$F41) -> TRUE | NS41: =Find_Month(NS$35,NS$36,$F41) -> TRUE | NT41: =Find_Month(NT$35,NT$36,$F41) -> TRUE | NU41: =Find_Month(NU$35,NU$36,$F41) -> TRUE | NV41: =Find_Month(NV$35,NV$36,$F41) -> TRUE | NW41: =Find_Month(NW$35,NW$36,$F41) -> TRUE | NX41: =Find_Month(NX$35,NX$36,$F41) -> TRUE | NY41: =Find_Month(NY$35,NY$36,$F41) -> TRUE | NZ41: =Find_Month(NZ$35,NZ$36,$F41) -> TRUE | OA41: =Find_Month(OA$35,OA$36,$F41) -> TRUE | OB41: =Find_Month(OB$35,OB$36,$F41) -> TRUE | OC41: =Find_Month(OC$35,OC$36,$F41) -> TRUE | OD41: =Find_Month(OD$35,OD$36,$F41) -> TRUE | OE41: =Find_Month(OE$35,OE$36,$F41) -> TRUE | OF41: =Find_Month(OF$35,OF$36,$F41) -> TRUE | OG41: =Find_Month(OG$35,OG$36,$F41) -> TRUE | OH41: =Find_Month(OH$35,OH$36,$F41) -> TRUE | OI41: =Find_Month(OI$35,OI$36,$F41) -> TRUE | OJ41: =Find_Month(OJ$35,OJ$36,$F41) -> TRUE | OK41: =Find_Month(OK$35,OK$36,$F41) -> TRUE | OL41: =Find_Month(OL$35,OL$36,$F41) -> TRUE | OM41: =Find_Month(OM$35,OM$36,$F41) -> TRUE | ON41: =Find_Month(ON$35,ON$36,$F41) -> TRUE | OO41: =Find_Month(OO$35,OO$36,$F41) -> TRUE | OP41: =Find_Month(OP$35,OP$36,$F41) -> TRUE | OQ41: =Find_Month(OQ$35,OQ$36,$F41) -> TRUE | OR41: =Find_Month(OR$35,OR$36,$F41) -> TRUE | OS41: =Find_Month(OS$35,OS$36,$F41) -> TRUE | OT41: =Find_Month(OT$35,OT$36,$F41) -> TRUE | OU41: =Find_Month(OU$35,OU$36,$F41) -> TRUE | OV41: =Find_Month(OV$35,OV$36,$F41) -> TRUE | OW41: =Find_Month(OW$35,OW$36,$F41) -> TRUE | OX41: =Find_Month(OX$35,OX$36,$F41) -> TRUE | OY41: =Find_Month(OY$35,OY$36,$F41) -> TRUE | OZ41: =Find_Month(OZ$35,OZ$36,$F41) -> TRUE | PA41: =Find_Month(PA$35,PA$36,$F41) -> TRUE | PB41: =Find_Month(PB$35,PB$36,$F41) -> TRUE | PC41: =Find_Month(PC$35,PC$36,$F41) -> TRUE | PD41: =Find_Month(PD$35,PD$36,$F41) -> TRUE | PE41: =Find_Month(PE$35,PE$36,$F41) -> TRUE | PF41: =Find_Month(PF$35,PF$36,$F41) -> TRUE | PG41: =Find_Month(PG$35,PG$36,$F41) -> TRUE | PH41: =Find_Month(PH$35,PH$36,$F41) -> TRUE | PI41: =Find_Month(PI$35,PI$36,$F41) -> TRUE | PJ41: =Find_Month(PJ$35,PJ$36,$F41) -> TRUE | PK41: =Find_Month(PK$35,PK$36,$F41) -> TRUE | PL41: =Find_Month(PL$35,PL$36,$F41) -> TRUE | PM41: =Find_Month(PM$35,PM$36,$F41) -> TRUE | PN41: =Find_Month(PN$35,PN$36,$F41) -> TRUE | PO41: =Find_Month(PO$35,PO$36,$F41) -> TRUE | PP41: =Find_Month(PP$35,PP$36,$F41) -> TRUE | PQ41: =Find_Month(PQ$35,PQ$36,$F41) -> TRUE | PR41: =Find_Month(PR$35,PR$36,$F41) -> TRUE | PS41: =Find_Month(PS$35,PS$36,$F41) -> TRUE | PT41: =Find_Month(PT$35,PT$36,$F41) -> TRUE | PU41: =Find_Month(PU$35,PU$36,$F41) -> TRUE | PV41: =Find_Month(PV$35,PV$36,$F41) -> TRUE | PW41: =Find_Month(PW$35,PW$36,$F41) -> TRUE | PX41: =Find_Month(PX$35,PX$36,$F41) -> TRUE | PY41: =Find_Month(PY$35,PY$36,$F41) -> TRUE | PZ41: =Find_Month(PZ$35,PZ$36,$F41) -> TRUE | QA41: =Find_Month(QA$35,QA$36,$F41) -> TRUE | QB41: =Find_Month(QB$35,QB$36,$F41) -> TRUE | QC41: =Find_Month(QC$35,QC$36,$F41) -> TRUE | QD41: =Find_Month(QD$35,QD$36,$F41) -> TRUE | QE41: =Find_Month(QE$35,QE$36,$F41) -> TRUE | QF41: =Find_Month(QF$35,QF$36,$F41) -> TRUE | QG41: =Find_Month(QG$35,QG$36,$F41) -> TRUE | QH41: =Find_Month(QH$35,QH$36,$F41) -> TRUE | QI41: =Find_Month(QI$35,QI$36,$F41) -> TRUE | QJ41: =Find_Month(QJ$35,QJ$36,$F41) -> TRUE | QK41: =Find_Month(QK$35,QK$36,$F41) -> TRUE | QL41: =Find_Month(QL$35,QL$36,$F41) -> TRUE | QM41: =Find_Month(QM$35,QM$36,$F41) -> TRUE | QN41: =Find_Month(QN$35,QN$36,$F41) -> TRUE | QO41: =Find_Month(QO$35,QO$36,$F41) -> TRUE | QP41: =Find_Month(QP$35,QP$36,$F41) -> TRUE | QQ41: =Find_Month(QQ$35,QQ$36,$F41) -> TRUE | QR41: =Find_Month(QR$35,QR$36,$F41) -> TRUE | QS41: =Find_Month(QS$35,QS$36,$F41) -> TRUE | QT41: =Find_Month(QT$35,QT$36,$F41) -> TRUE | QU41: =Find_Month(QU$35,QU$36,$F41) -> TRUE | QV41: =Find_Month(QV$35,QV$36,$F41) -> TRUE | QW41: =Find_Month(QW$35,QW$36,$F41) -> TRUE | QX41: =Find_Month(QX$35,QX$36,$F41) -> TRUE | QY41: =Find_Month(QY$35,QY$36,$F41) -> TRUE | QZ41: =Find_Month(QZ$35,QZ$36,$F41) -> TRUE | RA41: =Find_Month(RA$35,RA$36,$F41) -> TRUE | RB41: =Find_Month(RB$35,RB$36,$F41) -> TRUE | RC41: =Find_Month(RC$35,RC$36,$F41) -> TRUE | RD41: =Find_Month(RD$35,RD$36,$F41) -> TRUE | RE41: =Find_Month(RE$35,RE$36,$F41) -> TRUE | RF41: =Find_Month(RF$35,RF$36,$F41) -> TRUE | RG41: =Find_Month(RG$35,RG$36,$F41) -> TRUE | RH41: =Find_Month(RH$35,RH$36,$F41) -> TRUE | RI41: =Find_Month(RI$35,RI$36,$F41) -> TRUE | RJ41: =Find_Month(RJ$35,RJ$36,$F41) -> TRUE | RK41: =Find_Month(RK$35,RK$36,$F41) -> TRUE | RL41: =Find_Month(RL$35,RL$36,$F41) -> TRUE | RM41: =Find_Month(RM$35,RM$36,$F41) -> TRUE | RN41: =Find_Month(RN$35,RN$36,$F41) -> TRUE | RO41: =Find_Month(RO$35,RO$36,$F41) -> TRUE | RP41: =Find_Month(RP$35,RP$36,$F41) -> TRUE | RQ41: =Find_Month(RQ$35,RQ$36,$F41) -> TRUE | RR41: =Find_Month(RR$35,RR$36,$F41) -> TRUE | RS41: =Find_Month(RS$35,RS$36,$F41) -> TRUE | RT41: =Find_Month(RT$35,RT$36,$F41) -> TRUE | RU41: =Find_Month(RU$35,RU$36,$F41) -> TRUE | RV41: =Find_Month(RV$35,RV$36,$F41) -> TRUE | RW41: =Find_Month(RW$35,RW$36,$F41) -> TRUE | RX41: =Find_Month(RX$35,RX$36,$F41) -> TRUE | RY41: =Find_Month(RY$35,RY$36,$F41) -> TRUE | RZ41: =Find_Month(RZ$35,RZ$36,$F41) -> TRUE | SA41: =Find_Month(SA$35,SA$36,$F41) -> TRUE | SB41: =Find_Month(SB$35,SB$36,$F41) -> TRUE | SC41: =Find_Month(SC$35,SC$36,$F41) -> FALSE | SD41: =Find_Month(SD$35,SD$36,$F41) -> FALSE | SE41: =Find_Month(SE$35,SE$36,$F41) -> FALSE | SF41: =Find_Month(SF$35,SF$36,$F41) -> FALSE | SG41: =Find_Month(SG$35,SG$36,$F41) -> FALSE | SH41: =Find_Month(SH$35,SH$36,$F41) -> FALSE | SI41: =Find_Month(SI$35,SI$36,$F41) -> FALSE | SJ41: =Find_Month(SJ$35,SJ$36,$F41) -> FALSE | SK41: =Find_Month(SK$35,SK$36,$F41) -> FALSE | SL41: =Find_Month(SL$35,SL$36,$F41) -> FALSE | SM41: =Find_Month(SM$35,SM$36,$F41) -> FALSE | SN41: =Find_Month(SN$35,SN$36,$F41) -> FALSE | SO41: =Find_Month(SO$35,SO$36,$F41) -> FALSE | SP41: =Find_Month(SP$35,SP$36,$F41) -> FALSE | SQ41: =Find_Month(SQ$35,SQ$36,$F41) -> FALSE | SR41: =Find_Month(SR$35,SR$36,$F41) -> FALSE | SS41: =Find_Month(SS$35,SS$36,$F41) -> FALSE | ST41: =Find_Month(ST$35,ST$36,$F41) -> FALSE | SU41: =Find_Month(SU$35,SU$36,$F41) -> FALSE | SV41: =Find_Month(SV$35,SV$36,$F41) -> FALSE | SW41: =Find_Month(SW$35,SW$36,$F41) -> FALSE | SX41: =Find_Month(SX$35,SX$36,$F41) -> FALSE | SY41: =Find_Month(SY$35,SY$36,$F41) -> FALSE | SZ41: =Find_Month(SZ$35,SZ$36,$F41) -> FALSE | TA41: =Find_Month(TA$35,TA$36,$F41) -> FALSE | TB41: =Find_Month(TB$35,TB$36,$F41) -> FALSE | TC41: =Find_Month(TC$35,TC$36,$F41) -> FALSE | TD41: =Find_Month(TD$35,TD$36,$F41) -> FALSE | TE41: =Find_Month(TE$35,TE$36,$F41) -> FALSE | TF41: =Find_Month(TF$35,TF$36,$F41) -> FALSE | TG41: =Find_Month(TG$35,TG$36,$F41) -> FALSE | TH41: =Find_Month(TH$35,TH$36,$F41) -> FALSE | TI41: =Find_Month(TI$35,TI$36,$F41) -> FALSE | TJ41: =Find_Month(TJ$35,TJ$36,$F41) -> FALSE | TK41: =Find_Month(TK$35,TK$36,$F41) -> FALSE | TL41: =Find_Month(TL$35,TL$36,$F41) -> FALSE | TM41: =Find_Month(TM$35,TM$36,$F41) -> FALSE | TN41: =Find_Month(TN$35,TN$36,$F41) -> FALSE | TO41: =Find_Month(TO$35,TO$36,$F41) -> FALSE | TP41: =Find_Month(TP$35,TP$36,$F41) -> FALSE | TQ41: =Find_Month(TQ$35,TQ$36,$F41) -> FALSE | TR41: =Find_Month(TR$35,TR$36,$F41) -> FALSE | TS41: =Find_Month(TS$35,TS$36,$F41) -> FALSE | TT41: =Find_Month(TT$35,TT$36,$F41) -> FALSE | TU41: =Find_Month(TU$35,TU$36,$F41) -> FALSE | TV41: =Find_Month(TV$35,TV$36,$F41) -> FALSE | TW41: =Find_Month(TW$35,TW$36,$F41) -> FALSE | TX41: =Find_Month(TX$35,TX$36,$F41) -> FALSE | TY41: =Find_Month(TY$35,TY$36,$F41) -> FALSE
F42: 4 | G42: 301.3629854 | H42: 0.09402131594 | J42: =Find_Month(J$35,J$36,$F42) -> TRUE | K42: =Find_Month(K$35,K$36,$F42) -> TRUE | L42: =Find_Month(L$35,L$36,$F42) -> TRUE | M42: =Find_Month(M$35,M$36,$F42) -> TRUE | N42: =Find_Month(N$35,N$36,$F42) -> TRUE | O42: =Find_Month(O$35,O$36,$F42) -> TRUE | P42: =Find_Month(P$35,P$36,$F42) -> TRUE | Q42: =Find_Month(Q$35,Q$36,$F42) -> TRUE | R42: =Find_Month(R$35,R$36,$F42) -> TRUE | S42: =Find_Month(S$35,S$36,$F42) -> TRUE | T42: =Find_Month(T$35,T$36,$F42) -> TRUE | U42: =Find_Month(U$35,U$36,$F42) -> TRUE | V42: =Find_Month(V$35,V$36,$F42) -> TRUE | W42: =Find_Month(W$35,W$36,$F42) -> TRUE | X42: =Find_Month(X$35,X$36,$F42) -> TRUE | Y42: =Find_Month(Y$35,Y$36,$F42) -> TRUE | Z42: =Find_Month(Z$35,Z$36,$F42) -> TRUE | AA42: =Find_Month(AA$35,AA$36,$F42) -> TRUE | AB42: =Find_Month(AB$35,AB$36,$F42) -> TRUE | AC42: =Find_Month(AC$35,AC$36,$F42) -> TRUE | AD42: =Find_Month(AD$35,AD$36,$F42) -> TRUE | AE42: =Find_Month(AE$35,AE$36,$F42) -> TRUE | AF42: =Find_Month(AF$35,AF$36,$F42) -> TRUE | AG42: =Find_Month(AG$35,AG$36,$F42) -> TRUE | AH42: =Find_Month(AH$35,AH$36,$F42) -> TRUE | AI42: =Find_Month(AI$35,AI$36,$F42) -> TRUE | AJ42: =Find_Month(AJ$35,AJ$36,$F42) -> TRUE | AK42: =Find_Month(AK$35,AK$36,$F42) -> TRUE | AL42: =Find_Month(AL$35,AL$36,$F42) -> TRUE | AM42: =Find_Month(AM$35,AM$36,$F42) -> TRUE | AN42: =Find_Month(AN$35,AN$36,$F42) -> TRUE | AO42: =Find_Month(AO$35,AO$36,$F42) -> TRUE | AP42: =Find_Month(AP$35,AP$36,$F42) -> TRUE | AQ42: =Find_Month(AQ$35,AQ$36,$F42) -> TRUE | AR42: =Find_Month(AR$35,AR$36,$F42) -> TRUE | AS42: =Find_Month(AS$35,AS$36,$F42) -> TRUE | AT42: =Find_Month(AT$35,AT$36,$F42) -> TRUE | AU42: =Find_Month(AU$35,AU$36,$F42) -> TRUE | AV42: =Find_Month(AV$35,AV$36,$F42) -> TRUE | AW42: =Find_Month(AW$35,AW$36,$F42) -> TRUE | AX42: =Find_Month(AX$35,AX$36,$F42) -> TRUE | AY42: =Find_Month(AY$35,AY$36,$F42) -> TRUE | AZ42: =Find_Month(AZ$35,AZ$36,$F42) -> TRUE | BA42: =Find_Month(BA$35,BA$36,$F42) -> TRUE | BB42: =Find_Month(BB$35,BB$36,$F42) -> TRUE | BC42: =Find_Month(BC$35,BC$36,$F42) -> TRUE | BD42: =Find_Month(BD$35,BD$36,$F42) -> TRUE | BE42: =Find_Month(BE$35,BE$36,$F42) -> TRUE | BF42: =Find_Month(BF$35,BF$36,$F42) -> TRUE | BG42: =Find_Month(BG$35,BG$36,$F42) -> TRUE | BH42: =Find_Month(BH$35,BH$36,$F42) -> TRUE | BI42: =Find_Month(BI$35,BI$36,$F42) -> TRUE | BJ42: =Find_Month(BJ$35,BJ$36,$F42) -> TRUE | BK42: =Find_Month(BK$35,BK$36,$F42) -> TRUE | BL42: =Find_Month(BL$35,BL$36,$F42) -> TRUE | BM42: =Find_Month(BM$35,BM$36,$F42) -> TRUE | BN42: =Find_Month(BN$35,BN$36,$F42) -> TRUE | BO42: =Find_Month(BO$35,BO$36,$F42) -> TRUE | BP42: =Find_Month(BP$35,BP$36,$F42) -> TRUE | BQ42: =Find_Month(BQ$35,BQ$36,$F42) -> TRUE | BR42: =Find_Month(BR$35,BR$36,$F42) -> TRUE | BS42: =Find_Month(BS$35,BS$36,$F42) -> TRUE | BT42: =Find_Month(BT$35,BT$36,$F42) -> TRUE | BU42: =Find_Month(BU$35,BU$36,$F42) -> TRUE | BV42: =Find_Month(BV$35,BV$36,$F42) -> TRUE | BW42: =Find_Month(BW$35,BW$36,$F42) -> TRUE | BX42: =Find_Month(BX$35,BX$36,$F42) -> TRUE | BY42: =Find_Month(BY$35,BY$36,$F42) -> TRUE | BZ42: =Find_Month(BZ$35,BZ$36,$F42) -> TRUE | CA42: =Find_Month(CA$35,CA$36,$F42) -> TRUE | CB42: =Find_Month(CB$35,CB$36,$F42) -> TRUE | CC42: =Find_Month(CC$35,CC$36,$F42) -> TRUE | CD42: =Find_Month(CD$35,CD$36,$F42) -> TRUE | CE42: =Find_Month(CE$35,CE$36,$F42) -> TRUE | CF42: =Find_Month(CF$35,CF$36,$F42) -> TRUE | CG42: =Find_Month(CG$35,CG$36,$F42) -> TRUE | CH42: =Find_Month(CH$35,CH$36,$F42) -> TRUE | CI42: =Find_Month(CI$35,CI$36,$F42) -> TRUE | CJ42: =Find_Month(CJ$35,CJ$36,$F42) -> TRUE | CK42: =Find_Month(CK$35,CK$36,$F42) -> TRUE | CL42: =Find_Month(CL$35,CL$36,$F42) -> TRUE | CM42: =Find_Month(CM$35,CM$36,$F42) -> TRUE | CN42: =Find_Month(CN$35,CN$36,$F42) -> TRUE | CO42: =Find_Month(CO$35,CO$36,$F42) -> TRUE | CP42: =Find_Month(CP$35,CP$36,$F42) -> TRUE | CQ42: =Find_Month(CQ$35,CQ$36,$F42) -> TRUE | CR42: =Find_Month(CR$35,CR$36,$F42) -> TRUE | CS42: =Find_Month(CS$35,CS$36,$F42) -> TRUE | CT42: =Find_Month(CT$35,CT$36,$F42) -> TRUE | CU42: =Find_Month(CU$35,CU$36,$F42) -> TRUE | CV42: =Find_Month(CV$35,CV$36,$F42) -> TRUE | CW42: =Find_Month(CW$35,CW$36,$F42) -> TRUE | CX42: =Find_Month(CX$35,CX$36,$F42) -> TRUE | CY42: =Find_Month(CY$35,CY$36,$F42) -> TRUE | CZ42: =Find_Month(CZ$35,CZ$36,$F42) -> TRUE | DA42: =Find_Month(DA$35,DA$36,$F42) -> TRUE | DB42: =Find_Month(DB$35,DB$36,$F42) -> TRUE | DC42: =Find_Month(DC$35,DC$36,$F42) -> TRUE | DD42: =Find_Month(DD$35,DD$36,$F42) -> TRUE | DE42: =Find_Month(DE$35,DE$36,$F42) -> TRUE | DF42: =Find_Month(DF$35,DF$36,$F42) -> TRUE | DG42: =Find_Month(DG$35,DG$36,$F42) -> TRUE | DH42: =Find_Month(DH$35,DH$36,$F42) -> TRUE | DI42: =Find_Month(DI$35,DI$36,$F42) -> TRUE | DJ42: =Find_Month(DJ$35,DJ$36,$F42) -> TRUE | DK42: =Find_Month(DK$35,DK$36,$F42) -> TRUE | DL42: =Find_Month(DL$35,DL$36,$F42) -> TRUE | DM42: =Find_Month(DM$35,DM$36,$F42) -> TRUE | DN42: =Find_Month(DN$35,DN$36,$F42) -> TRUE | DO42: =Find_Month(DO$35,DO$36,$F42) -> TRUE | DP42: =Find_Month(DP$35,DP$36,$F42) -> TRUE | DQ42: =Find_Month(DQ$35,DQ$36,$F42) -> TRUE | DR42: =Find_Month(DR$35,DR$36,$F42) -> TRUE | DS42: =Find_Month(DS$35,DS$36,$F42) -> TRUE | DT42: =Find_Month(DT$35,DT$36,$F42) -> TRUE | DU42: =Find_Month(DU$35,DU$36,$F42) -> TRUE | DV42: =Find_Month(DV$35,DV$36,$F42) -> TRUE | DW42: =Find_Month(DW$35,DW$36,$F42) -> TRUE | DX42: =Find_Month(DX$35,DX$36,$F42) -> TRUE | DY42: =Find_Month(DY$35,DY$36,$F42) -> TRUE | DZ42: =Find_Month(DZ$35,DZ$36,$F42) -> TRUE | EA42: =Find_Month(EA$35,EA$36,$F42) -> TRUE | EB42: =Find_Month(EB$35,EB$36,$F42) -> TRUE | EC42: =Find_Month(EC$35,EC$36,$F42) -> TRUE | ED42: =Find_Month(ED$35,ED$36,$F42) -> TRUE | EE42: =Find_Month(EE$35,EE$36,$F42) -> TRUE | EF42: =Find_Month(EF$35,EF$36,$F42) -> TRUE | EG42: =Find_Month(EG$35,EG$36,$F42) -> TRUE | EH42: =Find_Month(EH$35,EH$36,$F42) -> TRUE | EI42: =Find_Month(EI$35,EI$36,$F42) -> TRUE | EJ42: =Find_Month(EJ$35,EJ$36,$F42) -> TRUE | EK42: =Find_Month(EK$35,EK$36,$F42) -> TRUE | EL42: =Find_Month(EL$35,EL$36,$F42) -> TRUE | EM42: =Find_Month(EM$35,EM$36,$F42) -> TRUE | EN42: =Find_Month(EN$35,EN$36,$F42) -> TRUE | EO42: =Find_Month(EO$35,EO$36,$F42) -> TRUE | EP42: =Find_Month(EP$35,EP$36,$F42) -> TRUE | EQ42: =Find_Month(EQ$35,EQ$36,$F42) -> TRUE | ER42: =Find_Month(ER$35,ER$36,$F42) -> TRUE | ES42: =Find_Month(ES$35,ES$36,$F42) -> TRUE | ET42: =Find_Month(ET$35,ET$36,$F42) -> TRUE | EU42: =Find_Month(EU$35,EU$36,$F42) -> TRUE | EV42: =Find_Month(EV$35,EV$36,$F42) -> TRUE | EW42: =Find_Month(EW$35,EW$36,$F42) -> TRUE | EX42: =Find_Month(EX$35,EX$36,$F42) -> TRUE | EY42: =Find_Month(EY$35,EY$36,$F42) -> TRUE | EZ42: =Find_Month(EZ$35,EZ$36,$F42) -> TRUE | FA42: =Find_Month(FA$35,FA$36,$F42) -> TRUE | FB42: =Find_Month(FB$35,FB$36,$F42) -> TRUE | FC42: =Find_Month(FC$35,FC$36,$F42) -> TRUE | FD42: =Find_Month(FD$35,FD$36,$F42) -> TRUE | FE42: =Find_Month(FE$35,FE$36,$F42) -> TRUE | FF42: =Find_Month(FF$35,FF$36,$F42) -> TRUE | FG42: =Find_Month(FG$35,FG$36,$F42) -> TRUE | FH42: =Find_Month(FH$35,FH$36,$F42) -> TRUE | FI42: =Find_Month(FI$35,FI$36,$F42) -> TRUE | FJ42: =Find_Month(FJ$35,FJ$36,$F42) -> TRUE | FK42: =Find_Month(FK$35,FK$36,$F42) -> TRUE | FL42: =Find_Month(FL$35,FL$36,$F42) -> TRUE | FM42: =Find_Month(FM$35,FM$36,$F42) -> TRUE | FN42: =Find_Month(FN$35,FN$36,$F42) -> TRUE | FO42: =Find_Month(FO$35,FO$36,$F42) -> TRUE | FP42: =Find_Month(FP$35,FP$36,$F42) -> TRUE | FQ42: =Find_Month(FQ$35,FQ$36,$F42) -> TRUE | FR42: =Find_Month(FR$35,FR$36,$F42) -> TRUE | FS42: =Find_Month(FS$35,FS$36,$F42) -> TRUE | FT42: =Find_Month(FT$35,FT$36,$F42) -> TRUE | FU42: =Find_Month(FU$35,FU$36,$F42) -> TRUE | FV42: =Find_Month(FV$35,FV$36,$F42) -> TRUE | FW42: =Find_Month(FW$35,FW$36,$F42) -> TRUE | FX42: =Find_Month(FX$35,FX$36,$F42) -> TRUE | FY42: =Find_Month(FY$35,FY$36,$F42) -> TRUE | FZ42: =Find_Month(FZ$35,FZ$36,$F42) -> TRUE | GA42: =Find_Month(GA$35,GA$36,$F42) -> TRUE | GB42: =Find_Month(GB$35,GB$36,$F42) -> TRUE | GC42: =Find_Month(GC$35,GC$36,$F42) -> TRUE | GD42: =Find_Month(GD$35,GD$36,$F42) -> TRUE | GE42: =Find_Month(GE$35,GE$36,$F42) -> TRUE | GF42: =Find_Month(GF$35,GF$36,$F42) -> TRUE | GG42: =Find_Month(GG$35,GG$36,$F42) -> TRUE | GH42: =Find_Month(GH$35,GH$36,$F42) -> TRUE | GI42: =Find_Month(GI$35,GI$36,$F42) -> TRUE | GJ42: =Find_Month(GJ$35,GJ$36,$F42) -> TRUE | GK42: =Find_Month(GK$35,GK$36,$F42) -> TRUE | GL42: =Find_Month(GL$35,GL$36,$F42) -> TRUE | GM42: =Find_Month(GM$35,GM$36,$F42) -> TRUE | GN42: =Find_Month(GN$35,GN$36,$F42) -> TRUE | GO42: =Find_Month(GO$35,GO$36,$F42) -> TRUE | GP42: =Find_Month(GP$35,GP$36,$F42) -> TRUE | GQ42: =Find_Month(GQ$35,GQ$36,$F42) -> TRUE | GR42: =Find_Month(GR$35,GR$36,$F42) -> TRUE | GS42: =Find_Month(GS$35,GS$36,$F42) -> TRUE | GT42: =Find_Month(GT$35,GT$36,$F42) -> TRUE | GU42: =Find_Month(GU$35,GU$36,$F42) -> TRUE | GV42: =Find_Month(GV$35,GV$36,$F42) -> TRUE | GW42: =Find_Month(GW$35,GW$36,$F42) -> TRUE | GX42: =Find_Month(GX$35,GX$36,$F42) -> TRUE | GY42: =Find_Month(GY$35,GY$36,$F42) -> TRUE | GZ42: =Find_Month(GZ$35,GZ$36,$F42) -> TRUE | HA42: =Find_Month(HA$35,HA$36,$F42) -> TRUE | HB42: =Find_Month(HB$35,HB$36,$F42) -> TRUE | HC42: =Find_Month(HC$35,HC$36,$F42) -> TRUE | HD42: =Find_Month(HD$35,HD$36,$F42) -> TRUE | HE42: =Find_Month(HE$35,HE$36,$F42) -> TRUE | HF42: =Find_Month(HF$35,HF$36,$F42) -> TRUE | HG42: =Find_Month(HG$35,HG$36,$F42) -> TRUE | HH42: =Find_Month(HH$35,HH$36,$F42) -> TRUE | HI42: =Find_Month(HI$35,HI$36,$F42) -> TRUE | HJ42: =Find_Month(HJ$35,HJ$36,$F42) -> TRUE | HK42: =Find_Month(HK$35,HK$36,$F42) -> TRUE | HL42: =Find_Month(HL$35,HL$36,$F42) -> TRUE | HM42: =Find_Month(HM$35,HM$36,$F42) -> TRUE | HN42: =Find_Month(HN$35,HN$36,$F42) -> TRUE | HO42: =Find_Month(HO$35,HO$36,$F42) -> TRUE | HP42: =Find_Month(HP$35,HP$36,$F42) -> TRUE | HQ42: =Find_Month(HQ$35,HQ$36,$F42) -> TRUE | HR42: =Find_Month(HR$35,HR$36,$F42) -> TRUE | HS42: =Find_Month(HS$35,HS$36,$F42) -> TRUE | HT42: =Find_Month(HT$35,HT$36,$F42) -> TRUE | HU42: =Find_Month(HU$35,HU$36,$F42) -> TRUE | HV42: =Find_Month(HV$35,HV$36,$F42) -> TRUE | HW42: =Find_Month(HW$35,HW$36,$F42) -> TRUE | HX42: =Find_Month(HX$35,HX$36,$F42) -> TRUE | HY42: =Find_Month(HY$35,HY$36,$F42) -> TRUE | HZ42: =Find_Month(HZ$35,HZ$36,$F42) -> TRUE | IA42: =Find_Month(IA$35,IA$36,$F42) -> TRUE | IB42: =Find_Month(IB$35,IB$36,$F42) -> TRUE | IC42: =Find_Month(IC$35,IC$36,$F42) -> TRUE | ID42: =Find_Month(ID$35,ID$36,$F42) -> TRUE | IE42: =Find_Month(IE$35,IE$36,$F42) -> TRUE | IF42: =Find_Month(IF$35,IF$36,$F42) -> TRUE | IG42: =Find_Month(IG$35,IG$36,$F42) -> TRUE | IH42: =Find_Month(IH$35,IH$36,$F42) -> TRUE | II42: =Find_Month(II$35,II$36,$F42) -> TRUE | IJ42: =Find_Month(IJ$35,IJ$36,$F42) -> TRUE | IK42: =Find_Month(IK$35,IK$36,$F42) -> TRUE | IL42: =Find_Month(IL$35,IL$36,$F42) -> TRUE | IM42: =Find_Month(IM$35,IM$36,$F42) -> TRUE | IN42: =Find_Month(IN$35,IN$36,$F42) -> TRUE | IO42: =Find_Month(IO$35,IO$36,$F42) -> TRUE | IP42: =Find_Month(IP$35,IP$36,$F42) -> TRUE | IQ42: =Find_Month(IQ$35,IQ$36,$F42) -> TRUE | IR42: =Find_Month(IR$35,IR$36,$F42) -> TRUE | IS42: =Find_Month(IS$35,IS$36,$F42) -> TRUE | IT42: =Find_Month(IT$35,IT$36,$F42) -> TRUE | IU42: =Find_Month(IU$35,IU$36,$F42) -> TRUE | IV42: =Find_Month(IV$35,IV$36,$F42) -> TRUE | IW42: =Find_Month(IW$35,IW$36,$F42) -> TRUE | IX42: =Find_Month(IX$35,IX$36,$F42) -> TRUE | IY42: =Find_Month(IY$35,IY$36,$F42) -> TRUE | IZ42: =Find_Month(IZ$35,IZ$36,$F42) -> TRUE | JA42: =Find_Month(JA$35,JA$36,$F42) -> TRUE | JB42: =Find_Month(JB$35,JB$36,$F42) -> TRUE | JC42: =Find_Month(JC$35,JC$36,$F42) -> TRUE | JD42: =Find_Month(JD$35,JD$36,$F42) -> TRUE | JE42: =Find_Month(JE$35,JE$36,$F42) -> TRUE | JF42: =Find_Month(JF$35,JF$36,$F42) -> TRUE | JG42: =Find_Month(JG$35,JG$36,$F42) -> TRUE | JH42: =Find_Month(JH$35,JH$36,$F42) -> TRUE | JI42: =Find_Month(JI$35,JI$36,$F42) -> TRUE | JJ42: =Find_Month(JJ$35,JJ$36,$F42) -> TRUE | JK42: =Find_Month(JK$35,JK$36,$F42) -> TRUE | JL42: =Find_Month(JL$35,JL$36,$F42) -> TRUE | JM42: =Find_Month(JM$35,JM$36,$F42) -> TRUE | JN42: =Find_Month(JN$35,JN$36,$F42) -> TRUE | JO42: =Find_Month(JO$35,JO$36,$F42) -> TRUE | JP42: =Find_Month(JP$35,JP$36,$F42) -> TRUE | JQ42: =Find_Month(JQ$35,JQ$36,$F42) -> TRUE | JR42: =Find_Month(JR$35,JR$36,$F42) -> TRUE | JS42: =Find_Month(JS$35,JS$36,$F42) -> TRUE | JT42: =Find_Month(JT$35,JT$36,$F42) -> TRUE | JU42: =Find_Month(JU$35,JU$36,$F42) -> TRUE | JV42: =Find_Month(JV$35,JV$36,$F42) -> TRUE | JW42: =Find_Month(JW$35,JW$36,$F42) -> TRUE | JX42: =Find_Month(JX$35,JX$36,$F42) -> TRUE | JY42: =Find_Month(JY$35,JY$36,$F42) -> TRUE | JZ42: =Find_Month(JZ$35,JZ$36,$F42) -> TRUE | KA42: =Find_Month(KA$35,KA$36,$F42) -> TRUE | KB42: =Find_Month(KB$35,KB$36,$F42) -> TRUE | KC42: =Find_Month(KC$35,KC$36,$F42) -> TRUE | KD42: =Find_Month(KD$35,KD$36,$F42) -> TRUE | KE42: =Find_Month(KE$35,KE$36,$F42) -> TRUE | KF42: =Find_Month(KF$35,KF$36,$F42) -> TRUE | KG42: =Find_Month(KG$35,KG$36,$F42) -> TRUE | KH42: =Find_Month(KH$35,KH$36,$F42) -> TRUE | KI42: =Find_Month(KI$35,KI$36,$F42) -> TRUE | KJ42: =Find_Month(KJ$35,KJ$36,$F42) -> TRUE | KK42: =Find_Month(KK$35,KK$36,$F42) -> TRUE | KL42: =Find_Month(KL$35,KL$36,$F42) -> TRUE | KM42: =Find_Month(KM$35,KM$36,$F42) -> TRUE | KN42: =Find_Month(KN$35,KN$36,$F42) -> TRUE | KO42: =Find_Month(KO$35,KO$36,$F42) -> TRUE | KP42: =Find_Month(KP$35,KP$36,$F42) -> TRUE | KQ42: =Find_Month(KQ$35,KQ$36,$F42) -> TRUE | KR42: =Find_Month(KR$35,KR$36,$F42) -> TRUE | KS42: =Find_Month(KS$35,KS$36,$F42) -> TRUE | KT42: =Find_Month(KT$35,KT$36,$F42) -> TRUE | KU42: =Find_Month(KU$35,KU$36,$F42) -> TRUE | KV42: =Find_Month(KV$35,KV$36,$F42) -> TRUE | KW42: =Find_Month(KW$35,KW$36,$F42) -> TRUE | KX42: =Find_Month(KX$35,KX$36,$F42) -> TRUE | KY42: =Find_Month(KY$35,KY$36,$F42) -> TRUE | KZ42: =Find_Month(KZ$35,KZ$36,$F42) -> TRUE | LA42: =Find_Month(LA$35,LA$36,$F42) -> TRUE | LB42: =Find_Month(LB$35,LB$36,$F42) -> TRUE | LC42: =Find_Month(LC$35,LC$36,$F42) -> TRUE | LD42: =Find_Month(LD$35,LD$36,$F42) -> TRUE | LE42: =Find_Month(LE$35,LE$36,$F42) -> TRUE | LF42: =Find_Month(LF$35,LF$36,$F42) -> TRUE | LG42: =Find_Month(LG$35,LG$36,$F42) -> TRUE | LH42: =Find_Month(LH$35,LH$36,$F42) -> TRUE | LI42: =Find_Month(LI$35,LI$36,$F42) -> TRUE | LJ42: =Find_Month(LJ$35,LJ$36,$F42) -> TRUE | LK42: =Find_Month(LK$35,LK$36,$F42) -> TRUE | LL42: =Find_Month(LL$35,LL$36,$F42) -> TRUE | LM42: =Find_Month(LM$35,LM$36,$F42) -> TRUE | LN42: =Find_Month(LN$35,LN$36,$F42) -> TRUE | LO42: =Find_Month(LO$35,LO$36,$F42) -> TRUE | LP42: =Find_Month(LP$35,LP$36,$F42) -> TRUE | LQ42: =Find_Month(LQ$35,LQ$36,$F42) -> TRUE | LR42: =Find_Month(LR$35,LR$36,$F42) -> TRUE | LS42: =Find_Month(LS$35,LS$36,$F42) -> TRUE | LT42: =Find_Month(LT$35,LT$36,$F42) -> TRUE | LU42: =Find_Month(LU$35,LU$36,$F42) -> TRUE | LV42: =Find_Month(LV$35,LV$36,$F42) -> TRUE | LW42: =Find_Month(LW$35,LW$36,$F42) -> TRUE | LX42: =Find_Month(LX$35,LX$36,$F42) -> TRUE | LY42: =Find_Month(LY$35,LY$36,$F42) -> TRUE | LZ42: =Find_Month(LZ$35,LZ$36,$F42) -> TRUE | MA42: =Find_Month(MA$35,MA$36,$F42) -> TRUE | MB42: =Find_Month(MB$35,MB$36,$F42) -> TRUE | MC42: =Find_Month(MC$35,MC$36,$F42) -> TRUE | MD42: =Find_Month(MD$35,MD$36,$F42) -> TRUE | ME42: =Find_Month(ME$35,ME$36,$F42) -> TRUE | MF42: =Find_Month(MF$35,MF$36,$F42) -> TRUE | MG42: =Find_Month(MG$35,MG$36,$F42) -> TRUE | MH42: =Find_Month(MH$35,MH$36,$F42) -> TRUE | MI42: =Find_Month(MI$35,MI$36,$F42) -> TRUE | MJ42: =Find_Month(MJ$35,MJ$36,$F42) -> TRUE | MK42: =Find_Month(MK$35,MK$36,$F42) -> TRUE | ML42: =Find_Month(ML$35,ML$36,$F42) -> TRUE | MM42: =Find_Month(MM$35,MM$36,$F42) -> TRUE | MN42: =Find_Month(MN$35,MN$36,$F42) -> TRUE | MO42: =Find_Month(MO$35,MO$36,$F42) -> TRUE | MP42: =Find_Month(MP$35,MP$36,$F42) -> TRUE | MQ42: =Find_Month(MQ$35,MQ$36,$F42) -> TRUE | MR42: =Find_Month(MR$35,MR$36,$F42) -> TRUE | MS42: =Find_Month(MS$35,MS$36,$F42) -> TRUE | MT42: =Find_Month(MT$35,MT$36,$F42) -> TRUE | MU42: =Find_Month(MU$35,MU$36,$F42) -> TRUE | MV42: =Find_Month(MV$35,MV$36,$F42) -> TRUE | MW42: =Find_Month(MW$35,MW$36,$F42) -> TRUE | MX42: =Find_Month(MX$35,MX$36,$F42) -> TRUE | MY42: =Find_Month(MY$35,MY$36,$F42) -> TRUE | MZ42: =Find_Month(MZ$35,MZ$36,$F42) -> TRUE | NA42: =Find_Month(NA$35,NA$36,$F42) -> TRUE | NB42: =Find_Month(NB$35,NB$36,$F42) -> TRUE | NC42: =Find_Month(NC$35,NC$36,$F42) -> TRUE | ND42: =Find_Month(ND$35,ND$36,$F42) -> TRUE | NE42: =Find_Month(NE$35,NE$36,$F42) -> TRUE | NF42: =Find_Month(NF$35,NF$36,$F42) -> TRUE | NG42: =Find_Month(NG$35,NG$36,$F42) -> TRUE | NH42: =Find_Month(NH$35,NH$36,$F42) -> TRUE | NI42: =Find_Month(NI$35,NI$36,$F42) -> TRUE | NJ42: =Find_Month(NJ$35,NJ$36,$F42) -> TRUE | NK42: =Find_Month(NK$35,NK$36,$F42) -> TRUE | NL42: =Find_Month(NL$35,NL$36,$F42) -> TRUE | NM42: =Find_Month(NM$35,NM$36,$F42) -> TRUE | NN42: =Find_Month(NN$35,NN$36,$F42) -> TRUE | NO42: =Find_Month(NO$35,NO$36,$F42) -> TRUE | NP42: =Find_Month(NP$35,NP$36,$F42) -> TRUE | NQ42: =Find_Month(NQ$35,NQ$36,$F42) -> TRUE | NR42: =Find_Month(NR$35,NR$36,$F42) -> TRUE | NS42: =Find_Month(NS$35,NS$36,$F42) -> TRUE | NT42: =Find_Month(NT$35,NT$36,$F42) -> TRUE | NU42: =Find_Month(NU$35,NU$36,$F42) -> TRUE | NV42: =Find_Month(NV$35,NV$36,$F42) -> TRUE | NW42: =Find_Month(NW$35,NW$36,$F42) -> TRUE | NX42: =Find_Month(NX$35,NX$36,$F42) -> TRUE | NY42: =Find_Month(NY$35,NY$36,$F42) -> TRUE | NZ42: =Find_Month(NZ$35,NZ$36,$F42) -> TRUE | OA42: =Find_Month(OA$35,OA$36,$F42) -> TRUE | OB42: =Find_Month(OB$35,OB$36,$F42) -> TRUE | OC42: =Find_Month(OC$35,OC$36,$F42) -> TRUE | OD42: =Find_Month(OD$35,OD$36,$F42) -> TRUE | OE42: =Find_Month(OE$35,OE$36,$F42) -> TRUE | OF42: =Find_Month(OF$35,OF$36,$F42) -> TRUE | OG42: =Find_Month(OG$35,OG$36,$F42) -> TRUE | OH42: =Find_Month(OH$35,OH$36,$F42) -> TRUE | OI42: =Find_Month(OI$35,OI$36,$F42) -> TRUE | OJ42: =Find_Month(OJ$35,OJ$36,$F42) -> TRUE | OK42: =Find_Month(OK$35,OK$36,$F42) -> TRUE | OL42: =Find_Month(OL$35,OL$36,$F42) -> TRUE | OM42: =Find_Month(OM$35,OM$36,$F42) -> TRUE | ON42: =Find_Month(ON$35,ON$36,$F42) -> TRUE | OO42: =Find_Month(OO$35,OO$36,$F42) -> TRUE | OP42: =Find_Month(OP$35,OP$36,$F42) -> TRUE | OQ42: =Find_Month(OQ$35,OQ$36,$F42) -> TRUE | OR42: =Find_Month(OR$35,OR$36,$F42) -> TRUE | OS42: =Find_Month(OS$35,OS$36,$F42) -> TRUE | OT42: =Find_Month(OT$35,OT$36,$F42) -> TRUE | OU42: =Find_Month(OU$35,OU$36,$F42) -> TRUE | OV42: =Find_Month(OV$35,OV$36,$F42) -> TRUE | OW42: =Find_Month(OW$35,OW$36,$F42) -> TRUE | OX42: =Find_Month(OX$35,OX$36,$F42) -> TRUE | OY42: =Find_Month(OY$35,OY$36,$F42) -> TRUE | OZ42: =Find_Month(OZ$35,OZ$36,$F42) -> TRUE | PA42: =Find_Month(PA$35,PA$36,$F42) -> TRUE | PB42: =Find_Month(PB$35,PB$36,$F42) -> TRUE | PC42: =Find_Month(PC$35,PC$36,$F42) -> TRUE | PD42: =Find_Month(PD$35,PD$36,$F42) -> TRUE | PE42: =Find_Month(PE$35,PE$36,$F42) -> TRUE | PF42: =Find_Month(PF$35,PF$36,$F42) -> TRUE | PG42: =Find_Month(PG$35,PG$36,$F42) -> TRUE | PH42: =Find_Month(PH$35,PH$36,$F42) -> TRUE | PI42: =Find_Month(PI$35,PI$36,$F42) -> TRUE | PJ42: =Find_Month(PJ$35,PJ$36,$F42) -> TRUE | PK42: =Find_Month(PK$35,PK$36,$F42) -> TRUE | PL42: =Find_Month(PL$35,PL$36,$F42) -> TRUE | PM42: =Find_Month(PM$35,PM$36,$F42) -> TRUE | PN42: =Find_Month(PN$35,PN$36,$F42) -> TRUE | PO42: =Find_Month(PO$35,PO$36,$F42) -> TRUE | PP42: =Find_Month(PP$35,PP$36,$F42) -> TRUE | PQ42: =Find_Month(PQ$35,PQ$36,$F42) -> TRUE | PR42: =Find_Month(PR$35,PR$36,$F42) -> TRUE | PS42: =Find_Month(PS$35,PS$36,$F42) -> TRUE | PT42: =Find_Month(PT$35,PT$36,$F42) -> TRUE | PU42: =Find_Month(PU$35,PU$36,$F42) -> TRUE | PV42: =Find_Month(PV$35,PV$36,$F42) -> TRUE | PW42: =Find_Month(PW$35,PW$36,$F42) -> TRUE | PX42: =Find_Month(PX$35,PX$36,$F42) -> TRUE | PY42: =Find_Month(PY$35,PY$36,$F42) -> TRUE | PZ42: =Find_Month(PZ$35,PZ$36,$F42) -> TRUE | QA42: =Find_Month(QA$35,QA$36,$F42) -> TRUE | QB42: =Find_Month(QB$35,QB$36,$F42) -> TRUE | QC42: =Find_Month(QC$35,QC$36,$F42) -> TRUE | QD42: =Find_Month(QD$35,QD$36,$F42) -> TRUE | QE42: =Find_Month(QE$35,QE$36,$F42) -> TRUE | QF42: =Find_Month(QF$35,QF$36,$F42) -> TRUE | QG42: =Find_Month(QG$35,QG$36,$F42) -> TRUE | QH42: =Find_Month(QH$35,QH$36,$F42) -> TRUE | QI42: =Find_Month(QI$35,QI$36,$F42) -> TRUE | QJ42: =Find_Month(QJ$35,QJ$36,$F42) -> TRUE | QK42: =Find_Month(QK$35,QK$36,$F42) -> TRUE | QL42: =Find_Month(QL$35,QL$36,$F42) -> TRUE | QM42: =Find_Month(QM$35,QM$36,$F42) -> TRUE | QN42: =Find_Month(QN$35,QN$36,$F42) -> TRUE | QO42: =Find_Month(QO$35,QO$36,$F42) -> TRUE | QP42: =Find_Month(QP$35,QP$36,$F42) -> TRUE | QQ42: =Find_Month(QQ$35,QQ$36,$F42) -> TRUE | QR42: =Find_Month(QR$35,QR$36,$F42) -> TRUE | QS42: =Find_Month(QS$35,QS$36,$F42) -> TRUE | QT42: =Find_Month(QT$35,QT$36,$F42) -> TRUE | QU42: =Find_Month(QU$35,QU$36,$F42) -> TRUE | QV42: =Find_Month(QV$35,QV$36,$F42) -> TRUE | QW42: =Find_Month(QW$35,QW$36,$F42) -> TRUE | QX42: =Find_Month(QX$35,QX$36,$F42) -> TRUE | QY42: =Find_Month(QY$35,QY$36,$F42) -> TRUE | QZ42: =Find_Month(QZ$35,QZ$36,$F42) -> TRUE | RA42: =Find_Month(RA$35,RA$36,$F42) -> TRUE | RB42: =Find_Month(RB$35,RB$36,$F42) -> TRUE | RC42: =Find_Month(RC$35,RC$36,$F42) -> TRUE | RD42: =Find_Month(RD$35,RD$36,$F42) -> TRUE | RE42: =Find_Month(RE$35,RE$36,$F42) -> TRUE | RF42: =Find_Month(RF$35,RF$36,$F42) -> TRUE | RG42: =Find_Month(RG$35,RG$36,$F42) -> TRUE | RH42: =Find_Month(RH$35,RH$36,$F42) -> TRUE | RI42: =Find_Month(RI$35,RI$36,$F42) -> TRUE | RJ42: =Find_Month(RJ$35,RJ$36,$F42) -> TRUE | RK42: =Find_Month(RK$35,RK$36,$F42) -> TRUE | RL42: =Find_Month(RL$35,RL$36,$F42) -> TRUE | RM42: =Find_Month(RM$35,RM$36,$F42) -> TRUE | RN42: =Find_Month(RN$35,RN$36,$F42) -> TRUE | RO42: =Find_Month(RO$35,RO$36,$F42) -> TRUE | RP42: =Find_Month(RP$35,RP$36,$F42) -> TRUE | RQ42: =Find_Month(RQ$35,RQ$36,$F42) -> TRUE | RR42: =Find_Month(RR$35,RR$36,$F42) -> TRUE | RS42: =Find_Month(RS$35,RS$36,$F42) -> TRUE | RT42: =Find_Month(RT$35,RT$36,$F42) -> TRUE | RU42: =Find_Month(RU$35,RU$36,$F42) -> TRUE | RV42: =Find_Month(RV$35,RV$36,$F42) -> TRUE | RW42: =Find_Month(RW$35,RW$36,$F42) -> TRUE | RX42: =Find_Month(RX$35,RX$36,$F42) -> TRUE | RY42: =Find_Month(RY$35,RY$36,$F42) -> TRUE | RZ42: =Find_Month(RZ$35,RZ$36,$F42) -> TRUE | SA42: =Find_Month(SA$35,SA$36,$F42) -> TRUE | SB42: =Find_Month(SB$35,SB$36,$F42) -> TRUE | SC42: =Find_Month(SC$35,SC$36,$F42) -> FALSE | SD42: =Find_Month(SD$35,SD$36,$F42) -> FALSE | SE42: =Find_Month(SE$35,SE$36,$F42) -> FALSE | SF42: =Find_Month(SF$35,SF$36,$F42) -> FALSE | SG42: =Find_Month(SG$35,SG$36,$F42) -> FALSE | SH42: =Find_Month(SH$35,SH$36,$F42) -> FALSE | SI42: =Find_Month(SI$35,SI$36,$F42) -> FALSE | SJ42: =Find_Month(SJ$35,SJ$36,$F42) -> FALSE | SK42: =Find_Month(SK$35,SK$36,$F42) -> FALSE | SL42: =Find_Month(SL$35,SL$36,$F42) -> FALSE | SM42: =Find_Month(SM$35,SM$36,$F42) -> FALSE | SN42: =Find_Month(SN$35,SN$36,$F42) -> FALSE | SO42: =Find_Month(SO$35,SO$36,$F42) -> FALSE | SP42: =Find_Month(SP$35,SP$36,$F42) -> FALSE | SQ42: =Find_Month(SQ$35,SQ$36,$F42) -> FALSE | SR42: =Find_Month(SR$35,SR$36,$F42) -> FALSE | SS42: =Find_Month(SS$35,SS$36,$F42) -> FALSE | ST42: =Find_Month(ST$35,ST$36,$F42) -> FALSE | SU42: =Find_Month(SU$35,SU$36,$F42) -> FALSE | SV42: =Find_Month(SV$35,SV$36,$F42) -> FALSE | SW42: =Find_Month(SW$35,SW$36,$F42) -> FALSE | SX42: =Find_Month(SX$35,SX$36,$F42) -> FALSE | SY42: =Find_Month(SY$35,SY$36,$F42) -> FALSE | SZ42: =Find_Month(SZ$35,SZ$36,$F42) -> FALSE | TA42: =Find_Month(TA$35,TA$36,$F42) -> FALSE | TB42: =Find_Month(TB$35,TB$36,$F42) -> FALSE | TC42: =Find_Month(TC$35,TC$36,$F42) -> FALSE | TD42: =Find_Month(TD$35,TD$36,$F42) -> FALSE | TE42: =Find_Month(TE$35,TE$36,$F42) -> FALSE | TF42: =Find_Month(TF$35,TF$36,$F42) -> FALSE | TG42: =Find_Month(TG$35,TG$36,$F42) -> FALSE | TH42: =Find_Month(TH$35,TH$36,$F42) -> FALSE | TI42: =Find_Month(TI$35,TI$36,$F42) -> FALSE | TJ42: =Find_Month(TJ$35,TJ$36,$F42) -> FALSE | TK42: =Find_Month(TK$35,TK$36,$F42) -> FALSE | TL42: =Find_Month(TL$35,TL$36,$F42) -> FALSE | TM42: =Find_Month(TM$35,TM$36,$F42) -> FALSE | TN42: =Find_Month(TN$35,TN$36,$F42) -> FALSE | TO42: =Find_Month(TO$35,TO$36,$F42) -> FALSE | TP42: =Find_Month(TP$35,TP$36,$F42) -> FALSE | TQ42: =Find_Month(TQ$35,TQ$36,$F42) -> FALSE | TR42: =Find_Month(TR$35,TR$36,$F42) -> FALSE | TS42: =Find_Month(TS$35,TS$36,$F42) -> FALSE | TT42: =Find_Month(TT$35,TT$36,$F42) -> FALSE | TU42: =Find_Month(TU$35,TU$36,$F42) -> FALSE | TV42: =Find_Month(TV$35,TV$36,$F42) -> FALSE | TW42: =Find_Month(TW$35,TW$36,$F42) -> FALSE | TX42: =Find_Month(TX$35,TX$36,$F42) -> FALSE | TY42: =Find_Month(TY$35,TY$36,$F42) -> FALSE
F43: 5 | G43: 284.7911071 | H43: 0.08885110633 | J43: =Find_Month(J$35,J$36,$F43) -> TRUE | K43: =Find_Month(K$35,K$36,$F43) -> TRUE | L43: =Find_Month(L$35,L$36,$F43) -> TRUE | M43: =Find_Month(M$35,M$36,$F43) -> TRUE | N43: =Find_Month(N$35,N$36,$F43) -> TRUE | O43: =Find_Month(O$35,O$36,$F43) -> TRUE | P43: =Find_Month(P$35,P$36,$F43) -> TRUE | Q43: =Find_Month(Q$35,Q$36,$F43) -> TRUE | R43: =Find_Month(R$35,R$36,$F43) -> TRUE | S43: =Find_Month(S$35,S$36,$F43) -> TRUE | T43: =Find_Month(T$35,T$36,$F43) -> TRUE | U43: =Find_Month(U$35,U$36,$F43) -> TRUE | V43: =Find_Month(V$35,V$36,$F43) -> TRUE | W43: =Find_Month(W$35,W$36,$F43) -> TRUE | X43: =Find_Month(X$35,X$36,$F43) -> TRUE | Y43: =Find_Month(Y$35,Y$36,$F43) -> TRUE | Z43: =Find_Month(Z$35,Z$36,$F43) -> TRUE | AA43: =Find_Month(AA$35,AA$36,$F43) -> TRUE | AB43: =Find_Month(AB$35,AB$36,$F43) -> TRUE | AC43: =Find_Month(AC$35,AC$36,$F43) -> TRUE | AD43: =Find_Month(AD$35,AD$36,$F43) -> TRUE | AE43: =Find_Month(AE$35,AE$36,$F43) -> TRUE | AF43: =Find_Month(AF$35,AF$36,$F43) -> TRUE | AG43: =Find_Month(AG$35,AG$36,$F43) -> TRUE | AH43: =Find_Month(AH$35,AH$36,$F43) -> TRUE | AI43: =Find_Month(AI$35,AI$36,$F43) -> TRUE | AJ43: =Find_Month(AJ$35,AJ$36,$F43) -> TRUE | AK43: =Find_Month(AK$35,AK$36,$F43) -> TRUE | AL43: =Find_Month(AL$35,AL$36,$F43) -> TRUE | AM43: =Find_Month(AM$35,AM$36,$F43) -> TRUE | AN43: =Find_Month(AN$35,AN$36,$F43) -> TRUE | AO43: =Find_Month(AO$35,AO$36,$F43) -> TRUE | AP43: =Find_Month(AP$35,AP$36,$F43) -> TRUE | AQ43: =Find_Month(AQ$35,AQ$36,$F43) -> TRUE | AR43: =Find_Month(AR$35,AR$36,$F43) -> TRUE | AS43: =Find_Month(AS$35,AS$36,$F43) -> TRUE | AT43: =Find_Month(AT$35,AT$36,$F43) -> TRUE | AU43: =Find_Month(AU$35,AU$36,$F43) -> TRUE | AV43: =Find_Month(AV$35,AV$36,$F43) -> TRUE | AW43: =Find_Month(AW$35,AW$36,$F43) -> TRUE | AX43: =Find_Month(AX$35,AX$36,$F43) -> TRUE | AY43: =Find_Month(AY$35,AY$36,$F43) -> TRUE | AZ43: =Find_Month(AZ$35,AZ$36,$F43) -> TRUE | BA43: =Find_Month(BA$35,BA$36,$F43) -> TRUE | BB43: =Find_Month(BB$35,BB$36,$F43) -> TRUE | BC43: =Find_Month(BC$35,BC$36,$F43) -> TRUE | BD43: =Find_Month(BD$35,BD$36,$F43) -> TRUE | BE43: =Find_Month(BE$35,BE$36,$F43) -> TRUE | BF43: =Find_Month(BF$35,BF$36,$F43) -> TRUE | BG43: =Find_Month(BG$35,BG$36,$F43) -> TRUE | BH43: =Find_Month(BH$35,BH$36,$F43) -> TRUE | BI43: =Find_Month(BI$35,BI$36,$F43) -> TRUE | BJ43: =Find_Month(BJ$35,BJ$36,$F43) -> TRUE | BK43: =Find_Month(BK$35,BK$36,$F43) -> TRUE | BL43: =Find_Month(BL$35,BL$36,$F43) -> TRUE | BM43: =Find_Month(BM$35,BM$36,$F43) -> TRUE | BN43: =Find_Month(BN$35,BN$36,$F43) -> TRUE | BO43: =Find_Month(BO$35,BO$36,$F43) -> TRUE | BP43: =Find_Month(BP$35,BP$36,$F43) -> TRUE | BQ43: =Find_Month(BQ$35,BQ$36,$F43) -> TRUE | BR43: =Find_Month(BR$35,BR$36,$F43) -> TRUE | BS43: =Find_Month(BS$35,BS$36,$F43) -> TRUE | BT43: =Find_Month(BT$35,BT$36,$F43) -> TRUE | BU43: =Find_Month(BU$35,BU$36,$F43) -> TRUE | BV43: =Find_Month(BV$35,BV$36,$F43) -> TRUE | BW43: =Find_Month(BW$35,BW$36,$F43) -> TRUE | BX43: =Find_Month(BX$35,BX$36,$F43) -> TRUE | BY43: =Find_Month(BY$35,BY$36,$F43) -> TRUE | BZ43: =Find_Month(BZ$35,BZ$36,$F43) -> TRUE | CA43: =Find_Month(CA$35,CA$36,$F43) -> TRUE | CB43: =Find_Month(CB$35,CB$36,$F43) -> TRUE | CC43: =Find_Month(CC$35,CC$36,$F43) -> TRUE | CD43: =Find_Month(CD$35,CD$36,$F43) -> TRUE | CE43: =Find_Month(CE$35,CE$36,$F43) -> TRUE | CF43: =Find_Month(CF$35,CF$36,$F43) -> TRUE | CG43: =Find_Month(CG$35,CG$36,$F43) -> TRUE | CH43: =Find_Month(CH$35,CH$36,$F43) -> TRUE | CI43: =Find_Month(CI$35,CI$36,$F43) -> TRUE | CJ43: =Find_Month(CJ$35,CJ$36,$F43) -> TRUE | CK43: =Find_Month(CK$35,CK$36,$F43) -> TRUE | CL43: =Find_Month(CL$35,CL$36,$F43) -> TRUE | CM43: =Find_Month(CM$35,CM$36,$F43) -> TRUE | CN43: =Find_Month(CN$35,CN$36,$F43) -> TRUE | CO43: =Find_Month(CO$35,CO$36,$F43) -> TRUE | CP43: =Find_Month(CP$35,CP$36,$F43) -> TRUE | CQ43: =Find_Month(CQ$35,CQ$36,$F43) -> TRUE | CR43: =Find_Month(CR$35,CR$36,$F43) -> TRUE | CS43: =Find_Month(CS$35,CS$36,$F43) -> TRUE | CT43: =Find_Month(CT$35,CT$36,$F43) -> TRUE | CU43: =Find_Month(CU$35,CU$36,$F43) -> TRUE | CV43: =Find_Month(CV$35,CV$36,$F43) -> TRUE | CW43: =Find_Month(CW$35,CW$36,$F43) -> TRUE | CX43: =Find_Month(CX$35,CX$36,$F43) -> TRUE | CY43: =Find_Month(CY$35,CY$36,$F43) -> TRUE | CZ43: =Find_Month(CZ$35,CZ$36,$F43) -> TRUE | DA43: =Find_Month(DA$35,DA$36,$F43) -> TRUE | DB43: =Find_Month(DB$35,DB$36,$F43) -> TRUE | DC43: =Find_Month(DC$35,DC$36,$F43) -> TRUE | DD43: =Find_Month(DD$35,DD$36,$F43) -> TRUE | DE43: =Find_Month(DE$35,DE$36,$F43) -> TRUE | DF43: =Find_Month(DF$35,DF$36,$F43) -> TRUE | DG43: =Find_Month(DG$35,DG$36,$F43) -> TRUE | DH43: =Find_Month(DH$35,DH$36,$F43) -> TRUE | DI43: =Find_Month(DI$35,DI$36,$F43) -> TRUE | DJ43: =Find_Month(DJ$35,DJ$36,$F43) -> TRUE | DK43: =Find_Month(DK$35,DK$36,$F43) -> TRUE | DL43: =Find_Month(DL$35,DL$36,$F43) -> TRUE | DM43: =Find_Month(DM$35,DM$36,$F43) -> TRUE | DN43: =Find_Month(DN$35,DN$36,$F43) -> TRUE | DO43: =Find_Month(DO$35,DO$36,$F43) -> TRUE | DP43: =Find_Month(DP$35,DP$36,$F43) -> TRUE | DQ43: =Find_Month(DQ$35,DQ$36,$F43) -> TRUE | DR43: =Find_Month(DR$35,DR$36,$F43) -> TRUE | DS43: =Find_Month(DS$35,DS$36,$F43) -> TRUE | DT43: =Find_Month(DT$35,DT$36,$F43) -> TRUE | DU43: =Find_Month(DU$35,DU$36,$F43) -> TRUE | DV43: =Find_Month(DV$35,DV$36,$F43) -> TRUE | DW43: =Find_Month(DW$35,DW$36,$F43) -> TRUE | DX43: =Find_Month(DX$35,DX$36,$F43) -> TRUE | DY43: =Find_Month(DY$35,DY$36,$F43) -> TRUE | DZ43: =Find_Month(DZ$35,DZ$36,$F43) -> TRUE | EA43: =Find_Month(EA$35,EA$36,$F43) -> TRUE | EB43: =Find_Month(EB$35,EB$36,$F43) -> TRUE | EC43: =Find_Month(EC$35,EC$36,$F43) -> TRUE | ED43: =Find_Month(ED$35,ED$36,$F43) -> TRUE | EE43: =Find_Month(EE$35,EE$36,$F43) -> TRUE | EF43: =Find_Month(EF$35,EF$36,$F43) -> TRUE | EG43: =Find_Month(EG$35,EG$36,$F43) -> TRUE | EH43: =Find_Month(EH$35,EH$36,$F43) -> TRUE | EI43: =Find_Month(EI$35,EI$36,$F43) -> TRUE | EJ43: =Find_Month(EJ$35,EJ$36,$F43) -> TRUE | EK43: =Find_Month(EK$35,EK$36,$F43) -> TRUE | EL43: =Find_Month(EL$35,EL$36,$F43) -> TRUE | EM43: =Find_Month(EM$35,EM$36,$F43) -> TRUE | EN43: =Find_Month(EN$35,EN$36,$F43) -> TRUE | EO43: =Find_Month(EO$35,EO$36,$F43) -> TRUE | EP43: =Find_Month(EP$35,EP$36,$F43) -> TRUE | EQ43: =Find_Month(EQ$35,EQ$36,$F43) -> TRUE | ER43: =Find_Month(ER$35,ER$36,$F43) -> TRUE | ES43: =Find_Month(ES$35,ES$36,$F43) -> TRUE | ET43: =Find_Month(ET$35,ET$36,$F43) -> TRUE | EU43: =Find_Month(EU$35,EU$36,$F43) -> TRUE | EV43: =Find_Month(EV$35,EV$36,$F43) -> TRUE | EW43: =Find_Month(EW$35,EW$36,$F43) -> TRUE | EX43: =Find_Month(EX$35,EX$36,$F43) -> TRUE | EY43: =Find_Month(EY$35,EY$36,$F43) -> TRUE | EZ43: =Find_Month(EZ$35,EZ$36,$F43) -> TRUE | FA43: =Find_Month(FA$35,FA$36,$F43) -> TRUE | FB43: =Find_Month(FB$35,FB$36,$F43) -> TRUE | FC43: =Find_Month(FC$35,FC$36,$F43) -> TRUE | FD43: =Find_Month(FD$35,FD$36,$F43) -> TRUE | FE43: =Find_Month(FE$35,FE$36,$F43) -> TRUE | FF43: =Find_Month(FF$35,FF$36,$F43) -> TRUE | FG43: =Find_Month(FG$35,FG$36,$F43) -> TRUE | FH43: =Find_Month(FH$35,FH$36,$F43) -> TRUE | FI43: =Find_Month(FI$35,FI$36,$F43) -> TRUE | FJ43: =Find_Month(FJ$35,FJ$36,$F43) -> TRUE | FK43: =Find_Month(FK$35,FK$36,$F43) -> TRUE | FL43: =Find_Month(FL$35,FL$36,$F43) -> TRUE | FM43: =Find_Month(FM$35,FM$36,$F43) -> TRUE | FN43: =Find_Month(FN$35,FN$36,$F43) -> TRUE | FO43: =Find_Month(FO$35,FO$36,$F43) -> TRUE | FP43: =Find_Month(FP$35,FP$36,$F43) -> TRUE | FQ43: =Find_Month(FQ$35,FQ$36,$F43) -> TRUE | FR43: =Find_Month(FR$35,FR$36,$F43) -> TRUE | FS43: =Find_Month(FS$35,FS$36,$F43) -> TRUE | FT43: =Find_Month(FT$35,FT$36,$F43) -> TRUE | FU43: =Find_Month(FU$35,FU$36,$F43) -> TRUE | FV43: =Find_Month(FV$35,FV$36,$F43) -> TRUE | FW43: =Find_Month(FW$35,FW$36,$F43) -> TRUE | FX43: =Find_Month(FX$35,FX$36,$F43) -> TRUE | FY43: =Find_Month(FY$35,FY$36,$F43) -> TRUE | FZ43: =Find_Month(FZ$35,FZ$36,$F43) -> TRUE | GA43: =Find_Month(GA$35,GA$36,$F43) -> TRUE | GB43: =Find_Month(GB$35,GB$36,$F43) -> TRUE | GC43: =Find_Month(GC$35,GC$36,$F43) -> TRUE | GD43: =Find_Month(GD$35,GD$36,$F43) -> TRUE | GE43: =Find_Month(GE$35,GE$36,$F43) -> TRUE | GF43: =Find_Month(GF$35,GF$36,$F43) -> TRUE | GG43: =Find_Month(GG$35,GG$36,$F43) -> TRUE | GH43: =Find_Month(GH$35,GH$36,$F43) -> TRUE | GI43: =Find_Month(GI$35,GI$36,$F43) -> TRUE | GJ43: =Find_Month(GJ$35,GJ$36,$F43) -> TRUE | GK43: =Find_Month(GK$35,GK$36,$F43) -> TRUE | GL43: =Find_Month(GL$35,GL$36,$F43) -> TRUE | GM43: =Find_Month(GM$35,GM$36,$F43) -> TRUE | GN43: =Find_Month(GN$35,GN$36,$F43) -> TRUE | GO43: =Find_Month(GO$35,GO$36,$F43) -> TRUE | GP43: =Find_Month(GP$35,GP$36,$F43) -> TRUE | GQ43: =Find_Month(GQ$35,GQ$36,$F43) -> TRUE | GR43: =Find_Month(GR$35,GR$36,$F43) -> TRUE | GS43: =Find_Month(GS$35,GS$36,$F43) -> TRUE | GT43: =Find_Month(GT$35,GT$36,$F43) -> TRUE | GU43: =Find_Month(GU$35,GU$36,$F43) -> TRUE | GV43: =Find_Month(GV$35,GV$36,$F43) -> TRUE | GW43: =Find_Month(GW$35,GW$36,$F43) -> TRUE | GX43: =Find_Month(GX$35,GX$36,$F43) -> TRUE | GY43: =Find_Month(GY$35,GY$36,$F43) -> TRUE | GZ43: =Find_Month(GZ$35,GZ$36,$F43) -> TRUE | HA43: =Find_Month(HA$35,HA$36,$F43) -> TRUE | HB43: =Find_Month(HB$35,HB$36,$F43) -> TRUE | HC43: =Find_Month(HC$35,HC$36,$F43) -> TRUE | HD43: =Find_Month(HD$35,HD$36,$F43) -> TRUE | HE43: =Find_Month(HE$35,HE$36,$F43) -> TRUE | HF43: =Find_Month(HF$35,HF$36,$F43) -> TRUE | HG43: =Find_Month(HG$35,HG$36,$F43) -> TRUE | HH43: =Find_Month(HH$35,HH$36,$F43) -> TRUE | HI43: =Find_Month(HI$35,HI$36,$F43) -> TRUE | HJ43: =Find_Month(HJ$35,HJ$36,$F43) -> TRUE | HK43: =Find_Month(HK$35,HK$36,$F43) -> TRUE | HL43: =Find_Month(HL$35,HL$36,$F43) -> TRUE | HM43: =Find_Month(HM$35,HM$36,$F43) -> TRUE | HN43: =Find_Month(HN$35,HN$36,$F43) -> TRUE | HO43: =Find_Month(HO$35,HO$36,$F43) -> TRUE | HP43: =Find_Month(HP$35,HP$36,$F43) -> TRUE | HQ43: =Find_Month(HQ$35,HQ$36,$F43) -> TRUE | HR43: =Find_Month(HR$35,HR$36,$F43) -> TRUE | HS43: =Find_Month(HS$35,HS$36,$F43) -> TRUE | HT43: =Find_Month(HT$35,HT$36,$F43) -> TRUE | HU43: =Find_Month(HU$35,HU$36,$F43) -> TRUE | HV43: =Find_Month(HV$35,HV$36,$F43) -> TRUE | HW43: =Find_Month(HW$35,HW$36,$F43) -> TRUE | HX43: =Find_Month(HX$35,HX$36,$F43) -> TRUE | HY43: =Find_Month(HY$35,HY$36,$F43) -> TRUE | HZ43: =Find_Month(HZ$35,HZ$36,$F43) -> TRUE | IA43: =Find_Month(IA$35,IA$36,$F43) -> TRUE | IB43: =Find_Month(IB$35,IB$36,$F43) -> TRUE | IC43: =Find_Month(IC$35,IC$36,$F43) -> TRUE | ID43: =Find_Month(ID$35,ID$36,$F43) -> TRUE | IE43: =Find_Month(IE$35,IE$36,$F43) -> TRUE | IF43: =Find_Month(IF$35,IF$36,$F43) -> TRUE | IG43: =Find_Month(IG$35,IG$36,$F43) -> TRUE | IH43: =Find_Month(IH$35,IH$36,$F43) -> TRUE | II43: =Find_Month(II$35,II$36,$F43) -> TRUE | IJ43: =Find_Month(IJ$35,IJ$36,$F43) -> TRUE | IK43: =Find_Month(IK$35,IK$36,$F43) -> TRUE | IL43: =Find_Month(IL$35,IL$36,$F43) -> TRUE | IM43: =Find_Month(IM$35,IM$36,$F43) -> TRUE | IN43: =Find_Month(IN$35,IN$36,$F43) -> TRUE | IO43: =Find_Month(IO$35,IO$36,$F43) -> TRUE | IP43: =Find_Month(IP$35,IP$36,$F43) -> TRUE | IQ43: =Find_Month(IQ$35,IQ$36,$F43) -> TRUE | IR43: =Find_Month(IR$35,IR$36,$F43) -> TRUE | IS43: =Find_Month(IS$35,IS$36,$F43) -> TRUE | IT43: =Find_Month(IT$35,IT$36,$F43) -> TRUE | IU43: =Find_Month(IU$35,IU$36,$F43) -> TRUE | IV43: =Find_Month(IV$35,IV$36,$F43) -> TRUE | IW43: =Find_Month(IW$35,IW$36,$F43) -> TRUE | IX43: =Find_Month(IX$35,IX$36,$F43) -> TRUE | IY43: =Find_Month(IY$35,IY$36,$F43) -> TRUE | IZ43: =Find_Month(IZ$35,IZ$36,$F43) -> TRUE | JA43: =Find_Month(JA$35,JA$36,$F43) -> TRUE | JB43: =Find_Month(JB$35,JB$36,$F43) -> TRUE | JC43: =Find_Month(JC$35,JC$36,$F43) -> TRUE | JD43: =Find_Month(JD$35,JD$36,$F43) -> TRUE | JE43: =Find_Month(JE$35,JE$36,$F43) -> TRUE | JF43: =Find_Month(JF$35,JF$36,$F43) -> TRUE | JG43: =Find_Month(JG$35,JG$36,$F43) -> TRUE | JH43: =Find_Month(JH$35,JH$36,$F43) -> TRUE | JI43: =Find_Month(JI$35,JI$36,$F43) -> TRUE | JJ43: =Find_Month(JJ$35,JJ$36,$F43) -> TRUE | JK43: =Find_Month(JK$35,JK$36,$F43) -> TRUE | JL43: =Find_Month(JL$35,JL$36,$F43) -> TRUE | JM43: =Find_Month(JM$35,JM$36,$F43) -> TRUE | JN43: =Find_Month(JN$35,JN$36,$F43) -> TRUE | JO43: =Find_Month(JO$35,JO$36,$F43) -> TRUE | JP43: =Find_Month(JP$35,JP$36,$F43) -> TRUE | JQ43: =Find_Month(JQ$35,JQ$36,$F43) -> TRUE | JR43: =Find_Month(JR$35,JR$36,$F43) -> TRUE | JS43: =Find_Month(JS$35,JS$36,$F43) -> TRUE | JT43: =Find_Month(JT$35,JT$36,$F43) -> TRUE | JU43: =Find_Month(JU$35,JU$36,$F43) -> TRUE | JV43: =Find_Month(JV$35,JV$36,$F43) -> TRUE | JW43: =Find_Month(JW$35,JW$36,$F43) -> TRUE | JX43: =Find_Month(JX$35,JX$36,$F43) -> TRUE | JY43: =Find_Month(JY$35,JY$36,$F43) -> TRUE | JZ43: =Find_Month(JZ$35,JZ$36,$F43) -> TRUE | KA43: =Find_Month(KA$35,KA$36,$F43) -> TRUE | KB43: =Find_Month(KB$35,KB$36,$F43) -> TRUE | KC43: =Find_Month(KC$35,KC$36,$F43) -> TRUE | KD43: =Find_Month(KD$35,KD$36,$F43) -> TRUE | KE43: =Find_Month(KE$35,KE$36,$F43) -> TRUE | KF43: =Find_Month(KF$35,KF$36,$F43) -> TRUE | KG43: =Find_Month(KG$35,KG$36,$F43) -> TRUE | KH43: =Find_Month(KH$35,KH$36,$F43) -> TRUE | KI43: =Find_Month(KI$35,KI$36,$F43) -> TRUE | KJ43: =Find_Month(KJ$35,KJ$36,$F43) -> TRUE | KK43: =Find_Month(KK$35,KK$36,$F43) -> TRUE | KL43: =Find_Month(KL$35,KL$36,$F43) -> TRUE | KM43: =Find_Month(KM$35,KM$36,$F43) -> TRUE | KN43: =Find_Month(KN$35,KN$36,$F43) -> TRUE | KO43: =Find_Month(KO$35,KO$36,$F43) -> TRUE | KP43: =Find_Month(KP$35,KP$36,$F43) -> TRUE | KQ43: =Find_Month(KQ$35,KQ$36,$F43) -> TRUE | KR43: =Find_Month(KR$35,KR$36,$F43) -> TRUE | KS43: =Find_Month(KS$35,KS$36,$F43) -> TRUE | KT43: =Find_Month(KT$35,KT$36,$F43) -> TRUE | KU43: =Find_Month(KU$35,KU$36,$F43) -> TRUE | KV43: =Find_Month(KV$35,KV$36,$F43) -> TRUE | KW43: =Find_Month(KW$35,KW$36,$F43) -> TRUE | KX43: =Find_Month(KX$35,KX$36,$F43) -> TRUE | KY43: =Find_Month(KY$35,KY$36,$F43) -> TRUE | KZ43: =Find_Month(KZ$35,KZ$36,$F43) -> TRUE | LA43: =Find_Month(LA$35,LA$36,$F43) -> TRUE | LB43: =Find_Month(LB$35,LB$36,$F43) -> TRUE | LC43: =Find_Month(LC$35,LC$36,$F43) -> TRUE | LD43: =Find_Month(LD$35,LD$36,$F43) -> TRUE | LE43: =Find_Month(LE$35,LE$36,$F43) -> TRUE | LF43: =Find_Month(LF$35,LF$36,$F43) -> TRUE | LG43: =Find_Month(LG$35,LG$36,$F43) -> TRUE | LH43: =Find_Month(LH$35,LH$36,$F43) -> TRUE | LI43: =Find_Month(LI$35,LI$36,$F43) -> TRUE | LJ43: =Find_Month(LJ$35,LJ$36,$F43) -> TRUE | LK43: =Find_Month(LK$35,LK$36,$F43) -> TRUE | LL43: =Find_Month(LL$35,LL$36,$F43) -> TRUE | LM43: =Find_Month(LM$35,LM$36,$F43) -> TRUE | LN43: =Find_Month(LN$35,LN$36,$F43) -> TRUE | LO43: =Find_Month(LO$35,LO$36,$F43) -> TRUE | LP43: =Find_Month(LP$35,LP$36,$F43) -> TRUE | LQ43: =Find_Month(LQ$35,LQ$36,$F43) -> TRUE | LR43: =Find_Month(LR$35,LR$36,$F43) -> TRUE | LS43: =Find_Month(LS$35,LS$36,$F43) -> TRUE | LT43: =Find_Month(LT$35,LT$36,$F43) -> TRUE | LU43: =Find_Month(LU$35,LU$36,$F43) -> TRUE | LV43: =Find_Month(LV$35,LV$36,$F43) -> TRUE | LW43: =Find_Month(LW$35,LW$36,$F43) -> TRUE | LX43: =Find_Month(LX$35,LX$36,$F43) -> TRUE | LY43: =Find_Month(LY$35,LY$36,$F43) -> TRUE | LZ43: =Find_Month(LZ$35,LZ$36,$F43) -> TRUE | MA43: =Find_Month(MA$35,MA$36,$F43) -> TRUE | MB43: =Find_Month(MB$35,MB$36,$F43) -> TRUE | MC43: =Find_Month(MC$35,MC$36,$F43) -> TRUE | MD43: =Find_Month(MD$35,MD$36,$F43) -> TRUE | ME43: =Find_Month(ME$35,ME$36,$F43) -> TRUE | MF43: =Find_Month(MF$35,MF$36,$F43) -> TRUE | MG43: =Find_Month(MG$35,MG$36,$F43) -> TRUE | MH43: =Find_Month(MH$35,MH$36,$F43) -> TRUE | MI43: =Find_Month(MI$35,MI$36,$F43) -> TRUE | MJ43: =Find_Month(MJ$35,MJ$36,$F43) -> TRUE | MK43: =Find_Month(MK$35,MK$36,$F43) -> TRUE | ML43: =Find_Month(ML$35,ML$36,$F43) -> TRUE | MM43: =Find_Month(MM$35,MM$36,$F43) -> TRUE | MN43: =Find_Month(MN$35,MN$36,$F43) -> TRUE | MO43: =Find_Month(MO$35,MO$36,$F43) -> TRUE | MP43: =Find_Month(MP$35,MP$36,$F43) -> TRUE | MQ43: =Find_Month(MQ$35,MQ$36,$F43) -> TRUE | MR43: =Find_Month(MR$35,MR$36,$F43) -> TRUE | MS43: =Find_Month(MS$35,MS$36,$F43) -> TRUE | MT43: =Find_Month(MT$35,MT$36,$F43) -> TRUE | MU43: =Find_Month(MU$35,MU$36,$F43) -> TRUE | MV43: =Find_Month(MV$35,MV$36,$F43) -> TRUE | MW43: =Find_Month(MW$35,MW$36,$F43) -> TRUE | MX43: =Find_Month(MX$35,MX$36,$F43) -> TRUE | MY43: =Find_Month(MY$35,MY$36,$F43) -> TRUE | MZ43: =Find_Month(MZ$35,MZ$36,$F43) -> TRUE | NA43: =Find_Month(NA$35,NA$36,$F43) -> TRUE | NB43: =Find_Month(NB$35,NB$36,$F43) -> TRUE | NC43: =Find_Month(NC$35,NC$36,$F43) -> TRUE | ND43: =Find_Month(ND$35,ND$36,$F43) -> TRUE | NE43: =Find_Month(NE$35,NE$36,$F43) -> TRUE | NF43: =Find_Month(NF$35,NF$36,$F43) -> TRUE | NG43: =Find_Month(NG$35,NG$36,$F43) -> TRUE | NH43: =Find_Month(NH$35,NH$36,$F43) -> TRUE | NI43: =Find_Month(NI$35,NI$36,$F43) -> TRUE | NJ43: =Find_Month(NJ$35,NJ$36,$F43) -> TRUE | NK43: =Find_Month(NK$35,NK$36,$F43) -> TRUE | NL43: =Find_Month(NL$35,NL$36,$F43) -> TRUE | NM43: =Find_Month(NM$35,NM$36,$F43) -> TRUE | NN43: =Find_Month(NN$35,NN$36,$F43) -> TRUE | NO43: =Find_Month(NO$35,NO$36,$F43) -> TRUE | NP43: =Find_Month(NP$35,NP$36,$F43) -> TRUE | NQ43: =Find_Month(NQ$35,NQ$36,$F43) -> TRUE | NR43: =Find_Month(NR$35,NR$36,$F43) -> TRUE | NS43: =Find_Month(NS$35,NS$36,$F43) -> TRUE | NT43: =Find_Month(NT$35,NT$36,$F43) -> TRUE | NU43: =Find_Month(NU$35,NU$36,$F43) -> TRUE | NV43: =Find_Month(NV$35,NV$36,$F43) -> TRUE | NW43: =Find_Month(NW$35,NW$36,$F43) -> TRUE | NX43: =Find_Month(NX$35,NX$36,$F43) -> TRUE | NY43: =Find_Month(NY$35,NY$36,$F43) -> TRUE | NZ43: =Find_Month(NZ$35,NZ$36,$F43) -> TRUE | OA43: =Find_Month(OA$35,OA$36,$F43) -> TRUE | OB43: =Find_Month(OB$35,OB$36,$F43) -> TRUE | OC43: =Find_Month(OC$35,OC$36,$F43) -> TRUE | OD43: =Find_Month(OD$35,OD$36,$F43) -> TRUE | OE43: =Find_Month(OE$35,OE$36,$F43) -> TRUE | OF43: =Find_Month(OF$35,OF$36,$F43) -> TRUE | OG43: =Find_Month(OG$35,OG$36,$F43) -> TRUE | OH43: =Find_Month(OH$35,OH$36,$F43) -> TRUE | OI43: =Find_Month(OI$35,OI$36,$F43) -> TRUE | OJ43: =Find_Month(OJ$35,OJ$36,$F43) -> TRUE | OK43: =Find_Month(OK$35,OK$36,$F43) -> TRUE | OL43: =Find_Month(OL$35,OL$36,$F43) -> TRUE | OM43: =Find_Month(OM$35,OM$36,$F43) -> TRUE | ON43: =Find_Month(ON$35,ON$36,$F43) -> TRUE | OO43: =Find_Month(OO$35,OO$36,$F43) -> TRUE | OP43: =Find_Month(OP$35,OP$36,$F43) -> TRUE | OQ43: =Find_Month(OQ$35,OQ$36,$F43) -> TRUE | OR43: =Find_Month(OR$35,OR$36,$F43) -> TRUE | OS43: =Find_Month(OS$35,OS$36,$F43) -> TRUE | OT43: =Find_Month(OT$35,OT$36,$F43) -> TRUE | OU43: =Find_Month(OU$35,OU$36,$F43) -> TRUE | OV43: =Find_Month(OV$35,OV$36,$F43) -> TRUE | OW43: =Find_Month(OW$35,OW$36,$F43) -> TRUE | OX43: =Find_Month(OX$35,OX$36,$F43) -> TRUE | OY43: =Find_Month(OY$35,OY$36,$F43) -> TRUE | OZ43: =Find_Month(OZ$35,OZ$36,$F43) -> TRUE | PA43: =Find_Month(PA$35,PA$36,$F43) -> TRUE | PB43: =Find_Month(PB$35,PB$36,$F43) -> TRUE | PC43: =Find_Month(PC$35,PC$36,$F43) -> TRUE | PD43: =Find_Month(PD$35,PD$36,$F43) -> TRUE | PE43: =Find_Month(PE$35,PE$36,$F43) -> TRUE | PF43: =Find_Month(PF$35,PF$36,$F43) -> TRUE | PG43: =Find_Month(PG$35,PG$36,$F43) -> TRUE | PH43: =Find_Month(PH$35,PH$36,$F43) -> TRUE | PI43: =Find_Month(PI$35,PI$36,$F43) -> TRUE | PJ43: =Find_Month(PJ$35,PJ$36,$F43) -> TRUE | PK43: =Find_Month(PK$35,PK$36,$F43) -> TRUE | PL43: =Find_Month(PL$35,PL$36,$F43) -> TRUE | PM43: =Find_Month(PM$35,PM$36,$F43) -> TRUE | PN43: =Find_Month(PN$35,PN$36,$F43) -> TRUE | PO43: =Find_Month(PO$35,PO$36,$F43) -> TRUE | PP43: =Find_Month(PP$35,PP$36,$F43) -> TRUE | PQ43: =Find_Month(PQ$35,PQ$36,$F43) -> TRUE | PR43: =Find_Month(PR$35,PR$36,$F43) -> TRUE | PS43: =Find_Month(PS$35,PS$36,$F43) -> TRUE | PT43: =Find_Month(PT$35,PT$36,$F43) -> TRUE | PU43: =Find_Month(PU$35,PU$36,$F43) -> TRUE | PV43: =Find_Month(PV$35,PV$36,$F43) -> TRUE | PW43: =Find_Month(PW$35,PW$36,$F43) -> TRUE | PX43: =Find_Month(PX$35,PX$36,$F43) -> TRUE | PY43: =Find_Month(PY$35,PY$36,$F43) -> TRUE | PZ43: =Find_Month(PZ$35,PZ$36,$F43) -> TRUE | QA43: =Find_Month(QA$35,QA$36,$F43) -> TRUE | QB43: =Find_Month(QB$35,QB$36,$F43) -> TRUE | QC43: =Find_Month(QC$35,QC$36,$F43) -> TRUE | QD43: =Find_Month(QD$35,QD$36,$F43) -> TRUE | QE43: =Find_Month(QE$35,QE$36,$F43) -> TRUE | QF43: =Find_Month(QF$35,QF$36,$F43) -> TRUE | QG43: =Find_Month(QG$35,QG$36,$F43) -> TRUE | QH43: =Find_Month(QH$35,QH$36,$F43) -> TRUE | QI43: =Find_Month(QI$35,QI$36,$F43) -> TRUE | QJ43: =Find_Month(QJ$35,QJ$36,$F43) -> TRUE | QK43: =Find_Month(QK$35,QK$36,$F43) -> TRUE | QL43: =Find_Month(QL$35,QL$36,$F43) -> TRUE | QM43: =Find_Month(QM$35,QM$36,$F43) -> TRUE | QN43: =Find_Month(QN$35,QN$36,$F43) -> TRUE | QO43: =Find_Month(QO$35,QO$36,$F43) -> TRUE | QP43: =Find_Month(QP$35,QP$36,$F43) -> TRUE | QQ43: =Find_Month(QQ$35,QQ$36,$F43) -> TRUE | QR43: =Find_Month(QR$35,QR$36,$F43) -> TRUE | QS43: =Find_Month(QS$35,QS$36,$F43) -> TRUE | QT43: =Find_Month(QT$35,QT$36,$F43) -> TRUE | QU43: =Find_Month(QU$35,QU$36,$F43) -> TRUE | QV43: =Find_Month(QV$35,QV$36,$F43) -> TRUE | QW43: =Find_Month(QW$35,QW$36,$F43) -> TRUE | QX43: =Find_Month(QX$35,QX$36,$F43) -> TRUE | QY43: =Find_Month(QY$35,QY$36,$F43) -> TRUE | QZ43: =Find_Month(QZ$35,QZ$36,$F43) -> TRUE | RA43: =Find_Month(RA$35,RA$36,$F43) -> TRUE | RB43: =Find_Month(RB$35,RB$36,$F43) -> TRUE | RC43: =Find_Month(RC$35,RC$36,$F43) -> TRUE | RD43: =Find_Month(RD$35,RD$36,$F43) -> TRUE | RE43: =Find_Month(RE$35,RE$36,$F43) -> TRUE | RF43: =Find_Month(RF$35,RF$36,$F43) -> TRUE | RG43: =Find_Month(RG$35,RG$36,$F43) -> TRUE | RH43: =Find_Month(RH$35,RH$36,$F43) -> TRUE | RI43: =Find_Month(RI$35,RI$36,$F43) -> TRUE | RJ43: =Find_Month(RJ$35,RJ$36,$F43) -> TRUE | RK43: =Find_Month(RK$35,RK$36,$F43) -> TRUE | RL43: =Find_Month(RL$35,RL$36,$F43) -> TRUE | RM43: =Find_Month(RM$35,RM$36,$F43) -> TRUE | RN43: =Find_Month(RN$35,RN$36,$F43) -> TRUE | RO43: =Find_Month(RO$35,RO$36,$F43) -> TRUE | RP43: =Find_Month(RP$35,RP$36,$F43) -> TRUE | RQ43: =Find_Month(RQ$35,RQ$36,$F43) -> TRUE | RR43: =Find_Month(RR$35,RR$36,$F43) -> TRUE | RS43: =Find_Month(RS$35,RS$36,$F43) -> TRUE | RT43: =Find_Month(RT$35,RT$36,$F43) -> TRUE | RU43: =Find_Month(RU$35,RU$36,$F43) -> TRUE | RV43: =Find_Month(RV$35,RV$36,$F43) -> TRUE | RW43: =Find_Month(RW$35,RW$36,$F43) -> TRUE | RX43: =Find_Month(RX$35,RX$36,$F43) -> TRUE | RY43: =Find_Month(RY$35,RY$36,$F43) -> TRUE | RZ43: =Find_Month(RZ$35,RZ$36,$F43) -> TRUE | SA43: =Find_Month(SA$35,SA$36,$F43) -> TRUE | SB43: =Find_Month(SB$35,SB$36,$F43) -> TRUE | SC43: =Find_Month(SC$35,SC$36,$F43) -> FALSE | SD43: =Find_Month(SD$35,SD$36,$F43) -> FALSE | SE43: =Find_Month(SE$35,SE$36,$F43) -> FALSE | SF43: =Find_Month(SF$35,SF$36,$F43) -> FALSE | SG43: =Find_Month(SG$35,SG$36,$F43) -> FALSE | SH43: =Find_Month(SH$35,SH$36,$F43) -> FALSE | SI43: =Find_Month(SI$35,SI$36,$F43) -> FALSE | SJ43: =Find_Month(SJ$35,SJ$36,$F43) -> FALSE | SK43: =Find_Month(SK$35,SK$36,$F43) -> FALSE | SL43: =Find_Month(SL$35,SL$36,$F43) -> FALSE | SM43: =Find_Month(SM$35,SM$36,$F43) -> FALSE | SN43: =Find_Month(SN$35,SN$36,$F43) -> FALSE | SO43: =Find_Month(SO$35,SO$36,$F43) -> FALSE | SP43: =Find_Month(SP$35,SP$36,$F43) -> FALSE | SQ43: =Find_Month(SQ$35,SQ$36,$F43) -> FALSE | SR43: =Find_Month(SR$35,SR$36,$F43) -> FALSE | SS43: =Find_Month(SS$35,SS$36,$F43) -> FALSE | ST43: =Find_Month(ST$35,ST$36,$F43) -> FALSE | SU43: =Find_Month(SU$35,SU$36,$F43) -> FALSE | SV43: =Find_Month(SV$35,SV$36,$F43) -> FALSE | SW43: =Find_Month(SW$35,SW$36,$F43) -> FALSE | SX43: =Find_Month(SX$35,SX$36,$F43) -> FALSE | SY43: =Find_Month(SY$35,SY$36,$F43) -> FALSE | SZ43: =Find_Month(SZ$35,SZ$36,$F43) -> FALSE | TA43: =Find_Month(TA$35,TA$36,$F43) -> FALSE | TB43: =Find_Month(TB$35,TB$36,$F43) -> FALSE | TC43: =Find_Month(TC$35,TC$36,$F43) -> FALSE | TD43: =Find_Month(TD$35,TD$36,$F43) -> FALSE | TE43: =Find_Month(TE$35,TE$36,$F43) -> FALSE | TF43: =Find_Month(TF$35,TF$36,$F43) -> FALSE | TG43: =Find_Month(TG$35,TG$36,$F43) -> FALSE | TH43: =Find_Month(TH$35,TH$36,$F43) -> FALSE | TI43: =Find_Month(TI$35,TI$36,$F43) -> FALSE | TJ43: =Find_Month(TJ$35,TJ$36,$F43) -> FALSE | TK43: =Find_Month(TK$35,TK$36,$F43) -> FALSE | TL43: =Find_Month(TL$35,TL$36,$F43) -> FALSE | TM43: =Find_Month(TM$35,TM$36,$F43) -> FALSE | TN43: =Find_Month(TN$35,TN$36,$F43) -> FALSE | TO43: =Find_Month(TO$35,TO$36,$F43) -> FALSE | TP43: =Find_Month(TP$35,TP$36,$F43) -> FALSE | TQ43: =Find_Month(TQ$35,TQ$36,$F43) -> FALSE | TR43: =Find_Month(TR$35,TR$36,$F43) -> FALSE | TS43: =Find_Month(TS$35,TS$36,$F43) -> FALSE | TT43: =Find_Month(TT$35,TT$36,$F43) -> FALSE | TU43: =Find_Month(TU$35,TU$36,$F43) -> FALSE | TV43: =Find_Month(TV$35,TV$36,$F43) -> FALSE | TW43: =Find_Month(TW$35,TW$36,$F43) -> FALSE | TX43: =Find_Month(TX$35,TX$36,$F43) -> FALSE | TY43: =Find_Month(TY$35,TY$36,$F43) -> FALSE
F44: 6 | G44: 252.9233173 | H44: 0.07890877206 | J44: =Find_Month(J$35,J$36,$F44) -> TRUE | K44: =Find_Month(K$35,K$36,$F44) -> TRUE | L44: =Find_Month(L$35,L$36,$F44) -> TRUE | M44: =Find_Month(M$35,M$36,$F44) -> TRUE | N44: =Find_Month(N$35,N$36,$F44) -> TRUE | O44: =Find_Month(O$35,O$36,$F44) -> TRUE | P44: =Find_Month(P$35,P$36,$F44) -> TRUE | Q44: =Find_Month(Q$35,Q$36,$F44) -> TRUE | R44: =Find_Month(R$35,R$36,$F44) -> TRUE | S44: =Find_Month(S$35,S$36,$F44) -> TRUE | T44: =Find_Month(T$35,T$36,$F44) -> TRUE | U44: =Find_Month(U$35,U$36,$F44) -> TRUE | V44: =Find_Month(V$35,V$36,$F44) -> TRUE | W44: =Find_Month(W$35,W$36,$F44) -> TRUE | X44: =Find_Month(X$35,X$36,$F44) -> TRUE | Y44: =Find_Month(Y$35,Y$36,$F44) -> TRUE | Z44: =Find_Month(Z$35,Z$36,$F44) -> TRUE | AA44: =Find_Month(AA$35,AA$36,$F44) -> TRUE | AB44: =Find_Month(AB$35,AB$36,$F44) -> TRUE | AC44: =Find_Month(AC$35,AC$36,$F44) -> TRUE | AD44: =Find_Month(AD$35,AD$36,$F44) -> TRUE | AE44: =Find_Month(AE$35,AE$36,$F44) -> TRUE | AF44: =Find_Month(AF$35,AF$36,$F44) -> TRUE | AG44: =Find_Month(AG$35,AG$36,$F44) -> TRUE | AH44: =Find_Month(AH$35,AH$36,$F44) -> TRUE | AI44: =Find_Month(AI$35,AI$36,$F44) -> TRUE | AJ44: =Find_Month(AJ$35,AJ$36,$F44) -> TRUE | AK44: =Find_Month(AK$35,AK$36,$F44) -> TRUE | AL44: =Find_Month(AL$35,AL$36,$F44) -> TRUE | AM44: =Find_Month(AM$35,AM$36,$F44) -> TRUE | AN44: =Find_Month(AN$35,AN$36,$F44) -> TRUE | AO44: =Find_Month(AO$35,AO$36,$F44) -> TRUE | AP44: =Find_Month(AP$35,AP$36,$F44) -> TRUE | AQ44: =Find_Month(AQ$35,AQ$36,$F44) -> TRUE | AR44: =Find_Month(AR$35,AR$36,$F44) -> TRUE | AS44: =Find_Month(AS$35,AS$36,$F44) -> TRUE | AT44: =Find_Month(AT$35,AT$36,$F44) -> TRUE | AU44: =Find_Month(AU$35,AU$36,$F44) -> TRUE | AV44: =Find_Month(AV$35,AV$36,$F44) -> TRUE | AW44: =Find_Month(AW$35,AW$36,$F44) -> TRUE | AX44: =Find_Month(AX$35,AX$36,$F44) -> TRUE | AY44: =Find_Month(AY$35,AY$36,$F44) -> TRUE | AZ44: =Find_Month(AZ$35,AZ$36,$F44) -> TRUE | BA44: =Find_Month(BA$35,BA$36,$F44) -> TRUE | BB44: =Find_Month(BB$35,BB$36,$F44) -> TRUE | BC44: =Find_Month(BC$35,BC$36,$F44) -> TRUE | BD44: =Find_Month(BD$35,BD$36,$F44) -> TRUE | BE44: =Find_Month(BE$35,BE$36,$F44) -> TRUE | BF44: =Find_Month(BF$35,BF$36,$F44) -> TRUE | BG44: =Find_Month(BG$35,BG$36,$F44) -> TRUE | BH44: =Find_Month(BH$35,BH$36,$F44) -> TRUE | BI44: =Find_Month(BI$35,BI$36,$F44) -> TRUE | BJ44: =Find_Month(BJ$35,BJ$36,$F44) -> TRUE | BK44: =Find_Month(BK$35,BK$36,$F44) -> TRUE | BL44: =Find_Month(BL$35,BL$36,$F44) -> TRUE | BM44: =Find_Month(BM$35,BM$36,$F44) -> TRUE | BN44: =Find_Month(BN$35,BN$36,$F44) -> TRUE | BO44: =Find_Month(BO$35,BO$36,$F44) -> TRUE | BP44: =Find_Month(BP$35,BP$36,$F44) -> TRUE | BQ44: =Find_Month(BQ$35,BQ$36,$F44) -> TRUE | BR44: =Find_Month(BR$35,BR$36,$F44) -> TRUE | BS44: =Find_Month(BS$35,BS$36,$F44) -> TRUE | BT44: =Find_Month(BT$35,BT$36,$F44) -> TRUE | BU44: =Find_Month(BU$35,BU$36,$F44) -> TRUE | BV44: =Find_Month(BV$35,BV$36,$F44) -> TRUE | BW44: =Find_Month(BW$35,BW$36,$F44) -> TRUE | BX44: =Find_Month(BX$35,BX$36,$F44) -> TRUE | BY44: =Find_Month(BY$35,BY$36,$F44) -> TRUE | BZ44: =Find_Month(BZ$35,BZ$36,$F44) -> TRUE | CA44: =Find_Month(CA$35,CA$36,$F44) -> TRUE | CB44: =Find_Month(CB$35,CB$36,$F44) -> TRUE | CC44: =Find_Month(CC$35,CC$36,$F44) -> TRUE | CD44: =Find_Month(CD$35,CD$36,$F44) -> TRUE | CE44: =Find_Month(CE$35,CE$36,$F44) -> TRUE | CF44: =Find_Month(CF$35,CF$36,$F44) -> TRUE | CG44: =Find_Month(CG$35,CG$36,$F44) -> TRUE | CH44: =Find_Month(CH$35,CH$36,$F44) -> TRUE | CI44: =Find_Month(CI$35,CI$36,$F44) -> TRUE | CJ44: =Find_Month(CJ$35,CJ$36,$F44) -> TRUE | CK44: =Find_Month(CK$35,CK$36,$F44) -> TRUE | CL44: =Find_Month(CL$35,CL$36,$F44) -> TRUE | CM44: =Find_Month(CM$35,CM$36,$F44) -> TRUE | CN44: =Find_Month(CN$35,CN$36,$F44) -> TRUE | CO44: =Find_Month(CO$35,CO$36,$F44) -> TRUE | CP44: =Find_Month(CP$35,CP$36,$F44) -> TRUE | CQ44: =Find_Month(CQ$35,CQ$36,$F44) -> TRUE | CR44: =Find_Month(CR$35,CR$36,$F44) -> TRUE | CS44: =Find_Month(CS$35,CS$36,$F44) -> TRUE | CT44: =Find_Month(CT$35,CT$36,$F44) -> TRUE | CU44: =Find_Month(CU$35,CU$36,$F44) -> TRUE | CV44: =Find_Month(CV$35,CV$36,$F44) -> TRUE | CW44: =Find_Month(CW$35,CW$36,$F44) -> TRUE | CX44: =Find_Month(CX$35,CX$36,$F44) -> TRUE | CY44: =Find_Month(CY$35,CY$36,$F44) -> TRUE | CZ44: =Find_Month(CZ$35,CZ$36,$F44) -> TRUE | DA44: =Find_Month(DA$35,DA$36,$F44) -> TRUE | DB44: =Find_Month(DB$35,DB$36,$F44) -> TRUE | DC44: =Find_Month(DC$35,DC$36,$F44) -> TRUE | DD44: =Find_Month(DD$35,DD$36,$F44) -> TRUE | DE44: =Find_Month(DE$35,DE$36,$F44) -> TRUE | DF44: =Find_Month(DF$35,DF$36,$F44) -> TRUE | DG44: =Find_Month(DG$35,DG$36,$F44) -> TRUE | DH44: =Find_Month(DH$35,DH$36,$F44) -> TRUE | DI44: =Find_Month(DI$35,DI$36,$F44) -> TRUE | DJ44: =Find_Month(DJ$35,DJ$36,$F44) -> TRUE | DK44: =Find_Month(DK$35,DK$36,$F44) -> TRUE | DL44: =Find_Month(DL$35,DL$36,$F44) -> TRUE | DM44: =Find_Month(DM$35,DM$36,$F44) -> TRUE | DN44: =Find_Month(DN$35,DN$36,$F44) -> TRUE | DO44: =Find_Month(DO$35,DO$36,$F44) -> TRUE | DP44: =Find_Month(DP$35,DP$36,$F44) -> TRUE | DQ44: =Find_Month(DQ$35,DQ$36,$F44) -> TRUE | DR44: =Find_Month(DR$35,DR$36,$F44) -> TRUE | DS44: =Find_Month(DS$35,DS$36,$F44) -> TRUE | DT44: =Find_Month(DT$35,DT$36,$F44) -> TRUE | DU44: =Find_Month(DU$35,DU$36,$F44) -> TRUE | DV44: =Find_Month(DV$35,DV$36,$F44) -> TRUE | DW44: =Find_Month(DW$35,DW$36,$F44) -> TRUE | DX44: =Find_Month(DX$35,DX$36,$F44) -> TRUE | DY44: =Find_Month(DY$35,DY$36,$F44) -> TRUE | DZ44: =Find_Month(DZ$35,DZ$36,$F44) -> TRUE | EA44: =Find_Month(EA$35,EA$36,$F44) -> TRUE | EB44: =Find_Month(EB$35,EB$36,$F44) -> TRUE | EC44: =Find_Month(EC$35,EC$36,$F44) -> TRUE | ED44: =Find_Month(ED$35,ED$36,$F44) -> TRUE | EE44: =Find_Month(EE$35,EE$36,$F44) -> TRUE | EF44: =Find_Month(EF$35,EF$36,$F44) -> TRUE | EG44: =Find_Month(EG$35,EG$36,$F44) -> TRUE | EH44: =Find_Month(EH$35,EH$36,$F44) -> TRUE | EI44: =Find_Month(EI$35,EI$36,$F44) -> TRUE | EJ44: =Find_Month(EJ$35,EJ$36,$F44) -> TRUE | EK44: =Find_Month(EK$35,EK$36,$F44) -> TRUE | EL44: =Find_Month(EL$35,EL$36,$F44) -> TRUE | EM44: =Find_Month(EM$35,EM$36,$F44) -> TRUE | EN44: =Find_Month(EN$35,EN$36,$F44) -> TRUE | EO44: =Find_Month(EO$35,EO$36,$F44) -> TRUE | EP44: =Find_Month(EP$35,EP$36,$F44) -> TRUE | EQ44: =Find_Month(EQ$35,EQ$36,$F44) -> TRUE | ER44: =Find_Month(ER$35,ER$36,$F44) -> TRUE | ES44: =Find_Month(ES$35,ES$36,$F44) -> TRUE | ET44: =Find_Month(ET$35,ET$36,$F44) -> TRUE | EU44: =Find_Month(EU$35,EU$36,$F44) -> TRUE | EV44: =Find_Month(EV$35,EV$36,$F44) -> TRUE | EW44: =Find_Month(EW$35,EW$36,$F44) -> TRUE | EX44: =Find_Month(EX$35,EX$36,$F44) -> TRUE | EY44: =Find_Month(EY$35,EY$36,$F44) -> TRUE | EZ44: =Find_Month(EZ$35,EZ$36,$F44) -> TRUE | FA44: =Find_Month(FA$35,FA$36,$F44) -> TRUE | FB44: =Find_Month(FB$35,FB$36,$F44) -> TRUE | FC44: =Find_Month(FC$35,FC$36,$F44) -> TRUE | FD44: =Find_Month(FD$35,FD$36,$F44) -> TRUE | FE44: =Find_Month(FE$35,FE$36,$F44) -> TRUE | FF44: =Find_Month(FF$35,FF$36,$F44) -> TRUE | FG44: =Find_Month(FG$35,FG$36,$F44) -> TRUE | FH44: =Find_Month(FH$35,FH$36,$F44) -> TRUE | FI44: =Find_Month(FI$35,FI$36,$F44) -> TRUE | FJ44: =Find_Month(FJ$35,FJ$36,$F44) -> TRUE | FK44: =Find_Month(FK$35,FK$36,$F44) -> TRUE | FL44: =Find_Month(FL$35,FL$36,$F44) -> TRUE | FM44: =Find_Month(FM$35,FM$36,$F44) -> TRUE | FN44: =Find_Month(FN$35,FN$36,$F44) -> TRUE | FO44: =Find_Month(FO$35,FO$36,$F44) -> TRUE | FP44: =Find_Month(FP$35,FP$36,$F44) -> TRUE | FQ44: =Find_Month(FQ$35,FQ$36,$F44) -> TRUE | FR44: =Find_Month(FR$35,FR$36,$F44) -> TRUE | FS44: =Find_Month(FS$35,FS$36,$F44) -> TRUE | FT44: =Find_Month(FT$35,FT$36,$F44) -> TRUE | FU44: =Find_Month(FU$35,FU$36,$F44) -> TRUE | FV44: =Find_Month(FV$35,FV$36,$F44) -> TRUE | FW44: =Find_Month(FW$35,FW$36,$F44) -> TRUE | FX44: =Find_Month(FX$35,FX$36,$F44) -> TRUE | FY44: =Find_Month(FY$35,FY$36,$F44) -> TRUE | FZ44: =Find_Month(FZ$35,FZ$36,$F44) -> TRUE | GA44: =Find_Month(GA$35,GA$36,$F44) -> TRUE | GB44: =Find_Month(GB$35,GB$36,$F44) -> TRUE | GC44: =Find_Month(GC$35,GC$36,$F44) -> TRUE | GD44: =Find_Month(GD$35,GD$36,$F44) -> TRUE | GE44: =Find_Month(GE$35,GE$36,$F44) -> TRUE | GF44: =Find_Month(GF$35,GF$36,$F44) -> TRUE | GG44: =Find_Month(GG$35,GG$36,$F44) -> TRUE | GH44: =Find_Month(GH$35,GH$36,$F44) -> TRUE | GI44: =Find_Month(GI$35,GI$36,$F44) -> TRUE | GJ44: =Find_Month(GJ$35,GJ$36,$F44) -> TRUE | GK44: =Find_Month(GK$35,GK$36,$F44) -> TRUE | GL44: =Find_Month(GL$35,GL$36,$F44) -> TRUE | GM44: =Find_Month(GM$35,GM$36,$F44) -> TRUE | GN44: =Find_Month(GN$35,GN$36,$F44) -> TRUE | GO44: =Find_Month(GO$35,GO$36,$F44) -> TRUE | GP44: =Find_Month(GP$35,GP$36,$F44) -> TRUE | GQ44: =Find_Month(GQ$35,GQ$36,$F44) -> TRUE | GR44: =Find_Month(GR$35,GR$36,$F44) -> TRUE | GS44: =Find_Month(GS$35,GS$36,$F44) -> TRUE | GT44: =Find_Month(GT$35,GT$36,$F44) -> TRUE | GU44: =Find_Month(GU$35,GU$36,$F44) -> TRUE | GV44: =Find_Month(GV$35,GV$36,$F44) -> TRUE | GW44: =Find_Month(GW$35,GW$36,$F44) -> TRUE | GX44: =Find_Month(GX$35,GX$36,$F44) -> TRUE | GY44: =Find_Month(GY$35,GY$36,$F44) -> TRUE | GZ44: =Find_Month(GZ$35,GZ$36,$F44) -> TRUE | HA44: =Find_Month(HA$35,HA$36,$F44) -> TRUE | HB44: =Find_Month(HB$35,HB$36,$F44) -> TRUE | HC44: =Find_Month(HC$35,HC$36,$F44) -> TRUE | HD44: =Find_Month(HD$35,HD$36,$F44) -> TRUE | HE44: =Find_Month(HE$35,HE$36,$F44) -> TRUE | HF44: =Find_Month(HF$35,HF$36,$F44) -> TRUE | HG44: =Find_Month(HG$35,HG$36,$F44) -> TRUE | HH44: =Find_Month(HH$35,HH$36,$F44) -> TRUE | HI44: =Find_Month(HI$35,HI$36,$F44) -> TRUE | HJ44: =Find_Month(HJ$35,HJ$36,$F44) -> TRUE | HK44: =Find_Month(HK$35,HK$36,$F44) -> TRUE | HL44: =Find_Month(HL$35,HL$36,$F44) -> TRUE | HM44: =Find_Month(HM$35,HM$36,$F44) -> TRUE | HN44: =Find_Month(HN$35,HN$36,$F44) -> TRUE | HO44: =Find_Month(HO$35,HO$36,$F44) -> TRUE | HP44: =Find_Month(HP$35,HP$36,$F44) -> TRUE | HQ44: =Find_Month(HQ$35,HQ$36,$F44) -> TRUE | HR44: =Find_Month(HR$35,HR$36,$F44) -> TRUE | HS44: =Find_Month(HS$35,HS$36,$F44) -> TRUE | HT44: =Find_Month(HT$35,HT$36,$F44) -> TRUE | HU44: =Find_Month(HU$35,HU$36,$F44) -> TRUE | HV44: =Find_Month(HV$35,HV$36,$F44) -> TRUE | HW44: =Find_Month(HW$35,HW$36,$F44) -> TRUE | HX44: =Find_Month(HX$35,HX$36,$F44) -> TRUE | HY44: =Find_Month(HY$35,HY$36,$F44) -> TRUE | HZ44: =Find_Month(HZ$35,HZ$36,$F44) -> TRUE | IA44: =Find_Month(IA$35,IA$36,$F44) -> TRUE | IB44: =Find_Month(IB$35,IB$36,$F44) -> TRUE | IC44: =Find_Month(IC$35,IC$36,$F44) -> TRUE | ID44: =Find_Month(ID$35,ID$36,$F44) -> TRUE | IE44: =Find_Month(IE$35,IE$36,$F44) -> TRUE | IF44: =Find_Month(IF$35,IF$36,$F44) -> TRUE | IG44: =Find_Month(IG$35,IG$36,$F44) -> TRUE | IH44: =Find_Month(IH$35,IH$36,$F44) -> TRUE | II44: =Find_Month(II$35,II$36,$F44) -> TRUE | IJ44: =Find_Month(IJ$35,IJ$36,$F44) -> TRUE | IK44: =Find_Month(IK$35,IK$36,$F44) -> TRUE | IL44: =Find_Month(IL$35,IL$36,$F44) -> TRUE | IM44: =Find_Month(IM$35,IM$36,$F44) -> TRUE | IN44: =Find_Month(IN$35,IN$36,$F44) -> TRUE | IO44: =Find_Month(IO$35,IO$36,$F44) -> TRUE | IP44: =Find_Month(IP$35,IP$36,$F44) -> TRUE | IQ44: =Find_Month(IQ$35,IQ$36,$F44) -> TRUE | IR44: =Find_Month(IR$35,IR$36,$F44) -> TRUE | IS44: =Find_Month(IS$35,IS$36,$F44) -> TRUE | IT44: =Find_Month(IT$35,IT$36,$F44) -> TRUE | IU44: =Find_Month(IU$35,IU$36,$F44) -> TRUE | IV44: =Find_Month(IV$35,IV$36,$F44) -> TRUE | IW44: =Find_Month(IW$35,IW$36,$F44) -> TRUE | IX44: =Find_Month(IX$35,IX$36,$F44) -> TRUE | IY44: =Find_Month(IY$35,IY$36,$F44) -> TRUE | IZ44: =Find_Month(IZ$35,IZ$36,$F44) -> TRUE | JA44: =Find_Month(JA$35,JA$36,$F44) -> TRUE | JB44: =Find_Month(JB$35,JB$36,$F44) -> TRUE | JC44: =Find_Month(JC$35,JC$36,$F44) -> TRUE | JD44: =Find_Month(JD$35,JD$36,$F44) -> TRUE | JE44: =Find_Month(JE$35,JE$36,$F44) -> TRUE | JF44: =Find_Month(JF$35,JF$36,$F44) -> TRUE | JG44: =Find_Month(JG$35,JG$36,$F44) -> TRUE | JH44: =Find_Month(JH$35,JH$36,$F44) -> TRUE | JI44: =Find_Month(JI$35,JI$36,$F44) -> TRUE | JJ44: =Find_Month(JJ$35,JJ$36,$F44) -> TRUE | JK44: =Find_Month(JK$35,JK$36,$F44) -> TRUE | JL44: =Find_Month(JL$35,JL$36,$F44) -> TRUE | JM44: =Find_Month(JM$35,JM$36,$F44) -> TRUE | JN44: =Find_Month(JN$35,JN$36,$F44) -> TRUE | JO44: =Find_Month(JO$35,JO$36,$F44) -> TRUE | JP44: =Find_Month(JP$35,JP$36,$F44) -> TRUE | JQ44: =Find_Month(JQ$35,JQ$36,$F44) -> TRUE | JR44: =Find_Month(JR$35,JR$36,$F44) -> TRUE | JS44: =Find_Month(JS$35,JS$36,$F44) -> TRUE | JT44: =Find_Month(JT$35,JT$36,$F44) -> TRUE | JU44: =Find_Month(JU$35,JU$36,$F44) -> TRUE | JV44: =Find_Month(JV$35,JV$36,$F44) -> TRUE | JW44: =Find_Month(JW$35,JW$36,$F44) -> TRUE | JX44: =Find_Month(JX$35,JX$36,$F44) -> TRUE | JY44: =Find_Month(JY$35,JY$36,$F44) -> TRUE | JZ44: =Find_Month(JZ$35,JZ$36,$F44) -> TRUE | KA44: =Find_Month(KA$35,KA$36,$F44) -> TRUE | KB44: =Find_Month(KB$35,KB$36,$F44) -> TRUE | KC44: =Find_Month(KC$35,KC$36,$F44) -> TRUE | KD44: =Find_Month(KD$35,KD$36,$F44) -> TRUE | KE44: =Find_Month(KE$35,KE$36,$F44) -> TRUE | KF44: =Find_Month(KF$35,KF$36,$F44) -> TRUE | KG44: =Find_Month(KG$35,KG$36,$F44) -> TRUE | KH44: =Find_Month(KH$35,KH$36,$F44) -> TRUE | KI44: =Find_Month(KI$35,KI$36,$F44) -> TRUE | KJ44: =Find_Month(KJ$35,KJ$36,$F44) -> TRUE | KK44: =Find_Month(KK$35,KK$36,$F44) -> TRUE | KL44: =Find_Month(KL$35,KL$36,$F44) -> TRUE | KM44: =Find_Month(KM$35,KM$36,$F44) -> TRUE | KN44: =Find_Month(KN$35,KN$36,$F44) -> TRUE | KO44: =Find_Month(KO$35,KO$36,$F44) -> TRUE | KP44: =Find_Month(KP$35,KP$36,$F44) -> TRUE | KQ44: =Find_Month(KQ$35,KQ$36,$F44) -> TRUE | KR44: =Find_Month(KR$35,KR$36,$F44) -> TRUE | KS44: =Find_Month(KS$35,KS$36,$F44) -> TRUE | KT44: =Find_Month(KT$35,KT$36,$F44) -> TRUE | KU44: =Find_Month(KU$35,KU$36,$F44) -> TRUE | KV44: =Find_Month(KV$35,KV$36,$F44) -> TRUE | KW44: =Find_Month(KW$35,KW$36,$F44) -> TRUE | KX44: =Find_Month(KX$35,KX$36,$F44) -> TRUE | KY44: =Find_Month(KY$35,KY$36,$F44) -> TRUE | KZ44: =Find_Month(KZ$35,KZ$36,$F44) -> TRUE | LA44: =Find_Month(LA$35,LA$36,$F44) -> TRUE | LB44: =Find_Month(LB$35,LB$36,$F44) -> TRUE | LC44: =Find_Month(LC$35,LC$36,$F44) -> TRUE | LD44: =Find_Month(LD$35,LD$36,$F44) -> TRUE | LE44: =Find_Month(LE$35,LE$36,$F44) -> TRUE | LF44: =Find_Month(LF$35,LF$36,$F44) -> TRUE | LG44: =Find_Month(LG$35,LG$36,$F44) -> TRUE | LH44: =Find_Month(LH$35,LH$36,$F44) -> TRUE | LI44: =Find_Month(LI$35,LI$36,$F44) -> TRUE | LJ44: =Find_Month(LJ$35,LJ$36,$F44) -> TRUE | LK44: =Find_Month(LK$35,LK$36,$F44) -> TRUE | LL44: =Find_Month(LL$35,LL$36,$F44) -> TRUE | LM44: =Find_Month(LM$35,LM$36,$F44) -> TRUE | LN44: =Find_Month(LN$35,LN$36,$F44) -> TRUE | LO44: =Find_Month(LO$35,LO$36,$F44) -> TRUE | LP44: =Find_Month(LP$35,LP$36,$F44) -> TRUE | LQ44: =Find_Month(LQ$35,LQ$36,$F44) -> TRUE | LR44: =Find_Month(LR$35,LR$36,$F44) -> TRUE | LS44: =Find_Month(LS$35,LS$36,$F44) -> TRUE | LT44: =Find_Month(LT$35,LT$36,$F44) -> TRUE | LU44: =Find_Month(LU$35,LU$36,$F44) -> TRUE | LV44: =Find_Month(LV$35,LV$36,$F44) -> TRUE | LW44: =Find_Month(LW$35,LW$36,$F44) -> TRUE | LX44: =Find_Month(LX$35,LX$36,$F44) -> TRUE | LY44: =Find_Month(LY$35,LY$36,$F44) -> TRUE | LZ44: =Find_Month(LZ$35,LZ$36,$F44) -> TRUE | MA44: =Find_Month(MA$35,MA$36,$F44) -> TRUE | MB44: =Find_Month(MB$35,MB$36,$F44) -> TRUE | MC44: =Find_Month(MC$35,MC$36,$F44) -> TRUE | MD44: =Find_Month(MD$35,MD$36,$F44) -> TRUE | ME44: =Find_Month(ME$35,ME$36,$F44) -> TRUE | MF44: =Find_Month(MF$35,MF$36,$F44) -> TRUE | MG44: =Find_Month(MG$35,MG$36,$F44) -> TRUE | MH44: =Find_Month(MH$35,MH$36,$F44) -> TRUE | MI44: =Find_Month(MI$35,MI$36,$F44) -> TRUE | MJ44: =Find_Month(MJ$35,MJ$36,$F44) -> TRUE | MK44: =Find_Month(MK$35,MK$36,$F44) -> TRUE | ML44: =Find_Month(ML$35,ML$36,$F44) -> TRUE | MM44: =Find_Month(MM$35,MM$36,$F44) -> TRUE | MN44: =Find_Month(MN$35,MN$36,$F44) -> TRUE | MO44: =Find_Month(MO$35,MO$36,$F44) -> TRUE | MP44: =Find_Month(MP$35,MP$36,$F44) -> TRUE | MQ44: =Find_Month(MQ$35,MQ$36,$F44) -> TRUE | MR44: =Find_Month(MR$35,MR$36,$F44) -> TRUE | MS44: =Find_Month(MS$35,MS$36,$F44) -> TRUE | MT44: =Find_Month(MT$35,MT$36,$F44) -> TRUE | MU44: =Find_Month(MU$35,MU$36,$F44) -> TRUE | MV44: =Find_Month(MV$35,MV$36,$F44) -> TRUE | MW44: =Find_Month(MW$35,MW$36,$F44) -> TRUE | MX44: =Find_Month(MX$35,MX$36,$F44) -> TRUE | MY44: =Find_Month(MY$35,MY$36,$F44) -> TRUE | MZ44: =Find_Month(MZ$35,MZ$36,$F44) -> TRUE | NA44: =Find_Month(NA$35,NA$36,$F44) -> TRUE | NB44: =Find_Month(NB$35,NB$36,$F44) -> TRUE | NC44: =Find_Month(NC$35,NC$36,$F44) -> TRUE | ND44: =Find_Month(ND$35,ND$36,$F44) -> TRUE | NE44: =Find_Month(NE$35,NE$36,$F44) -> TRUE | NF44: =Find_Month(NF$35,NF$36,$F44) -> TRUE | NG44: =Find_Month(NG$35,NG$36,$F44) -> TRUE | NH44: =Find_Month(NH$35,NH$36,$F44) -> TRUE | NI44: =Find_Month(NI$35,NI$36,$F44) -> TRUE | NJ44: =Find_Month(NJ$35,NJ$36,$F44) -> TRUE | NK44: =Find_Month(NK$35,NK$36,$F44) -> TRUE | NL44: =Find_Month(NL$35,NL$36,$F44) -> TRUE | NM44: =Find_Month(NM$35,NM$36,$F44) -> TRUE | NN44: =Find_Month(NN$35,NN$36,$F44) -> TRUE | NO44: =Find_Month(NO$35,NO$36,$F44) -> TRUE | NP44: =Find_Month(NP$35,NP$36,$F44) -> TRUE | NQ44: =Find_Month(NQ$35,NQ$36,$F44) -> TRUE | NR44: =Find_Month(NR$35,NR$36,$F44) -> TRUE | NS44: =Find_Month(NS$35,NS$36,$F44) -> TRUE | NT44: =Find_Month(NT$35,NT$36,$F44) -> TRUE | NU44: =Find_Month(NU$35,NU$36,$F44) -> TRUE | NV44: =Find_Month(NV$35,NV$36,$F44) -> TRUE | NW44: =Find_Month(NW$35,NW$36,$F44) -> TRUE | NX44: =Find_Month(NX$35,NX$36,$F44) -> TRUE | NY44: =Find_Month(NY$35,NY$36,$F44) -> TRUE | NZ44: =Find_Month(NZ$35,NZ$36,$F44) -> TRUE | OA44: =Find_Month(OA$35,OA$36,$F44) -> TRUE | OB44: =Find_Month(OB$35,OB$36,$F44) -> TRUE | OC44: =Find_Month(OC$35,OC$36,$F44) -> TRUE | OD44: =Find_Month(OD$35,OD$36,$F44) -> TRUE | OE44: =Find_Month(OE$35,OE$36,$F44) -> TRUE | OF44: =Find_Month(OF$35,OF$36,$F44) -> TRUE | OG44: =Find_Month(OG$35,OG$36,$F44) -> TRUE | OH44: =Find_Month(OH$35,OH$36,$F44) -> TRUE | OI44: =Find_Month(OI$35,OI$36,$F44) -> TRUE | OJ44: =Find_Month(OJ$35,OJ$36,$F44) -> TRUE | OK44: =Find_Month(OK$35,OK$36,$F44) -> TRUE | OL44: =Find_Month(OL$35,OL$36,$F44) -> TRUE | OM44: =Find_Month(OM$35,OM$36,$F44) -> TRUE | ON44: =Find_Month(ON$35,ON$36,$F44) -> TRUE | OO44: =Find_Month(OO$35,OO$36,$F44) -> TRUE | OP44: =Find_Month(OP$35,OP$36,$F44) -> TRUE | OQ44: =Find_Month(OQ$35,OQ$36,$F44) -> TRUE | OR44: =Find_Month(OR$35,OR$36,$F44) -> TRUE | OS44: =Find_Month(OS$35,OS$36,$F44) -> TRUE | OT44: =Find_Month(OT$35,OT$36,$F44) -> TRUE | OU44: =Find_Month(OU$35,OU$36,$F44) -> TRUE | OV44: =Find_Month(OV$35,OV$36,$F44) -> TRUE | OW44: =Find_Month(OW$35,OW$36,$F44) -> TRUE | OX44: =Find_Month(OX$35,OX$36,$F44) -> TRUE | OY44: =Find_Month(OY$35,OY$36,$F44) -> TRUE | OZ44: =Find_Month(OZ$35,OZ$36,$F44) -> TRUE | PA44: =Find_Month(PA$35,PA$36,$F44) -> TRUE | PB44: =Find_Month(PB$35,PB$36,$F44) -> TRUE | PC44: =Find_Month(PC$35,PC$36,$F44) -> TRUE | PD44: =Find_Month(PD$35,PD$36,$F44) -> TRUE | PE44: =Find_Month(PE$35,PE$36,$F44) -> TRUE | PF44: =Find_Month(PF$35,PF$36,$F44) -> TRUE | PG44: =Find_Month(PG$35,PG$36,$F44) -> TRUE | PH44: =Find_Month(PH$35,PH$36,$F44) -> TRUE | PI44: =Find_Month(PI$35,PI$36,$F44) -> TRUE | PJ44: =Find_Month(PJ$35,PJ$36,$F44) -> TRUE | PK44: =Find_Month(PK$35,PK$36,$F44) -> TRUE | PL44: =Find_Month(PL$35,PL$36,$F44) -> TRUE | PM44: =Find_Month(PM$35,PM$36,$F44) -> TRUE | PN44: =Find_Month(PN$35,PN$36,$F44) -> TRUE | PO44: =Find_Month(PO$35,PO$36,$F44) -> TRUE | PP44: =Find_Month(PP$35,PP$36,$F44) -> TRUE | PQ44: =Find_Month(PQ$35,PQ$36,$F44) -> TRUE | PR44: =Find_Month(PR$35,PR$36,$F44) -> TRUE | PS44: =Find_Month(PS$35,PS$36,$F44) -> TRUE | PT44: =Find_Month(PT$35,PT$36,$F44) -> TRUE | PU44: =Find_Month(PU$35,PU$36,$F44) -> TRUE | PV44: =Find_Month(PV$35,PV$36,$F44) -> TRUE | PW44: =Find_Month(PW$35,PW$36,$F44) -> TRUE | PX44: =Find_Month(PX$35,PX$36,$F44) -> TRUE | PY44: =Find_Month(PY$35,PY$36,$F44) -> TRUE | PZ44: =Find_Month(PZ$35,PZ$36,$F44) -> TRUE | QA44: =Find_Month(QA$35,QA$36,$F44) -> TRUE | QB44: =Find_Month(QB$35,QB$36,$F44) -> TRUE | QC44: =Find_Month(QC$35,QC$36,$F44) -> TRUE | QD44: =Find_Month(QD$35,QD$36,$F44) -> TRUE | QE44: =Find_Month(QE$35,QE$36,$F44) -> TRUE | QF44: =Find_Month(QF$35,QF$36,$F44) -> TRUE | QG44: =Find_Month(QG$35,QG$36,$F44) -> TRUE | QH44: =Find_Month(QH$35,QH$36,$F44) -> TRUE | QI44: =Find_Month(QI$35,QI$36,$F44) -> TRUE | QJ44: =Find_Month(QJ$35,QJ$36,$F44) -> TRUE | QK44: =Find_Month(QK$35,QK$36,$F44) -> TRUE | QL44: =Find_Month(QL$35,QL$36,$F44) -> TRUE | QM44: =Find_Month(QM$35,QM$36,$F44) -> TRUE | QN44: =Find_Month(QN$35,QN$36,$F44) -> TRUE | QO44: =Find_Month(QO$35,QO$36,$F44) -> TRUE | QP44: =Find_Month(QP$35,QP$36,$F44) -> TRUE | QQ44: =Find_Month(QQ$35,QQ$36,$F44) -> TRUE | QR44: =Find_Month(QR$35,QR$36,$F44) -> TRUE | QS44: =Find_Month(QS$35,QS$36,$F44) -> TRUE | QT44: =Find_Month(QT$35,QT$36,$F44) -> TRUE | QU44: =Find_Month(QU$35,QU$36,$F44) -> TRUE | QV44: =Find_Month(QV$35,QV$36,$F44) -> TRUE | QW44: =Find_Month(QW$35,QW$36,$F44) -> TRUE | QX44: =Find_Month(QX$35,QX$36,$F44) -> TRUE | QY44: =Find_Month(QY$35,QY$36,$F44) -> TRUE | QZ44: =Find_Month(QZ$35,QZ$36,$F44) -> TRUE | RA44: =Find_Month(RA$35,RA$36,$F44) -> TRUE | RB44: =Find_Month(RB$35,RB$36,$F44) -> TRUE | RC44: =Find_Month(RC$35,RC$36,$F44) -> TRUE | RD44: =Find_Month(RD$35,RD$36,$F44) -> TRUE | RE44: =Find_Month(RE$35,RE$36,$F44) -> TRUE | RF44: =Find_Month(RF$35,RF$36,$F44) -> TRUE | RG44: =Find_Month(RG$35,RG$36,$F44) -> TRUE | RH44: =Find_Month(RH$35,RH$36,$F44) -> TRUE | RI44: =Find_Month(RI$35,RI$36,$F44) -> TRUE | RJ44: =Find_Month(RJ$35,RJ$36,$F44) -> TRUE | RK44: =Find_Month(RK$35,RK$36,$F44) -> TRUE | RL44: =Find_Month(RL$35,RL$36,$F44) -> TRUE | RM44: =Find_Month(RM$35,RM$36,$F44) -> TRUE | RN44: =Find_Month(RN$35,RN$36,$F44) -> TRUE | RO44: =Find_Month(RO$35,RO$36,$F44) -> TRUE | RP44: =Find_Month(RP$35,RP$36,$F44) -> TRUE | RQ44: =Find_Month(RQ$35,RQ$36,$F44) -> TRUE | RR44: =Find_Month(RR$35,RR$36,$F44) -> TRUE | RS44: =Find_Month(RS$35,RS$36,$F44) -> TRUE | RT44: =Find_Month(RT$35,RT$36,$F44) -> TRUE | RU44: =Find_Month(RU$35,RU$36,$F44) -> TRUE | RV44: =Find_Month(RV$35,RV$36,$F44) -> TRUE | RW44: =Find_Month(RW$35,RW$36,$F44) -> TRUE | RX44: =Find_Month(RX$35,RX$36,$F44) -> TRUE | RY44: =Find_Month(RY$35,RY$36,$F44) -> TRUE | RZ44: =Find_Month(RZ$35,RZ$36,$F44) -> TRUE | SA44: =Find_Month(SA$35,SA$36,$F44) -> TRUE | SB44: =Find_Month(SB$35,SB$36,$F44) -> TRUE | SC44: =Find_Month(SC$35,SC$36,$F44) -> FALSE | SD44: =Find_Month(SD$35,SD$36,$F44) -> FALSE | SE44: =Find_Month(SE$35,SE$36,$F44) -> FALSE | SF44: =Find_Month(SF$35,SF$36,$F44) -> FALSE | SG44: =Find_Month(SG$35,SG$36,$F44) -> FALSE | SH44: =Find_Month(SH$35,SH$36,$F44) -> FALSE | SI44: =Find_Month(SI$35,SI$36,$F44) -> FALSE | SJ44: =Find_Month(SJ$35,SJ$36,$F44) -> FALSE | SK44: =Find_Month(SK$35,SK$36,$F44) -> FALSE | SL44: =Find_Month(SL$35,SL$36,$F44) -> FALSE | SM44: =Find_Month(SM$35,SM$36,$F44) -> FALSE | SN44: =Find_Month(SN$35,SN$36,$F44) -> FALSE | SO44: =Find_Month(SO$35,SO$36,$F44) -> FALSE | SP44: =Find_Month(SP$35,SP$36,$F44) -> FALSE | SQ44: =Find_Month(SQ$35,SQ$36,$F44) -> FALSE | SR44: =Find_Month(SR$35,SR$36,$F44) -> FALSE | SS44: =Find_Month(SS$35,SS$36,$F44) -> FALSE | ST44: =Find_Month(ST$35,ST$36,$F44) -> FALSE | SU44: =Find_Month(SU$35,SU$36,$F44) -> FALSE | SV44: =Find_Month(SV$35,SV$36,$F44) -> FALSE | SW44: =Find_Month(SW$35,SW$36,$F44) -> FALSE | SX44: =Find_Month(SX$35,SX$36,$F44) -> FALSE | SY44: =Find_Month(SY$35,SY$36,$F44) -> FALSE | SZ44: =Find_Month(SZ$35,SZ$36,$F44) -> FALSE | TA44: =Find_Month(TA$35,TA$36,$F44) -> FALSE | TB44: =Find_Month(TB$35,TB$36,$F44) -> FALSE | TC44: =Find_Month(TC$35,TC$36,$F44) -> FALSE | TD44: =Find_Month(TD$35,TD$36,$F44) -> FALSE | TE44: =Find_Month(TE$35,TE$36,$F44) -> FALSE | TF44: =Find_Month(TF$35,TF$36,$F44) -> FALSE | TG44: =Find_Month(TG$35,TG$36,$F44) -> FALSE | TH44: =Find_Month(TH$35,TH$36,$F44) -> FALSE | TI44: =Find_Month(TI$35,TI$36,$F44) -> FALSE | TJ44: =Find_Month(TJ$35,TJ$36,$F44) -> FALSE | TK44: =Find_Month(TK$35,TK$36,$F44) -> FALSE | TL44: =Find_Month(TL$35,TL$36,$F44) -> FALSE | TM44: =Find_Month(TM$35,TM$36,$F44) -> FALSE | TN44: =Find_Month(TN$35,TN$36,$F44) -> FALSE | TO44: =Find_Month(TO$35,TO$36,$F44) -> FALSE | TP44: =Find_Month(TP$35,TP$36,$F44) -> FALSE | TQ44: =Find_Month(TQ$35,TQ$36,$F44) -> FALSE | TR44: =Find_Month(TR$35,TR$36,$F44) -> FALSE | TS44: =Find_Month(TS$35,TS$36,$F44) -> FALSE | TT44: =Find_Month(TT$35,TT$36,$F44) -> FALSE | TU44: =Find_Month(TU$35,TU$36,$F44) -> FALSE | TV44: =Find_Month(TV$35,TV$36,$F44) -> FALSE | TW44: =Find_Month(TW$35,TW$36,$F44) -> FALSE | TX44: =Find_Month(TX$35,TX$36,$F44) -> FALSE | TY44: =Find_Month(TY$35,TY$36,$F44) -> FALSE
F45: 7 | G45: 219.704937 | H45: 0.06854507123 | J45: =Find_Month(J$35,J$36,$F45) -> TRUE | K45: =Find_Month(K$35,K$36,$F45) -> TRUE | L45: =Find_Month(L$35,L$36,$F45) -> TRUE | M45: =Find_Month(M$35,M$36,$F45) -> TRUE | N45: =Find_Month(N$35,N$36,$F45) -> TRUE | O45: =Find_Month(O$35,O$36,$F45) -> TRUE | P45: =Find_Month(P$35,P$36,$F45) -> TRUE | Q45: =Find_Month(Q$35,Q$36,$F45) -> TRUE | R45: =Find_Month(R$35,R$36,$F45) -> TRUE | S45: =Find_Month(S$35,S$36,$F45) -> TRUE | T45: =Find_Month(T$35,T$36,$F45) -> TRUE | U45: =Find_Month(U$35,U$36,$F45) -> TRUE | V45: =Find_Month(V$35,V$36,$F45) -> TRUE | W45: =Find_Month(W$35,W$36,$F45) -> TRUE | X45: =Find_Month(X$35,X$36,$F45) -> TRUE | Y45: =Find_Month(Y$35,Y$36,$F45) -> TRUE | Z45: =Find_Month(Z$35,Z$36,$F45) -> TRUE | AA45: =Find_Month(AA$35,AA$36,$F45) -> TRUE | AB45: =Find_Month(AB$35,AB$36,$F45) -> TRUE | AC45: =Find_Month(AC$35,AC$36,$F45) -> TRUE | AD45: =Find_Month(AD$35,AD$36,$F45) -> TRUE | AE45: =Find_Month(AE$35,AE$36,$F45) -> TRUE | AF45: =Find_Month(AF$35,AF$36,$F45) -> TRUE | AG45: =Find_Month(AG$35,AG$36,$F45) -> TRUE | AH45: =Find_Month(AH$35,AH$36,$F45) -> TRUE | AI45: =Find_Month(AI$35,AI$36,$F45) -> TRUE | AJ45: =Find_Month(AJ$35,AJ$36,$F45) -> TRUE | AK45: =Find_Month(AK$35,AK$36,$F45) -> TRUE | AL45: =Find_Month(AL$35,AL$36,$F45) -> TRUE | AM45: =Find_Month(AM$35,AM$36,$F45) -> TRUE | AN45: =Find_Month(AN$35,AN$36,$F45) -> TRUE | AO45: =Find_Month(AO$35,AO$36,$F45) -> TRUE | AP45: =Find_Month(AP$35,AP$36,$F45) -> TRUE | AQ45: =Find_Month(AQ$35,AQ$36,$F45) -> TRUE | AR45: =Find_Month(AR$35,AR$36,$F45) -> TRUE | AS45: =Find_Month(AS$35,AS$36,$F45) -> TRUE | AT45: =Find_Month(AT$35,AT$36,$F45) -> TRUE | AU45: =Find_Month(AU$35,AU$36,$F45) -> TRUE | AV45: =Find_Month(AV$35,AV$36,$F45) -> TRUE | AW45: =Find_Month(AW$35,AW$36,$F45) -> TRUE | AX45: =Find_Month(AX$35,AX$36,$F45) -> TRUE | AY45: =Find_Month(AY$35,AY$36,$F45) -> TRUE | AZ45: =Find_Month(AZ$35,AZ$36,$F45) -> TRUE | BA45: =Find_Month(BA$35,BA$36,$F45) -> TRUE | BB45: =Find_Month(BB$35,BB$36,$F45) -> TRUE | BC45: =Find_Month(BC$35,BC$36,$F45) -> TRUE | BD45: =Find_Month(BD$35,BD$36,$F45) -> TRUE | BE45: =Find_Month(BE$35,BE$36,$F45) -> TRUE | BF45: =Find_Month(BF$35,BF$36,$F45) -> TRUE | BG45: =Find_Month(BG$35,BG$36,$F45) -> TRUE | BH45: =Find_Month(BH$35,BH$36,$F45) -> TRUE | BI45: =Find_Month(BI$35,BI$36,$F45) -> TRUE | BJ45: =Find_Month(BJ$35,BJ$36,$F45) -> TRUE | BK45: =Find_Month(BK$35,BK$36,$F45) -> TRUE | BL45: =Find_Month(BL$35,BL$36,$F45) -> TRUE | BM45: =Find_Month(BM$35,BM$36,$F45) -> TRUE | BN45: =Find_Month(BN$35,BN$36,$F45) -> TRUE | BO45: =Find_Month(BO$35,BO$36,$F45) -> TRUE | BP45: =Find_Month(BP$35,BP$36,$F45) -> TRUE | BQ45: =Find_Month(BQ$35,BQ$36,$F45) -> TRUE | BR45: =Find_Month(BR$35,BR$36,$F45) -> TRUE | BS45: =Find_Month(BS$35,BS$36,$F45) -> TRUE | BT45: =Find_Month(BT$35,BT$36,$F45) -> TRUE | BU45: =Find_Month(BU$35,BU$36,$F45) -> TRUE | BV45: =Find_Month(BV$35,BV$36,$F45) -> TRUE | BW45: =Find_Month(BW$35,BW$36,$F45) -> TRUE | BX45: =Find_Month(BX$35,BX$36,$F45) -> TRUE | BY45: =Find_Month(BY$35,BY$36,$F45) -> TRUE | BZ45: =Find_Month(BZ$35,BZ$36,$F45) -> TRUE | CA45: =Find_Month(CA$35,CA$36,$F45) -> TRUE | CB45: =Find_Month(CB$35,CB$36,$F45) -> TRUE | CC45: =Find_Month(CC$35,CC$36,$F45) -> TRUE | CD45: =Find_Month(CD$35,CD$36,$F45) -> TRUE | CE45: =Find_Month(CE$35,CE$36,$F45) -> TRUE | CF45: =Find_Month(CF$35,CF$36,$F45) -> TRUE | CG45: =Find_Month(CG$35,CG$36,$F45) -> TRUE | CH45: =Find_Month(CH$35,CH$36,$F45) -> TRUE | CI45: =Find_Month(CI$35,CI$36,$F45) -> TRUE | CJ45: =Find_Month(CJ$35,CJ$36,$F45) -> TRUE | CK45: =Find_Month(CK$35,CK$36,$F45) -> TRUE | CL45: =Find_Month(CL$35,CL$36,$F45) -> TRUE | CM45: =Find_Month(CM$35,CM$36,$F45) -> TRUE | CN45: =Find_Month(CN$35,CN$36,$F45) -> TRUE | CO45: =Find_Month(CO$35,CO$36,$F45) -> TRUE | CP45: =Find_Month(CP$35,CP$36,$F45) -> TRUE | CQ45: =Find_Month(CQ$35,CQ$36,$F45) -> TRUE | CR45: =Find_Month(CR$35,CR$36,$F45) -> TRUE | CS45: =Find_Month(CS$35,CS$36,$F45) -> TRUE | CT45: =Find_Month(CT$35,CT$36,$F45) -> TRUE | CU45: =Find_Month(CU$35,CU$36,$F45) -> TRUE | CV45: =Find_Month(CV$35,CV$36,$F45) -> TRUE | CW45: =Find_Month(CW$35,CW$36,$F45) -> TRUE | CX45: =Find_Month(CX$35,CX$36,$F45) -> TRUE | CY45: =Find_Month(CY$35,CY$36,$F45) -> TRUE | CZ45: =Find_Month(CZ$35,CZ$36,$F45) -> TRUE | DA45: =Find_Month(DA$35,DA$36,$F45) -> TRUE | DB45: =Find_Month(DB$35,DB$36,$F45) -> TRUE | DC45: =Find_Month(DC$35,DC$36,$F45) -> TRUE | DD45: =Find_Month(DD$35,DD$36,$F45) -> TRUE | DE45: =Find_Month(DE$35,DE$36,$F45) -> TRUE | DF45: =Find_Month(DF$35,DF$36,$F45) -> TRUE | DG45: =Find_Month(DG$35,DG$36,$F45) -> TRUE | DH45: =Find_Month(DH$35,DH$36,$F45) -> TRUE | DI45: =Find_Month(DI$35,DI$36,$F45) -> TRUE | DJ45: =Find_Month(DJ$35,DJ$36,$F45) -> TRUE | DK45: =Find_Month(DK$35,DK$36,$F45) -> TRUE | DL45: =Find_Month(DL$35,DL$36,$F45) -> TRUE | DM45: =Find_Month(DM$35,DM$36,$F45) -> TRUE | DN45: =Find_Month(DN$35,DN$36,$F45) -> TRUE | DO45: =Find_Month(DO$35,DO$36,$F45) -> TRUE | DP45: =Find_Month(DP$35,DP$36,$F45) -> TRUE | DQ45: =Find_Month(DQ$35,DQ$36,$F45) -> TRUE | DR45: =Find_Month(DR$35,DR$36,$F45) -> TRUE | DS45: =Find_Month(DS$35,DS$36,$F45) -> TRUE | DT45: =Find_Month(DT$35,DT$36,$F45) -> TRUE | DU45: =Find_Month(DU$35,DU$36,$F45) -> TRUE | DV45: =Find_Month(DV$35,DV$36,$F45) -> TRUE | DW45: =Find_Month(DW$35,DW$36,$F45) -> TRUE | DX45: =Find_Month(DX$35,DX$36,$F45) -> TRUE | DY45: =Find_Month(DY$35,DY$36,$F45) -> TRUE | DZ45: =Find_Month(DZ$35,DZ$36,$F45) -> TRUE | EA45: =Find_Month(EA$35,EA$36,$F45) -> TRUE | EB45: =Find_Month(EB$35,EB$36,$F45) -> TRUE | EC45: =Find_Month(EC$35,EC$36,$F45) -> TRUE | ED45: =Find_Month(ED$35,ED$36,$F45) -> TRUE | EE45: =Find_Month(EE$35,EE$36,$F45) -> TRUE | EF45: =Find_Month(EF$35,EF$36,$F45) -> TRUE | EG45: =Find_Month(EG$35,EG$36,$F45) -> TRUE | EH45: =Find_Month(EH$35,EH$36,$F45) -> TRUE | EI45: =Find_Month(EI$35,EI$36,$F45) -> TRUE | EJ45: =Find_Month(EJ$35,EJ$36,$F45) -> TRUE | EK45: =Find_Month(EK$35,EK$36,$F45) -> TRUE | EL45: =Find_Month(EL$35,EL$36,$F45) -> TRUE | EM45: =Find_Month(EM$35,EM$36,$F45) -> TRUE | EN45: =Find_Month(EN$35,EN$36,$F45) -> TRUE | EO45: =Find_Month(EO$35,EO$36,$F45) -> TRUE | EP45: =Find_Month(EP$35,EP$36,$F45) -> TRUE | EQ45: =Find_Month(EQ$35,EQ$36,$F45) -> TRUE | ER45: =Find_Month(ER$35,ER$36,$F45) -> TRUE | ES45: =Find_Month(ES$35,ES$36,$F45) -> TRUE | ET45: =Find_Month(ET$35,ET$36,$F45) -> TRUE | EU45: =Find_Month(EU$35,EU$36,$F45) -> TRUE | EV45: =Find_Month(EV$35,EV$36,$F45) -> TRUE | EW45: =Find_Month(EW$35,EW$36,$F45) -> TRUE | EX45: =Find_Month(EX$35,EX$36,$F45) -> TRUE | EY45: =Find_Month(EY$35,EY$36,$F45) -> TRUE | EZ45: =Find_Month(EZ$35,EZ$36,$F45) -> TRUE | FA45: =Find_Month(FA$35,FA$36,$F45) -> TRUE | FB45: =Find_Month(FB$35,FB$36,$F45) -> TRUE | FC45: =Find_Month(FC$35,FC$36,$F45) -> TRUE | FD45: =Find_Month(FD$35,FD$36,$F45) -> TRUE | FE45: =Find_Month(FE$35,FE$36,$F45) -> TRUE | FF45: =Find_Month(FF$35,FF$36,$F45) -> TRUE | FG45: =Find_Month(FG$35,FG$36,$F45) -> TRUE | FH45: =Find_Month(FH$35,FH$36,$F45) -> TRUE | FI45: =Find_Month(FI$35,FI$36,$F45) -> TRUE | FJ45: =Find_Month(FJ$35,FJ$36,$F45) -> TRUE | FK45: =Find_Month(FK$35,FK$36,$F45) -> TRUE | FL45: =Find_Month(FL$35,FL$36,$F45) -> TRUE | FM45: =Find_Month(FM$35,FM$36,$F45) -> TRUE | FN45: =Find_Month(FN$35,FN$36,$F45) -> TRUE | FO45: =Find_Month(FO$35,FO$36,$F45) -> TRUE | FP45: =Find_Month(FP$35,FP$36,$F45) -> TRUE | FQ45: =Find_Month(FQ$35,FQ$36,$F45) -> TRUE | FR45: =Find_Month(FR$35,FR$36,$F45) -> TRUE | FS45: =Find_Month(FS$35,FS$36,$F45) -> TRUE | FT45: =Find_Month(FT$35,FT$36,$F45) -> TRUE | FU45: =Find_Month(FU$35,FU$36,$F45) -> TRUE | FV45: =Find_Month(FV$35,FV$36,$F45) -> TRUE | FW45: =Find_Month(FW$35,FW$36,$F45) -> TRUE | FX45: =Find_Month(FX$35,FX$36,$F45) -> TRUE | FY45: =Find_Month(FY$35,FY$36,$F45) -> TRUE | FZ45: =Find_Month(FZ$35,FZ$36,$F45) -> TRUE | GA45: =Find_Month(GA$35,GA$36,$F45) -> TRUE | GB45: =Find_Month(GB$35,GB$36,$F45) -> TRUE | GC45: =Find_Month(GC$35,GC$36,$F45) -> TRUE | GD45: =Find_Month(GD$35,GD$36,$F45) -> TRUE | GE45: =Find_Month(GE$35,GE$36,$F45) -> TRUE | GF45: =Find_Month(GF$35,GF$36,$F45) -> TRUE | GG45: =Find_Month(GG$35,GG$36,$F45) -> TRUE | GH45: =Find_Month(GH$35,GH$36,$F45) -> TRUE | GI45: =Find_Month(GI$35,GI$36,$F45) -> TRUE | GJ45: =Find_Month(GJ$35,GJ$36,$F45) -> TRUE | GK45: =Find_Month(GK$35,GK$36,$F45) -> TRUE | GL45: =Find_Month(GL$35,GL$36,$F45) -> TRUE | GM45: =Find_Month(GM$35,GM$36,$F45) -> TRUE | GN45: =Find_Month(GN$35,GN$36,$F45) -> TRUE | GO45: =Find_Month(GO$35,GO$36,$F45) -> TRUE | GP45: =Find_Month(GP$35,GP$36,$F45) -> TRUE | GQ45: =Find_Month(GQ$35,GQ$36,$F45) -> TRUE | GR45: =Find_Month(GR$35,GR$36,$F45) -> TRUE | GS45: =Find_Month(GS$35,GS$36,$F45) -> TRUE | GT45: =Find_Month(GT$35,GT$36,$F45) -> TRUE | GU45: =Find_Month(GU$35,GU$36,$F45) -> TRUE | GV45: =Find_Month(GV$35,GV$36,$F45) -> TRUE | GW45: =Find_Month(GW$35,GW$36,$F45) -> TRUE | GX45: =Find_Month(GX$35,GX$36,$F45) -> TRUE | GY45: =Find_Month(GY$35,GY$36,$F45) -> TRUE | GZ45: =Find_Month(GZ$35,GZ$36,$F45) -> TRUE | HA45: =Find_Month(HA$35,HA$36,$F45) -> TRUE | HB45: =Find_Month(HB$35,HB$36,$F45) -> TRUE | HC45: =Find_Month(HC$35,HC$36,$F45) -> TRUE | HD45: =Find_Month(HD$35,HD$36,$F45) -> TRUE | HE45: =Find_Month(HE$35,HE$36,$F45) -> TRUE | HF45: =Find_Month(HF$35,HF$36,$F45) -> TRUE | HG45: =Find_Month(HG$35,HG$36,$F45) -> TRUE | HH45: =Find_Month(HH$35,HH$36,$F45) -> TRUE | HI45: =Find_Month(HI$35,HI$36,$F45) -> TRUE | HJ45: =Find_Month(HJ$35,HJ$36,$F45) -> TRUE | HK45: =Find_Month(HK$35,HK$36,$F45) -> TRUE | HL45: =Find_Month(HL$35,HL$36,$F45) -> TRUE | HM45: =Find_Month(HM$35,HM$36,$F45) -> TRUE | HN45: =Find_Month(HN$35,HN$36,$F45) -> TRUE | HO45: =Find_Month(HO$35,HO$36,$F45) -> TRUE | HP45: =Find_Month(HP$35,HP$36,$F45) -> TRUE | HQ45: =Find_Month(HQ$35,HQ$36,$F45) -> TRUE | HR45: =Find_Month(HR$35,HR$36,$F45) -> TRUE | HS45: =Find_Month(HS$35,HS$36,$F45) -> TRUE | HT45: =Find_Month(HT$35,HT$36,$F45) -> TRUE | HU45: =Find_Month(HU$35,HU$36,$F45) -> TRUE | HV45: =Find_Month(HV$35,HV$36,$F45) -> TRUE | HW45: =Find_Month(HW$35,HW$36,$F45) -> TRUE | HX45: =Find_Month(HX$35,HX$36,$F45) -> TRUE | HY45: =Find_Month(HY$35,HY$36,$F45) -> TRUE | HZ45: =Find_Month(HZ$35,HZ$36,$F45) -> TRUE | IA45: =Find_Month(IA$35,IA$36,$F45) -> TRUE | IB45: =Find_Month(IB$35,IB$36,$F45) -> TRUE | IC45: =Find_Month(IC$35,IC$36,$F45) -> TRUE | ID45: =Find_Month(ID$35,ID$36,$F45) -> TRUE | IE45: =Find_Month(IE$35,IE$36,$F45) -> TRUE | IF45: =Find_Month(IF$35,IF$36,$F45) -> TRUE | IG45: =Find_Month(IG$35,IG$36,$F45) -> TRUE | IH45: =Find_Month(IH$35,IH$36,$F45) -> TRUE | II45: =Find_Month(II$35,II$36,$F45) -> TRUE | IJ45: =Find_Month(IJ$35,IJ$36,$F45) -> TRUE | IK45: =Find_Month(IK$35,IK$36,$F45) -> TRUE | IL45: =Find_Month(IL$35,IL$36,$F45) -> TRUE | IM45: =Find_Month(IM$35,IM$36,$F45) -> TRUE | IN45: =Find_Month(IN$35,IN$36,$F45) -> TRUE | IO45: =Find_Month(IO$35,IO$36,$F45) -> TRUE | IP45: =Find_Month(IP$35,IP$36,$F45) -> TRUE | IQ45: =Find_Month(IQ$35,IQ$36,$F45) -> TRUE | IR45: =Find_Month(IR$35,IR$36,$F45) -> TRUE | IS45: =Find_Month(IS$35,IS$36,$F45) -> TRUE | IT45: =Find_Month(IT$35,IT$36,$F45) -> TRUE | IU45: =Find_Month(IU$35,IU$36,$F45) -> TRUE | IV45: =Find_Month(IV$35,IV$36,$F45) -> TRUE | IW45: =Find_Month(IW$35,IW$36,$F45) -> TRUE | IX45: =Find_Month(IX$35,IX$36,$F45) -> TRUE | IY45: =Find_Month(IY$35,IY$36,$F45) -> TRUE | IZ45: =Find_Month(IZ$35,IZ$36,$F45) -> TRUE | JA45: =Find_Month(JA$35,JA$36,$F45) -> TRUE | JB45: =Find_Month(JB$35,JB$36,$F45) -> TRUE | JC45: =Find_Month(JC$35,JC$36,$F45) -> TRUE | JD45: =Find_Month(JD$35,JD$36,$F45) -> TRUE | JE45: =Find_Month(JE$35,JE$36,$F45) -> TRUE | JF45: =Find_Month(JF$35,JF$36,$F45) -> TRUE | JG45: =Find_Month(JG$35,JG$36,$F45) -> TRUE | JH45: =Find_Month(JH$35,JH$36,$F45) -> TRUE | JI45: =Find_Month(JI$35,JI$36,$F45) -> TRUE | JJ45: =Find_Month(JJ$35,JJ$36,$F45) -> TRUE | JK45: =Find_Month(JK$35,JK$36,$F45) -> TRUE | JL45: =Find_Month(JL$35,JL$36,$F45) -> TRUE | JM45: =Find_Month(JM$35,JM$36,$F45) -> TRUE | JN45: =Find_Month(JN$35,JN$36,$F45) -> TRUE | JO45: =Find_Month(JO$35,JO$36,$F45) -> TRUE | JP45: =Find_Month(JP$35,JP$36,$F45) -> TRUE | JQ45: =Find_Month(JQ$35,JQ$36,$F45) -> TRUE | JR45: =Find_Month(JR$35,JR$36,$F45) -> TRUE | JS45: =Find_Month(JS$35,JS$36,$F45) -> TRUE | JT45: =Find_Month(JT$35,JT$36,$F45) -> TRUE | JU45: =Find_Month(JU$35,JU$36,$F45) -> TRUE | JV45: =Find_Month(JV$35,JV$36,$F45) -> TRUE | JW45: =Find_Month(JW$35,JW$36,$F45) -> TRUE | JX45: =Find_Month(JX$35,JX$36,$F45) -> TRUE | JY45: =Find_Month(JY$35,JY$36,$F45) -> TRUE | JZ45: =Find_Month(JZ$35,JZ$36,$F45) -> TRUE | KA45: =Find_Month(KA$35,KA$36,$F45) -> TRUE | KB45: =Find_Month(KB$35,KB$36,$F45) -> TRUE | KC45: =Find_Month(KC$35,KC$36,$F45) -> TRUE | KD45: =Find_Month(KD$35,KD$36,$F45) -> TRUE | KE45: =Find_Month(KE$35,KE$36,$F45) -> TRUE | KF45: =Find_Month(KF$35,KF$36,$F45) -> TRUE | KG45: =Find_Month(KG$35,KG$36,$F45) -> TRUE | KH45: =Find_Month(KH$35,KH$36,$F45) -> TRUE | KI45: =Find_Month(KI$35,KI$36,$F45) -> TRUE | KJ45: =Find_Month(KJ$35,KJ$36,$F45) -> TRUE | KK45: =Find_Month(KK$35,KK$36,$F45) -> TRUE | KL45: =Find_Month(KL$35,KL$36,$F45) -> TRUE | KM45: =Find_Month(KM$35,KM$36,$F45) -> TRUE | KN45: =Find_Month(KN$35,KN$36,$F45) -> TRUE | KO45: =Find_Month(KO$35,KO$36,$F45) -> TRUE | KP45: =Find_Month(KP$35,KP$36,$F45) -> TRUE | KQ45: =Find_Month(KQ$35,KQ$36,$F45) -> TRUE | KR45: =Find_Month(KR$35,KR$36,$F45) -> TRUE | KS45: =Find_Month(KS$35,KS$36,$F45) -> TRUE | KT45: =Find_Month(KT$35,KT$36,$F45) -> TRUE | KU45: =Find_Month(KU$35,KU$36,$F45) -> TRUE | KV45: =Find_Month(KV$35,KV$36,$F45) -> TRUE | KW45: =Find_Month(KW$35,KW$36,$F45) -> TRUE | KX45: =Find_Month(KX$35,KX$36,$F45) -> TRUE | KY45: =Find_Month(KY$35,KY$36,$F45) -> TRUE | KZ45: =Find_Month(KZ$35,KZ$36,$F45) -> TRUE | LA45: =Find_Month(LA$35,LA$36,$F45) -> TRUE | LB45: =Find_Month(LB$35,LB$36,$F45) -> TRUE | LC45: =Find_Month(LC$35,LC$36,$F45) -> TRUE | LD45: =Find_Month(LD$35,LD$36,$F45) -> TRUE | LE45: =Find_Month(LE$35,LE$36,$F45) -> TRUE | LF45: =Find_Month(LF$35,LF$36,$F45) -> TRUE | LG45: =Find_Month(LG$35,LG$36,$F45) -> TRUE | LH45: =Find_Month(LH$35,LH$36,$F45) -> TRUE | LI45: =Find_Month(LI$35,LI$36,$F45) -> TRUE | LJ45: =Find_Month(LJ$35,LJ$36,$F45) -> TRUE | LK45: =Find_Month(LK$35,LK$36,$F45) -> TRUE | LL45: =Find_Month(LL$35,LL$36,$F45) -> TRUE | LM45: =Find_Month(LM$35,LM$36,$F45) -> TRUE | LN45: =Find_Month(LN$35,LN$36,$F45) -> TRUE | LO45: =Find_Month(LO$35,LO$36,$F45) -> TRUE | LP45: =Find_Month(LP$35,LP$36,$F45) -> TRUE | LQ45: =Find_Month(LQ$35,LQ$36,$F45) -> TRUE | LR45: =Find_Month(LR$35,LR$36,$F45) -> TRUE | LS45: =Find_Month(LS$35,LS$36,$F45) -> TRUE | LT45: =Find_Month(LT$35,LT$36,$F45) -> TRUE | LU45: =Find_Month(LU$35,LU$36,$F45) -> TRUE | LV45: =Find_Month(LV$35,LV$36,$F45) -> TRUE | LW45: =Find_Month(LW$35,LW$36,$F45) -> TRUE | LX45: =Find_Month(LX$35,LX$36,$F45) -> TRUE | LY45: =Find_Month(LY$35,LY$36,$F45) -> TRUE | LZ45: =Find_Month(LZ$35,LZ$36,$F45) -> TRUE | MA45: =Find_Month(MA$35,MA$36,$F45) -> TRUE | MB45: =Find_Month(MB$35,MB$36,$F45) -> TRUE | MC45: =Find_Month(MC$35,MC$36,$F45) -> TRUE | MD45: =Find_Month(MD$35,MD$36,$F45) -> TRUE | ME45: =Find_Month(ME$35,ME$36,$F45) -> TRUE | MF45: =Find_Month(MF$35,MF$36,$F45) -> TRUE | MG45: =Find_Month(MG$35,MG$36,$F45) -> TRUE | MH45: =Find_Month(MH$35,MH$36,$F45) -> TRUE | MI45: =Find_Month(MI$35,MI$36,$F45) -> TRUE | MJ45: =Find_Month(MJ$35,MJ$36,$F45) -> TRUE | MK45: =Find_Month(MK$35,MK$36,$F45) -> TRUE | ML45: =Find_Month(ML$35,ML$36,$F45) -> TRUE | MM45: =Find_Month(MM$35,MM$36,$F45) -> TRUE | MN45: =Find_Month(MN$35,MN$36,$F45) -> TRUE | MO45: =Find_Month(MO$35,MO$36,$F45) -> TRUE | MP45: =Find_Month(MP$35,MP$36,$F45) -> TRUE | MQ45: =Find_Month(MQ$35,MQ$36,$F45) -> TRUE | MR45: =Find_Month(MR$35,MR$36,$F45) -> TRUE | MS45: =Find_Month(MS$35,MS$36,$F45) -> TRUE | MT45: =Find_Month(MT$35,MT$36,$F45) -> TRUE | MU45: =Find_Month(MU$35,MU$36,$F45) -> TRUE | MV45: =Find_Month(MV$35,MV$36,$F45) -> TRUE | MW45: =Find_Month(MW$35,MW$36,$F45) -> TRUE | MX45: =Find_Month(MX$35,MX$36,$F45) -> TRUE | MY45: =Find_Month(MY$35,MY$36,$F45) -> TRUE | MZ45: =Find_Month(MZ$35,MZ$36,$F45) -> TRUE | NA45: =Find_Month(NA$35,NA$36,$F45) -> TRUE | NB45: =Find_Month(NB$35,NB$36,$F45) -> TRUE | NC45: =Find_Month(NC$35,NC$36,$F45) -> TRUE | ND45: =Find_Month(ND$35,ND$36,$F45) -> TRUE | NE45: =Find_Month(NE$35,NE$36,$F45) -> TRUE | NF45: =Find_Month(NF$35,NF$36,$F45) -> TRUE | NG45: =Find_Month(NG$35,NG$36,$F45) -> TRUE | NH45: =Find_Month(NH$35,NH$36,$F45) -> TRUE | NI45: =Find_Month(NI$35,NI$36,$F45) -> TRUE | NJ45: =Find_Month(NJ$35,NJ$36,$F45) -> TRUE | NK45: =Find_Month(NK$35,NK$36,$F45) -> TRUE | NL45: =Find_Month(NL$35,NL$36,$F45) -> TRUE | NM45: =Find_Month(NM$35,NM$36,$F45) -> TRUE | NN45: =Find_Month(NN$35,NN$36,$F45) -> TRUE | NO45: =Find_Month(NO$35,NO$36,$F45) -> TRUE | NP45: =Find_Month(NP$35,NP$36,$F45) -> TRUE | NQ45: =Find_Month(NQ$35,NQ$36,$F45) -> TRUE | NR45: =Find_Month(NR$35,NR$36,$F45) -> TRUE | NS45: =Find_Month(NS$35,NS$36,$F45) -> TRUE | NT45: =Find_Month(NT$35,NT$36,$F45) -> TRUE | NU45: =Find_Month(NU$35,NU$36,$F45) -> TRUE | NV45: =Find_Month(NV$35,NV$36,$F45) -> TRUE | NW45: =Find_Month(NW$35,NW$36,$F45) -> TRUE | NX45: =Find_Month(NX$35,NX$36,$F45) -> TRUE | NY45: =Find_Month(NY$35,NY$36,$F45) -> TRUE | NZ45: =Find_Month(NZ$35,NZ$36,$F45) -> TRUE | OA45: =Find_Month(OA$35,OA$36,$F45) -> TRUE | OB45: =Find_Month(OB$35,OB$36,$F45) -> TRUE | OC45: =Find_Month(OC$35,OC$36,$F45) -> TRUE | OD45: =Find_Month(OD$35,OD$36,$F45) -> TRUE | OE45: =Find_Month(OE$35,OE$36,$F45) -> TRUE | OF45: =Find_Month(OF$35,OF$36,$F45) -> TRUE | OG45: =Find_Month(OG$35,OG$36,$F45) -> TRUE | OH45: =Find_Month(OH$35,OH$36,$F45) -> TRUE | OI45: =Find_Month(OI$35,OI$36,$F45) -> TRUE | OJ45: =Find_Month(OJ$35,OJ$36,$F45) -> TRUE | OK45: =Find_Month(OK$35,OK$36,$F45) -> TRUE | OL45: =Find_Month(OL$35,OL$36,$F45) -> TRUE | OM45: =Find_Month(OM$35,OM$36,$F45) -> TRUE | ON45: =Find_Month(ON$35,ON$36,$F45) -> TRUE | OO45: =Find_Month(OO$35,OO$36,$F45) -> TRUE | OP45: =Find_Month(OP$35,OP$36,$F45) -> TRUE | OQ45: =Find_Month(OQ$35,OQ$36,$F45) -> TRUE | OR45: =Find_Month(OR$35,OR$36,$F45) -> TRUE | OS45: =Find_Month(OS$35,OS$36,$F45) -> TRUE | OT45: =Find_Month(OT$35,OT$36,$F45) -> TRUE | OU45: =Find_Month(OU$35,OU$36,$F45) -> TRUE | OV45: =Find_Month(OV$35,OV$36,$F45) -> TRUE | OW45: =Find_Month(OW$35,OW$36,$F45) -> TRUE | OX45: =Find_Month(OX$35,OX$36,$F45) -> TRUE | OY45: =Find_Month(OY$35,OY$36,$F45) -> TRUE | OZ45: =Find_Month(OZ$35,OZ$36,$F45) -> TRUE | PA45: =Find_Month(PA$35,PA$36,$F45) -> TRUE | PB45: =Find_Month(PB$35,PB$36,$F45) -> TRUE | PC45: =Find_Month(PC$35,PC$36,$F45) -> TRUE | PD45: =Find_Month(PD$35,PD$36,$F45) -> TRUE | PE45: =Find_Month(PE$35,PE$36,$F45) -> TRUE | PF45: =Find_Month(PF$35,PF$36,$F45) -> TRUE | PG45: =Find_Month(PG$35,PG$36,$F45) -> TRUE | PH45: =Find_Month(PH$35,PH$36,$F45) -> TRUE | PI45: =Find_Month(PI$35,PI$36,$F45) -> TRUE | PJ45: =Find_Month(PJ$35,PJ$36,$F45) -> TRUE | PK45: =Find_Month(PK$35,PK$36,$F45) -> TRUE | PL45: =Find_Month(PL$35,PL$36,$F45) -> TRUE | PM45: =Find_Month(PM$35,PM$36,$F45) -> TRUE | PN45: =Find_Month(PN$35,PN$36,$F45) -> TRUE | PO45: =Find_Month(PO$35,PO$36,$F45) -> TRUE | PP45: =Find_Month(PP$35,PP$36,$F45) -> TRUE | PQ45: =Find_Month(PQ$35,PQ$36,$F45) -> TRUE | PR45: =Find_Month(PR$35,PR$36,$F45) -> TRUE | PS45: =Find_Month(PS$35,PS$36,$F45) -> TRUE | PT45: =Find_Month(PT$35,PT$36,$F45) -> TRUE | PU45: =Find_Month(PU$35,PU$36,$F45) -> TRUE | PV45: =Find_Month(PV$35,PV$36,$F45) -> TRUE | PW45: =Find_Month(PW$35,PW$36,$F45) -> TRUE | PX45: =Find_Month(PX$35,PX$36,$F45) -> TRUE | PY45: =Find_Month(PY$35,PY$36,$F45) -> TRUE | PZ45: =Find_Month(PZ$35,PZ$36,$F45) -> TRUE | QA45: =Find_Month(QA$35,QA$36,$F45) -> TRUE | QB45: =Find_Month(QB$35,QB$36,$F45) -> TRUE | QC45: =Find_Month(QC$35,QC$36,$F45) -> TRUE | QD45: =Find_Month(QD$35,QD$36,$F45) -> TRUE | QE45: =Find_Month(QE$35,QE$36,$F45) -> TRUE | QF45: =Find_Month(QF$35,QF$36,$F45) -> TRUE | QG45: =Find_Month(QG$35,QG$36,$F45) -> TRUE | QH45: =Find_Month(QH$35,QH$36,$F45) -> TRUE | QI45: =Find_Month(QI$35,QI$36,$F45) -> TRUE | QJ45: =Find_Month(QJ$35,QJ$36,$F45) -> TRUE | QK45: =Find_Month(QK$35,QK$36,$F45) -> TRUE | QL45: =Find_Month(QL$35,QL$36,$F45) -> TRUE | QM45: =Find_Month(QM$35,QM$36,$F45) -> TRUE | QN45: =Find_Month(QN$35,QN$36,$F45) -> TRUE | QO45: =Find_Month(QO$35,QO$36,$F45) -> TRUE | QP45: =Find_Month(QP$35,QP$36,$F45) -> TRUE | QQ45: =Find_Month(QQ$35,QQ$36,$F45) -> TRUE | QR45: =Find_Month(QR$35,QR$36,$F45) -> TRUE | QS45: =Find_Month(QS$35,QS$36,$F45) -> TRUE | QT45: =Find_Month(QT$35,QT$36,$F45) -> TRUE | QU45: =Find_Month(QU$35,QU$36,$F45) -> TRUE | QV45: =Find_Month(QV$35,QV$36,$F45) -> TRUE | QW45: =Find_Month(QW$35,QW$36,$F45) -> TRUE | QX45: =Find_Month(QX$35,QX$36,$F45) -> TRUE | QY45: =Find_Month(QY$35,QY$36,$F45) -> TRUE | QZ45: =Find_Month(QZ$35,QZ$36,$F45) -> TRUE | RA45: =Find_Month(RA$35,RA$36,$F45) -> TRUE | RB45: =Find_Month(RB$35,RB$36,$F45) -> TRUE | RC45: =Find_Month(RC$35,RC$36,$F45) -> TRUE | RD45: =Find_Month(RD$35,RD$36,$F45) -> TRUE | RE45: =Find_Month(RE$35,RE$36,$F45) -> TRUE | RF45: =Find_Month(RF$35,RF$36,$F45) -> TRUE | RG45: =Find_Month(RG$35,RG$36,$F45) -> TRUE | RH45: =Find_Month(RH$35,RH$36,$F45) -> TRUE | RI45: =Find_Month(RI$35,RI$36,$F45) -> TRUE | RJ45: =Find_Month(RJ$35,RJ$36,$F45) -> TRUE | RK45: =Find_Month(RK$35,RK$36,$F45) -> TRUE | RL45: =Find_Month(RL$35,RL$36,$F45) -> TRUE | RM45: =Find_Month(RM$35,RM$36,$F45) -> TRUE | RN45: =Find_Month(RN$35,RN$36,$F45) -> TRUE | RO45: =Find_Month(RO$35,RO$36,$F45) -> TRUE | RP45: =Find_Month(RP$35,RP$36,$F45) -> TRUE | RQ45: =Find_Month(RQ$35,RQ$36,$F45) -> TRUE | RR45: =Find_Month(RR$35,RR$36,$F45) -> TRUE | RS45: =Find_Month(RS$35,RS$36,$F45) -> TRUE | RT45: =Find_Month(RT$35,RT$36,$F45) -> TRUE | RU45: =Find_Month(RU$35,RU$36,$F45) -> TRUE | RV45: =Find_Month(RV$35,RV$36,$F45) -> TRUE | RW45: =Find_Month(RW$35,RW$36,$F45) -> TRUE | RX45: =Find_Month(RX$35,RX$36,$F45) -> TRUE | RY45: =Find_Month(RY$35,RY$36,$F45) -> TRUE | RZ45: =Find_Month(RZ$35,RZ$36,$F45) -> TRUE | SA45: =Find_Month(SA$35,SA$36,$F45) -> TRUE | SB45: =Find_Month(SB$35,SB$36,$F45) -> TRUE | SC45: =Find_Month(SC$35,SC$36,$F45) -> FALSE | SD45: =Find_Month(SD$35,SD$36,$F45) -> FALSE | SE45: =Find_Month(SE$35,SE$36,$F45) -> FALSE | SF45: =Find_Month(SF$35,SF$36,$F45) -> FALSE | SG45: =Find_Month(SG$35,SG$36,$F45) -> FALSE | SH45: =Find_Month(SH$35,SH$36,$F45) -> FALSE | SI45: =Find_Month(SI$35,SI$36,$F45) -> FALSE | SJ45: =Find_Month(SJ$35,SJ$36,$F45) -> FALSE | SK45: =Find_Month(SK$35,SK$36,$F45) -> FALSE | SL45: =Find_Month(SL$35,SL$36,$F45) -> FALSE | SM45: =Find_Month(SM$35,SM$36,$F45) -> FALSE | SN45: =Find_Month(SN$35,SN$36,$F45) -> FALSE | SO45: =Find_Month(SO$35,SO$36,$F45) -> FALSE | SP45: =Find_Month(SP$35,SP$36,$F45) -> FALSE | SQ45: =Find_Month(SQ$35,SQ$36,$F45) -> FALSE | SR45: =Find_Month(SR$35,SR$36,$F45) -> FALSE | SS45: =Find_Month(SS$35,SS$36,$F45) -> FALSE | ST45: =Find_Month(ST$35,ST$36,$F45) -> FALSE | SU45: =Find_Month(SU$35,SU$36,$F45) -> FALSE | SV45: =Find_Month(SV$35,SV$36,$F45) -> FALSE | SW45: =Find_Month(SW$35,SW$36,$F45) -> FALSE | SX45: =Find_Month(SX$35,SX$36,$F45) -> FALSE | SY45: =Find_Month(SY$35,SY$36,$F45) -> FALSE | SZ45: =Find_Month(SZ$35,SZ$36,$F45) -> FALSE | TA45: =Find_Month(TA$35,TA$36,$F45) -> FALSE | TB45: =Find_Month(TB$35,TB$36,$F45) -> FALSE | TC45: =Find_Month(TC$35,TC$36,$F45) -> FALSE | TD45: =Find_Month(TD$35,TD$36,$F45) -> FALSE | TE45: =Find_Month(TE$35,TE$36,$F45) -> FALSE | TF45: =Find_Month(TF$35,TF$36,$F45) -> FALSE | TG45: =Find_Month(TG$35,TG$36,$F45) -> FALSE | TH45: =Find_Month(TH$35,TH$36,$F45) -> FALSE | TI45: =Find_Month(TI$35,TI$36,$F45) -> FALSE | TJ45: =Find_Month(TJ$35,TJ$36,$F45) -> FALSE | TK45: =Find_Month(TK$35,TK$36,$F45) -> FALSE | TL45: =Find_Month(TL$35,TL$36,$F45) -> FALSE | TM45: =Find_Month(TM$35,TM$36,$F45) -> FALSE | TN45: =Find_Month(TN$35,TN$36,$F45) -> FALSE | TO45: =Find_Month(TO$35,TO$36,$F45) -> FALSE | TP45: =Find_Month(TP$35,TP$36,$F45) -> FALSE | TQ45: =Find_Month(TQ$35,TQ$36,$F45) -> FALSE | TR45: =Find_Month(TR$35,TR$36,$F45) -> FALSE | TS45: =Find_Month(TS$35,TS$36,$F45) -> FALSE | TT45: =Find_Month(TT$35,TT$36,$F45) -> FALSE | TU45: =Find_Month(TU$35,TU$36,$F45) -> FALSE | TV45: =Find_Month(TV$35,TV$36,$F45) -> FALSE | TW45: =Find_Month(TW$35,TW$36,$F45) -> FALSE | TX45: =Find_Month(TX$35,TX$36,$F45) -> FALSE | TY45: =Find_Month(TY$35,TY$36,$F45) -> FALSE
F46: 8 | G46: 217.6722432 | H46: 0.0679108973 | J46: =Find_Month(J$35,J$36,$F46) -> TRUE | K46: =Find_Month(K$35,K$36,$F46) -> TRUE | L46: =Find_Month(L$35,L$36,$F46) -> TRUE | M46: =Find_Month(M$35,M$36,$F46) -> TRUE | N46: =Find_Month(N$35,N$36,$F46) -> TRUE | O46: =Find_Month(O$35,O$36,$F46) -> TRUE | P46: =Find_Month(P$35,P$36,$F46) -> TRUE | Q46: =Find_Month(Q$35,Q$36,$F46) -> TRUE | R46: =Find_Month(R$35,R$36,$F46) -> TRUE | S46: =Find_Month(S$35,S$36,$F46) -> TRUE | T46: =Find_Month(T$35,T$36,$F46) -> TRUE | U46: =Find_Month(U$35,U$36,$F46) -> TRUE | V46: =Find_Month(V$35,V$36,$F46) -> TRUE | W46: =Find_Month(W$35,W$36,$F46) -> TRUE | X46: =Find_Month(X$35,X$36,$F46) -> TRUE | Y46: =Find_Month(Y$35,Y$36,$F46) -> TRUE | Z46: =Find_Month(Z$35,Z$36,$F46) -> TRUE | AA46: =Find_Month(AA$35,AA$36,$F46) -> TRUE | AB46: =Find_Month(AB$35,AB$36,$F46) -> TRUE | AC46: =Find_Month(AC$35,AC$36,$F46) -> TRUE | AD46: =Find_Month(AD$35,AD$36,$F46) -> TRUE | AE46: =Find_Month(AE$35,AE$36,$F46) -> TRUE | AF46: =Find_Month(AF$35,AF$36,$F46) -> TRUE | AG46: =Find_Month(AG$35,AG$36,$F46) -> TRUE | AH46: =Find_Month(AH$35,AH$36,$F46) -> TRUE | AI46: =Find_Month(AI$35,AI$36,$F46) -> TRUE | AJ46: =Find_Month(AJ$35,AJ$36,$F46) -> TRUE | AK46: =Find_Month(AK$35,AK$36,$F46) -> TRUE | AL46: =Find_Month(AL$35,AL$36,$F46) -> TRUE | AM46: =Find_Month(AM$35,AM$36,$F46) -> TRUE | AN46: =Find_Month(AN$35,AN$36,$F46) -> TRUE | AO46: =Find_Month(AO$35,AO$36,$F46) -> TRUE | AP46: =Find_Month(AP$35,AP$36,$F46) -> TRUE | AQ46: =Find_Month(AQ$35,AQ$36,$F46) -> TRUE | AR46: =Find_Month(AR$35,AR$36,$F46) -> TRUE | AS46: =Find_Month(AS$35,AS$36,$F46) -> TRUE | AT46: =Find_Month(AT$35,AT$36,$F46) -> TRUE | AU46: =Find_Month(AU$35,AU$36,$F46) -> TRUE | AV46: =Find_Month(AV$35,AV$36,$F46) -> TRUE | AW46: =Find_Month(AW$35,AW$36,$F46) -> TRUE | AX46: =Find_Month(AX$35,AX$36,$F46) -> TRUE | AY46: =Find_Month(AY$35,AY$36,$F46) -> TRUE | AZ46: =Find_Month(AZ$35,AZ$36,$F46) -> TRUE | BA46: =Find_Month(BA$35,BA$36,$F46) -> TRUE | BB46: =Find_Month(BB$35,BB$36,$F46) -> TRUE | BC46: =Find_Month(BC$35,BC$36,$F46) -> TRUE | BD46: =Find_Month(BD$35,BD$36,$F46) -> TRUE | BE46: =Find_Month(BE$35,BE$36,$F46) -> TRUE | BF46: =Find_Month(BF$35,BF$36,$F46) -> TRUE | BG46: =Find_Month(BG$35,BG$36,$F46) -> TRUE | BH46: =Find_Month(BH$35,BH$36,$F46) -> TRUE | BI46: =Find_Month(BI$35,BI$36,$F46) -> TRUE | BJ46: =Find_Month(BJ$35,BJ$36,$F46) -> TRUE | BK46: =Find_Month(BK$35,BK$36,$F46) -> TRUE | BL46: =Find_Month(BL$35,BL$36,$F46) -> TRUE | BM46: =Find_Month(BM$35,BM$36,$F46) -> TRUE | BN46: =Find_Month(BN$35,BN$36,$F46) -> TRUE | BO46: =Find_Month(BO$35,BO$36,$F46) -> TRUE | BP46: =Find_Month(BP$35,BP$36,$F46) -> TRUE | BQ46: =Find_Month(BQ$35,BQ$36,$F46) -> TRUE | BR46: =Find_Month(BR$35,BR$36,$F46) -> TRUE | BS46: =Find_Month(BS$35,BS$36,$F46) -> TRUE | BT46: =Find_Month(BT$35,BT$36,$F46) -> TRUE | BU46: =Find_Month(BU$35,BU$36,$F46) -> TRUE | BV46: =Find_Month(BV$35,BV$36,$F46) -> TRUE | BW46: =Find_Month(BW$35,BW$36,$F46) -> TRUE | BX46: =Find_Month(BX$35,BX$36,$F46) -> TRUE | BY46: =Find_Month(BY$35,BY$36,$F46) -> TRUE | BZ46: =Find_Month(BZ$35,BZ$36,$F46) -> TRUE | CA46: =Find_Month(CA$35,CA$36,$F46) -> TRUE | CB46: =Find_Month(CB$35,CB$36,$F46) -> TRUE | CC46: =Find_Month(CC$35,CC$36,$F46) -> TRUE | CD46: =Find_Month(CD$35,CD$36,$F46) -> TRUE | CE46: =Find_Month(CE$35,CE$36,$F46) -> TRUE | CF46: =Find_Month(CF$35,CF$36,$F46) -> TRUE | CG46: =Find_Month(CG$35,CG$36,$F46) -> TRUE | CH46: =Find_Month(CH$35,CH$36,$F46) -> TRUE | CI46: =Find_Month(CI$35,CI$36,$F46) -> TRUE | CJ46: =Find_Month(CJ$35,CJ$36,$F46) -> TRUE | CK46: =Find_Month(CK$35,CK$36,$F46) -> TRUE | CL46: =Find_Month(CL$35,CL$36,$F46) -> TRUE | CM46: =Find_Month(CM$35,CM$36,$F46) -> TRUE | CN46: =Find_Month(CN$35,CN$36,$F46) -> TRUE | CO46: =Find_Month(CO$35,CO$36,$F46) -> TRUE | CP46: =Find_Month(CP$35,CP$36,$F46) -> TRUE | CQ46: =Find_Month(CQ$35,CQ$36,$F46) -> TRUE | CR46: =Find_Month(CR$35,CR$36,$F46) -> TRUE | CS46: =Find_Month(CS$35,CS$36,$F46) -> TRUE | CT46: =Find_Month(CT$35,CT$36,$F46) -> TRUE | CU46: =Find_Month(CU$35,CU$36,$F46) -> TRUE | CV46: =Find_Month(CV$35,CV$36,$F46) -> TRUE | CW46: =Find_Month(CW$35,CW$36,$F46) -> TRUE | CX46: =Find_Month(CX$35,CX$36,$F46) -> TRUE | CY46: =Find_Month(CY$35,CY$36,$F46) -> TRUE | CZ46: =Find_Month(CZ$35,CZ$36,$F46) -> TRUE | DA46: =Find_Month(DA$35,DA$36,$F46) -> TRUE | DB46: =Find_Month(DB$35,DB$36,$F46) -> TRUE | DC46: =Find_Month(DC$35,DC$36,$F46) -> TRUE | DD46: =Find_Month(DD$35,DD$36,$F46) -> TRUE | DE46: =Find_Month(DE$35,DE$36,$F46) -> TRUE | DF46: =Find_Month(DF$35,DF$36,$F46) -> TRUE | DG46: =Find_Month(DG$35,DG$36,$F46) -> TRUE | DH46: =Find_Month(DH$35,DH$36,$F46) -> TRUE | DI46: =Find_Month(DI$35,DI$36,$F46) -> TRUE | DJ46: =Find_Month(DJ$35,DJ$36,$F46) -> TRUE | DK46: =Find_Month(DK$35,DK$36,$F46) -> TRUE | DL46: =Find_Month(DL$35,DL$36,$F46) -> TRUE | DM46: =Find_Month(DM$35,DM$36,$F46) -> TRUE | DN46: =Find_Month(DN$35,DN$36,$F46) -> TRUE | DO46: =Find_Month(DO$35,DO$36,$F46) -> TRUE | DP46: =Find_Month(DP$35,DP$36,$F46) -> TRUE | DQ46: =Find_Month(DQ$35,DQ$36,$F46) -> TRUE | DR46: =Find_Month(DR$35,DR$36,$F46) -> TRUE | DS46: =Find_Month(DS$35,DS$36,$F46) -> TRUE | DT46: =Find_Month(DT$35,DT$36,$F46) -> TRUE | DU46: =Find_Month(DU$35,DU$36,$F46) -> TRUE | DV46: =Find_Month(DV$35,DV$36,$F46) -> TRUE | DW46: =Find_Month(DW$35,DW$36,$F46) -> TRUE | DX46: =Find_Month(DX$35,DX$36,$F46) -> TRUE | DY46: =Find_Month(DY$35,DY$36,$F46) -> TRUE | DZ46: =Find_Month(DZ$35,DZ$36,$F46) -> TRUE | EA46: =Find_Month(EA$35,EA$36,$F46) -> TRUE | EB46: =Find_Month(EB$35,EB$36,$F46) -> TRUE | EC46: =Find_Month(EC$35,EC$36,$F46) -> TRUE | ED46: =Find_Month(ED$35,ED$36,$F46) -> TRUE | EE46: =Find_Month(EE$35,EE$36,$F46) -> TRUE | EF46: =Find_Month(EF$35,EF$36,$F46) -> TRUE | EG46: =Find_Month(EG$35,EG$36,$F46) -> TRUE | EH46: =Find_Month(EH$35,EH$36,$F46) -> TRUE | EI46: =Find_Month(EI$35,EI$36,$F46) -> TRUE | EJ46: =Find_Month(EJ$35,EJ$36,$F46) -> TRUE | EK46: =Find_Month(EK$35,EK$36,$F46) -> TRUE | EL46: =Find_Month(EL$35,EL$36,$F46) -> TRUE | EM46: =Find_Month(EM$35,EM$36,$F46) -> TRUE | EN46: =Find_Month(EN$35,EN$36,$F46) -> TRUE | EO46: =Find_Month(EO$35,EO$36,$F46) -> TRUE | EP46: =Find_Month(EP$35,EP$36,$F46) -> TRUE | EQ46: =Find_Month(EQ$35,EQ$36,$F46) -> TRUE | ER46: =Find_Month(ER$35,ER$36,$F46) -> TRUE | ES46: =Find_Month(ES$35,ES$36,$F46) -> TRUE | ET46: =Find_Month(ET$35,ET$36,$F46) -> TRUE | EU46: =Find_Month(EU$35,EU$36,$F46) -> TRUE | EV46: =Find_Month(EV$35,EV$36,$F46) -> TRUE | EW46: =Find_Month(EW$35,EW$36,$F46) -> TRUE | EX46: =Find_Month(EX$35,EX$36,$F46) -> TRUE | EY46: =Find_Month(EY$35,EY$36,$F46) -> TRUE | EZ46: =Find_Month(EZ$35,EZ$36,$F46) -> TRUE | FA46: =Find_Month(FA$35,FA$36,$F46) -> TRUE | FB46: =Find_Month(FB$35,FB$36,$F46) -> TRUE | FC46: =Find_Month(FC$35,FC$36,$F46) -> TRUE | FD46: =Find_Month(FD$35,FD$36,$F46) -> TRUE | FE46: =Find_Month(FE$35,FE$36,$F46) -> TRUE | FF46: =Find_Month(FF$35,FF$36,$F46) -> TRUE | FG46: =Find_Month(FG$35,FG$36,$F46) -> TRUE | FH46: =Find_Month(FH$35,FH$36,$F46) -> TRUE | FI46: =Find_Month(FI$35,FI$36,$F46) -> TRUE | FJ46: =Find_Month(FJ$35,FJ$36,$F46) -> TRUE | FK46: =Find_Month(FK$35,FK$36,$F46) -> TRUE | FL46: =Find_Month(FL$35,FL$36,$F46) -> TRUE | FM46: =Find_Month(FM$35,FM$36,$F46) -> TRUE | FN46: =Find_Month(FN$35,FN$36,$F46) -> TRUE | FO46: =Find_Month(FO$35,FO$36,$F46) -> TRUE | FP46: =Find_Month(FP$35,FP$36,$F46) -> TRUE | FQ46: =Find_Month(FQ$35,FQ$36,$F46) -> TRUE | FR46: =Find_Month(FR$35,FR$36,$F46) -> TRUE | FS46: =Find_Month(FS$35,FS$36,$F46) -> TRUE | FT46: =Find_Month(FT$35,FT$36,$F46) -> TRUE | FU46: =Find_Month(FU$35,FU$36,$F46) -> TRUE | FV46: =Find_Month(FV$35,FV$36,$F46) -> TRUE | FW46: =Find_Month(FW$35,FW$36,$F46) -> TRUE | FX46: =Find_Month(FX$35,FX$36,$F46) -> TRUE | FY46: =Find_Month(FY$35,FY$36,$F46) -> TRUE | FZ46: =Find_Month(FZ$35,FZ$36,$F46) -> TRUE | GA46: =Find_Month(GA$35,GA$36,$F46) -> TRUE | GB46: =Find_Month(GB$35,GB$36,$F46) -> TRUE | GC46: =Find_Month(GC$35,GC$36,$F46) -> TRUE | GD46: =Find_Month(GD$35,GD$36,$F46) -> TRUE | GE46: =Find_Month(GE$35,GE$36,$F46) -> TRUE | GF46: =Find_Month(GF$35,GF$36,$F46) -> TRUE | GG46: =Find_Month(GG$35,GG$36,$F46) -> TRUE | GH46: =Find_Month(GH$35,GH$36,$F46) -> TRUE | GI46: =Find_Month(GI$35,GI$36,$F46) -> TRUE | GJ46: =Find_Month(GJ$35,GJ$36,$F46) -> TRUE | GK46: =Find_Month(GK$35,GK$36,$F46) -> TRUE | GL46: =Find_Month(GL$35,GL$36,$F46) -> TRUE | GM46: =Find_Month(GM$35,GM$36,$F46) -> TRUE | GN46: =Find_Month(GN$35,GN$36,$F46) -> TRUE | GO46: =Find_Month(GO$35,GO$36,$F46) -> TRUE | GP46: =Find_Month(GP$35,GP$36,$F46) -> TRUE | GQ46: =Find_Month(GQ$35,GQ$36,$F46) -> TRUE | GR46: =Find_Month(GR$35,GR$36,$F46) -> TRUE | GS46: =Find_Month(GS$35,GS$36,$F46) -> TRUE | GT46: =Find_Month(GT$35,GT$36,$F46) -> TRUE | GU46: =Find_Month(GU$35,GU$36,$F46) -> TRUE | GV46: =Find_Month(GV$35,GV$36,$F46) -> TRUE | GW46: =Find_Month(GW$35,GW$36,$F46) -> TRUE | GX46: =Find_Month(GX$35,GX$36,$F46) -> TRUE | GY46: =Find_Month(GY$35,GY$36,$F46) -> TRUE | GZ46: =Find_Month(GZ$35,GZ$36,$F46) -> TRUE | HA46: =Find_Month(HA$35,HA$36,$F46) -> TRUE | HB46: =Find_Month(HB$35,HB$36,$F46) -> TRUE | HC46: =Find_Month(HC$35,HC$36,$F46) -> TRUE | HD46: =Find_Month(HD$35,HD$36,$F46) -> TRUE | HE46: =Find_Month(HE$35,HE$36,$F46) -> TRUE | HF46: =Find_Month(HF$35,HF$36,$F46) -> TRUE | HG46: =Find_Month(HG$35,HG$36,$F46) -> TRUE | HH46: =Find_Month(HH$35,HH$36,$F46) -> TRUE | HI46: =Find_Month(HI$35,HI$36,$F46) -> TRUE | HJ46: =Find_Month(HJ$35,HJ$36,$F46) -> TRUE | HK46: =Find_Month(HK$35,HK$36,$F46) -> TRUE | HL46: =Find_Month(HL$35,HL$36,$F46) -> TRUE | HM46: =Find_Month(HM$35,HM$36,$F46) -> TRUE | HN46: =Find_Month(HN$35,HN$36,$F46) -> TRUE | HO46: =Find_Month(HO$35,HO$36,$F46) -> TRUE | HP46: =Find_Month(HP$35,HP$36,$F46) -> TRUE | HQ46: =Find_Month(HQ$35,HQ$36,$F46) -> TRUE | HR46: =Find_Month(HR$35,HR$36,$F46) -> TRUE | HS46: =Find_Month(HS$35,HS$36,$F46) -> TRUE | HT46: =Find_Month(HT$35,HT$36,$F46) -> TRUE | HU46: =Find_Month(HU$35,HU$36,$F46) -> TRUE | HV46: =Find_Month(HV$35,HV$36,$F46) -> TRUE | HW46: =Find_Month(HW$35,HW$36,$F46) -> TRUE | HX46: =Find_Month(HX$35,HX$36,$F46) -> TRUE | HY46: =Find_Month(HY$35,HY$36,$F46) -> TRUE | HZ46: =Find_Month(HZ$35,HZ$36,$F46) -> TRUE | IA46: =Find_Month(IA$35,IA$36,$F46) -> TRUE | IB46: =Find_Month(IB$35,IB$36,$F46) -> TRUE | IC46: =Find_Month(IC$35,IC$36,$F46) -> TRUE | ID46: =Find_Month(ID$35,ID$36,$F46) -> TRUE | IE46: =Find_Month(IE$35,IE$36,$F46) -> TRUE | IF46: =Find_Month(IF$35,IF$36,$F46) -> TRUE | IG46: =Find_Month(IG$35,IG$36,$F46) -> TRUE | IH46: =Find_Month(IH$35,IH$36,$F46) -> TRUE | II46: =Find_Month(II$35,II$36,$F46) -> TRUE | IJ46: =Find_Month(IJ$35,IJ$36,$F46) -> TRUE | IK46: =Find_Month(IK$35,IK$36,$F46) -> TRUE | IL46: =Find_Month(IL$35,IL$36,$F46) -> TRUE | IM46: =Find_Month(IM$35,IM$36,$F46) -> TRUE | IN46: =Find_Month(IN$35,IN$36,$F46) -> TRUE | IO46: =Find_Month(IO$35,IO$36,$F46) -> TRUE | IP46: =Find_Month(IP$35,IP$36,$F46) -> TRUE | IQ46: =Find_Month(IQ$35,IQ$36,$F46) -> TRUE | IR46: =Find_Month(IR$35,IR$36,$F46) -> TRUE | IS46: =Find_Month(IS$35,IS$36,$F46) -> TRUE | IT46: =Find_Month(IT$35,IT$36,$F46) -> TRUE | IU46: =Find_Month(IU$35,IU$36,$F46) -> TRUE | IV46: =Find_Month(IV$35,IV$36,$F46) -> TRUE | IW46: =Find_Month(IW$35,IW$36,$F46) -> TRUE | IX46: =Find_Month(IX$35,IX$36,$F46) -> TRUE | IY46: =Find_Month(IY$35,IY$36,$F46) -> TRUE | IZ46: =Find_Month(IZ$35,IZ$36,$F46) -> TRUE | JA46: =Find_Month(JA$35,JA$36,$F46) -> TRUE | JB46: =Find_Month(JB$35,JB$36,$F46) -> TRUE | JC46: =Find_Month(JC$35,JC$36,$F46) -> TRUE | JD46: =Find_Month(JD$35,JD$36,$F46) -> TRUE | JE46: =Find_Month(JE$35,JE$36,$F46) -> TRUE | JF46: =Find_Month(JF$35,JF$36,$F46) -> TRUE | JG46: =Find_Month(JG$35,JG$36,$F46) -> TRUE | JH46: =Find_Month(JH$35,JH$36,$F46) -> TRUE | JI46: =Find_Month(JI$35,JI$36,$F46) -> TRUE | JJ46: =Find_Month(JJ$35,JJ$36,$F46) -> TRUE | JK46: =Find_Month(JK$35,JK$36,$F46) -> TRUE | JL46: =Find_Month(JL$35,JL$36,$F46) -> TRUE | JM46: =Find_Month(JM$35,JM$36,$F46) -> TRUE | JN46: =Find_Month(JN$35,JN$36,$F46) -> TRUE | JO46: =Find_Month(JO$35,JO$36,$F46) -> TRUE | JP46: =Find_Month(JP$35,JP$36,$F46) -> TRUE | JQ46: =Find_Month(JQ$35,JQ$36,$F46) -> TRUE | JR46: =Find_Month(JR$35,JR$36,$F46) -> TRUE | JS46: =Find_Month(JS$35,JS$36,$F46) -> TRUE | JT46: =Find_Month(JT$35,JT$36,$F46) -> TRUE | JU46: =Find_Month(JU$35,JU$36,$F46) -> TRUE | JV46: =Find_Month(JV$35,JV$36,$F46) -> TRUE | JW46: =Find_Month(JW$35,JW$36,$F46) -> TRUE | JX46: =Find_Month(JX$35,JX$36,$F46) -> TRUE | JY46: =Find_Month(JY$35,JY$36,$F46) -> TRUE | JZ46: =Find_Month(JZ$35,JZ$36,$F46) -> TRUE | KA46: =Find_Month(KA$35,KA$36,$F46) -> TRUE | KB46: =Find_Month(KB$35,KB$36,$F46) -> TRUE | KC46: =Find_Month(KC$35,KC$36,$F46) -> TRUE | KD46: =Find_Month(KD$35,KD$36,$F46) -> TRUE | KE46: =Find_Month(KE$35,KE$36,$F46) -> TRUE | KF46: =Find_Month(KF$35,KF$36,$F46) -> TRUE | KG46: =Find_Month(KG$35,KG$36,$F46) -> TRUE | KH46: =Find_Month(KH$35,KH$36,$F46) -> TRUE | KI46: =Find_Month(KI$35,KI$36,$F46) -> TRUE | KJ46: =Find_Month(KJ$35,KJ$36,$F46) -> TRUE | KK46: =Find_Month(KK$35,KK$36,$F46) -> TRUE | KL46: =Find_Month(KL$35,KL$36,$F46) -> TRUE | KM46: =Find_Month(KM$35,KM$36,$F46) -> TRUE | KN46: =Find_Month(KN$35,KN$36,$F46) -> TRUE | KO46: =Find_Month(KO$35,KO$36,$F46) -> TRUE | KP46: =Find_Month(KP$35,KP$36,$F46) -> TRUE | KQ46: =Find_Month(KQ$35,KQ$36,$F46) -> TRUE | KR46: =Find_Month(KR$35,KR$36,$F46) -> TRUE | KS46: =Find_Month(KS$35,KS$36,$F46) -> TRUE | KT46: =Find_Month(KT$35,KT$36,$F46) -> TRUE | KU46: =Find_Month(KU$35,KU$36,$F46) -> TRUE | KV46: =Find_Month(KV$35,KV$36,$F46) -> TRUE | KW46: =Find_Month(KW$35,KW$36,$F46) -> TRUE | KX46: =Find_Month(KX$35,KX$36,$F46) -> TRUE | KY46: =Find_Month(KY$35,KY$36,$F46) -> TRUE | KZ46: =Find_Month(KZ$35,KZ$36,$F46) -> TRUE | LA46: =Find_Month(LA$35,LA$36,$F46) -> TRUE | LB46: =Find_Month(LB$35,LB$36,$F46) -> TRUE | LC46: =Find_Month(LC$35,LC$36,$F46) -> TRUE | LD46: =Find_Month(LD$35,LD$36,$F46) -> TRUE | LE46: =Find_Month(LE$35,LE$36,$F46) -> TRUE | LF46: =Find_Month(LF$35,LF$36,$F46) -> TRUE | LG46: =Find_Month(LG$35,LG$36,$F46) -> TRUE | LH46: =Find_Month(LH$35,LH$36,$F46) -> TRUE | LI46: =Find_Month(LI$35,LI$36,$F46) -> TRUE | LJ46: =Find_Month(LJ$35,LJ$36,$F46) -> TRUE | LK46: =Find_Month(LK$35,LK$36,$F46) -> TRUE | LL46: =Find_Month(LL$35,LL$36,$F46) -> TRUE | LM46: =Find_Month(LM$35,LM$36,$F46) -> TRUE | LN46: =Find_Month(LN$35,LN$36,$F46) -> TRUE | LO46: =Find_Month(LO$35,LO$36,$F46) -> TRUE | LP46: =Find_Month(LP$35,LP$36,$F46) -> TRUE | LQ46: =Find_Month(LQ$35,LQ$36,$F46) -> TRUE | LR46: =Find_Month(LR$35,LR$36,$F46) -> TRUE | LS46: =Find_Month(LS$35,LS$36,$F46) -> TRUE | LT46: =Find_Month(LT$35,LT$36,$F46) -> TRUE | LU46: =Find_Month(LU$35,LU$36,$F46) -> TRUE | LV46: =Find_Month(LV$35,LV$36,$F46) -> TRUE | LW46: =Find_Month(LW$35,LW$36,$F46) -> TRUE | LX46: =Find_Month(LX$35,LX$36,$F46) -> TRUE | LY46: =Find_Month(LY$35,LY$36,$F46) -> TRUE | LZ46: =Find_Month(LZ$35,LZ$36,$F46) -> TRUE | MA46: =Find_Month(MA$35,MA$36,$F46) -> TRUE | MB46: =Find_Month(MB$35,MB$36,$F46) -> TRUE | MC46: =Find_Month(MC$35,MC$36,$F46) -> TRUE | MD46: =Find_Month(MD$35,MD$36,$F46) -> TRUE | ME46: =Find_Month(ME$35,ME$36,$F46) -> TRUE | MF46: =Find_Month(MF$35,MF$36,$F46) -> TRUE | MG46: =Find_Month(MG$35,MG$36,$F46) -> TRUE | MH46: =Find_Month(MH$35,MH$36,$F46) -> TRUE | MI46: =Find_Month(MI$35,MI$36,$F46) -> TRUE | MJ46: =Find_Month(MJ$35,MJ$36,$F46) -> TRUE | MK46: =Find_Month(MK$35,MK$36,$F46) -> TRUE | ML46: =Find_Month(ML$35,ML$36,$F46) -> TRUE | MM46: =Find_Month(MM$35,MM$36,$F46) -> TRUE | MN46: =Find_Month(MN$35,MN$36,$F46) -> TRUE | MO46: =Find_Month(MO$35,MO$36,$F46) -> TRUE | MP46: =Find_Month(MP$35,MP$36,$F46) -> TRUE | MQ46: =Find_Month(MQ$35,MQ$36,$F46) -> TRUE | MR46: =Find_Month(MR$35,MR$36,$F46) -> TRUE | MS46: =Find_Month(MS$35,MS$36,$F46) -> TRUE | MT46: =Find_Month(MT$35,MT$36,$F46) -> TRUE | MU46: =Find_Month(MU$35,MU$36,$F46) -> TRUE | MV46: =Find_Month(MV$35,MV$36,$F46) -> TRUE | MW46: =Find_Month(MW$35,MW$36,$F46) -> TRUE | MX46: =Find_Month(MX$35,MX$36,$F46) -> TRUE | MY46: =Find_Month(MY$35,MY$36,$F46) -> TRUE | MZ46: =Find_Month(MZ$35,MZ$36,$F46) -> TRUE | NA46: =Find_Month(NA$35,NA$36,$F46) -> TRUE | NB46: =Find_Month(NB$35,NB$36,$F46) -> TRUE | NC46: =Find_Month(NC$35,NC$36,$F46) -> TRUE | ND46: =Find_Month(ND$35,ND$36,$F46) -> TRUE | NE46: =Find_Month(NE$35,NE$36,$F46) -> TRUE | NF46: =Find_Month(NF$35,NF$36,$F46) -> TRUE | NG46: =Find_Month(NG$35,NG$36,$F46) -> TRUE | NH46: =Find_Month(NH$35,NH$36,$F46) -> TRUE | NI46: =Find_Month(NI$35,NI$36,$F46) -> TRUE | NJ46: =Find_Month(NJ$35,NJ$36,$F46) -> TRUE | NK46: =Find_Month(NK$35,NK$36,$F46) -> TRUE | NL46: =Find_Month(NL$35,NL$36,$F46) -> TRUE | NM46: =Find_Month(NM$35,NM$36,$F46) -> TRUE | NN46: =Find_Month(NN$35,NN$36,$F46) -> TRUE | NO46: =Find_Month(NO$35,NO$36,$F46) -> TRUE | NP46: =Find_Month(NP$35,NP$36,$F46) -> TRUE | NQ46: =Find_Month(NQ$35,NQ$36,$F46) -> TRUE | NR46: =Find_Month(NR$35,NR$36,$F46) -> TRUE | NS46: =Find_Month(NS$35,NS$36,$F46) -> TRUE | NT46: =Find_Month(NT$35,NT$36,$F46) -> TRUE | NU46: =Find_Month(NU$35,NU$36,$F46) -> TRUE | NV46: =Find_Month(NV$35,NV$36,$F46) -> TRUE | NW46: =Find_Month(NW$35,NW$36,$F46) -> TRUE | NX46: =Find_Month(NX$35,NX$36,$F46) -> TRUE | NY46: =Find_Month(NY$35,NY$36,$F46) -> TRUE | NZ46: =Find_Month(NZ$35,NZ$36,$F46) -> TRUE | OA46: =Find_Month(OA$35,OA$36,$F46) -> TRUE | OB46: =Find_Month(OB$35,OB$36,$F46) -> TRUE | OC46: =Find_Month(OC$35,OC$36,$F46) -> TRUE | OD46: =Find_Month(OD$35,OD$36,$F46) -> TRUE | OE46: =Find_Month(OE$35,OE$36,$F46) -> TRUE | OF46: =Find_Month(OF$35,OF$36,$F46) -> TRUE | OG46: =Find_Month(OG$35,OG$36,$F46) -> TRUE | OH46: =Find_Month(OH$35,OH$36,$F46) -> TRUE | OI46: =Find_Month(OI$35,OI$36,$F46) -> TRUE | OJ46: =Find_Month(OJ$35,OJ$36,$F46) -> TRUE | OK46: =Find_Month(OK$35,OK$36,$F46) -> TRUE | OL46: =Find_Month(OL$35,OL$36,$F46) -> TRUE | OM46: =Find_Month(OM$35,OM$36,$F46) -> TRUE | ON46: =Find_Month(ON$35,ON$36,$F46) -> TRUE | OO46: =Find_Month(OO$35,OO$36,$F46) -> TRUE | OP46: =Find_Month(OP$35,OP$36,$F46) -> TRUE | OQ46: =Find_Month(OQ$35,OQ$36,$F46) -> TRUE | OR46: =Find_Month(OR$35,OR$36,$F46) -> TRUE | OS46: =Find_Month(OS$35,OS$36,$F46) -> TRUE | OT46: =Find_Month(OT$35,OT$36,$F46) -> TRUE | OU46: =Find_Month(OU$35,OU$36,$F46) -> TRUE | OV46: =Find_Month(OV$35,OV$36,$F46) -> TRUE | OW46: =Find_Month(OW$35,OW$36,$F46) -> TRUE | OX46: =Find_Month(OX$35,OX$36,$F46) -> TRUE | OY46: =Find_Month(OY$35,OY$36,$F46) -> TRUE | OZ46: =Find_Month(OZ$35,OZ$36,$F46) -> TRUE | PA46: =Find_Month(PA$35,PA$36,$F46) -> TRUE | PB46: =Find_Month(PB$35,PB$36,$F46) -> TRUE | PC46: =Find_Month(PC$35,PC$36,$F46) -> TRUE | PD46: =Find_Month(PD$35,PD$36,$F46) -> TRUE | PE46: =Find_Month(PE$35,PE$36,$F46) -> TRUE | PF46: =Find_Month(PF$35,PF$36,$F46) -> TRUE | PG46: =Find_Month(PG$35,PG$36,$F46) -> TRUE | PH46: =Find_Month(PH$35,PH$36,$F46) -> TRUE | PI46: =Find_Month(PI$35,PI$36,$F46) -> TRUE | PJ46: =Find_Month(PJ$35,PJ$36,$F46) -> TRUE | PK46: =Find_Month(PK$35,PK$36,$F46) -> TRUE | PL46: =Find_Month(PL$35,PL$36,$F46) -> TRUE | PM46: =Find_Month(PM$35,PM$36,$F46) -> TRUE | PN46: =Find_Month(PN$35,PN$36,$F46) -> TRUE | PO46: =Find_Month(PO$35,PO$36,$F46) -> TRUE | PP46: =Find_Month(PP$35,PP$36,$F46) -> TRUE | PQ46: =Find_Month(PQ$35,PQ$36,$F46) -> TRUE | PR46: =Find_Month(PR$35,PR$36,$F46) -> TRUE | PS46: =Find_Month(PS$35,PS$36,$F46) -> TRUE | PT46: =Find_Month(PT$35,PT$36,$F46) -> TRUE | PU46: =Find_Month(PU$35,PU$36,$F46) -> TRUE | PV46: =Find_Month(PV$35,PV$36,$F46) -> TRUE | PW46: =Find_Month(PW$35,PW$36,$F46) -> TRUE | PX46: =Find_Month(PX$35,PX$36,$F46) -> TRUE | PY46: =Find_Month(PY$35,PY$36,$F46) -> TRUE | PZ46: =Find_Month(PZ$35,PZ$36,$F46) -> TRUE | QA46: =Find_Month(QA$35,QA$36,$F46) -> TRUE | QB46: =Find_Month(QB$35,QB$36,$F46) -> TRUE | QC46: =Find_Month(QC$35,QC$36,$F46) -> TRUE | QD46: =Find_Month(QD$35,QD$36,$F46) -> TRUE | QE46: =Find_Month(QE$35,QE$36,$F46) -> TRUE | QF46: =Find_Month(QF$35,QF$36,$F46) -> TRUE | QG46: =Find_Month(QG$35,QG$36,$F46) -> TRUE | QH46: =Find_Month(QH$35,QH$36,$F46) -> TRUE | QI46: =Find_Month(QI$35,QI$36,$F46) -> TRUE | QJ46: =Find_Month(QJ$35,QJ$36,$F46) -> TRUE | QK46: =Find_Month(QK$35,QK$36,$F46) -> TRUE | QL46: =Find_Month(QL$35,QL$36,$F46) -> TRUE | QM46: =Find_Month(QM$35,QM$36,$F46) -> TRUE | QN46: =Find_Month(QN$35,QN$36,$F46) -> TRUE | QO46: =Find_Month(QO$35,QO$36,$F46) -> TRUE | QP46: =Find_Month(QP$35,QP$36,$F46) -> TRUE | QQ46: =Find_Month(QQ$35,QQ$36,$F46) -> TRUE | QR46: =Find_Month(QR$35,QR$36,$F46) -> TRUE | QS46: =Find_Month(QS$35,QS$36,$F46) -> TRUE | QT46: =Find_Month(QT$35,QT$36,$F46) -> TRUE | QU46: =Find_Month(QU$35,QU$36,$F46) -> TRUE | QV46: =Find_Month(QV$35,QV$36,$F46) -> TRUE | QW46: =Find_Month(QW$35,QW$36,$F46) -> TRUE | QX46: =Find_Month(QX$35,QX$36,$F46) -> TRUE | QY46: =Find_Month(QY$35,QY$36,$F46) -> TRUE | QZ46: =Find_Month(QZ$35,QZ$36,$F46) -> TRUE | RA46: =Find_Month(RA$35,RA$36,$F46) -> TRUE | RB46: =Find_Month(RB$35,RB$36,$F46) -> TRUE | RC46: =Find_Month(RC$35,RC$36,$F46) -> TRUE | RD46: =Find_Month(RD$35,RD$36,$F46) -> TRUE | RE46: =Find_Month(RE$35,RE$36,$F46) -> TRUE | RF46: =Find_Month(RF$35,RF$36,$F46) -> TRUE | RG46: =Find_Month(RG$35,RG$36,$F46) -> TRUE | RH46: =Find_Month(RH$35,RH$36,$F46) -> TRUE | RI46: =Find_Month(RI$35,RI$36,$F46) -> TRUE | RJ46: =Find_Month(RJ$35,RJ$36,$F46) -> TRUE | RK46: =Find_Month(RK$35,RK$36,$F46) -> TRUE | RL46: =Find_Month(RL$35,RL$36,$F46) -> TRUE | RM46: =Find_Month(RM$35,RM$36,$F46) -> TRUE | RN46: =Find_Month(RN$35,RN$36,$F46) -> TRUE | RO46: =Find_Month(RO$35,RO$36,$F46) -> TRUE | RP46: =Find_Month(RP$35,RP$36,$F46) -> TRUE | RQ46: =Find_Month(RQ$35,RQ$36,$F46) -> TRUE | RR46: =Find_Month(RR$35,RR$36,$F46) -> TRUE | RS46: =Find_Month(RS$35,RS$36,$F46) -> TRUE | RT46: =Find_Month(RT$35,RT$36,$F46) -> TRUE | RU46: =Find_Month(RU$35,RU$36,$F46) -> TRUE | RV46: =Find_Month(RV$35,RV$36,$F46) -> TRUE | RW46: =Find_Month(RW$35,RW$36,$F46) -> TRUE | RX46: =Find_Month(RX$35,RX$36,$F46) -> TRUE | RY46: =Find_Month(RY$35,RY$36,$F46) -> TRUE | RZ46: =Find_Month(RZ$35,RZ$36,$F46) -> TRUE | SA46: =Find_Month(SA$35,SA$36,$F46) -> TRUE | SB46: =Find_Month(SB$35,SB$36,$F46) -> TRUE | SC46: =Find_Month(SC$35,SC$36,$F46) -> FALSE | SD46: =Find_Month(SD$35,SD$36,$F46) -> FALSE | SE46: =Find_Month(SE$35,SE$36,$F46) -> FALSE | SF46: =Find_Month(SF$35,SF$36,$F46) -> FALSE | SG46: =Find_Month(SG$35,SG$36,$F46) -> FALSE | SH46: =Find_Month(SH$35,SH$36,$F46) -> FALSE | SI46: =Find_Month(SI$35,SI$36,$F46) -> FALSE | SJ46: =Find_Month(SJ$35,SJ$36,$F46) -> FALSE | SK46: =Find_Month(SK$35,SK$36,$F46) -> FALSE | SL46: =Find_Month(SL$35,SL$36,$F46) -> FALSE | SM46: =Find_Month(SM$35,SM$36,$F46) -> FALSE | SN46: =Find_Month(SN$35,SN$36,$F46) -> FALSE | SO46: =Find_Month(SO$35,SO$36,$F46) -> FALSE | SP46: =Find_Month(SP$35,SP$36,$F46) -> FALSE | SQ46: =Find_Month(SQ$35,SQ$36,$F46) -> FALSE | SR46: =Find_Month(SR$35,SR$36,$F46) -> FALSE | SS46: =Find_Month(SS$35,SS$36,$F46) -> FALSE | ST46: =Find_Month(ST$35,ST$36,$F46) -> FALSE | SU46: =Find_Month(SU$35,SU$36,$F46) -> FALSE | SV46: =Find_Month(SV$35,SV$36,$F46) -> FALSE | SW46: =Find_Month(SW$35,SW$36,$F46) -> FALSE | SX46: =Find_Month(SX$35,SX$36,$F46) -> FALSE | SY46: =Find_Month(SY$35,SY$36,$F46) -> FALSE | SZ46: =Find_Month(SZ$35,SZ$36,$F46) -> FALSE | TA46: =Find_Month(TA$35,TA$36,$F46) -> FALSE | TB46: =Find_Month(TB$35,TB$36,$F46) -> FALSE | TC46: =Find_Month(TC$35,TC$36,$F46) -> FALSE | TD46: =Find_Month(TD$35,TD$36,$F46) -> FALSE | TE46: =Find_Month(TE$35,TE$36,$F46) -> FALSE | TF46: =Find_Month(TF$35,TF$36,$F46) -> FALSE | TG46: =Find_Month(TG$35,TG$36,$F46) -> FALSE | TH46: =Find_Month(TH$35,TH$36,$F46) -> FALSE | TI46: =Find_Month(TI$35,TI$36,$F46) -> FALSE | TJ46: =Find_Month(TJ$35,TJ$36,$F46) -> FALSE | TK46: =Find_Month(TK$35,TK$36,$F46) -> FALSE | TL46: =Find_Month(TL$35,TL$36,$F46) -> FALSE | TM46: =Find_Month(TM$35,TM$36,$F46) -> FALSE | TN46: =Find_Month(TN$35,TN$36,$F46) -> FALSE | TO46: =Find_Month(TO$35,TO$36,$F46) -> FALSE | TP46: =Find_Month(TP$35,TP$36,$F46) -> FALSE | TQ46: =Find_Month(TQ$35,TQ$36,$F46) -> FALSE | TR46: =Find_Month(TR$35,TR$36,$F46) -> FALSE | TS46: =Find_Month(TS$35,TS$36,$F46) -> FALSE | TT46: =Find_Month(TT$35,TT$36,$F46) -> FALSE | TU46: =Find_Month(TU$35,TU$36,$F46) -> FALSE | TV46: =Find_Month(TV$35,TV$36,$F46) -> FALSE | TW46: =Find_Month(TW$35,TW$36,$F46) -> FALSE | TX46: =Find_Month(TX$35,TX$36,$F46) -> FALSE | TY46: =Find_Month(TY$35,TY$36,$F46) -> FALSE
